Workbook

Sheet Calculator
A3: Group Annuity Calculator
L4: Output fields
A5: My Age is | B5: =Input!G11 ->  | L5: Input fields
A6: 58 | F6: =Input!G15 -> 
A8: Spouse Age is | B8: =Input!G13 -> 
A9: 53
A11: I want to invest (Incl. GST) | K11: I want Pension
A12: 1000000 | K12: Monthly
A14: Pension/Income Plan
A15: Plan Name | D15: Plan Details | I15: Plan Rate | J15: I will get a pension of | K15: I will get a Cashback of
A16: Lifetime Income | D16: Invest now, receive regular income as long as you are alive. | I16: =IF(F6<>"",0,IF(A6<45,0,Input!Z3))*(Input!R16<>"TRUE") -> 0.006443608605 | J16: =IF(F6<>"",0,IF(A6<45,0,ROUND(Input!$AF$5*I16,0))) -> 6330 | K16: Not Applicable | L16: =IF($A$12<Input!AA3+1,"Min monthy annuity of Rs. 1000 per month condition is breached. Please increase the SP to Rs. "&ROUND(Input!AA3*1.018,0)+1,"") -> 
A17: Lifetime income with Cashback | D17: Invest now, receive regular income for your lifetime, after you, your nominee gets the entire amount you invested. | I17: =IF(F6<>"",0,IF(OR(A6<45,A9<35),0,Input!Z4))*(Input!R16<>"TRUE")*(A12>=Input!AA4) -> 0.005107639185 | J17: =IF(F6<>"",0,IF(AND(A7<45,A9<35),0,ROUND(Input!$AF$5*I17,0))) -> 5017 | K17: =IF(J17=0,0,IF(F6<>"",0,Input!$AF$5)*(Input!R16<>"TRUE")) -> 982318 | L17: =IF($A$12<Input!AA4+1,"Min monthy annuity of Rs. 1000 per month condition is breached. Please increase the SP to Rs. "&ROUND(Input!AA4*1.018,0)+1,"") -> 
A19: Pension/Income Plan
A20: Plan Name | D20: Plan Details | I20: Plan Rate | J20: I will get a pension of | K20: My Spouse will get (After my lifetime) | L20: I will get a Cashback of
A21: Last survivor Lifetime Income with 100% annuity to Surviving Spouse | D21: Invest now, receive regular income for your lifetime, after you, your spouse gets regular income for lifetime. | I21: =IF(F6<>"",0,IF(OR(A6<45,A9<35),0,Input!Z9))*(Input!R16<>"TRUE")*(A12>=Input!AA9) -> 0.00565343157 | J21: =IF(F6<>"",0,IF(AND(A7<45,A9<35),0,ROUND(Input!$AF$5*I21,0))) -> 5553 | K21: =J21 -> 5553 | L21: Not Applicable | M21: =IF($A$12<Input!AA9+1,"Min monthy annuity of Rs. 1000 per month condition is breached. Please increase the SP to Rs. "&ROUND(Input!AA9*1.018,0)+1,"") -> 
A22: Last survivor Lifetime Income with 100% annuity to the Surviving Spouse and Cash-back on death of Surviving Spouse | D22: Invest now, receive regular income for your lifetime, after you, your spouse gets the pension till she is alive. After that, your nominee gets the entire amount invested. | I22: =IF(F6<>"",0,IF(OR(A6<45,A9<35),0,Input!Z11))*(Input!R16<>"TRUE")*(A12>=Input!AA11) -> 0.00506690841 | J22: =IF(F6<>"",0,IF(AND(A7<45,A9<35),0,ROUND(Input!$AF$5*I22,0))) -> 4977 | K22: =J22 -> 4977 | L22: =IF(K22=0,0,IF(F6<>"",0,Input!$AF$5)*(Input!R16<>"TRUE")) -> 982318 | M22: =IF($A$12<Input!AA11+1,"Min monthy annuity of Rs. 1000 per month condition is breached. Please increase the SP to Rs. "&ROUND(Input!AA11*1.018,0)+1,"") -> 
A26: Please note: the above calculations are indicative only, actual annuity may differ depending on the date of calculation, age and rate prevailing. Annuity Rate may change from time to time. Kindly contact Kotak Life for latest Annuity Calculator
A31: Terms and Conditions
A32: 1. This is a non unit-linked non-participating annuity plan.
A33: 2. This illustration is subject to future change in tax rates or any other laws, regulations or guidelines affecting the annuity plans.
A34: 3. For more details on terms and conditions, please read the sales brochure carefully before concluding a sale.
A35: 4. Annuity rates shown are indicative and as per the rates available currently. Please check for the applicable rates before concluding the sale.
A36: 5. After the policy contract is issued, the annuity option chosen and annuity payable is guaranteed for life and cannot be changed
A37: 6. TDS at prevailing rate will be deducted from any amount paid under a life insurance policy subject to the provisions of prevailing tax laws. In case of non-availability of valid PAN, TDS will be deducted at higher rate. Tax laws are subject to changes from time to time. Kindly consult your tax advisor for tax implication of your policy.
A39: 7.Goods and Services Tax and cess as applicable are levied at applicable Tax rates in accordance with the prevailing Tax Laws. Prevailing tax laws are applicable on this policy which may vary from time to time.

Sheet Modifications (hidden)
A1: Date | B1: With Effect From | C1: Modified By | D1: Old Version | E1: New Version | F1: Changes | G1: File Name
A2: 2017-10-28 | C2: Sriganesh Kumar Sridhar | D2: NA | E2: Nov 17_Ver 1.0 | F2: New BI | G2: Kotak Lifetime Income Plan_107N103V01_Nov 17_Ver 1.0
A3: 2017-11-08 | C3: Sriganesh Kumar Sridhar | D3: Nov 17_Ver 1.0 | E3: Nov 17_Ver 1.0 | F3: Added validations for QROPS | G3: Kotak Lifetime Income Plan_107N103V01_Nov 17_Ver 1.1
D4: Nov 17_Ver 1.1 | E4: Nov 17_Ver 1.1 | F4: Kotak life name and logo changed | G4: Kotak Lifetime Income Plan_107N103V01_Nov 17_Ver 1.1
D5: Dec 17_V1.0 | E5: Dec 17_V1.0 | F5: Verison number changed | G5: Kotak Lifetime Income Plan_107N103V01_Dec 17_Ver 1.0
A6: 2018-10-05 | C6: Ritika Khirwadkar | D6: Dec 17_V1.0 | E6: Nov 2018 Ver 1.0 | F6: Updateing of annuity rates | G6: Kotak Lifetime Income Plan_107N103V02_Oct 2018_Ver 1.0.xlsm
A7: 2019-09-27 | C7: Ritika Khirwadkar | D7: Nov 2018 Ver 1.0 | E7: Nov 2018 Ver 1.1 | F7: 1. Agents oaction added
F8: 2. Proposers loaction adedd
F9: 3. Service tax change for kerala
F10: 4. QROPS (Existing and new) category added
F11: 5. Discount to Existing QROPS customer
F12: 6. If proposers location is "Foreign country" then tax is zeo
F13: 7. Kerala cess considered 1.9%
A15: 2019-11-15 | C15: K Sandhya | D15: Nov 2018 Ver 1.1 | E15: Nov 2019 Ver 1.1 | F15: GST for NPS set to 0% in T12
F16: Added NPS in T34
F17: Changed Conditional formating in I12:L12 - This is to ensure existing customer display is not there if NPS is chosen
A18: 2019-12-02 | C18: Ritika Khirwadkar | D18: Nov 2018 Ver 1.1 | E18: Dec 2019 Ver 1.2 | F18: Updated revised annuity rates in sheets ending with Dec 2019. Updated the UIN to V03 Updated annuity increase %s for high SP bands in column AM of Input sheet Addded the Location NRI/Resident India and impliacton of same on tax
A19: 2020-04-07 | C19: Nivedha R | D19: Dec 2019 Ver 1.2 | E19: Apr 2020 Ver 1.3 | F19: Input Sheet Split the Client Category to NPS - New Customers and NPS - Existing Pension Plan Policyholders of KLI in T34:T35 Included annuity rate discount in the formulas for Annuity rate for all options under NPS - Existing Pension Plan Policyholders of KLI Client Category Modified K11 for the Client Category dropdown Modified G9 and I21 for allowing only Monthly annuity payout frequency for NPS Category
A20: 2020-04-16 | C20: Nivedha R | D20: Apr 2020 Ver 1.3 | E20: Apr 2020 Ver 1.1 | F20: Updated revised annuity rates in sheets ending with Apr 2020. Updated the UIN to V04
A21: 2020-04-24 | C21: Nivedha R | D21: Apr 2020 Ver 1.1 | E21: Apr 2020 Ver 1.2 | F21: Updated the tagline basis signed off Pol doc
A22: 2020-04-24 | C22: Nivedha R | D22: Apr 2020 Ver 1.2 | E22: Apr 2020 Ver 1.3 | F22: Added Applicable rate of GST and cess on Single premium in cell L23 as per checklist
A23: 2020-04-30 | C23: Nivedha R | D23: Apr 2020 Ver 1.3 | E23: Apr 2020 Ver 1.4 | F23: Input Sheet Modified the formula in T12 such that GST is waived of for NPS Client Category and for QROPS-New Customers Client Category with Proposer Location as Foreign Country ModIfied the formula in B16 as QROPS was not detected in the validation; This validation was already working fine in Web BI Modified the spell error in I12 Validation
A24: 2020-05-04 | C24: Nivedha R | D24: Apr 2020 Ver 1.4 | E24: Apr 2020 Ver 1.5 | F24: Updated revised annuity rates in sheets ending with May 2020. The rate change made on 16 Apr 2020 become redundant as the rates have been revised before launch. Input Sheet: Modified validation to incorporate addition of NPS - Existing Pension Plan Policyholders of KLI and NPS - New Customers : G11,G13,I17,I12
A25: 2020-08-19 | C25: Nivedha R | D25: Apr 2020 Ver 1.5 | E25: Nov 2020 Ver 1.0 | F25: Input Sheet Modified the dropdown in cell K11 to include Group customers and removed QROPs Existing and NPS Existing as required by Mktg Applied discount for Group Customers and removed references for NPS Exisiting and QROPS Exisiting Modified formulas in G9,G11,G13, I12 and I17 to account for Group Changed UIN and Ver No
A26: 2020-11-03 | C26: Sandhya K | D26: Aug 2020 Ver 1.0 | E26: Nov 2020 Ver 1.0 | F26: Input Sheet: Replaced Group Customers with New Group Customers and Existing Group Customers (T34:T35) Updated the validation for ensuring min age is 45 for new group and 18 for existing group (G11:H11) Updated the version no. and w.e.f month
A27: 2020-11-03 | C27: Sandhya K | D27: Aug 2020 Ver 1.0 | E27: Nov 2020 Ver 1.0 | F27: Input Sheet: Updated formula in row 10/20/30/41/52/63/74/85/96 in column AL to AP. This is to ensure the discount % applicable to group customers both new and Iexisting
A28: 2020-12-07 | C28: Nivedha R | D28: Nov 2020 Ver 1.0 | E28: Dec 2020 Ver 1.0 | F28: Input Sheet Updated formula in T12 to account for GST in case of Location= Resident India and Client Category - QROPS Updated formula in G13 to revise for Min Entry age for QROPS Spouse age
A29: 2021-03-02 | C29: Nivedha R | D29: Dec 2020 Ver 1.0 | E29: Mar 2021 Ver 1.0 | F29: Updated revised annuity rates in sheets ending with Mar 2021. All other sheets rates are redundant
A30: 2021-03-02 | C30: Nivedha R | D30: Dec 2020 Ver 1.0 | E30: Mar 2021 Ver 1.0 | F30: Updated revised annuity rates in sheets ending with Mar 2021. All other sheets rates are redundant
A31: 2021-05-12 | C31: Shrey S | D31: Mar 2021 Ver 1.0 | E31: May 2021 Ver 1.0 | F31: Added the state Ladakh in location dropdowns in input sheet.
A32: 2021-08-11 | C32: Disha P | D32: May 2021 Ver 1.0 | E32: Aug 2021 Ver 1.0 | F32: Updated revised annuity rates in sheets ending with Aug 2021. All other sheets rates are redundant Input sheet Changed links to sheets in colum AM in cells coloured dark green
A33: 2021-08-24 | C33: Disha P | D33: Aug 2021 Ver 1.0 | E33: Aug 2021 Ver 1.0 | F33: Updated UIN and Month in Input sheet
A34: 2021-09-06 | C34: Sakhi | D34: Aug 2021 Ver 1.0 | E34: Aug 2021 Ver 1.0 | F34: Updated kerala cess change in cells Q29:R29

Sheet Input (hidden)
J1: For Office Use Only (w.e.f. Sep 21 / Ver 1.0) | P1: Product Details | W1: Annuity Amount | AL1: Lifetime Income Option Calculation | AW1: State List
J2: Proposal No: | P2: Policy Term Drop down List | Q2: Options Available | R2: Eligibility Conditions | W2: Option | Z2: Final Rates | AA2: Minimum Premium | AB2: Indicator | AC2: Monthly annuity | AL2: Single Premium Bands | AM2: Frequency of Payment | AW2: Andaman and Nicobar Islands
J3: Policy No: | P3: 5 | Q3: Lifetime Income | R3: Min. Age of Annuitant | T3: 45/18 | W3: Lifetime IncomeN/A | Z3: =IF($R$22="ann",AM9,IF($R$22="hlf",AN9,IF($R$22="qrt",AO9,AP9))) -> 0.006443608605 | AA3: =1000/AC3 -> 155192.5421 | AB3: =IF($Y$18=W3,1,0) -> 1 | AC3: =AP9 -> 0.006443608605 | AE3: Sail Calculator | AM3: ann | AN3: hlf | AO3: qrt | AP3: mth | AW3: Andhra Pradesh
P4: 10 | Q4: Lifetime Income with Cash-Back | R4: Max. Age of Annuitant | T4: 99/99 | W4: Lifetime Income with Cash-BackN/A | Z4: =IF($R$22="ann",AM20,IF($R$22="hlf",AN20,IF($R$22="qrt",AO20,AP20))) -> 0.005107639185 | AA4: =1000/AC4 -> 195785.1688 | AB4: =IF($Y$18=W4,1,0) -> 0 | AC4: =AP20 -> 0.005107639185 | AE4: Amount to be invested incl GST | AF4: =Calculator!A12 -> 1000000 | AL4: 250000 | AM4: =VLOOKUP(Age,'SL_Revised Aug 2021'!$A$3:$G$103,2,0) -> 0.0791 | AN4: =AM4*97%/2 -> 0.0383635 | AO4: =AM4*96%/4 -> 0.018984 | AP4: =AM4*95%/12 -> 0.006262083333 | AR4: Less than Rs.250,000 | AW4: Arunachal Pradesh
B5: Kotak Lifetime Income Plan - Benefit Ilustration An Immediate Annuity Non-Linked Non-Participating Life Insurance Plan UIN 107N103V07 This shall form part of the Policy Document | P5: 15 | Q5: Lifetime Income with Term Guarantee of 5/10/15/20 Years | R5: Min. Age of Spouse | T5: 35/18 | W5: Lifetime Income with Term Guarantee of 5/10/15/20 Years5 | Z5: =IF($R$22="ann",AM30,IF($R$22="hlf",AN30,IF($R$22="qrt",AO30,AP30))) -> 0.006411023985 | AB5: =IF($Y$18=W5,1,0) -> 0 | AC5: =AP30 -> 0.006411023985 | AE5: Amount to be invested exclusive of GST | AF5: =ROUND(AF4/1.018,0) -> 982318 | AL5: 500000 | AM5: =AM4*1.0063 -> 0.07959833 | AN5: =AM5*97%/2 -> 0.03860519005 | AO5: =AM5*96%/4 -> 0.0191035992 | AP5: =AM5*95%/12 -> 0.006301534458 | AR5: 250,000 to less than 500,000 | AW5: Assam
B6: Dear Customer, The illustration is approved by the Board of Directors of the Company and takes into account the guidelines for illustrations set by the Life Insurance Council and the IRDAI. Some benefits are guaranteed and some benefits are variable with returns based on the future performance of your life insurance company. If your policy offers guaranteed returns then these will be clearly marked “guaranteed” in the illustration table on this page. If your policy offers variable returns then the illustrations on this page will show two different rates of assumed investment returns. These assumed rates return are not guaranteed and they are not upper or lower limits of what you might get back as the value of your policy is dependent on a number of factors including future investment performance. | P6: 20 | Q6: Last survivor Lifetime Income with 100% annuity to Surviving Spouse | R6: Max. Age of Spouse | T6: 99/99 | W6: Lifetime Income with Term Guarantee of 5/10/15/20 Years10 | Z6: =IF($R$22="ann",AM41,IF($R$22="hlf",AN41,IF($R$22="qrt",AO41,AP41))) -> 0.00633770859 | AB6: =IF($Y$18=W6,1,0) -> 0 | AC6: =AP41 -> 0.00633770859 | AE6: GST | AF6: =AF4-AF5 -> 17682 | AL6: 1000000 | AM6: =AM4*1.0188 -> 0.08058708 | AN6: =AM6*97%/2 -> 0.0390847338 | AO6: =AM6*96%/4 -> 0.0193408992 | AP6: =AM6*95%/12 -> 0.0063798105 | AR6: 500,000 to less than 10,00,000 | AW6: Bihar
B7: Name of Annuitant | D7: Mr Customer | G7: =IF(D7="","Please enter Name of the Annuitant",IF(D9="","Please enter the Date of Birth",IF(D8="","Please enter the Gender",""))) ->  | I7: Name of Proposer , if different from Annuitant | K7: Mr Customer | P7: N/A | Q7: Last survivor Lifetime Income with 50% annuity to Surviving Spouse | R7: Min. Single Premium | T7: Minimum Single premium shall be such that the minimum annuity payable in this plan is at least equal to Rs.1000 per month | W7: Lifetime Income with Term Guarantee of 5/10/15/20 Years15 | Z7: =IF($R$22="ann",AM52,IF($R$22="hlf",AN52,IF($R$22="qrt",AO52,AP52))) -> 0.00622366242 | AB7: 0 | AC7: =AP52 -> 0.00622366242 | AF7: =AF5+AF6 -> 1000000 | AL7: 5000000 | AM7: =AM4*1.025 -> 0.0810775 | AN7: =AM7*97%/2 -> 0.0393225875 | AO7: =AM7*96%/4 -> 0.0194586 | AP7: =AM7*95%/12 -> 0.006418635417 | AR7: 10,00,000 to less than 50,00,000 | AW7: Chandigarh
B8: Gender of Annuitant | D8: Female | I8: Gender of Proposer | K8: Female | Q8: Last survivor Lifetime Income with 100% annuity to the Surviving Spouse and Cash-back on death of Surviving Spouse | W8: Lifetime Income with Term Guarantee of 5/10/15/20 Years20 | Z8: =IF($R$22="ann",AM63,IF($R$22="hlf",AN63,IF($R$22="qrt",AO63,AP63))) -> 0.006101470095 | AB8: 0 | AC8: =AP63 -> 0.006101470095 | AL8: 5000000+ | AM8: =AM4*1.03 -> 0.081473 | AN8: =AM8*97%/2 -> 0.039514405 | AO8: =AM8*96%/4 -> 0.01955352 | AP8: =AM8*95%/12 -> 0.006449945833 | AR8: 50,00,000 & above | AW8: Chattisgarh
B9: Date of Birth of Annuitant | D9: 1973-01-01 | G9: =IF(K11="","Please select the Client Category",IF(Tax_Region="","Please select Agent’s Branch Location",IF(AND(LEFT(K11,3)="NPS",I21<>"Monthly"),"Please select the Frequency of Annuity Payment as Monthly",IF(I21="","Please select the Frequency of Annuity Payment",IF(B21="","Please select the Annuity Option",IF(Proposer_Location="","Please select Proposer's Current Location","")))))) ->  | I9: Date of Birth of Proposer | K9: 1974-01-01 | W9: Last survivor Lifetime Income with 100% annuity to Surviving SpouseN/A | Z9: =IF($R$22="ann",AM74,IF($R$22="hlf",AN74,IF($R$22="qrt",AO74,AP74))) -> 0.00565343157 | AA9: 176883.7188 | AB9: 0 | AC9: =AP74 -> 0.00565343157 | AL9: Annuity | AM9: =IF(SP<$AL4,AM4,IF(SP<$AL5,AM5,IF(SP<$AL6,AM6,IF(SP<$AL7,AM7,AM8))))*IF(OR($K$11="Existing Pension Plan policyholders of KLI",$K$11="Nominees of deceased KLI pension policyholder",$K$11="Members of Superannuation scheme",$K$11="New Group Customers",$K$11="Existing Group Customers"),101%,1) -> 0.0813929508 | AN9: =IF(SP<$AL4,AN4,IF(SP<$AL5,AN5,IF(SP<$AL6,AN6,IF(SP<$AL7,AN7,AN8))))*IF(OR($K$11="Existing Pension Plan policyholders of KLI",$K$11="Nominees of deceased KLI pension policyholder",$K$11="Members of Superannuation scheme",$K$11="New Group Customers",$K$11="Existing Group Customers"),101%,1) -> 0.03947558114 | AO9: =IF(SP<$AL4,AO4,IF(SP<$AL5,AO5,IF(SP<$AL6,AO6,IF(SP<$AL7,AO7,AO8))))*IF(OR($K$11="Existing Pension Plan policyholders of KLI",$K$11="Nominees of deceased KLI pension policyholder",$K$11="Members of Superannuation scheme",$K$11="New Group Customers",$K$11="Existing Group Customers"),101%,1) -> 0.01953430819 | AP9: =IF(SP<$AL4,AP4,IF(SP<$AL5,AP5,IF(SP<$AL6,AP6,IF(SP<$AL7,AP7,AP8))))*IF(OR($K$11="Existing Pension Plan policyholders of KLI",$K$11="Nominees of deceased KLI pension policyholder",$K$11="Members of Superannuation scheme",$K$11="New Group Customers",$K$11="Existing Group Customers"),101%,1) -> 0.006443608605 | AW9: Dadra and Nagar Haveli
B10: Age as on last birthday | D10: =Calculator!A6 -> 58 | I10: Age as on last birthday | K10: =IF(K9="","",DATEDIF(K9,T19,"y")) -> 47 | W10: Last survivor Lifetime Income with 50% annuity to Surviving SpouseN/A | Z10: =IF($R$22="ann",AM85,IF($R$22="hlf",AN85,IF($R$22="qrt",AO85,AP85))) -> 0.00601186239 | AB10: 0 | AC10: =AP85 -> 0.00601186239 | AW10: Daman and Diu
B11: =IF(SUM(AB9:AB11)=1,"Name of Spouse", "") ->  | D11: Ms Customer | G11: =IF(Age<100,IF(AND(OR(LEFT(K11,2)="NE",LEFT(K11,3)="NPS"),Age<45),"Minimum age at entry is 45 years for "&K11,IF(AND(OR(LEFT(K11)="M",LEFT(K11)="E"),Age<18),"Minimum age at entry is 18 years for "&K11,IF(AND(LEFT(K11,1)="Q",Age < 55),"Minimum age at entry is 55 years if purchased through QROPS",IF(AND(LEFT(K11,3)="Nom",Age < 0),"Minimum age at entry is 0 years for Nominees of deceased KLI pension plan policyholders","")))),"Max age at entry cannot be more than 99 years") ->  | I11: Client Category | K11: New Group Customers | P11: Gender | W11: Last survivor Lifetime Income with 100% annuity to the Surviving Spouse and Cash-back on death of Surviving SpouseN/A | Z11: =IF($R$22="ann",AM96,IF($R$22="hlf",AN96,IF($R$22="qrt",AO96,AP96))) -> 0.00506690841 | AA11: 197359.0046 | AB11: 0 | AC11: =AP96 -> 0.00506690841 | AW11: Delhi
B12: =IF(B11="","","Gender of Spouse") ->  | D12: Female | G12: =IF(B21="Last Survivor Lifetime Income",IF(D11="","Please enter Name of the Spouse",IF(D13="","Please enter the Date of Birth of Spouse",IF(D12="","Please enter the Gender of Spouse",""))),"") ->  | I12: =IF(OR(LEFT(K11,2)="Ne",LEFT(K11,5)="QROPS",LEFT(K11,3)="NPS",LEFT(K11,5)="Group"),"",IF(K11="Members of Superannuation scheme","Master Policy Number","Existing Policy Number")) ->  | K12: 127890 | P12: Male | R12: Service Tax | T12: =IF(OR(LEFT(K11,3)="NPS",AND(K11=T32,Proposer_Location="Foreign Country",Location="NRI")),0%,IF(Tax_Region="Rest of India",Q29*(1+Q28),R29*(1+R28))) -> 0.018 | AL12: Lifetime Income with Cashback Option Calculation | AW12: Goa
B13: =IF(B11="","","Date of Birth of Spouse") ->  | D13: 1966-01-17 | G13: =IF(T20="No","",IF(_Age1<100,IF(T20="Yes",IF(AND(OR(LEFT(K11,2)="NE",LEFT(K11,3)="NPS",LEFT(K11,1)="Q"),_Age1<35),"Spouse Age Cannot be less than 35 years for "&K11,IF(_Age1<18,"Spouse Age Cannot be less than 18 years",IF(Age<18,"Age Cannot be less than 18 years for selected Annuity Option",""))),""),"Spouse Age Cannot be greater than 99 years")) ->  | I13: Agent's Branch Location | K13: Maharashtra | P13: Female | AL13: Single Premium Bands | AM13: Frequency of Payment | AW13: Gujarat
B14: =IF(B11="","","Age as on last birthday") ->  | D14: =Calculator!A9 -> 53 | I14: Proposer's Current Location | K14: Maharashtra | AM14: ann | AN14: hlf | AO14: qrt | AP14: mth | AW14: Haryana
B15: Is Proposer same as annuitant | D15: No | G15: =IFERROR(IF(Y22<1000,"Minimum Single premium shall be such that the minimum annuity payable in this plan is at least equal to Rs.1000 per month.",""),"Please check the inputs") ->  | I15: NRI/Resident India | K15: Resident India | R15: Condition for showing premium | AL15: 250000 | AM15: =VLOOKUP(Age,'SL_Revised Aug 2021'!$A$3:$G$103,3,0) -> 0.0627 | AN15: =AM15*97%/2 -> 0.0304095 | AO15: =AM15*96%/4 -> 0.015048 | AP15: =AM15*95%/12 -> 0.00496375 | AW15: Himachal Pradesh
B16: =IF(AND(LEFT(K11,5)="QROPS",D15="No"),"If annuity is availed through QROPs then Annuitant and Proposer should be same",IF(D15="No",IF(AND(K7=D7,K8=D8,K9=D9),"Proposer details should be different from annuitant",""),IF(AND(K7=D7,D8=K8,D9=K9),"","Please ensure Annuitant details are same as Proposer"))) ->  | J16: =IF(AND(B21="Lifetime Income with Term Guarantee of 5/10/15/20 Years",OR(H21="",H21="N/A")),"Please select Guarantee Term",IF(AND(B21<>"Lifetime Income with Term Guarantee of 5/10/15/20 Years",H21<>"N/A"),"Please de-select Guarantee Term","")) ->  | P16: Annuity Mode | R16: =OR(G7<>"",G9<>"",G15<>"",J16<>"",G11<>"",G12<>"",G13<>"",I17<>"",I22<>"",B16<>"") -> FALSE | AL16: 500000 | AM16: =AM15*1.0063 -> 0.06309501 | AN16: =AM16*97%/2 -> 0.03060107985 | AO16: =AM16*96%/4 -> 0.0151428024 | AP16: =AM16*95%/12 -> 0.004995021625 | AW16: Jammu and Kashmir
I17: =IF(AND(OR(K11<>"New Customers",LEFT(K11,3)<>"NPS",LEFT(K11,5)<>"QROPS",K11<>"New Group Customers"),K12=""), "Please Enter Your "&I12, "") ->  | P17: Yearly | Q17: 0 | AL17: 1000000 | AM17: =AM15*1.0188 -> 0.06387876 | AN17: =AM17*97%/2 -> 0.0309811986 | AO17: =AM17*96%/4 -> 0.0153309024 | AP17: =AM17*95%/12 -> 0.0050570685 | AW17: Jharkhand
B18: Plan Details | P18: Half Yearly | Q18: 1 | W18: Premium Calculation Code | Y18: =(B21&H21) -> Lifetime IncomeN/A | AL18: 5000000 | AM18: =AM15*1.025 -> 0.0642675 | AN18: =AM18*97%/2 -> 0.0311697375 | AO18: =AM18*96%/4 -> 0.0154242 | AP18: =AM18*95%/12 -> 0.00508784375 | AW18: Karnataka
B19: Annuity Option | H19: Guarantee Term | I19: Frequency of Annuity Payment | J19: Annuity Installment (Rs.) | L19: Amount of Single Premium | P19: Quarterly | Q19: 2 | R19: Date of Illustration | T19: =TODAY() -> 2021-11-24 | W19: Annuity Amount | Y19: =ROUND(SUMPRODUCT(Z3:Z12,AB3:AB12)*SP,0) -> 6330 | AL19: 5000,000+ | AM19: =AM15*1.03 -> 0.064581 | AN19: =AM19*97%/2 -> 0.031321785 | AO19: =AM19*96%/4 -> 0.01549944 | AP19: =AM19*95%/12 -> 0.0051126625 | AW19: Kerala
P20: Monthly | Q20: 3 | R20: Spouse Details Required | T20: =IF(SUM(AB9:AB11)=1,"Yes","No") -> No | AL20: Annuity | AM20: =IF(SP<$AL15,AM15,IF(SP<$AL16,AM16,IF(SP<$AL17,AM17,IF(SP<$AL18,AM18,AM19))))*IF(OR($K$11="Existing Pension Plan policyholders of KLI",$K$11="Nominees of deceased KLI pension policyholder",$K$11="Members of Superannuation scheme",$K$11="New Group Customers",$K$11="Existing Group Customers"),101%,1) -> 0.0645175476 | AN20: =IF(SP<$AL15,AN15,IF(SP<$AL16,AN16,IF(SP<$AL17,AN17,IF(SP<$AL18,AN18,AN19))))*IF(OR($K$11="Existing Pension Plan policyholders of KLI",$K$11="Nominees of deceased KLI pension policyholder",$K$11="Members of Superannuation scheme",$K$11="New Group Customers",$K$11="Existing Group Customers"),101%,1) -> 0.03129101059 | AO20: =IF(SP<$AL15,AO15,IF(SP<$AL16,AO16,IF(SP<$AL17,AO17,IF(SP<$AL18,AO18,AO19))))*IF(OR($K$11="Existing Pension Plan policyholders of KLI",$K$11="Nominees of deceased KLI pension policyholder",$K$11="Members of Superannuation scheme",$K$11="New Group Customers",$K$11="Existing Group Customers"),101%,1) -> 0.01548421142 | AP20: =IF(SP<$AL15,AP15,IF(SP<$AL16,AP16,IF(SP<$AL17,AP17,IF(SP<$AL18,AP18,AP19))))*IF(OR($K$11="Existing Pension Plan policyholders of KLI",$K$11="Nominees of deceased KLI pension policyholder",$K$11="Members of Superannuation scheme",$K$11="New Group Customers",$K$11="Existing Group Customers"),101%,1) -> 0.005107639185 | AW20: Ladakh
B21: Lifetime Income | H21: N/A | I21: =Calculator!K12 -> Monthly | J21: =IF(R16=TRUE,"Check any Validations",Y19) -> 6330 | L21: =AF5 -> 982318 | R21: Chosen Annuity Mode | AW21: Lakshadweep Islands
B22: =IF(B21="Last survivor Lifetime Income with 50% annuity to Surviving Spouse","Under this annuity option - "&D7&" will be treated as Primary Annuitant and "&D11&" will be treated as Secondary Annuitant.","") ->  | I22: =IF(K9="","",IF(K10<18,"Minimum Entry Age for Proposer is 18",IF(K10>99,"Maximum Entry Age for Proposer is 99",""))) ->  | R22: =IF(I21="Yearly","ann",IF(I21="Half Yearly","hlf",IF(I21="Quarterly","qrt","mth"))) -> mth | W22: Monthly Annuity Amount | Y22: =ROUND(SUMPRODUCT(AB3:AB12,AC3:AC12)*SP,4) -> 6329.6727 | AL22: Lifetime Income with Term Guarantee of 5 Years Option Calculation | AW22: Madhya Pradesh
B23: Applicable rate of Goods and Services tax and Cess on the Single Premium | L23: =IF(R16=TRUE,"",IF(ISNUMBER($T$12),$T$12,0)) -> 0.018 | S23: =VLOOKUP($I$21,$P$17:$Q$20,2,0) -> 3 | AL23: Single Premium Bands | AM23: Frequency of Payment | AW23: Maharashtra
B24: Goods and Services tax and Cess payable on the Single Premium | L24: =IF(R16=TRUE,"",ROUND(IF(ISNUMBER(L21*$T$12),L21*$T$12,0),0)) -> 17682 | AM24: ann | AN24: hlf | AO24: qrt | AP24: mth | AW24: Manipur
B25: Total Amount of single premium to be paid, inclusive of Goods and Services Tax and cess | L25: =IF(R16=TRUE,"Check any Validations",SP+L24) -> 1000000 | AL25: 250000 | AM25: =VLOOKUP(Age,'SL_Revised Aug 2021'!$A$3:$G$103,4,0) -> 0.0787 | AN25: =AM25*97%/2 -> 0.0381695 | AO25: =AM25*96%/4 -> 0.018888 | AP25: =AM25*95%/12 -> 0.006230416667 | AW25: Meghalaya
B26: Terms and Conditions | Q26: Rest of India | R26: Jammu and Kashmir | W26: SP for monthly premium of 1000 | Y26: =ROUNDUP(1000/SUMPRODUCT($AB$3:$AB$12,$AC$3:$AC$12),0) -> 155193 | Z26: =ROUND(AA3*1.018,0)+1 -> 157987 | AL26: 500000 | AM26: =AM25*1.0063 -> 0.07919581 | AN26: =AM26*97%/2 -> 0.03840996785 | AO26: =AM26*96%/4 -> 0.0190069944 | AP26: =AM26*95%/12 -> 0.006269668292 | AW26: Mizoram
B27: 1. This is a non unit-linked non-participating annuity plan. | AL27: 1000000 | AM27: =AM25*1.0188 -> 0.08017956 | AN27: =AM27*97%/2 -> 0.0388870866 | AO27: =AM27*96%/4 -> 0.0192430944 | AP27: =AM27*95%/12 -> 0.0063475485 | AW27: Nagaland
B28: 2. This illustration is subject to future change in tax rates or any other laws, regulations or guidelines affecting the annuity plans. | P28: Cess | Q28: 0 | R28: 0 | T28: New Customers | U28: 45 | AL28: 5000000 | AM28: =AM25*1.025 -> 0.0806675 | AN28: =AM28*97%/2 -> 0.0391237375 | AO28: =AM28*96%/4 -> 0.0193602 | AP28: =AM28*95%/12 -> 0.006386177083 | AW28: Odisha
B29: 3. For more details on terms and conditions, please read the sales brochure carefully before concluding a sale. | P29: Base Service Tax | Q29: =IF(AND(Proposer_Location="Foreign Country",Location="NRI"),0%,IF(AND(Tax_Region="Kerala",Proposer_Location="Kerala"),1.8%,1.8%)) -> 0.018 | R29: =IF(AND(Proposer_Location="Foreign Country",Location="NRI"),0%,IF(AND(Tax_Region="Kerala",Proposer_Location="Kerala"),1.8%,1.8%)) -> 0.018 | T29: Existing Pension Plan policyholders of KLI | U29: 18 | AL29: 5000,000+ | AM29: =AM25*1.03 -> 0.081061 | AN29: =AM29*97%/2 -> 0.039314585 | AO29: =AM29*96%/4 -> 0.01945464 | AP29: =AM29*95%/12 -> 0.006417329167 | AW29: Pondicherry
B30: 4. Annuity rates shown are indicative and as per the rates available currently. Please check for the applicable rates before concluding the sale. | T30: Nominees of deceased KLI pension policyholder | U30: 0 | AL30: Annuity | AM30: =IF(SP<$AL25,AM25,IF(SP<$AL26,AM26,IF(SP<$AL27,AM27,IF(SP<$AL28,AM28,AM29))))*IF(OR($K$11="Existing Pension Plan policyholders of KLI",$K$11="Nominees of deceased KLI pension policyholder",$K$11="Members of Superannuation scheme",$K$11="New Group Customers",$K$11="Existing Group Customers"),101%,1) -> 0.0809813556 | AN30: =IF(SP<$AL25,AN25,IF(SP<$AL26,AN26,IF(SP<$AL27,AN27,IF(SP<$AL28,AN28,AN29))))*IF(OR($K$11="Existing Pension Plan policyholders of KLI",$K$11="Nominees of deceased KLI pension policyholder",$K$11="Members of Superannuation scheme",$K$11="New Group Customers",$K$11="Existing Group Customers"),101%,1) -> 0.03927595747 | AO30: =IF(SP<$AL25,AO25,IF(SP<$AL26,AO26,IF(SP<$AL27,AO27,IF(SP<$AL28,AO28,AO29))))*IF(OR($K$11="Existing Pension Plan policyholders of KLI",$K$11="Nominees of deceased KLI pension policyholder",$K$11="Members of Superannuation scheme",$K$11="New Group Customers",$K$11="Existing Group Customers"),101%,1) -> 0.01943552534 | AP30: =IF(SP<$AL25,AP25,IF(SP<$AL26,AP26,IF(SP<$AL27,AP27,IF(SP<$AL28,AP28,AP29))))*IF(OR($K$11="Existing Pension Plan policyholders of KLI",$K$11="Nominees of deceased KLI pension policyholder",$K$11="Members of Superannuation scheme",$K$11="New Group Customers",$K$11="Existing Group Customers"),101%,1) -> 0.006411023985 | AW30: Punjab
B31: 5. After the policy contract is issued, the annuity option chosen and annuity payable is guaranteed for life and cannot be changed | T31: Members of Superannuation scheme | AW31: Rajasthan
B32: 6. TDS at prevailing rate will be deducted from any amount paid under a life insurance policy subject to the provisions of prevailing tax laws. In case of non-availability of valid PAN, TDS will be deducted at higher rate. Tax laws are subject to changes from time to time. Kindly consult your tax advisor for tax implication of your policy. | T32: QROPS Customers | AW32: Sikkim
T33: NPS Customers | AL33: Lifetime Income with Term Guarantee of 10 Years Option Calculation | AW33: Tamil Nadu
B34: 7.Goods and Services Tax and cess as applicable are levied at applicable Tax rates in accordance with the prevailing Tax Laws. Prevailing tax laws are applicable on this policy which may vary from time to time. | T34: New Group Customers | U34: 45 | AL34: Single Premium Bands | AM34: Frequency of Payment | AW34: Telangana
T35: Existing Group Customers | U35: 18 | AM35: ann | AN35: hlf | AO35: qrt | AP35: mth | AW35: Tripura
AL36: 250000 | AM36: =VLOOKUP(Age,'SL_Revised Aug 2021'!$A$3:$G$103,5,0) -> 0.0778 | AN36: =AM36*97%/2 -> 0.037733 | AO36: =AM36*96%/4 -> 0.018672 | AP36: =AM36*95%/12 -> 0.006159166667 | AW36: Uttar Pradesh
AL37: 500000 | AM37: =AM36*1.0063 -> 0.07829014 | AN37: =AM37*97%/2 -> 0.0379707179 | AO37: =AM37*96%/4 -> 0.0187896336 | AP37: =AM37*95%/12 -> 0.006197969417 | AW37: Uttarakhand
B38: I, __________________________________________________________________(Name), have explained the premiums and benefits under the product fully to the prospect / policyholder | I38: I, ___________________________________________________________________(Name), having received the information with respect to the above, have understood the above statement before entering into the contract | AL38: 1000000 | AM38: =AM36*1.0188 -> 0.07926264 | AN38: =AM38*97%/2 -> 0.0384423804 | AO38: =AM38*96%/4 -> 0.0190230336 | AP38: =AM38*95%/12 -> 0.006274959 | AW38: West Bengal
AL39: 5000000 | AM39: =AM36*1.025 -> 0.079745 | AN39: =AM39*97%/2 -> 0.038676325 | AO39: =AM39*96%/4 -> 0.0191388 | AP39: =AM39*95%/12 -> 0.006313145833 | AW39: Foreign Country
AL40: 5000,000+ | AM40: =AM36*1.03 -> 0.080134 | AN40: =AM40*97%/2 -> 0.03886499 | AO40: =AM40*96%/4 -> 0.01923216 | AP40: =AM40*95%/12 -> 0.006343941667
AL41: Annuity | AM41: =IF(SP<$AL36,AM36,IF(SP<$AL37,AM37,IF(SP<$AL38,AM38,IF(SP<$AL39,AM39,AM40))))*IF(OR($K$11="Existing Pension Plan policyholders of KLI",$K$11="Nominees of deceased KLI pension policyholder",$K$11="Members of Superannuation scheme",$K$11="New Group Customers",$K$11="Existing Group Customers"),101%,1) -> 0.0800552664 | AN41: =IF(SP<$AL36,AN36,IF(SP<$AL37,AN37,IF(SP<$AL38,AN38,IF(SP<$AL39,AN39,AN40))))*IF(OR($K$11="Existing Pension Plan policyholders of KLI",$K$11="Nominees of deceased KLI pension policyholder",$K$11="Members of Superannuation scheme",$K$11="New Group Customers",$K$11="Existing Group Customers"),101%,1) -> 0.0388268042 | AO41: =IF(SP<$AL36,AO36,IF(SP<$AL37,AO37,IF(SP<$AL38,AO38,IF(SP<$AL39,AO39,AO40))))*IF(OR($K$11="Existing Pension Plan policyholders of KLI",$K$11="Nominees of deceased KLI pension policyholder",$K$11="Members of Superannuation scheme",$K$11="New Group Customers",$K$11="Existing Group Customers"),101%,1) -> 0.01921326394 | AP41: =IF(SP<$AL36,AP36,IF(SP<$AL37,AP37,IF(SP<$AL38,AP38,IF(SP<$AL39,AP39,AP40))))*IF(OR($K$11="Existing Pension Plan policyholders of KLI",$K$11="Nominees of deceased KLI pension policyholder",$K$11="Members of Superannuation scheme",$K$11="New Group Customers",$K$11="Existing Group Customers"),101%,1) -> 0.00633770859
B42: Date : _______________ ____________________________________ Place : ________________ Signature of Agent /Intermediary/Official | I42: Date : _______________ Place : _______________ Signature of Prospect / Policyholder
AL44: Lifetime Income with Term Guarantee of 15 Years Option Calculation
AL45: Single Premium Bands | AM45: Frequency of Payment
B46: Kotak Mahindra Life Insurance Company Limited | AM46: ann | AN46: hlf | AO46: qrt | AP46: mth
B47: CIN: U66030MH2000PLC128503 | AL47: 250000 | AM47: =VLOOKUP(Age,'SL_Revised Aug 2021'!$A$3:$G$103,6,0) -> 0.0764 | AN47: =AM47*97%/2 -> 0.037054 | AO47: =AM47*96%/4 -> 0.018336 | AP47: =AM47*95%/12 -> 0.006048333333
B48: Regd. Off : 2nd Floor, Plot # C- 12, G- Block, BKC, Bandra (E) , Mumbai – 400051 | AL48: 500000 | AM48: =AM47*1.0063 -> 0.07688132 | AN48: =AM48*97%/2 -> 0.0372874402 | AO48: =AM48*96%/4 -> 0.0184515168 | AP48: =AM48*95%/12 -> 0.006086437833
B49: Regn. No: 107. Toll Free No.: 1800 209 8800. Website: http://insurance.kotak.com | AL49: 1000000 | AM49: =AM47*1.0188 -> 0.07783632 | AN49: =AM49*97%/2 -> 0.0377506152 | AO49: =AM49*96%/4 -> 0.0186807168 | AP49: =AM49*95%/12 -> 0.006162042
AL50: 5000000 | AM50: =AM47*1.025 -> 0.07831 | AN50: =AM50*97%/2 -> 0.03798035 | AO50: =AM50*96%/4 -> 0.0187944 | AP50: =AM50*95%/12 -> 0.006199541667
AL51: 5000,000+ | AM51: =AM47*1.03 -> 0.078692 | AN51: =AM51*97%/2 -> 0.03816562 | AO51: =AM51*96%/4 -> 0.01888608 | AP51: =AM51*95%/12 -> 0.006229783333
AL52: Annuity | AM52: =IF(SP<$AL47,AM47,IF(SP<$AL48,AM48,IF(SP<$AL49,AM49,IF(SP<$AL50,AM50,AM51))))*IF(OR($K$11="Existing Pension Plan policyholders of KLI",$K$11="Nominees of deceased KLI pension policyholder",$K$11="Members of Superannuation scheme",$K$11="New Group Customers",$K$11="Existing Group Customers"),101%,1) -> 0.0786146832 | AN52: =IF(SP<$AL47,AN47,IF(SP<$AL48,AN48,IF(SP<$AL49,AN49,IF(SP<$AL50,AN50,AN51))))*IF(OR($K$11="Existing Pension Plan policyholders of KLI",$K$11="Nominees of deceased KLI pension policyholder",$K$11="Members of Superannuation scheme",$K$11="New Group Customers",$K$11="Existing Group Customers"),101%,1) -> 0.03812812135 | AO52: =IF(SP<$AL47,AO47,IF(SP<$AL48,AO48,IF(SP<$AL49,AO49,IF(SP<$AL50,AO50,AO51))))*IF(OR($K$11="Existing Pension Plan policyholders of KLI",$K$11="Nominees of deceased KLI pension policyholder",$K$11="Members of Superannuation scheme",$K$11="New Group Customers",$K$11="Existing Group Customers"),101%,1) -> 0.01886752397 | AP52: =IF(SP<$AL47,AP47,IF(SP<$AL48,AP48,IF(SP<$AL49,AP49,IF(SP<$AL50,AP50,AP51))))*IF(OR($K$11="Existing Pension Plan policyholders of KLI",$K$11="Nominees of deceased KLI pension policyholder",$K$11="Members of Superannuation scheme",$K$11="New Group Customers",$K$11="Existing Group Customers"),101%,1) -> 0.00622366242
AL55: Lifetime Income with Term Guarantee of 20 Years Option Calculation
AL56: Single Premium Bands | AM56: Frequency of Payment
AM57: ann | AN57: hlf | AO57: qrt | AP57: mth
AL58: 250000 | AM58: =VLOOKUP(Age,'SL_Revised Aug 2021'!$A$3:$G$103,7,0) -> 0.0749 | AN58: =AM58*97%/2 -> 0.0363265 | AO58: =AM58*96%/4 -> 0.017976 | AP58: =AM58*95%/12 -> 0.005929583333
AL59: 500000 | AM59: =AM58*1.0063 -> 0.07537187 | AN59: =AM59*97%/2 -> 0.03655535695 | AO59: =AM59*96%/4 -> 0.0180892488 | AP59: =AM59*95%/12 -> 0.005966939708
AL60: 1000000 | AM60: =AM58*1.0188 -> 0.07630812 | AN60: =AM60*97%/2 -> 0.0370094382 | AO60: =AM60*96%/4 -> 0.0183139488 | AP60: =AM60*95%/12 -> 0.0060410595
AL61: 5000000 | AM61: =AM58*1.025 -> 0.0767725 | AN61: =AM61*97%/2 -> 0.0372346625 | AO61: =AM61*96%/4 -> 0.0184254 | AP61: =AM61*95%/12 -> 0.006077822917
AL62: 50,00,000+ | AM62: =AM58*1.03 -> 0.077147 | AN62: =AM62*97%/2 -> 0.037416295 | AO62: =AM62*96%/4 -> 0.01851528 | AP62: =AM62*95%/12 -> 0.006107470833
AL63: Annuity | AM63: =IF(SP<$AL58,AM58,IF(SP<$AL59,AM59,IF(SP<$AL60,AM60,IF(SP<$AL61,AM61,AM62))))*IF(OR($K$11="Existing Pension Plan policyholders of KLI",$K$11="Nominees of deceased KLI pension policyholder",$K$11="Members of Superannuation scheme",$K$11="New Group Customers",$K$11="Existing Group Customers"),101%,1) -> 0.0770712012 | AN63: =IF(SP<$AL58,AN58,IF(SP<$AL59,AN59,IF(SP<$AL60,AN60,IF(SP<$AL61,AN61,AN62))))*IF(OR($K$11="Existing Pension Plan policyholders of KLI",$K$11="Nominees of deceased KLI pension policyholder",$K$11="Members of Superannuation scheme",$K$11="New Group Customers",$K$11="Existing Group Customers"),101%,1) -> 0.03737953258 | AO63: =IF(SP<$AL58,AO58,IF(SP<$AL59,AO59,IF(SP<$AL60,AO60,IF(SP<$AL61,AO61,AO62))))*IF(OR($K$11="Existing Pension Plan policyholders of KLI",$K$11="Nominees of deceased KLI pension policyholder",$K$11="Members of Superannuation scheme",$K$11="New Group Customers",$K$11="Existing Group Customers"),101%,1) -> 0.01849708829 | AP63: =IF(SP<$AL58,AP58,IF(SP<$AL59,AP59,IF(SP<$AL60,AP60,IF(SP<$AL61,AP61,AP62))))*IF(OR($K$11="Existing Pension Plan policyholders of KLI",$K$11="Nominees of deceased KLI pension policyholder",$K$11="Members of Superannuation scheme",$K$11="New Group Customers",$K$11="Existing Group Customers"),101%,1) -> 0.006101470095
AL66: Last survivor Lifetime Income with 100% annuity to Surviving SpouseN/A
AL67: Single Premium Bands | AM67: Frequency of Payment
AM68: ann | AN68: hlf | AO68: qrt | AP68: mth
AL69: 250000 | AM69: =IFERROR(IF(Age>_Age1,VLOOKUP(Age,'JL_Revised Aug 2021'!$A$4:$CE$85,_Age1-16,0),VLOOKUP(_Age1,'JL_Revised Aug 2021'!$A$4:$CE$85,Age-16,0)),0) -> 0.0694 | AN69: =AM69*97%/2 -> 0.033659 | AO69: =AM69*96%/4 -> 0.016656 | AP69: =AM69*95%/12 -> 0.005494166667
AL70: 500000 | AM70: =AM69*1.0063 -> 0.06983722 | AN70: =AM70*97%/2 -> 0.0338710517 | AO70: =AM70*96%/4 -> 0.0167609328 | AP70: =AM70*95%/12 -> 0.005528779917
AL71: 1000000 | AM71: =AM69*1.0188 -> 0.07070472 | AN71: =AM71*97%/2 -> 0.0342917892 | AO71: =AM71*96%/4 -> 0.0169691328 | AP71: =AM71*95%/12 -> 0.005597457
AL72: 5000000 | AM72: =AM69*1.025 -> 0.071135 | AN72: =AM72*97%/2 -> 0.034500475 | AO72: =AM72*96%/4 -> 0.0170724 | AP72: =AM72*95%/12 -> 0.005631520833
AL73: 5000,000+ | AM73: =AM69*1.03 -> 0.071482 | AN73: =AM73*97%/2 -> 0.03466877 | AO73: =AM73*96%/4 -> 0.01715568 | AP73: =AM73*95%/12 -> 0.005658991667
AL74: Annuity | AM74: =IF(SP<$AL69,AM69,IF(SP<$AL70,AM70,IF(SP<$AL71,AM71,IF(SP<$AL72,AM72,AM73))))*IF(OR($K$11="Existing Pension Plan policyholders of KLI",$K$11="Nominees of deceased KLI pension policyholder",$K$11="Members of Superannuation scheme",$K$11="New Group Customers",$K$11="Existing Group Customers"),101%,1) -> 0.0714117672 | AN74: =IF(SP<$AL69,AN69,IF(SP<$AL70,AN70,IF(SP<$AL71,AN71,IF(SP<$AL72,AN72,AN73))))*IF(OR($K$11="Existing Pension Plan policyholders of KLI",$K$11="Nominees of deceased KLI pension policyholder",$K$11="Members of Superannuation scheme",$K$11="New Group Customers",$K$11="Existing Group Customers"),101%,1) -> 0.03463470709 | AO74: =IF(SP<$AL69,AO69,IF(SP<$AL70,AO70,IF(SP<$AL71,AO71,IF(SP<$AL72,AO72,AO73))))*IF(OR($K$11="Existing Pension Plan policyholders of KLI",$K$11="Nominees of deceased KLI pension policyholder",$K$11="Members of Superannuation scheme",$K$11="New Group Customers",$K$11="Existing Group Customers"),101%,1) -> 0.01713882413 | AP74: =IF(SP<$AL69,AP69,IF(SP<$AL70,AP70,IF(SP<$AL71,AP71,IF(SP<$AL72,AP72,AP73))))*IF(OR($K$11="Existing Pension Plan policyholders of KLI",$K$11="Nominees of deceased KLI pension policyholder",$K$11="Members of Superannuation scheme",$K$11="New Group Customers",$K$11="Existing Group Customers"),101%,1) -> 0.00565343157
AL77: Last survivor Lifetime Income with 50% annuity to Surviving SpouseN/A
AL78: Single Premium Bands | AM78: Frequency of Payment
AM79: ann | AN79: hlf | AO79: qrt | AP79: mth
AL80: 250000 | AM80: =IFERROR(VLOOKUP(Age,'JL_50%_Revised Aug 2021'!$C$4:$CG$85,_Age1-16,0),0) -> 0.0738 | AN80: =AM80*97%/2 -> 0.035793 | AO80: =AM80*96%/4 -> 0.017712 | AP80: =AM80*95%/12 -> 0.0058425
AL81: 500000 | AM81: =AM80*1.0063 -> 0.07426494 | AN81: =AM81*97%/2 -> 0.0360184959 | AO81: =AM81*96%/4 -> 0.0178235856 | AP81: =AM81*95%/12 -> 0.00587930775
AL82: 1000000 | AM82: =AM80*1.0188 -> 0.07518744 | AN82: =AM82*97%/2 -> 0.0364659084 | AO82: =AM82*96%/4 -> 0.0180449856 | AP82: =AM82*95%/12 -> 0.005952339
AL83: 5000000 | AM83: =AM80*1.025 -> 0.075645 | AN83: =AM83*97%/2 -> 0.036687825 | AO83: =AM83*96%/4 -> 0.0181548 | AP83: =AM83*95%/12 -> 0.0059885625
AL84: 5000,000+ | AM84: =AM80*1.03 -> 0.076014 | AN84: =AM84*97%/2 -> 0.03686679 | AO84: =AM84*96%/4 -> 0.01824336 | AP84: =AM84*95%/12 -> 0.006017775
AL85: Annuity | AM85: =IF(SP<$AL80,AM80,IF(SP<$AL81,AM81,IF(SP<$AL82,AM82,IF(SP<$AL83,AM83,AM84))))*IF(OR($K$11="Existing Pension Plan policyholders of KLI",$K$11="Nominees of deceased KLI pension policyholder",$K$11="Members of Superannuation scheme",$K$11="New Group Customers",$K$11="Existing Group Customers"),101%,1) -> 0.0759393144 | AN85: =IF(SP<$AL80,AN80,IF(SP<$AL81,AN81,IF(SP<$AL82,AN82,IF(SP<$AL83,AN83,AN84))))*IF(OR($K$11="Existing Pension Plan policyholders of KLI",$K$11="Nominees of deceased KLI pension policyholder",$K$11="Members of Superannuation scheme",$K$11="New Group Customers",$K$11="Existing Group Customers"),101%,1) -> 0.03683056748 | AO85: =IF(SP<$AL80,AO80,IF(SP<$AL81,AO81,IF(SP<$AL82,AO82,IF(SP<$AL83,AO83,AO84))))*IF(OR($K$11="Existing Pension Plan policyholders of KLI",$K$11="Nominees of deceased KLI pension policyholder",$K$11="Members of Superannuation scheme",$K$11="New Group Customers",$K$11="Existing Group Customers"),101%,1) -> 0.01822543546 | AP85: =IF(SP<$AL80,AP80,IF(SP<$AL81,AP81,IF(SP<$AL82,AP82,IF(SP<$AL83,AP83,AP84))))*IF(OR($K$11="Existing Pension Plan policyholders of KLI",$K$11="Nominees of deceased KLI pension policyholder",$K$11="Members of Superannuation scheme",$K$11="New Group Customers",$K$11="Existing Group Customers"),101%,1) -> 0.00601186239
AL88: Last survivor Lifetime Income with 100% annuity to the Surviving Spouse and Cash-back on death of Surviving SpouseN/A
AL89: Single Premium Bands | AM89: Frequency of Payment
AM90: ann | AN90: hlf | AO90: qrt | AP90: mth
AL91: 250000 | AM91: =IFERROR(IF(Age>_Age1,VLOOKUP($D$10,'JLRP_Revised Aug 2021'!$A$4:$CE$85,_Age1-16,0),VLOOKUP(_Age1,'JLRP_Revised Aug 2021'!$A$4:$CE$85,Age-16,0)),0) -> 0.0622 | AN91: =AM91*97%/2 -> 0.030167 | AO91: =AM91*96%/4 -> 0.014928 | AP91: =AM91*95%/12 -> 0.004924166667
AL92: 500000 | AM92: =AM91*1.0063 -> 0.06259186 | AN92: =AM92*97%/2 -> 0.0303570521 | AO92: =AM92*96%/4 -> 0.0150220464 | AP92: =AM92*95%/12 -> 0.004955188917
AL93: 1000000 | AM93: =AM91*1.0188 -> 0.06336936 | AN93: =AM93*97%/2 -> 0.0307341396 | AO93: =AM93*96%/4 -> 0.0152086464 | AP93: =AM93*95%/12 -> 0.005016741
AL94: 5000000 | AM94: =AM91*1.025 -> 0.063755 | AN94: =AM94*97%/2 -> 0.030921175 | AO94: =AM94*96%/4 -> 0.0153012 | AP94: =AM94*95%/12 -> 0.005047270833
AL95: 5000,000+ | AM95: =AM91*1.03 -> 0.064066 | AN95: =AM95*97%/2 -> 0.03107201 | AO95: =AM95*96%/4 -> 0.01537584 | AP95: =AM95*95%/12 -> 0.005071891667
AL96: Annuity | AM96: =IF(SP<$AL91,AM91,IF(SP<$AL92,AM92,IF(SP<$AL93,AM93,IF(SP<$AL94,AM94,AM95))))*IF(OR($K$11="Existing Pension Plan policyholders of KLI",$K$11="Nominees of deceased KLI pension policyholder",$K$11="Members of Superannuation scheme",$K$11="New Group Customers",$K$11="Existing Group Customers"),101%,1) -> 0.0640030536 | AN96: =IF(SP<$AL91,AN91,IF(SP<$AL92,AN92,IF(SP<$AL93,AN93,IF(SP<$AL94,AN94,AN95))))*IF(OR($K$11="Existing Pension Plan policyholders of KLI",$K$11="Nominees of deceased KLI pension policyholder",$K$11="Members of Superannuation scheme",$K$11="New Group Customers",$K$11="Existing Group Customers"),101%,1) -> 0.031041481 | AO96: =IF(SP<$AL91,AO91,IF(SP<$AL92,AO92,IF(SP<$AL93,AO93,IF(SP<$AL94,AO94,AO95))))*IF(OR($K$11="Existing Pension Plan policyholders of KLI",$K$11="Nominees of deceased KLI pension policyholder",$K$11="Members of Superannuation scheme",$K$11="New Group Customers",$K$11="Existing Group Customers"),101%,1) -> 0.01536073286 | AP96: =IF(SP<$AL91,AP91,IF(SP<$AL92,AP92,IF(SP<$AL93,AP93,IF(SP<$AL94,AP94,AP95))))*IF(OR($K$11="Existing Pension Plan policyholders of KLI",$K$11="Nominees of deceased KLI pension policyholder",$K$11="Members of Superannuation scheme",$K$11="New Group Customers",$K$11="Existing Group Customers"),101%,1) -> 0.00506690841
AL102: From File & use
AL104: Premium Band | AM104: %
AL105: Less than Rs.250,000 | AM105: 0
AL106: 250,000 to less than 500,000 | AM106: 0.0063
AL107: 500,000 to less than 10,00,000 | AM107: 0.0188
AL108: 10,00,000 to less than 50,00,000 | AM108: 0.025
AL109: 50,00,000 & above | AM109: 0.03
AL111: Mode | AM111: Annuity Installment (per frequency)
AL112: Half-yearly | AM112: 97% of Yearly Annuity x ½
AL113: Quarterly | AM113: 96% of Yearly Annuity x ¼
AL114: Monthly | AM114: 95% of Yearly Annuity x 1/12

Sheet SL_Revised Dec 2019 (hidden)
A1: Kotak Lifetime Income - Annuity Rates Applicaple for Purchase Price Less than Rs.2,50,000 and for Annual Mode
A3: Age | B3: Option 1 | C3: Option 2 | D3: Option 3 ( GT 5) | E3: Option 3 ( GT 10) | F3: Option 3 ( GT 15) | G3: Option 3 ( GT 20)
A4: 0 | B4: 0.0593 | C4: 0.0583 | D4: 0.0593 | E4: 0.0592 | F4: 0.0592 | G4: 0.0591
A5: 1 | B5: 0.0593 | C5: 0.0583 | D5: 0.0593 | E5: 0.0593 | F5: 0.0592 | G5: 0.0591
A6: 2 | B6: 0.0594 | C6: 0.0582 | D6: 0.0593 | E6: 0.0593 | F6: 0.0592 | G6: 0.0592
A7: 3 | B7: 0.0594 | C7: 0.0582 | D7: 0.0594 | E7: 0.0593 | F7: 0.0593 | G7: 0.0592
A8: 4 | B8: 0.0594 | C8: 0.0582 | D8: 0.0594 | E8: 0.0594 | F8: 0.0593 | G8: 0.0593
A9: 5 | B9: 0.0595 | C9: 0.0582 | D9: 0.0595 | E9: 0.0594 | F9: 0.0594 | G9: 0.0593
A10: 6 | B10: 0.0595 | C10: 0.0582 | D10: 0.0595 | E10: 0.0595 | F10: 0.0594 | G10: 0.0594
A11: 7 | B11: 0.0596 | C11: 0.0582 | D11: 0.0596 | E11: 0.0595 | F11: 0.0595 | G11: 0.0594
A12: 8 | B12: 0.0597 | C12: 0.0582 | D12: 0.0596 | E12: 0.0596 | F12: 0.0595 | G12: 0.0595
A13: 9 | B13: 0.0597 | C13: 0.0581 | D13: 0.0597 | E13: 0.0597 | F13: 0.0596 | G13: 0.0596
A14: 10 | B14: 0.0598 | C14: 0.0581 | D14: 0.0598 | E14: 0.0597 | F14: 0.0597 | G14: 0.0596
A15: 11 | B15: 0.0599 | C15: 0.0581 | D15: 0.0599 | E15: 0.0598 | F15: 0.0598 | G15: 0.0597
A16: 12 | B16: 0.06 | C16: 0.0581 | D16: 0.06 | E16: 0.0599 | F16: 0.0599 | G16: 0.0598
A17: 13 | B17: 0.0601 | C17: 0.0581 | D17: 0.06 | E17: 0.06 | F17: 0.0599 | G17: 0.0599
A18: 14 | B18: 0.0602 | C18: 0.0581 | D18: 0.0601 | E18: 0.0601 | F18: 0.06 | G18: 0.06
A19: 15 | B19: 0.0603 | C19: 0.0582 | D19: 0.0603 | E19: 0.0602 | F19: 0.0601 | G19: 0.0601
A20: 16 | B20: 0.0604 | C20: 0.0582 | D20: 0.0604 | E20: 0.0603 | F20: 0.0603 | G20: 0.0602
A21: 17 | B21: 0.0605 | C21: 0.0582 | D21: 0.0605 | E21: 0.0604 | F21: 0.0604 | G21: 0.0603
A22: 18 | B22: 0.0606 | C22: 0.0582 | D22: 0.0606 | E22: 0.0606 | F22: 0.0605 | G22: 0.0604
A23: 19 | B23: 0.0608 | C23: 0.0582 | D23: 0.0607 | E23: 0.0607 | F23: 0.0606 | G23: 0.0605
A24: 20 | B24: 0.0609 | C24: 0.0583 | D24: 0.0609 | E24: 0.0608 | F24: 0.0608 | G24: 0.0607
A25: 21 | B25: 0.0611 | C25: 0.0583 | D25: 0.061 | E25: 0.061 | F25: 0.0609 | G25: 0.0608
A26: 22 | B26: 0.0612 | C26: 0.0583 | D26: 0.0612 | E26: 0.0611 | F26: 0.0611 | G26: 0.061
A27: 23 | B27: 0.0614 | C27: 0.0584 | D27: 0.0614 | E27: 0.0613 | F27: 0.0612 | G27: 0.0611
A28: 24 | B28: 0.0616 | C28: 0.0584 | D28: 0.0615 | E28: 0.0615 | F28: 0.0614 | G28: 0.0613
A29: 25 | B29: 0.0617 | C29: 0.0585 | D29: 0.0617 | E29: 0.0617 | F29: 0.0616 | G29: 0.0615
A30: 26 | B30: 0.0619 | C30: 0.0585 | D30: 0.0619 | E30: 0.0618 | F30: 0.0618 | G30: 0.0617
A31: 27 | B31: 0.0621 | C31: 0.0586 | D31: 0.0621 | E31: 0.062 | F31: 0.062 | G31: 0.0619
A32: 28 | B32: 0.0623 | C32: 0.0586 | D32: 0.0623 | E32: 0.0623 | F32: 0.0622 | G32: 0.0621
A33: 29 | B33: 0.0626 | C33: 0.0587 | D33: 0.0625 | E33: 0.0625 | F33: 0.0624 | G33: 0.0623
A34: 30 | B34: 0.0628 | C34: 0.0588 | D34: 0.0628 | E34: 0.0627 | F34: 0.0626 | G34: 0.0625
A35: 31 | B35: 0.063 | C35: 0.0588 | D35: 0.063 | E35: 0.063 | F35: 0.0629 | G35: 0.0627
A36: 32 | B36: 0.0633 | C36: 0.0589 | D36: 0.0633 | E36: 0.0632 | F36: 0.0631 | G36: 0.063
A37: 33 | B37: 0.0636 | C37: 0.059 | D37: 0.0636 | E37: 0.0635 | F37: 0.0634 | G37: 0.0632
A38: 34 | B38: 0.0639 | C38: 0.0591 | D38: 0.0639 | E38: 0.0638 | F38: 0.0636 | G38: 0.0635
A39: 35 | B39: 0.0642 | C39: 0.0591 | D39: 0.0642 | E39: 0.0641 | F39: 0.0639 | G39: 0.0638
A40: 36 | B40: 0.0645 | C40: 0.0592 | D40: 0.0645 | E40: 0.0644 | F40: 0.0642 | G40: 0.0641
A41: 37 | B41: 0.0649 | C41: 0.0593 | D41: 0.0648 | E41: 0.0647 | F41: 0.0646 | G41: 0.0644
A42: 38 | B42: 0.0652 | C42: 0.0594 | D42: 0.0652 | E42: 0.0651 | F42: 0.0649 | G42: 0.0647
A43: 39 | B43: 0.0656 | C43: 0.0595 | D43: 0.0656 | E43: 0.0654 | F43: 0.0652 | G43: 0.065
A44: 40 | B44: 0.066 | C44: 0.0596 | D44: 0.066 | E44: 0.0658 | F44: 0.0656 | G44: 0.0653
A45: 41 | B45: 0.0664 | C45: 0.0597 | D45: 0.0664 | E45: 0.0662 | F45: 0.066 | G45: 0.0657
A46: 42 | B46: 0.0669 | C46: 0.0598 | D46: 0.0668 | E46: 0.0667 | F46: 0.0664 | G46: 0.066
A47: 43 | B47: 0.0673 | C47: 0.0599 | D47: 0.0673 | E47: 0.0671 | F47: 0.0668 | G47: 0.0664
A48: 44 | B48: 0.0678 | C48: 0.06 | D48: 0.0678 | E48: 0.0676 | F48: 0.0672 | G48: 0.0668
A49: 45 | B49: 0.0684 | C49: 0.0601 | D49: 0.0683 | E49: 0.068 | F49: 0.0677 | G49: 0.0672
A50: 46 | B50: 0.0689 | C50: 0.0602 | D50: 0.0688 | E50: 0.0686 | F50: 0.0681 | G50: 0.0676
A51: 47 | B51: 0.0695 | C51: 0.0603 | D51: 0.0694 | E51: 0.0691 | F51: 0.0686 | G51: 0.0681
A52: 48 | B52: 0.0701 | C52: 0.0604 | D52: 0.07 | E52: 0.0696 | F52: 0.0691 | G52: 0.0685
A53: 49 | B53: 0.0707 | C53: 0.0605 | D53: 0.0706 | E53: 0.0702 | F53: 0.0697 | G53: 0.069
A54: 50 | B54: 0.0714 | C54: 0.0606 | D54: 0.0713 | E54: 0.0708 | F54: 0.0702 | G54: 0.0695
A55: 51 | B55: 0.0721 | C55: 0.0607 | D55: 0.072 | E55: 0.0715 | F55: 0.0708 | G55: 0.07
A56: 52 | B56: 0.0729 | C56: 0.0608 | D56: 0.0727 | E56: 0.0721 | F56: 0.0714 | G56: 0.0705
A57: 53 | B57: 0.0736 | C57: 0.0609 | D57: 0.0734 | E57: 0.0728 | F57: 0.072 | G57: 0.071
A58: 54 | B58: 0.0745 | C58: 0.061 | D58: 0.0742 | E58: 0.0736 | F58: 0.0727 | G58: 0.0716
A59: 55 | B59: 0.0753 | C59: 0.061 | D59: 0.0751 | E59: 0.0743 | F59: 0.0733 | G59: 0.0722
A60: 56 | B60: 0.0762 | C60: 0.0611 | D60: 0.0759 | E60: 0.0751 | F60: 0.0741 | G60: 0.0728
A61: 57 | B61: 0.0771 | C61: 0.0612 | D61: 0.0768 | E61: 0.076 | F61: 0.0748 | G61: 0.0734
A62: 58 | B62: 0.0781 | C62: 0.0613 | D62: 0.0778 | E62: 0.0769 | F62: 0.0756 | G62: 0.074
... 76 more rows

Sheet JL_Revised Dec 2019 (hidden)
A1: Kotak Lifetime Income (Option 4) - Annuity Rates Applicaple for Purchase Price Less than Rs.2,50,000 and for Annual Mode
A3: Age | B3: 18 | C3: 19 | D3: 20 | E3: 21 | F3: 22 | G3: 23 | H3: 24 | I3: 25 | J3: 26 | K3: 27 | L3: 28 | M3: 29 | N3: 30 | O3: 31 | P3: 32 | Q3: 33 | R3: 34 | S3: 35 | T3: 36 | U3: 37 | V3: 38 | W3: 39 | X3: 40 | Y3: 41 | Z3: 42 | AA3: 43 | AB3: 44 | AC3: 45 | AD3: 46 | AE3: 47 | AF3: 48 | AG3: 49 | AH3: 50 | AI3: 51 | AJ3: 52 | AK3: 53 | AL3: 54 | AM3: 55 | AN3: 56 | AO3: 57 | AP3: 58 | AQ3: 59 | AR3: 60 | AS3: 61 | AT3: 62 | AU3: 63 | AV3: 64 | AW3: 65 | AX3: 66 | AY3: 67 | AZ3: 68 | BA3: 69 | BB3: 70 | BC3: 71 | BD3: 72 | BE3: 73 | BF3: 74 | BG3: 75 | BH3: 76 | BI3: 77 | BJ3: 78 | BK3: 79 | BL3: 80 | BM3: 81 | BN3: 82 | BO3: 83 | BP3: 84 | BQ3: 85 | BR3: 86 | BS3: 87 | BT3: 88 | BU3: 89 | BV3: 90 | BW3: 91 | BX3: 92 | BY3: 93 | BZ3: 94 | CA3: 95 | CB3: 96 | CC3: 97 | CD3: 98 | CE3: 99 | CF3: Age
A4: 18 | B4: 0.0591 | CF4: 18
A5: 19 | B5: 0.0592 | C5: 0.0592 | CF5: 19
A6: 20 | B6: 0.0592 | C6: 0.0592 | D6: 0.0593 | CF6: 20
A7: 21 | B7: 0.0592 | C7: 0.0593 | D7: 0.0593 | E7: 0.0594 | CF7: 21
A8: 22 | B8: 0.0593 | C8: 0.0593 | D8: 0.0594 | E8: 0.0594 | F8: 0.0595 | CF8: 22
A9: 23 | B9: 0.0593 | C9: 0.0594 | D9: 0.0594 | E9: 0.0595 | F9: 0.0595 | G9: 0.0596 | CF9: 23
A10: 24 | B10: 0.0593 | C10: 0.0594 | D10: 0.0594 | E10: 0.0595 | F10: 0.0596 | G10: 0.0596 | H10: 0.0597 | CF10: 24
A11: 25 | B11: 0.0594 | C11: 0.0594 | D11: 0.0595 | E11: 0.0595 | F11: 0.0596 | G11: 0.0597 | H11: 0.0597 | I11: 0.0598 | CF11: 25
A12: 26 | B12: 0.0594 | C12: 0.0595 | D12: 0.0595 | E12: 0.0596 | F12: 0.0597 | G12: 0.0597 | H12: 0.0598 | I12: 0.0598 | J12: 0.0599 | CF12: 26
A13: 27 | B13: 0.0595 | C13: 0.0595 | D13: 0.0596 | E13: 0.0596 | F13: 0.0597 | G13: 0.0598 | H13: 0.0598 | I13: 0.0599 | J13: 0.06 | K13: 0.06 | CF13: 27
A14: 28 | B14: 0.0595 | C14: 0.0596 | D14: 0.0596 | E14: 0.0597 | F14: 0.0598 | G14: 0.0598 | H14: 0.0599 | I14: 0.06 | J14: 0.06 | K14: 0.0601 | L14: 0.0602 | CF14: 28
A15: 29 | B15: 0.0595 | C15: 0.0596 | D15: 0.0597 | E15: 0.0597 | F15: 0.0598 | G15: 0.0599 | H15: 0.0599 | I15: 0.06 | J15: 0.0601 | K15: 0.0602 | L15: 0.0602 | M15: 0.0603 | CF15: 29
A16: 30 | B16: 0.0596 | C16: 0.0596 | D16: 0.0597 | E16: 0.0598 | F16: 0.0599 | G16: 0.0599 | H16: 0.06 | I16: 0.0601 | J16: 0.0602 | K16: 0.0602 | L16: 0.0603 | M16: 0.0604 | N16: 0.0605 | CF16: 30
A17: 31 | B17: 0.0596 | C17: 0.0597 | D17: 0.0597 | E17: 0.0598 | F17: 0.0599 | G17: 0.06 | H17: 0.0601 | I17: 0.0601 | J17: 0.0602 | K17: 0.0603 | L17: 0.0604 | M17: 0.0605 | N17: 0.0605 | O17: 0.0606 | CF17: 31
A18: 32 | B18: 0.0596 | C18: 0.0597 | D18: 0.0598 | E18: 0.0599 | F18: 0.0599 | G18: 0.06 | H18: 0.0601 | I18: 0.0602 | J18: 0.0603 | K18: 0.0604 | L18: 0.0604 | M18: 0.0605 | N18: 0.0606 | O18: 0.0607 | P18: 0.0608 | CF18: 32
A19: 33 | B19: 0.0597 | C19: 0.0598 | D19: 0.0598 | E19: 0.0599 | F19: 0.06 | G19: 0.0601 | H19: 0.0602 | I19: 0.0602 | J19: 0.0603 | K19: 0.0604 | L19: 0.0605 | M19: 0.0606 | N19: 0.0607 | O19: 0.0608 | P19: 0.0609 | Q19: 0.061 | CF19: 33
A20: 34 | B20: 0.0597 | C20: 0.0598 | D20: 0.0599 | E20: 0.0599 | F20: 0.06 | G20: 0.0601 | H20: 0.0602 | I20: 0.0603 | J20: 0.0604 | K20: 0.0605 | L20: 0.0606 | M20: 0.0607 | N20: 0.0608 | O20: 0.0609 | P20: 0.061 | Q20: 0.061 | R20: 0.0611 | CF20: 34
A21: 35 | B21: 0.0597 | C21: 0.0598 | D21: 0.0599 | E21: 0.06 | F21: 0.0601 | G21: 0.0602 | H21: 0.0603 | I21: 0.0604 | J21: 0.0604 | K21: 0.0605 | L21: 0.0606 | M21: 0.0607 | N21: 0.0608 | O21: 0.0609 | P21: 0.061 | Q21: 0.0611 | R21: 0.0612 | S21: 0.0613 | CF21: 35
A22: 36 | B22: 0.0598 | C22: 0.0599 | D22: 0.0599 | E22: 0.06 | F22: 0.0601 | G22: 0.0602 | H22: 0.0603 | I22: 0.0604 | J22: 0.0605 | K22: 0.0606 | L22: 0.0607 | M22: 0.0608 | N22: 0.0609 | O22: 0.061 | P22: 0.0611 | Q22: 0.0612 | R22: 0.0613 | S22: 0.0614 | T22: 0.0615 | CF22: 36
A23: 37 | B23: 0.0598 | C23: 0.0599 | D23: 0.06 | E23: 0.0601 | F23: 0.0602 | G23: 0.0603 | H23: 0.0604 | I23: 0.0605 | J23: 0.0606 | K23: 0.0607 | L23: 0.0608 | M23: 0.0609 | N23: 0.061 | O23: 0.0611 | P23: 0.0612 | Q23: 0.0613 | R23: 0.0614 | S23: 0.0615 | T23: 0.0616 | U23: 0.0617 | CF23: 37
A24: 38 | B24: 0.0598 | C24: 0.0599 | D24: 0.06 | E24: 0.0601 | F24: 0.0602 | G24: 0.0603 | H24: 0.0604 | I24: 0.0605 | J24: 0.0606 | K24: 0.0607 | L24: 0.0608 | M24: 0.0609 | N24: 0.0611 | O24: 0.0612 | P24: 0.0613 | Q24: 0.0614 | R24: 0.0615 | S24: 0.0616 | T24: 0.0617 | U24: 0.0619 | V24: 0.062 | CF24: 38
A25: 39 | B25: 0.0599 | C25: 0.06 | D25: 0.06 | E25: 0.0601 | F25: 0.0602 | G25: 0.0603 | H25: 0.0605 | I25: 0.0606 | J25: 0.0607 | K25: 0.0608 | L25: 0.0609 | M25: 0.061 | N25: 0.0611 | O25: 0.0612 | P25: 0.0614 | Q25: 0.0615 | R25: 0.0616 | S25: 0.0617 | T25: 0.0618 | U25: 0.062 | V25: 0.0621 | W25: 0.0622 | CF25: 39
A26: 40 | B26: 0.0599 | C26: 0.06 | D26: 0.0601 | E26: 0.0602 | F26: 0.0603 | G26: 0.0604 | H26: 0.0605 | I26: 0.0606 | J26: 0.0607 | K26: 0.0608 | L26: 0.061 | M26: 0.0611 | N26: 0.0612 | O26: 0.0613 | P26: 0.0614 | Q26: 0.0616 | R26: 0.0617 | S26: 0.0618 | T26: 0.0619 | U26: 0.0621 | V26: 0.0622 | W26: 0.0623 | X26: 0.0624 | CF26: 40
A27: 41 | B27: 0.0599 | C27: 0.06 | D27: 0.0601 | E27: 0.0602 | F27: 0.0603 | G27: 0.0604 | H27: 0.0605 | I27: 0.0607 | J27: 0.0608 | K27: 0.0609 | L27: 0.061 | M27: 0.0611 | N27: 0.0613 | O27: 0.0614 | P27: 0.0615 | Q27: 0.0616 | R27: 0.0618 | S27: 0.0619 | T27: 0.062 | U27: 0.0622 | V27: 0.0623 | W27: 0.0624 | X27: 0.0626 | Y27: 0.0627 | CF27: 41
A28: 42 | B28: 0.0599 | C28: 0.06 | D28: 0.0601 | E28: 0.0602 | F28: 0.0604 | G28: 0.0605 | H28: 0.0606 | I28: 0.0607 | J28: 0.0608 | K28: 0.0609 | L28: 0.0611 | M28: 0.0612 | N28: 0.0613 | O28: 0.0615 | P28: 0.0616 | Q28: 0.0617 | R28: 0.0619 | S28: 0.062 | T28: 0.0621 | U28: 0.0623 | V28: 0.0624 | W28: 0.0626 | X28: 0.0627 | Y28: 0.0628 | Z28: 0.063 | CF28: 42
A29: 43 | B29: 0.06 | C29: 0.0601 | D29: 0.0602 | E29: 0.0603 | F29: 0.0604 | G29: 0.0605 | H29: 0.0606 | I29: 0.0607 | J29: 0.0609 | K29: 0.061 | L29: 0.0611 | M29: 0.0613 | N29: 0.0614 | O29: 0.0615 | P29: 0.0617 | Q29: 0.0618 | R29: 0.0619 | S29: 0.0621 | T29: 0.0622 | U29: 0.0624 | V29: 0.0625 | W29: 0.0627 | X29: 0.0628 | Y29: 0.063 | Z29: 0.0631 | AA29: 0.0632 | CF29: 43
A30: 44 | B30: 0.06 | C30: 0.0601 | D30: 0.0602 | E30: 0.0603 | F30: 0.0604 | G30: 0.0605 | H30: 0.0607 | I30: 0.0608 | J30: 0.0609 | K30: 0.061 | L30: 0.0612 | M30: 0.0613 | N30: 0.0614 | O30: 0.0616 | P30: 0.0617 | Q30: 0.0619 | R30: 0.062 | S30: 0.0622 | T30: 0.0623 | U30: 0.0625 | V30: 0.0626 | W30: 0.0628 | X30: 0.0629 | Y30: 0.0631 | Z30: 0.0632 | AA30: 0.0634 | AB30: 0.0635 | CF30: 44
A31: 45 | B31: 0.06 | C31: 0.0601 | D31: 0.0602 | E31: 0.0603 | F31: 0.0605 | G31: 0.0606 | H31: 0.0607 | I31: 0.0608 | J31: 0.061 | K31: 0.0611 | L31: 0.0612 | M31: 0.0614 | N31: 0.0615 | O31: 0.0616 | P31: 0.0618 | Q31: 0.0619 | R31: 0.0621 | S31: 0.0623 | T31: 0.0624 | U31: 0.0626 | V31: 0.0627 | W31: 0.0629 | X31: 0.0631 | Y31: 0.0632 | Z31: 0.0634 | AA31: 0.0635 | AB31: 0.0637 | AC31: 0.0638 | CF31: 45
A32: 46 | B32: 0.06 | C32: 0.0602 | D32: 0.0603 | E32: 0.0604 | F32: 0.0605 | G32: 0.0606 | H32: 0.0607 | I32: 0.0609 | J32: 0.061 | K32: 0.0611 | L32: 0.0613 | M32: 0.0614 | N32: 0.0616 | O32: 0.0617 | P32: 0.0619 | Q32: 0.062 | R32: 0.0622 | S32: 0.0623 | T32: 0.0625 | U32: 0.0627 | V32: 0.0628 | W32: 0.063 | X32: 0.0632 | Y32: 0.0633 | Z32: 0.0635 | AA32: 0.0637 | AB32: 0.0638 | AC32: 0.064 | AD32: 0.0642 | CF32: 46
A33: 47 | B33: 0.0601 | C33: 0.0602 | D33: 0.0603 | E33: 0.0604 | F33: 0.0605 | G33: 0.0606 | H33: 0.0608 | I33: 0.0609 | J33: 0.061 | K33: 0.0612 | L33: 0.0613 | M33: 0.0615 | N33: 0.0616 | O33: 0.0618 | P33: 0.0619 | Q33: 0.0621 | R33: 0.0623 | S33: 0.0624 | T33: 0.0626 | U33: 0.0628 | V33: 0.0629 | W33: 0.0631 | X33: 0.0633 | Y33: 0.0635 | Z33: 0.0636 | AA33: 0.0638 | AB33: 0.064 | AC33: 0.0642 | AD33: 0.0643 | AE33: 0.0645 | CF33: 47
A34: 48 | B34: 0.0601 | C34: 0.0602 | D34: 0.0603 | E34: 0.0604 | F34: 0.0605 | G34: 0.0607 | H34: 0.0608 | I34: 0.0609 | J34: 0.0611 | K34: 0.0612 | L34: 0.0614 | M34: 0.0615 | N34: 0.0617 | O34: 0.0618 | P34: 0.062 | Q34: 0.0622 | R34: 0.0623 | S34: 0.0625 | T34: 0.0627 | U34: 0.0628 | V34: 0.063 | W34: 0.0632 | X34: 0.0634 | Y34: 0.0636 | Z34: 0.0638 | AA34: 0.0639 | AB34: 0.0641 | AC34: 0.0643 | AD34: 0.0645 | AE34: 0.0647 | AF34: 0.0649 | CF34: 48
A35: 49 | B35: 0.0601 | C35: 0.0602 | D35: 0.0603 | E35: 0.0605 | F35: 0.0606 | G35: 0.0607 | H35: 0.0608 | I35: 0.061 | J35: 0.0611 | K35: 0.0613 | L35: 0.0614 | M35: 0.0616 | N35: 0.0617 | O35: 0.0619 | P35: 0.0621 | Q35: 0.0622 | R35: 0.0624 | S35: 0.0626 | T35: 0.0628 | U35: 0.0629 | V35: 0.0631 | W35: 0.0633 | X35: 0.0635 | Y35: 0.0637 | Z35: 0.0639 | AA35: 0.0641 | AB35: 0.0643 | AC35: 0.0645 | AD35: 0.0647 | AE35: 0.0649 | AF35: 0.0651 | AG35: 0.0653 | CF35: 49
A36: 50 | B36: 0.0601 | C36: 0.0602 | D36: 0.0604 | E36: 0.0605 | F36: 0.0606 | G36: 0.0607 | H36: 0.0609 | I36: 0.061 | J36: 0.0611 | K36: 0.0613 | L36: 0.0615 | M36: 0.0616 | N36: 0.0618 | O36: 0.0619 | P36: 0.0621 | Q36: 0.0623 | R36: 0.0625 | S36: 0.0626 | T36: 0.0628 | U36: 0.063 | V36: 0.0632 | W36: 0.0634 | X36: 0.0636 | Y36: 0.0638 | Z36: 0.064 | AA36: 0.0642 | AB36: 0.0644 | AC36: 0.0646 | AD36: 0.0648 | AE36: 0.065 | AF36: 0.0652 | AG36: 0.0654 | AH36: 0.0657 | CF36: 50
A37: 51 | B37: 0.0602 | C37: 0.0603 | D37: 0.0604 | E37: 0.0605 | F37: 0.0606 | G37: 0.0608 | H37: 0.0609 | I37: 0.061 | J37: 0.0612 | K37: 0.0613 | L37: 0.0615 | M37: 0.0617 | N37: 0.0618 | O37: 0.062 | P37: 0.0622 | Q37: 0.0623 | R37: 0.0625 | S37: 0.0627 | T37: 0.0629 | U37: 0.0631 | V37: 0.0633 | W37: 0.0635 | X37: 0.0637 | Y37: 0.0639 | Z37: 0.0641 | AA37: 0.0643 | AB37: 0.0646 | AC37: 0.0648 | AD37: 0.065 | AE37: 0.0652 | AF37: 0.0654 | AG37: 0.0656 | AH37: 0.0659 | AI37: 0.0661 | CF37: 51
A38: 52 | B38: 0.0602 | C38: 0.0603 | D38: 0.0604 | E38: 0.0605 | F38: 0.0607 | G38: 0.0608 | H38: 0.0609 | I38: 0.0611 | J38: 0.0612 | K38: 0.0614 | L38: 0.0615 | M38: 0.0617 | N38: 0.0619 | O38: 0.062 | P38: 0.0622 | Q38: 0.0624 | R38: 0.0626 | S38: 0.0628 | T38: 0.063 | U38: 0.0632 | V38: 0.0634 | W38: 0.0636 | X38: 0.0638 | Y38: 0.064 | Z38: 0.0643 | AA38: 0.0645 | AB38: 0.0647 | AC38: 0.0649 | AD38: 0.0651 | AE38: 0.0654 | AF38: 0.0656 | AG38: 0.0658 | AH38: 0.0661 | AI38: 0.0663 | AJ38: 0.0665 | CF38: 52
A39: 53 | B39: 0.0602 | C39: 0.0603 | D39: 0.0604 | E39: 0.0605 | F39: 0.0607 | G39: 0.0608 | H39: 0.061 | I39: 0.0611 | J39: 0.0613 | K39: 0.0614 | L39: 0.0616 | M39: 0.0617 | N39: 0.0619 | O39: 0.0621 | P39: 0.0623 | Q39: 0.0625 | R39: 0.0627 | S39: 0.0629 | T39: 0.0631 | U39: 0.0633 | V39: 0.0635 | W39: 0.0637 | X39: 0.0639 | Y39: 0.0641 | Z39: 0.0644 | AA39: 0.0646 | AB39: 0.0648 | AC39: 0.0651 | AD39: 0.0653 | AE39: 0.0655 | AF39: 0.0658 | AG39: 0.066 | AH39: 0.0663 | AI39: 0.0665 | AJ39: 0.0667 | AK39: 0.067 | CF39: 53
A40: 54 | B40: 0.0602 | C40: 0.0603 | D40: 0.0604 | E40: 0.0606 | F40: 0.0607 | G40: 0.0608 | H40: 0.061 | I40: 0.0611 | J40: 0.0613 | K40: 0.0614 | L40: 0.0616 | M40: 0.0618 | N40: 0.062 | O40: 0.0621 | P40: 0.0623 | Q40: 0.0625 | R40: 0.0627 | S40: 0.0629 | T40: 0.0631 | U40: 0.0633 | V40: 0.0636 | W40: 0.0638 | X40: 0.064 | Y40: 0.0642 | Z40: 0.0645 | AA40: 0.0647 | AB40: 0.065 | AC40: 0.0652 | AD40: 0.0654 | AE40: 0.0657 | AF40: 0.0659 | AG40: 0.0662 | AH40: 0.0665 | AI40: 0.0667 | AJ40: 0.067 | AK40: 0.0672 | AL40: 0.0675 | CF40: 54
A41: 55 | B41: 0.0602 | C41: 0.0603 | D41: 0.0605 | E41: 0.0606 | F41: 0.0607 | G41: 0.0609 | H41: 0.061 | I41: 0.0612 | J41: 0.0613 | K41: 0.0615 | L41: 0.0616 | M41: 0.0618 | N41: 0.062 | O41: 0.0622 | P41: 0.0624 | Q41: 0.0626 | R41: 0.0628 | S41: 0.063 | T41: 0.0632 | U41: 0.0634 | V41: 0.0636 | W41: 0.0639 | X41: 0.0641 | Y41: 0.0643 | Z41: 0.0646 | AA41: 0.0648 | AB41: 0.0651 | AC41: 0.0653 | AD41: 0.0656 | AE41: 0.0659 | AF41: 0.0661 | AG41: 0.0664 | AH41: 0.0666 | AI41: 0.0669 | AJ41: 0.0672 | AK41: 0.0675 | AL41: 0.0677 | AM41: 0.068 | CF41: 55
A42: 56 | B42: 0.0602 | C42: 0.0604 | D42: 0.0605 | E42: 0.0606 | F42: 0.0607 | G42: 0.0609 | H42: 0.061 | I42: 0.0612 | J42: 0.0613 | K42: 0.0615 | L42: 0.0617 | M42: 0.0619 | N42: 0.062 | O42: 0.0622 | P42: 0.0624 | Q42: 0.0626 | R42: 0.0628 | S42: 0.063 | T42: 0.0633 | U42: 0.0635 | V42: 0.0637 | W42: 0.064 | X42: 0.0642 | Y42: 0.0644 | Z42: 0.0647 | AA42: 0.065 | AB42: 0.0652 | AC42: 0.0655 | AD42: 0.0657 | AE42: 0.066 | AF42: 0.0663 | AG42: 0.0666 | AH42: 0.0668 | AI42: 0.0671 | AJ42: 0.0674 | AK42: 0.0677 | AL42: 0.068 | AM42: 0.0683 | AN42: 0.0685 | CF42: 56
A43: 57 | B43: 0.0603 | C43: 0.0604 | D43: 0.0605 | E43: 0.0606 | F43: 0.0608 | G43: 0.0609 | H43: 0.0611 | I43: 0.0612 | J43: 0.0614 | K43: 0.0615 | L43: 0.0617 | M43: 0.0619 | N43: 0.0621 | O43: 0.0623 | P43: 0.0625 | Q43: 0.0627 | R43: 0.0629 | S43: 0.0631 | T43: 0.0633 | U43: 0.0636 | V43: 0.0638 | W43: 0.064 | X43: 0.0643 | Y43: 0.0645 | Z43: 0.0648 | AA43: 0.0651 | AB43: 0.0653 | AC43: 0.0656 | AD43: 0.0659 | AE43: 0.0662 | AF43: 0.0665 | AG43: 0.0667 | AH43: 0.067 | AI43: 0.0673 | AJ43: 0.0676 | AK43: 0.0679 | AL43: 0.0682 | AM43: 0.0685 | AN43: 0.0688 | AO43: 0.0691 | CF43: 57
A44: 58 | B44: 0.0603 | C44: 0.0604 | D44: 0.0605 | E44: 0.0606 | F44: 0.0608 | G44: 0.0609 | H44: 0.0611 | I44: 0.0612 | J44: 0.0614 | K44: 0.0616 | L44: 0.0617 | M44: 0.0619 | N44: 0.0621 | O44: 0.0623 | P44: 0.0625 | Q44: 0.0627 | R44: 0.0629 | S44: 0.0632 | T44: 0.0634 | U44: 0.0636 | V44: 0.0639 | W44: 0.0641 | X44: 0.0644 | Y44: 0.0646 | Z44: 0.0649 | AA44: 0.0652 | AB44: 0.0655 | AC44: 0.0657 | AD44: 0.066 | AE44: 0.0663 | AF44: 0.0666 | AG44: 0.0669 | AH44: 0.0672 | AI44: 0.0675 | AJ44: 0.0678 | AK44: 0.0682 | AL44: 0.0685 | AM44: 0.0688 | AN44: 0.0691 | AO44: 0.0694 | AP44: 0.0697 | CF44: 58
A45: 59 | B45: 0.0603 | C45: 0.0604 | D45: 0.0605 | E45: 0.0607 | F45: 0.0608 | G45: 0.0609 | H45: 0.0611 | I45: 0.0613 | J45: 0.0614 | K45: 0.0616 | L45: 0.0618 | M45: 0.062 | N45: 0.0621 | O45: 0.0623 | P45: 0.0625 | Q45: 0.0628 | R45: 0.063 | S45: 0.0632 | T45: 0.0634 | U45: 0.0637 | V45: 0.0639 | W45: 0.0642 | X45: 0.0645 | Y45: 0.0647 | Z45: 0.065 | AA45: 0.0653 | AB45: 0.0656 | AC45: 0.0659 | AD45: 0.0662 | AE45: 0.0665 | AF45: 0.0668 | AG45: 0.0671 | AH45: 0.0674 | AI45: 0.0677 | AJ45: 0.0681 | AK45: 0.0684 | AL45: 0.0687 | AM45: 0.069 | AN45: 0.0694 | AO45: 0.0697 | AP45: 0.07 | AQ45: 0.0704 | CF45: 59
A46: 60 | B46: 0.0603 | C46: 0.0604 | D46: 0.0605 | E46: 0.0607 | F46: 0.0608 | G46: 0.061 | H46: 0.0611 | I46: 0.0613 | J46: 0.0614 | K46: 0.0616 | L46: 0.0618 | M46: 0.062 | N46: 0.0622 | O46: 0.0624 | P46: 0.0626 | Q46: 0.0628 | R46: 0.063 | S46: 0.0633 | T46: 0.0635 | U46: 0.0638 | V46: 0.064 | W46: 0.0643 | X46: 0.0645 | Y46: 0.0648 | Z46: 0.0651 | AA46: 0.0654 | AB46: 0.0657 | AC46: 0.066 | AD46: 0.0663 | AE46: 0.0666 | AF46: 0.0669 | AG46: 0.0673 | AH46: 0.0676 | AI46: 0.0679 | AJ46: 0.0683 | AK46: 0.0686 | AL46: 0.0689 | AM46: 0.0693 | AN46: 0.0696 | AO46: 0.07 | AP46: 0.0704 | AQ46: 0.0707 | AR46: 0.0711 | CF46: 60
A47: 61 | B47: 0.0603 | C47: 0.0604 | D47: 0.0606 | E47: 0.0607 | F47: 0.0608 | G47: 0.061 | H47: 0.0611 | I47: 0.0613 | J47: 0.0615 | K47: 0.0616 | L47: 0.0618 | M47: 0.062 | N47: 0.0622 | O47: 0.0624 | P47: 0.0626 | Q47: 0.0628 | R47: 0.0631 | S47: 0.0633 | T47: 0.0636 | U47: 0.0638 | V47: 0.0641 | W47: 0.0643 | X47: 0.0646 | Y47: 0.0649 | Z47: 0.0652 | AA47: 0.0655 | AB47: 0.0658 | AC47: 0.0661 | AD47: 0.0664 | AE47: 0.0667 | AF47: 0.0671 | AG47: 0.0674 | AH47: 0.0678 | AI47: 0.0681 | AJ47: 0.0685 | AK47: 0.0688 | AL47: 0.0692 | AM47: 0.0696 | AN47: 0.0699 | AO47: 0.0703 | AP47: 0.0707 | AQ47: 0.0711 | AR47: 0.0714 | AS47: 0.0718 | CF47: 61
A48: 62 | B48: 0.0603 | C48: 0.0604 | D48: 0.0606 | E48: 0.0607 | F48: 0.0609 | G48: 0.061 | H48: 0.0612 | I48: 0.0613 | J48: 0.0615 | K48: 0.0617 | L48: 0.0619 | M48: 0.062 | N48: 0.0622 | O48: 0.0624 | P48: 0.0627 | Q48: 0.0629 | R48: 0.0631 | S48: 0.0634 | T48: 0.0636 | U48: 0.0639 | V48: 0.0641 | W48: 0.0644 | X48: 0.0647 | Y48: 0.065 | Z48: 0.0653 | AA48: 0.0656 | AB48: 0.0659 | AC48: 0.0662 | AD48: 0.0665 | AE48: 0.0669 | AF48: 0.0672 | AG48: 0.0676 | AH48: 0.0679 | AI48: 0.0683 | AJ48: 0.0687 | AK48: 0.069 | AL48: 0.0694 | AM48: 0.0698 | AN48: 0.0702 | AO48: 0.0706 | AP48: 0.071 | AQ48: 0.0714 | AR48: 0.0718 | AS48: 0.0722 | AT48: 0.0726 | CF48: 62
A49: 63 | B49: 0.0603 | C49: 0.0605 | D49: 0.0606 | E49: 0.0607 | F49: 0.0609 | G49: 0.061 | H49: 0.0612 | I49: 0.0613 | J49: 0.0615 | K49: 0.0617 | L49: 0.0619 | M49: 0.0621 | N49: 0.0623 | O49: 0.0625 | P49: 0.0627 | Q49: 0.0629 | R49: 0.0632 | S49: 0.0634 | T49: 0.0637 | U49: 0.0639 | V49: 0.0642 | W49: 0.0645 | X49: 0.0648 | Y49: 0.0651 | Z49: 0.0654 | AA49: 0.0657 | AB49: 0.066 | AC49: 0.0663 | AD49: 0.0667 | AE49: 0.067 | AF49: 0.0674 | AG49: 0.0677 | AH49: 0.0681 | AI49: 0.0685 | AJ49: 0.0689 | AK49: 0.0693 | AL49: 0.0697 | AM49: 0.0701 | AN49: 0.0705 | AO49: 0.0709 | AP49: 0.0713 | AQ49: 0.0717 | AR49: 0.0722 | AS49: 0.0726 | AT49: 0.073 | AU49: 0.0735 | CF49: 63
A50: 64 | B50: 0.0603 | C50: 0.0605 | D50: 0.0606 | E50: 0.0607 | F50: 0.0609 | G50: 0.061 | H50: 0.0612 | I50: 0.0614 | J50: 0.0615 | K50: 0.0617 | L50: 0.0619 | M50: 0.0621 | N50: 0.0623 | O50: 0.0625 | P50: 0.0627 | Q50: 0.063 | R50: 0.0632 | S50: 0.0635 | T50: 0.0637 | U50: 0.064 | V50: 0.0643 | W50: 0.0645 | X50: 0.0648 | Y50: 0.0651 | Z50: 0.0654 | AA50: 0.0658 | AB50: 0.0661 | AC50: 0.0664 | AD50: 0.0668 | AE50: 0.0671 | AF50: 0.0675 | AG50: 0.0679 | AH50: 0.0683 | AI50: 0.0687 | AJ50: 0.0691 | AK50: 0.0695 | AL50: 0.0699 | AM50: 0.0703 | AN50: 0.0707 | AO50: 0.0712 | AP50: 0.0716 | AQ50: 0.0721 | AR50: 0.0725 | AS50: 0.073 | AT50: 0.0734 | AU50: 0.0739 | AV50: 0.0744 | CF50: 64
A51: 65 | B51: 0.0604 | C51: 0.0605 | D51: 0.0606 | E51: 0.0608 | F51: 0.0609 | G51: 0.0611 | H51: 0.0612 | I51: 0.0614 | J51: 0.0616 | K51: 0.0617 | L51: 0.0619 | M51: 0.0621 | N51: 0.0623 | O51: 0.0625 | P51: 0.0628 | Q51: 0.063 | R51: 0.0632 | S51: 0.0635 | T51: 0.0638 | U51: 0.064 | V51: 0.0643 | W51: 0.0646 | X51: 0.0649 | Y51: 0.0652 | Z51: 0.0655 | AA51: 0.0659 | AB51: 0.0662 | AC51: 0.0665 | AD51: 0.0669 | AE51: 0.0673 | AF51: 0.0677 | AG51: 0.068 | AH51: 0.0684 | AI51: 0.0689 | AJ51: 0.0693 | AK51: 0.0697 | AL51: 0.0701 | AM51: 0.0706 | AN51: 0.071 | AO51: 0.0715 | AP51: 0.0719 | AQ51: 0.0724 | AR51: 0.0729 | AS51: 0.0734 | AT51: 0.0739 | AU51: 0.0744 | AV51: 0.0749 | AW51: 0.0754 | CF51: 65
A52: 66 | B52: 0.0604 | C52: 0.0605 | D52: 0.0606 | E52: 0.0608 | F52: 0.0609 | G52: 0.0611 | H52: 0.0612 | I52: 0.0614 | J52: 0.0616 | K52: 0.0618 | L52: 0.062 | M52: 0.0621 | N52: 0.0624 | O52: 0.0626 | P52: 0.0628 | Q52: 0.063 | R52: 0.0633 | S52: 0.0635 | T52: 0.0638 | U52: 0.0641 | V52: 0.0644 | W52: 0.0647 | X52: 0.065 | Y52: 0.0653 | Z52: 0.0656 | AA52: 0.0659 | AB52: 0.0663 | AC52: 0.0667 | AD52: 0.067 | AE52: 0.0674 | AF52: 0.0678 | AG52: 0.0682 | AH52: 0.0686 | AI52: 0.069 | AJ52: 0.0695 | AK52: 0.0699 | AL52: 0.0703 | AM52: 0.0708 | AN52: 0.0713 | AO52: 0.0718 | AP52: 0.0722 | AQ52: 0.0727 | AR52: 0.0732 | AS52: 0.0737 | AT52: 0.0743 | AU52: 0.0748 | AV52: 0.0753 | AW52: 0.0759 | AX52: 0.0764 | CF52: 66
A53: 67 | B53: 0.0604 | C53: 0.0605 | D53: 0.0606 | E53: 0.0608 | F53: 0.0609 | G53: 0.0611 | H53: 0.0612 | I53: 0.0614 | J53: 0.0616 | K53: 0.0618 | L53: 0.062 | M53: 0.0622 | N53: 0.0624 | O53: 0.0626 | P53: 0.0628 | Q53: 0.0631 | R53: 0.0633 | S53: 0.0636 | T53: 0.0638 | U53: 0.0641 | V53: 0.0644 | W53: 0.0647 | X53: 0.065 | Y53: 0.0654 | Z53: 0.0657 | AA53: 0.066 | AB53: 0.0664 | AC53: 0.0668 | AD53: 0.0671 | AE53: 0.0675 | AF53: 0.0679 | AG53: 0.0683 | AH53: 0.0688 | AI53: 0.0692 | AJ53: 0.0696 | AK53: 0.0701 | AL53: 0.0706 | AM53: 0.071 | AN53: 0.0715 | AO53: 0.072 | AP53: 0.0725 | AQ53: 0.0731 | AR53: 0.0736 | AS53: 0.0741 | AT53: 0.0747 | AU53: 0.0752 | AV53: 0.0758 | AW53: 0.0764 | AX53: 0.077 | AY53: 0.0776 | CF53: 67
A54: 68 | B54: 0.0604 | C54: 0.0605 | D54: 0.0607 | E54: 0.0608 | F54: 0.0609 | G54: 0.0611 | H54: 0.0613 | I54: 0.0614 | J54: 0.0616 | K54: 0.0618 | L54: 0.062 | M54: 0.0622 | N54: 0.0624 | O54: 0.0626 | P54: 0.0629 | Q54: 0.0631 | R54: 0.0634 | S54: 0.0636 | T54: 0.0639 | U54: 0.0642 | V54: 0.0645 | W54: 0.0648 | X54: 0.0651 | Y54: 0.0654 | Z54: 0.0658 | AA54: 0.0661 | AB54: 0.0665 | AC54: 0.0668 | AD54: 0.0672 | AE54: 0.0676 | AF54: 0.068 | AG54: 0.0685 | AH54: 0.0689 | AI54: 0.0694 | AJ54: 0.0698 | AK54: 0.0703 | AL54: 0.0708 | AM54: 0.0713 | AN54: 0.0718 | AO54: 0.0723 | AP54: 0.0728 | AQ54: 0.0734 | AR54: 0.0739 | AS54: 0.0745 | AT54: 0.0751 | AU54: 0.0757 | AV54: 0.0763 | AW54: 0.0769 | AX54: 0.0775 | AY54: 0.0782 | AZ54: 0.0788 | CF54: 68
A55: 69 | B55: 0.0604 | C55: 0.0605 | D55: 0.0607 | E55: 0.0608 | F55: 0.061 | G55: 0.0611 | H55: 0.0613 | I55: 0.0615 | J55: 0.0616 | K55: 0.0618 | L55: 0.062 | M55: 0.0622 | N55: 0.0624 | O55: 0.0627 | P55: 0.0629 | Q55: 0.0631 | R55: 0.0634 | S55: 0.0637 | T55: 0.0639 | U55: 0.0642 | V55: 0.0645 | W55: 0.0648 | X55: 0.0652 | Y55: 0.0655 | Z55: 0.0658 | AA55: 0.0662 | AB55: 0.0666 | AC55: 0.0669 | AD55: 0.0673 | AE55: 0.0677 | AF55: 0.0682 | AG55: 0.0686 | AH55: 0.0691 | AI55: 0.0695 | AJ55: 0.07 | AK55: 0.0705 | AL55: 0.071 | AM55: 0.0715 | AN55: 0.072 | AO55: 0.0726 | AP55: 0.0731 | AQ55: 0.0737 | AR55: 0.0743 | AS55: 0.0749 | AT55: 0.0755 | AU55: 0.0761 | AV55: 0.0768 | AW55: 0.0774 | AX55: 0.0781 | AY55: 0.0788 | AZ55: 0.0794 | BA55: 0.0801 | CF55: 69
A56: 70 | B56: 0.0604 | C56: 0.0606 | D56: 0.0607 | E56: 0.0608 | F56: 0.061 | G56: 0.0611 | H56: 0.0613 | I56: 0.0615 | J56: 0.0616 | K56: 0.0618 | L56: 0.062 | M56: 0.0622 | N56: 0.0625 | O56: 0.0627 | P56: 0.0629 | Q56: 0.0632 | R56: 0.0634 | S56: 0.0637 | T56: 0.064 | U56: 0.0643 | V56: 0.0646 | W56: 0.0649 | X56: 0.0652 | Y56: 0.0655 | Z56: 0.0659 | AA56: 0.0663 | AB56: 0.0666 | AC56: 0.067 | AD56: 0.0674 | AE56: 0.0679 | AF56: 0.0683 | AG56: 0.0687 | AH56: 0.0692 | AI56: 0.0697 | AJ56: 0.0702 | AK56: 0.0707 | AL56: 0.0712 | AM56: 0.0717 | AN56: 0.0723 | AO56: 0.0728 | AP56: 0.0734 | AQ56: 0.074 | AR56: 0.0746 | AS56: 0.0752 | AT56: 0.0759 | AU56: 0.0765 | AV56: 0.0772 | AW56: 0.0779 | AX56: 0.0786 | AY56: 0.0793 | AZ56: 0.0801 | BA56: 0.0808 | BB56: 0.0815 | CF56: 70
A57: 71 | B57: 0.0604 | C57: 0.0606 | D57: 0.0607 | E57: 0.0608 | F57: 0.061 | G57: 0.0611 | H57: 0.0613 | I57: 0.0615 | J57: 0.0617 | K57: 0.0619 | L57: 0.0621 | M57: 0.0623 | N57: 0.0625 | O57: 0.0627 | P57: 0.0629 | Q57: 0.0632 | R57: 0.0634 | S57: 0.0637 | T57: 0.064 | U57: 0.0643 | V57: 0.0646 | W57: 0.0649 | X57: 0.0653 | Y57: 0.0656 | Z57: 0.066 | AA57: 0.0663 | AB57: 0.0667 | AC57: 0.0671 | AD57: 0.0675 | AE57: 0.068 | AF57: 0.0684 | AG57: 0.0689 | AH57: 0.0693 | AI57: 0.0698 | AJ57: 0.0703 | AK57: 0.0708 | AL57: 0.0714 | AM57: 0.0719 | AN57: 0.0725 | AO57: 0.0731 | AP57: 0.0737 | AQ57: 0.0743 | AR57: 0.0749 | AS57: 0.0756 | AT57: 0.0762 | AU57: 0.0769 | AV57: 0.0777 | AW57: 0.0784 | AX57: 0.0792 | AY57: 0.0799 | AZ57: 0.0807 | BA57: 0.0815 | BB57: 0.0823 | BC57: 0.083 | CF57: 71
A58: 72 | B58: 0.0604 | C58: 0.0606 | D58: 0.0607 | E58: 0.0609 | F58: 0.061 | G58: 0.0612 | H58: 0.0613 | I58: 0.0615 | J58: 0.0617 | K58: 0.0619 | L58: 0.0621 | M58: 0.0623 | N58: 0.0625 | O58: 0.0627 | P58: 0.063 | Q58: 0.0632 | R58: 0.0635 | S58: 0.0638 | T58: 0.064 | U58: 0.0643 | V58: 0.0646 | W58: 0.065 | X58: 0.0653 | Y58: 0.0657 | Z58: 0.066 | AA58: 0.0664 | AB58: 0.0668 | AC58: 0.0672 | AD58: 0.0676 | AE58: 0.0681 | AF58: 0.0685 | AG58: 0.069 | AH58: 0.0695 | AI58: 0.07 | AJ58: 0.0705 | AK58: 0.071 | AL58: 0.0716 | AM58: 0.0721 | AN58: 0.0727 | AO58: 0.0733 | AP58: 0.0739 | AQ58: 0.0746 | AR58: 0.0752 | AS58: 0.0759 | AT58: 0.0766 | AU58: 0.0773 | AV58: 0.0781 | AW58: 0.0789 | AX58: 0.0797 | AY58: 0.0805 | AZ58: 0.0813 | BA58: 0.0821 | BB58: 0.083 | BC58: 0.0838 | BD58: 0.0846 | CF58: 72
A59: 73 | B59: 0.0605 | C59: 0.0606 | D59: 0.0607 | E59: 0.0609 | F59: 0.061 | G59: 0.0612 | H59: 0.0613 | I59: 0.0615 | J59: 0.0617 | K59: 0.0619 | L59: 0.0621 | M59: 0.0623 | N59: 0.0625 | O59: 0.0627 | P59: 0.063 | Q59: 0.0632 | R59: 0.0635 | S59: 0.0638 | T59: 0.0641 | U59: 0.0644 | V59: 0.0647 | W59: 0.065 | X59: 0.0654 | Y59: 0.0657 | Z59: 0.0661 | AA59: 0.0665 | AB59: 0.0669 | AC59: 0.0673 | AD59: 0.0677 | AE59: 0.0681 | AF59: 0.0686 | AG59: 0.0691 | AH59: 0.0696 | AI59: 0.0701 | AJ59: 0.0706 | AK59: 0.0712 | AL59: 0.0717 | AM59: 0.0723 | AN59: 0.0729 | AO59: 0.0735 | AP59: 0.0742 | AQ59: 0.0748 | AR59: 0.0755 | AS59: 0.0762 | AT59: 0.077 | AU59: 0.0777 | AV59: 0.0785 | AW59: 0.0793 | AX59: 0.0802 | AY59: 0.081 | AZ59: 0.0819 | BA59: 0.0828 | BB59: 0.0837 | BC59: 0.0845 | BD59: 0.0854 | BE59: 0.0863 | CF59: 73
A60: 74 | B60: 0.0605 | C60: 0.0606 | D60: 0.0607 | E60: 0.0609 | F60: 0.061 | G60: 0.0612 | H60: 0.0613 | I60: 0.0615 | J60: 0.0617 | K60: 0.0619 | L60: 0.0621 | M60: 0.0623 | N60: 0.0625 | O60: 0.0628 | P60: 0.063 | Q60: 0.0633 | R60: 0.0635 | S60: 0.0638 | T60: 0.0641 | U60: 0.0644 | V60: 0.0647 | W60: 0.0651 | X60: 0.0654 | Y60: 0.0658 | Z60: 0.0661 | AA60: 0.0665 | AB60: 0.0669 | AC60: 0.0673 | AD60: 0.0678 | AE60: 0.0682 | AF60: 0.0687 | AG60: 0.0692 | AH60: 0.0697 | AI60: 0.0702 | AJ60: 0.0708 | AK60: 0.0713 | AL60: 0.0719 | AM60: 0.0725 | AN60: 0.0731 | AO60: 0.0738 | AP60: 0.0744 | AQ60: 0.0751 | AR60: 0.0758 | AS60: 0.0765 | AT60: 0.0773 | AU60: 0.0781 | AV60: 0.0789 | AW60: 0.0798 | AX60: 0.0807 | AY60: 0.0816 | AZ60: 0.0825 | BA60: 0.0834 | BB60: 0.0844 | BC60: 0.0853 | BD60: 0.0862 | BE60: 0.0872 | BF60: 0.0881 | CF60: 74
A61: 75 | B61: 0.0605 | C61: 0.0606 | D61: 0.0607 | E61: 0.0609 | F61: 0.061 | G61: 0.0612 | H61: 0.0614 | I61: 0.0615 | J61: 0.0617 | K61: 0.0619 | L61: 0.0621 | M61: 0.0623 | N61: 0.0626 | O61: 0.0628 | P61: 0.063 | Q61: 0.0633 | R61: 0.0636 | S61: 0.0638 | T61: 0.0641 | U61: 0.0644 | V61: 0.0648 | W61: 0.0651 | X61: 0.0654 | Y61: 0.0658 | Z61: 0.0662 | AA61: 0.0666 | AB61: 0.067 | AC61: 0.0674 | AD61: 0.0678 | AE61: 0.0683 | AF61: 0.0688 | AG61: 0.0693 | AH61: 0.0698 | AI61: 0.0703 | AJ61: 0.0709 | AK61: 0.0715 | AL61: 0.0721 | AM61: 0.0727 | AN61: 0.0733 | AO61: 0.074 | AP61: 0.0746 | AQ61: 0.0754 | AR61: 0.0761 | AS61: 0.0768 | AT61: 0.0776 | AU61: 0.0785 | AV61: 0.0793 | AW61: 0.0802 | AX61: 0.0812 | AY61: 0.0821 | AZ61: 0.0831 | BA61: 0.084 | BB61: 0.085 | BC61: 0.086 | BD61: 0.087 | BE61: 0.088 | BF61: 0.089 | BG61: 0.09 | CF61: 75
A62: 76 | B62: 0.0605 | C62: 0.0606 | D62: 0.0607 | E62: 0.0609 | F62: 0.061 | G62: 0.0612 | H62: 0.0614 | I62: 0.0615 | J62: 0.0617 | K62: 0.0619 | L62: 0.0621 | M62: 0.0623 | N62: 0.0626 | O62: 0.0628 | P62: 0.063 | Q62: 0.0633 | R62: 0.0636 | S62: 0.0639 | T62: 0.0642 | U62: 0.0645 | V62: 0.0648 | W62: 0.0651 | X62: 0.0655 | Y62: 0.0658 | Z62: 0.0662 | AA62: 0.0666 | AB62: 0.067 | AC62: 0.0675 | AD62: 0.0679 | AE62: 0.0684 | AF62: 0.0689 | AG62: 0.0694 | AH62: 0.0699 | AI62: 0.0705 | AJ62: 0.071 | AK62: 0.0716 | AL62: 0.0722 | AM62: 0.0728 | AN62: 0.0735 | AO62: 0.0742 | AP62: 0.0749 | AQ62: 0.0756 | AR62: 0.0763 | AS62: 0.0771 | AT62: 0.078 | AU62: 0.0788 | AV62: 0.0797 | AW62: 0.0806 | AX62: 0.0816 | AY62: 0.0826 | AZ62: 0.0836 | BA62: 0.0846 | BB62: 0.0857 | BC62: 0.0867 | BD62: 0.0878 | BE62: 0.0889 | BF62: 0.0899 | BG62: 0.091 | BH62: 0.092 | CF62: 76
... 75 more rows

Sheet JL_50%_ Revised Dec 2019 (hidden)
C1: Kotak Lifetime Income (Option 5)- Annuity Rates Applicaple for Purchase Price Less than Rs.2,50,000 and for Annual Mode
C2: Age of Secondary Annuitant
C3: Age | D3: 18 | E3: =D3+1 -> 19 | F3: 20 | G3: 21 | H3: 22 | I3: 23 | J3: 24 | K3: 25 | L3: 26 | M3: 27 | N3: 28 | O3: 29 | P3: 30 | Q3: 31 | R3: 32 | S3: 33 | T3: 34 | U3: 35 | V3: 36 | W3: 37 | X3: 38 | Y3: 39 | Z3: 40 | AA3: 41 | AB3: 42 | AC3: 43 | AD3: 44 | AE3: 45 | AF3: 46 | AG3: 47 | AH3: 48 | AI3: 49 | AJ3: 50 | AK3: 51 | AL3: 52 | AM3: 53 | AN3: 54 | AO3: 55 | AP3: =AO3+1 -> 56 | AQ3: 57 | AR3: 58 | AS3: 59 | AT3: 60 | AU3: 61 | AV3: 62 | AW3: 63 | AX3: 64 | AY3: 65 | AZ3: 66 | BA3: 67 | BB3: 68 | BC3: 69 | BD3: 70 | BE3: 71 | BF3: 72 | BG3: 73 | BH3: 74 | BI3: 75 | BJ3: 76 | BK3: 77 | BL3: 78 | BM3: 79 | BN3: 80 | BO3: 81 | BP3: 82 | BQ3: =BP3+1 -> 83 | BR3: 84 | BS3: 85 | BT3: 86 | BU3: 87 | BV3: 88 | BW3: 89 | BX3: 90 | BY3: 91 | BZ3: 92 | CA3: 93 | CB3: 94 | CC3: 95 | CD3: 96 | CE3: 97 | CF3: 98 | CG3: 99 | CH3: Age
C4: 18 | D4: 0.0598 | E4: 0.0598 | F4: 0.0599 | G4: 0.0599 | H4: 0.0599 | I4: 0.0599 | J4: 0.0599 | K4: 0.06 | L4: 0.06 | M4: 0.06 | N4: 0.06 | O4: 0.06 | P4: 0.0601 | Q4: 0.0601 | R4: 0.0601 | S4: 0.0601 | T4: 0.0601 | U4: 0.0602 | V4: 0.0602 | W4: 0.0602 | X4: 0.0602 | Y4: 0.0602 | Z4: 0.0602 | AA4: 0.0603 | AB4: 0.0603 | AC4: 0.0603 | AD4: 0.0603 | AE4: 0.0603 | AF4: 0.0603 | AG4: 0.0603 | AH4: 0.0603 | AI4: 0.0604 | AJ4: 0.0604 | AK4: 0.0604 | AL4: 0.0604 | AM4: 0.0604 | AN4: 0.0604 | AO4: 0.0604 | AP4: 0.0604 | AQ4: 0.0604 | AR4: 0.0604 | AS4: 0.0604 | AT4: 0.0605 | AU4: 0.0605 | AV4: 0.0605 | AW4: 0.0605 | AX4: 0.0605 | AY4: 0.0605 | AZ4: 0.0605 | BA4: 0.0605 | BB4: 0.0605 | BC4: 0.0605 | BD4: 0.0605 | BE4: 0.0605 | BF4: 0.0605 | BG4: 0.0605 | BH4: 0.0605 | BI4: 0.0605 | BJ4: 0.0606 | BK4: 0.0606 | BL4: 0.0606 | BM4: 0.0606 | BN4: 0.0606 | BO4: 0.0606 | BP4: 0.0606 | BQ4: 0.0606 | BR4: 0.0606 | BS4: 0.0606 | BT4: 0.0606 | BU4: 0.0606 | BV4: 0.0606 | BW4: 0.0606 | BX4: 0.0606 | BY4: 0.0606 | BZ4: 0.0606 | CA4: 0.0606 | CB4: 0.0606 | CC4: 0.0606 | CD4: 0.0606 | CE4: 0.0606 | CF4: 0.0606 | CG4: 0.0606 | CH4: 18
C5: =C4+1 -> 19 | D5: 0.0599 | E5: 0.0599 | F5: 0.0599 | G5: 0.06 | H5: 0.06 | I5: 0.06 | J5: 0.06 | K5: 0.0601 | L5: 0.0601 | M5: 0.0601 | N5: 0.0601 | O5: 0.0601 | P5: 0.0602 | Q5: 0.0602 | R5: 0.0602 | S5: 0.0602 | T5: 0.0602 | U5: 0.0603 | V5: 0.0603 | W5: 0.0603 | X5: 0.0603 | Y5: 0.0603 | Z5: 0.0604 | AA5: 0.0604 | AB5: 0.0604 | AC5: 0.0604 | AD5: 0.0604 | AE5: 0.0604 | AF5: 0.0604 | AG5: 0.0605 | AH5: 0.0605 | AI5: 0.0605 | AJ5: 0.0605 | AK5: 0.0605 | AL5: 0.0605 | AM5: 0.0605 | AN5: 0.0605 | AO5: 0.0605 | AP5: 0.0606 | AQ5: 0.0606 | AR5: 0.0606 | AS5: 0.0606 | AT5: 0.0606 | AU5: 0.0606 | AV5: 0.0606 | AW5: 0.0606 | AX5: 0.0606 | AY5: 0.0606 | AZ5: 0.0606 | BA5: 0.0606 | BB5: 0.0606 | BC5: 0.0606 | BD5: 0.0607 | BE5: 0.0607 | BF5: 0.0607 | BG5: 0.0607 | BH5: 0.0607 | BI5: 0.0607 | BJ5: 0.0607 | BK5: 0.0607 | BL5: 0.0607 | BM5: 0.0607 | BN5: 0.0607 | BO5: 0.0607 | BP5: 0.0607 | BQ5: 0.0607 | BR5: 0.0607 | BS5: 0.0607 | BT5: 0.0607 | BU5: 0.0607 | BV5: 0.0607 | BW5: 0.0607 | BX5: 0.0607 | BY5: 0.0607 | BZ5: 0.0607 | CA5: 0.0607 | CB5: 0.0607 | CC5: 0.0607 | CD5: 0.0607 | CE5: 0.0607 | CF5: 0.0607 | CG5: 0.0607 | CH5: =CH4+1 -> 19
C6: 20 | D6: 0.06 | E6: 0.06 | F6: 0.06 | G6: 0.0601 | H6: 0.0601 | I6: 0.0601 | J6: 0.0601 | K6: 0.0602 | L6: 0.0602 | M6: 0.0602 | N6: 0.0602 | O6: 0.0602 | P6: 0.0603 | Q6: 0.0603 | R6: 0.0603 | S6: 0.0603 | T6: 0.0604 | U6: 0.0604 | V6: 0.0604 | W6: 0.0604 | X6: 0.0604 | Y6: 0.0605 | Z6: 0.0605 | AA6: 0.0605 | AB6: 0.0605 | AC6: 0.0605 | AD6: 0.0605 | AE6: 0.0606 | AF6: 0.0606 | AG6: 0.0606 | AH6: 0.0606 | AI6: 0.0606 | AJ6: 0.0606 | AK6: 0.0606 | AL6: 0.0606 | AM6: 0.0607 | AN6: 0.0607 | AO6: 0.0607 | AP6: 0.0607 | AQ6: 0.0607 | AR6: 0.0607 | AS6: 0.0607 | AT6: 0.0607 | AU6: 0.0607 | AV6: 0.0607 | AW6: 0.0607 | AX6: 0.0607 | AY6: 0.0608 | AZ6: 0.0608 | BA6: 0.0608 | BB6: 0.0608 | BC6: 0.0608 | BD6: 0.0608 | BE6: 0.0608 | BF6: 0.0608 | BG6: 0.0608 | BH6: 0.0608 | BI6: 0.0608 | BJ6: 0.0608 | BK6: 0.0608 | BL6: 0.0608 | BM6: 0.0608 | BN6: 0.0608 | BO6: 0.0608 | BP6: 0.0608 | BQ6: 0.0609 | BR6: 0.0609 | BS6: 0.0609 | BT6: 0.0609 | BU6: 0.0609 | BV6: 0.0609 | BW6: 0.0609 | BX6: 0.0609 | BY6: 0.0609 | BZ6: 0.0609 | CA6: 0.0609 | CB6: 0.0609 | CC6: 0.0609 | CD6: 0.0609 | CE6: 0.0609 | CF6: 0.0609 | CG6: 0.0609 | CH6: 20
B7: Age of Primary Annuitant | C7: 21 | D7: 0.0601 | E7: 0.0601 | F7: 0.0601 | G7: 0.0601 | H7: 0.0602 | I7: 0.0602 | J7: 0.0602 | K7: 0.0603 | L7: 0.0603 | M7: 0.0603 | N7: 0.0603 | O7: 0.0604 | P7: 0.0604 | Q7: 0.0604 | R7: 0.0604 | S7: 0.0604 | T7: 0.0605 | U7: 0.0605 | V7: 0.0605 | W7: 0.0605 | X7: 0.0606 | Y7: 0.0606 | Z7: 0.0606 | AA7: 0.0606 | AB7: 0.0606 | AC7: 0.0606 | AD7: 0.0607 | AE7: 0.0607 | AF7: 0.0607 | AG7: 0.0607 | AH7: 0.0607 | AI7: 0.0607 | AJ7: 0.0608 | AK7: 0.0608 | AL7: 0.0608 | AM7: 0.0608 | AN7: 0.0608 | AO7: 0.0608 | AP7: 0.0608 | AQ7: 0.0608 | AR7: 0.0608 | AS7: 0.0609 | AT7: 0.0609 | AU7: 0.0609 | AV7: 0.0609 | AW7: 0.0609 | AX7: 0.0609 | AY7: 0.0609 | AZ7: 0.0609 | BA7: 0.0609 | BB7: 0.0609 | BC7: 0.0609 | BD7: 0.0609 | BE7: 0.0609 | BF7: 0.061 | BG7: 0.061 | BH7: 0.061 | BI7: 0.061 | BJ7: 0.061 | BK7: 0.061 | BL7: 0.061 | BM7: 0.061 | BN7: 0.061 | BO7: 0.061 | BP7: 0.061 | BQ7: 0.061 | BR7: 0.061 | BS7: 0.061 | BT7: 0.061 | BU7: 0.061 | BV7: 0.061 | BW7: 0.061 | BX7: 0.061 | BY7: 0.061 | BZ7: 0.061 | CA7: 0.061 | CB7: 0.061 | CC7: 0.061 | CD7: 0.061 | CE7: 0.061 | CF7: 0.061 | CG7: 0.061 | CH7: 21
C8: 22 | D8: 0.0602 | E8: 0.0602 | F8: 0.0602 | G8: 0.0602 | H8: 0.0603 | I8: 0.0603 | J8: 0.0603 | K8: 0.0604 | L8: 0.0604 | M8: 0.0604 | N8: 0.0604 | O8: 0.0605 | P8: 0.0605 | Q8: 0.0605 | R8: 0.0605 | S8: 0.0606 | T8: 0.0606 | U8: 0.0606 | V8: 0.0606 | W8: 0.0607 | X8: 0.0607 | Y8: 0.0607 | Z8: 0.0607 | AA8: 0.0607 | AB8: 0.0608 | AC8: 0.0608 | AD8: 0.0608 | AE8: 0.0608 | AF8: 0.0608 | AG8: 0.0608 | AH8: 0.0609 | AI8: 0.0609 | AJ8: 0.0609 | AK8: 0.0609 | AL8: 0.0609 | AM8: 0.0609 | AN8: 0.0609 | AO8: 0.061 | AP8: 0.061 | AQ8: 0.061 | AR8: 0.061 | AS8: 0.061 | AT8: 0.061 | AU8: 0.061 | AV8: 0.061 | AW8: 0.061 | AX8: 0.061 | AY8: 0.0611 | AZ8: 0.0611 | BA8: 0.0611 | BB8: 0.0611 | BC8: 0.0611 | BD8: 0.0611 | BE8: 0.0611 | BF8: 0.0611 | BG8: 0.0611 | BH8: 0.0611 | BI8: 0.0611 | BJ8: 0.0611 | BK8: 0.0611 | BL8: 0.0611 | BM8: 0.0611 | BN8: 0.0611 | BO8: 0.0611 | BP8: 0.0612 | BQ8: 0.0612 | BR8: 0.0612 | BS8: 0.0612 | BT8: 0.0612 | BU8: 0.0612 | BV8: 0.0612 | BW8: 0.0612 | BX8: 0.0612 | BY8: 0.0612 | BZ8: 0.0612 | CA8: 0.0612 | CB8: 0.0612 | CC8: 0.0612 | CD8: 0.0612 | CE8: 0.0612 | CF8: 0.0612 | CG8: 0.0612 | CH8: 22
C9: 23 | D9: 0.0603 | E9: 0.0603 | F9: 0.0603 | G9: 0.0603 | H9: 0.0604 | I9: 0.0604 | J9: 0.0604 | K9: 0.0605 | L9: 0.0605 | M9: 0.0605 | N9: 0.0605 | O9: 0.0606 | P9: 0.0606 | Q9: 0.0606 | R9: 0.0607 | S9: 0.0607 | T9: 0.0607 | U9: 0.0607 | V9: 0.0608 | W9: 0.0608 | X9: 0.0608 | Y9: 0.0608 | Z9: 0.0609 | AA9: 0.0609 | AB9: 0.0609 | AC9: 0.0609 | AD9: 0.0609 | AE9: 0.061 | AF9: 0.061 | AG9: 0.061 | AH9: 0.061 | AI9: 0.061 | AJ9: 0.061 | AK9: 0.0611 | AL9: 0.0611 | AM9: 0.0611 | AN9: 0.0611 | AO9: 0.0611 | AP9: 0.0611 | AQ9: 0.0611 | AR9: 0.0611 | AS9: 0.0612 | AT9: 0.0612 | AU9: 0.0612 | AV9: 0.0612 | AW9: 0.0612 | AX9: 0.0612 | AY9: 0.0612 | AZ9: 0.0612 | BA9: 0.0612 | BB9: 0.0612 | BC9: 0.0612 | BD9: 0.0613 | BE9: 0.0613 | BF9: 0.0613 | BG9: 0.0613 | BH9: 0.0613 | BI9: 0.0613 | BJ9: 0.0613 | BK9: 0.0613 | BL9: 0.0613 | BM9: 0.0613 | BN9: 0.0613 | BO9: 0.0613 | BP9: 0.0613 | BQ9: 0.0613 | BR9: 0.0613 | BS9: 0.0613 | BT9: 0.0613 | BU9: 0.0613 | BV9: 0.0613 | BW9: 0.0613 | BX9: 0.0613 | BY9: 0.0613 | BZ9: 0.0613 | CA9: 0.0613 | CB9: 0.0613 | CC9: 0.0614 | CD9: 0.0614 | CE9: 0.0614 | CF9: 0.0614 | CG9: 0.0614 | CH9: 23
C10: 24 | D10: 0.0604 | E10: 0.0604 | F10: 0.0604 | G10: 0.0605 | H10: 0.0605 | I10: 0.0605 | J10: 0.0605 | K10: 0.0606 | L10: 0.0606 | M10: 0.0606 | N10: 0.0607 | O10: 0.0607 | P10: 0.0607 | Q10: 0.0608 | R10: 0.0608 | S10: 0.0608 | T10: 0.0608 | U10: 0.0609 | V10: 0.0609 | W10: 0.0609 | X10: 0.0609 | Y10: 0.061 | Z10: 0.061 | AA10: 0.061 | AB10: 0.061 | AC10: 0.0611 | AD10: 0.0611 | AE10: 0.0611 | AF10: 0.0611 | AG10: 0.0611 | AH10: 0.0612 | AI10: 0.0612 | AJ10: 0.0612 | AK10: 0.0612 | AL10: 0.0612 | AM10: 0.0612 | AN10: 0.0613 | AO10: 0.0613 | AP10: 0.0613 | AQ10: 0.0613 | AR10: 0.0613 | AS10: 0.0613 | AT10: 0.0613 | AU10: 0.0613 | AV10: 0.0613 | AW10: 0.0614 | AX10: 0.0614 | AY10: 0.0614 | AZ10: 0.0614 | BA10: 0.0614 | BB10: 0.0614 | BC10: 0.0614 | BD10: 0.0614 | BE10: 0.0614 | BF10: 0.0614 | BG10: 0.0614 | BH10: 0.0614 | BI10: 0.0615 | BJ10: 0.0615 | BK10: 0.0615 | BL10: 0.0615 | BM10: 0.0615 | BN10: 0.0615 | BO10: 0.0615 | BP10: 0.0615 | BQ10: 0.0615 | BR10: 0.0615 | BS10: 0.0615 | BT10: 0.0615 | BU10: 0.0615 | BV10: 0.0615 | BW10: 0.0615 | BX10: 0.0615 | BY10: 0.0615 | BZ10: 0.0615 | CA10: 0.0615 | CB10: 0.0615 | CC10: 0.0615 | CD10: 0.0615 | CE10: 0.0615 | CF10: 0.0615 | CG10: 0.0615 | CH10: 24
C11: 25 | D11: 0.0605 | E11: 0.0605 | F11: 0.0605 | G11: 0.0606 | H11: 0.0606 | I11: 0.0606 | J11: 0.0607 | K11: 0.0607 | L11: 0.0607 | M11: 0.0608 | N11: 0.0608 | O11: 0.0608 | P11: 0.0609 | Q11: 0.0609 | R11: 0.0609 | S11: 0.0609 | T11: 0.061 | U11: 0.061 | V11: 0.061 | W11: 0.0611 | X11: 0.0611 | Y11: 0.0611 | Z11: 0.0611 | AA11: 0.0612 | AB11: 0.0612 | AC11: 0.0612 | AD11: 0.0612 | AE11: 0.0613 | AF11: 0.0613 | AG11: 0.0613 | AH11: 0.0613 | AI11: 0.0613 | AJ11: 0.0614 | AK11: 0.0614 | AL11: 0.0614 | AM11: 0.0614 | AN11: 0.0614 | AO11: 0.0614 | AP11: 0.0614 | AQ11: 0.0615 | AR11: 0.0615 | AS11: 0.0615 | AT11: 0.0615 | AU11: 0.0615 | AV11: 0.0615 | AW11: 0.0615 | AX11: 0.0615 | AY11: 0.0616 | AZ11: 0.0616 | BA11: 0.0616 | BB11: 0.0616 | BC11: 0.0616 | BD11: 0.0616 | BE11: 0.0616 | BF11: 0.0616 | BG11: 0.0616 | BH11: 0.0616 | BI11: 0.0616 | BJ11: 0.0616 | BK11: 0.0616 | BL11: 0.0617 | BM11: 0.0617 | BN11: 0.0617 | BO11: 0.0617 | BP11: 0.0617 | BQ11: 0.0617 | BR11: 0.0617 | BS11: 0.0617 | BT11: 0.0617 | BU11: 0.0617 | BV11: 0.0617 | BW11: 0.0617 | BX11: 0.0617 | BY11: 0.0617 | BZ11: 0.0617 | CA11: 0.0617 | CB11: 0.0617 | CC11: 0.0617 | CD11: 0.0617 | CE11: 0.0617 | CF11: 0.0617 | CG11: 0.0617 | CH11: 25
C12: 26 | D12: 0.0606 | E12: 0.0606 | F12: 0.0606 | G12: 0.0607 | H12: 0.0607 | I12: 0.0607 | J12: 0.0608 | K12: 0.0608 | L12: 0.0608 | M12: 0.0609 | N12: 0.0609 | O12: 0.0609 | P12: 0.061 | Q12: 0.061 | R12: 0.061 | S12: 0.0611 | T12: 0.0611 | U12: 0.0611 | V12: 0.0612 | W12: 0.0612 | X12: 0.0612 | Y12: 0.0613 | Z12: 0.0613 | AA12: 0.0613 | AB12: 0.0613 | AC12: 0.0614 | AD12: 0.0614 | AE12: 0.0614 | AF12: 0.0614 | AG12: 0.0615 | AH12: 0.0615 | AI12: 0.0615 | AJ12: 0.0615 | AK12: 0.0615 | AL12: 0.0616 | AM12: 0.0616 | AN12: 0.0616 | AO12: 0.0616 | AP12: 0.0616 | AQ12: 0.0616 | AR12: 0.0616 | AS12: 0.0617 | AT12: 0.0617 | AU12: 0.0617 | AV12: 0.0617 | AW12: 0.0617 | AX12: 0.0617 | AY12: 0.0617 | AZ12: 0.0617 | BA12: 0.0618 | BB12: 0.0618 | BC12: 0.0618 | BD12: 0.0618 | BE12: 0.0618 | BF12: 0.0618 | BG12: 0.0618 | BH12: 0.0618 | BI12: 0.0618 | BJ12: 0.0618 | BK12: 0.0618 | BL12: 0.0618 | BM12: 0.0618 | BN12: 0.0618 | BO12: 0.0619 | BP12: 0.0619 | BQ12: 0.0619 | BR12: 0.0619 | BS12: 0.0619 | BT12: 0.0619 | BU12: 0.0619 | BV12: 0.0619 | BW12: 0.0619 | BX12: 0.0619 | BY12: 0.0619 | BZ12: 0.0619 | CA12: 0.0619 | CB12: 0.0619 | CC12: 0.0619 | CD12: 0.0619 | CE12: 0.0619 | CF12: 0.0619 | CG12: 0.0619 | CH12: 26
C13: 27 | D13: 0.0607 | E13: 0.0607 | F13: 0.0608 | G13: 0.0608 | H13: 0.0608 | I13: 0.0609 | J13: 0.0609 | K13: 0.0609 | L13: 0.061 | M13: 0.061 | N13: 0.061 | O13: 0.0611 | P13: 0.0611 | Q13: 0.0612 | R13: 0.0612 | S13: 0.0612 | T13: 0.0613 | U13: 0.0613 | V13: 0.0613 | W13: 0.0614 | X13: 0.0614 | Y13: 0.0614 | Z13: 0.0614 | AA13: 0.0615 | AB13: 0.0615 | AC13: 0.0615 | AD13: 0.0616 | AE13: 0.0616 | AF13: 0.0616 | AG13: 0.0616 | AH13: 0.0617 | AI13: 0.0617 | AJ13: 0.0617 | AK13: 0.0617 | AL13: 0.0617 | AM13: 0.0618 | AN13: 0.0618 | AO13: 0.0618 | AP13: 0.0618 | AQ13: 0.0618 | AR13: 0.0618 | AS13: 0.0618 | AT13: 0.0619 | AU13: 0.0619 | AV13: 0.0619 | AW13: 0.0619 | AX13: 0.0619 | AY13: 0.0619 | AZ13: 0.0619 | BA13: 0.0619 | BB13: 0.062 | BC13: 0.062 | BD13: 0.062 | BE13: 0.062 | BF13: 0.062 | BG13: 0.062 | BH13: 0.062 | BI13: 0.062 | BJ13: 0.062 | BK13: 0.062 | BL13: 0.062 | BM13: 0.062 | BN13: 0.062 | BO13: 0.0621 | BP13: 0.0621 | BQ13: 0.0621 | BR13: 0.0621 | BS13: 0.0621 | BT13: 0.0621 | BU13: 0.0621 | BV13: 0.0621 | BW13: 0.0621 | BX13: 0.0621 | BY13: 0.0621 | BZ13: 0.0621 | CA13: 0.0621 | CB13: 0.0621 | CC13: 0.0621 | CD13: 0.0621 | CE13: 0.0621 | CF13: 0.0621 | CG13: 0.0621 | CH13: 27
C14: 28 | D14: 0.0608 | E14: 0.0608 | F14: 0.0609 | G14: 0.0609 | H14: 0.0609 | I14: 0.061 | J14: 0.061 | K14: 0.0611 | L14: 0.0611 | M14: 0.0611 | N14: 0.0612 | O14: 0.0612 | P14: 0.0613 | Q14: 0.0613 | R14: 0.0613 | S14: 0.0614 | T14: 0.0614 | U14: 0.0614 | V14: 0.0615 | W14: 0.0615 | X14: 0.0615 | Y14: 0.0616 | Z14: 0.0616 | AA14: 0.0616 | AB14: 0.0617 | AC14: 0.0617 | AD14: 0.0617 | AE14: 0.0618 | AF14: 0.0618 | AG14: 0.0618 | AH14: 0.0618 | AI14: 0.0619 | AJ14: 0.0619 | AK14: 0.0619 | AL14: 0.0619 | AM14: 0.0619 | AN14: 0.062 | AO14: 0.062 | AP14: 0.062 | AQ14: 0.062 | AR14: 0.062 | AS14: 0.062 | AT14: 0.0621 | AU14: 0.0621 | AV14: 0.0621 | AW14: 0.0621 | AX14: 0.0621 | AY14: 0.0621 | AZ14: 0.0621 | BA14: 0.0622 | BB14: 0.0622 | BC14: 0.0622 | BD14: 0.0622 | BE14: 0.0622 | BF14: 0.0622 | BG14: 0.0622 | BH14: 0.0622 | BI14: 0.0622 | BJ14: 0.0622 | BK14: 0.0622 | BL14: 0.0622 | BM14: 0.0623 | BN14: 0.0623 | BO14: 0.0623 | BP14: 0.0623 | BQ14: 0.0623 | BR14: 0.0623 | BS14: 0.0623 | BT14: 0.0623 | BU14: 0.0623 | BV14: 0.0623 | BW14: 0.0623 | BX14: 0.0623 | BY14: 0.0623 | BZ14: 0.0623 | CA14: 0.0623 | CB14: 0.0623 | CC14: 0.0623 | CD14: 0.0623 | CE14: 0.0623 | CF14: 0.0623 | CG14: 0.0623 | CH14: 28
C15: 29 | D15: 0.0609 | E15: 0.061 | F15: 0.061 | G15: 0.061 | H15: 0.0611 | I15: 0.0611 | J15: 0.0612 | K15: 0.0612 | L15: 0.0612 | M15: 0.0613 | N15: 0.0613 | O15: 0.0614 | P15: 0.0614 | Q15: 0.0614 | R15: 0.0615 | S15: 0.0615 | T15: 0.0616 | U15: 0.0616 | V15: 0.0616 | W15: 0.0617 | X15: 0.0617 | Y15: 0.0617 | Z15: 0.0618 | AA15: 0.0618 | AB15: 0.0618 | AC15: 0.0619 | AD15: 0.0619 | AE15: 0.0619 | AF15: 0.062 | AG15: 0.062 | AH15: 0.062 | AI15: 0.062 | AJ15: 0.0621 | AK15: 0.0621 | AL15: 0.0621 | AM15: 0.0621 | AN15: 0.0622 | AO15: 0.0622 | AP15: 0.0622 | AQ15: 0.0622 | AR15: 0.0622 | AS15: 0.0622 | AT15: 0.0623 | AU15: 0.0623 | AV15: 0.0623 | AW15: 0.0623 | AX15: 0.0623 | AY15: 0.0623 | AZ15: 0.0623 | BA15: 0.0624 | BB15: 0.0624 | BC15: 0.0624 | BD15: 0.0624 | BE15: 0.0624 | BF15: 0.0624 | BG15: 0.0624 | BH15: 0.0624 | BI15: 0.0624 | BJ15: 0.0624 | BK15: 0.0625 | BL15: 0.0625 | BM15: 0.0625 | BN15: 0.0625 | BO15: 0.0625 | BP15: 0.0625 | BQ15: 0.0625 | BR15: 0.0625 | BS15: 0.0625 | BT15: 0.0625 | BU15: 0.0625 | BV15: 0.0625 | BW15: 0.0625 | BX15: 0.0625 | BY15: 0.0625 | BZ15: 0.0625 | CA15: 0.0625 | CB15: 0.0625 | CC15: 0.0625 | CD15: 0.0625 | CE15: 0.0625 | CF15: 0.0625 | CG15: 0.0625 | CH15: 29
C16: 30 | D16: 0.061 | E16: 0.0611 | F16: 0.0611 | G16: 0.0612 | H16: 0.0612 | I16: 0.0612 | J16: 0.0613 | K16: 0.0613 | L16: 0.0614 | M16: 0.0614 | N16: 0.0615 | O16: 0.0615 | P16: 0.0615 | Q16: 0.0616 | R16: 0.0616 | S16: 0.0617 | T16: 0.0617 | U16: 0.0618 | V16: 0.0618 | W16: 0.0618 | X16: 0.0619 | Y16: 0.0619 | Z16: 0.0619 | AA16: 0.062 | AB16: 0.062 | AC16: 0.0621 | AD16: 0.0621 | AE16: 0.0621 | AF16: 0.0621 | AG16: 0.0622 | AH16: 0.0622 | AI16: 0.0622 | AJ16: 0.0623 | AK16: 0.0623 | AL16: 0.0623 | AM16: 0.0623 | AN16: 0.0624 | AO16: 0.0624 | AP16: 0.0624 | AQ16: 0.0624 | AR16: 0.0624 | AS16: 0.0625 | AT16: 0.0625 | AU16: 0.0625 | AV16: 0.0625 | AW16: 0.0625 | AX16: 0.0625 | AY16: 0.0626 | AZ16: 0.0626 | BA16: 0.0626 | BB16: 0.0626 | BC16: 0.0626 | BD16: 0.0626 | BE16: 0.0626 | BF16: 0.0626 | BG16: 0.0627 | BH16: 0.0627 | BI16: 0.0627 | BJ16: 0.0627 | BK16: 0.0627 | BL16: 0.0627 | BM16: 0.0627 | BN16: 0.0627 | BO16: 0.0627 | BP16: 0.0627 | BQ16: 0.0627 | BR16: 0.0627 | BS16: 0.0627 | BT16: 0.0627 | BU16: 0.0627 | BV16: 0.0627 | BW16: 0.0627 | BX16: 0.0628 | BY16: 0.0628 | BZ16: 0.0628 | CA16: 0.0628 | CB16: 0.0628 | CC16: 0.0628 | CD16: 0.0628 | CE16: 0.0628 | CF16: 0.0628 | CG16: 0.0628 | CH16: 30
C17: 31 | D17: 0.0612 | E17: 0.0612 | F17: 0.0613 | G17: 0.0613 | H17: 0.0613 | I17: 0.0614 | J17: 0.0614 | K17: 0.0615 | L17: 0.0615 | M17: 0.0616 | N17: 0.0616 | O17: 0.0617 | P17: 0.0617 | Q17: 0.0617 | R17: 0.0618 | S17: 0.0618 | T17: 0.0619 | U17: 0.0619 | V17: 0.062 | W17: 0.062 | X17: 0.0621 | Y17: 0.0621 | Z17: 0.0621 | AA17: 0.0622 | AB17: 0.0622 | AC17: 0.0622 | AD17: 0.0623 | AE17: 0.0623 | AF17: 0.0623 | AG17: 0.0624 | AH17: 0.0624 | AI17: 0.0624 | AJ17: 0.0625 | AK17: 0.0625 | AL17: 0.0625 | AM17: 0.0625 | AN17: 0.0626 | AO17: 0.0626 | AP17: 0.0626 | AQ17: 0.0626 | AR17: 0.0627 | AS17: 0.0627 | AT17: 0.0627 | AU17: 0.0627 | AV17: 0.0627 | AW17: 0.0628 | AX17: 0.0628 | AY17: 0.0628 | AZ17: 0.0628 | BA17: 0.0628 | BB17: 0.0628 | BC17: 0.0628 | BD17: 0.0629 | BE17: 0.0629 | BF17: 0.0629 | BG17: 0.0629 | BH17: 0.0629 | BI17: 0.0629 | BJ17: 0.0629 | BK17: 0.0629 | BL17: 0.0629 | BM17: 0.0629 | BN17: 0.063 | BO17: 0.063 | BP17: 0.063 | BQ17: 0.063 | BR17: 0.063 | BS17: 0.063 | BT17: 0.063 | BU17: 0.063 | BV17: 0.063 | BW17: 0.063 | BX17: 0.063 | BY17: 0.063 | BZ17: 0.063 | CA17: 0.063 | CB17: 0.063 | CC17: 0.063 | CD17: 0.063 | CE17: 0.063 | CF17: 0.063 | CG17: 0.063 | CH17: 31
C18: 32 | D18: 0.0613 | E18: 0.0614 | F18: 0.0614 | G18: 0.0614 | H18: 0.0615 | I18: 0.0615 | J18: 0.0616 | K18: 0.0616 | L18: 0.0617 | M18: 0.0617 | N18: 0.0618 | O18: 0.0618 | P18: 0.0619 | Q18: 0.0619 | R18: 0.062 | S18: 0.062 | T18: 0.0621 | U18: 0.0621 | V18: 0.0621 | W18: 0.0622 | X18: 0.0622 | Y18: 0.0623 | Z18: 0.0623 | AA18: 0.0624 | AB18: 0.0624 | AC18: 0.0624 | AD18: 0.0625 | AE18: 0.0625 | AF18: 0.0625 | AG18: 0.0626 | AH18: 0.0626 | AI18: 0.0626 | AJ18: 0.0627 | AK18: 0.0627 | AL18: 0.0627 | AM18: 0.0628 | AN18: 0.0628 | AO18: 0.0628 | AP18: 0.0628 | AQ18: 0.0629 | AR18: 0.0629 | AS18: 0.0629 | AT18: 0.0629 | AU18: 0.063 | AV18: 0.063 | AW18: 0.063 | AX18: 0.063 | AY18: 0.063 | AZ18: 0.063 | BA18: 0.0631 | BB18: 0.0631 | BC18: 0.0631 | BD18: 0.0631 | BE18: 0.0631 | BF18: 0.0631 | BG18: 0.0631 | BH18: 0.0632 | BI18: 0.0632 | BJ18: 0.0632 | BK18: 0.0632 | BL18: 0.0632 | BM18: 0.0632 | BN18: 0.0632 | BO18: 0.0632 | BP18: 0.0632 | BQ18: 0.0632 | BR18: 0.0632 | BS18: 0.0632 | BT18: 0.0632 | BU18: 0.0632 | BV18: 0.0633 | BW18: 0.0633 | BX18: 0.0633 | BY18: 0.0633 | BZ18: 0.0633 | CA18: 0.0633 | CB18: 0.0633 | CC18: 0.0633 | CD18: 0.0633 | CE18: 0.0633 | CF18: 0.0633 | CG18: 0.0633 | CH18: 32
C19: 33 | D19: 0.0615 | E19: 0.0615 | F19: 0.0615 | G19: 0.0616 | H19: 0.0616 | I19: 0.0617 | J19: 0.0617 | K19: 0.0618 | L19: 0.0618 | M19: 0.0619 | N19: 0.0619 | O19: 0.062 | P19: 0.062 | Q19: 0.0621 | R19: 0.0621 | S19: 0.0622 | T19: 0.0622 | U19: 0.0623 | V19: 0.0623 | W19: 0.0624 | X19: 0.0624 | Y19: 0.0625 | Z19: 0.0625 | AA19: 0.0626 | AB19: 0.0626 | AC19: 0.0626 | AD19: 0.0627 | AE19: 0.0627 | AF19: 0.0628 | AG19: 0.0628 | AH19: 0.0628 | AI19: 0.0629 | AJ19: 0.0629 | AK19: 0.0629 | AL19: 0.063 | AM19: 0.063 | AN19: 0.063 | AO19: 0.0631 | AP19: 0.0631 | AQ19: 0.0631 | AR19: 0.0631 | AS19: 0.0632 | AT19: 0.0632 | AU19: 0.0632 | AV19: 0.0632 | AW19: 0.0632 | AX19: 0.0633 | AY19: 0.0633 | AZ19: 0.0633 | BA19: 0.0633 | BB19: 0.0633 | BC19: 0.0634 | BD19: 0.0634 | BE19: 0.0634 | BF19: 0.0634 | BG19: 0.0634 | BH19: 0.0634 | BI19: 0.0634 | BJ19: 0.0634 | BK19: 0.0635 | BL19: 0.0635 | BM19: 0.0635 | BN19: 0.0635 | BO19: 0.0635 | BP19: 0.0635 | BQ19: 0.0635 | BR19: 0.0635 | BS19: 0.0635 | BT19: 0.0635 | BU19: 0.0635 | BV19: 0.0635 | BW19: 0.0635 | BX19: 0.0635 | BY19: 0.0635 | BZ19: 0.0635 | CA19: 0.0635 | CB19: 0.0635 | CC19: 0.0635 | CD19: 0.0636 | CE19: 0.0636 | CF19: 0.0636 | CG19: 0.0636 | CH19: 33
C20: 34 | D20: 0.0616 | E20: 0.0617 | F20: 0.0617 | G20: 0.0617 | H20: 0.0618 | I20: 0.0618 | J20: 0.0619 | K20: 0.0619 | L20: 0.062 | M20: 0.062 | N20: 0.0621 | O20: 0.0622 | P20: 0.0622 | Q20: 0.0623 | R20: 0.0623 | S20: 0.0624 | T20: 0.0624 | U20: 0.0625 | V20: 0.0625 | W20: 0.0626 | X20: 0.0626 | Y20: 0.0627 | Z20: 0.0627 | AA20: 0.0628 | AB20: 0.0628 | AC20: 0.0629 | AD20: 0.0629 | AE20: 0.0629 | AF20: 0.063 | AG20: 0.063 | AH20: 0.0631 | AI20: 0.0631 | AJ20: 0.0631 | AK20: 0.0632 | AL20: 0.0632 | AM20: 0.0632 | AN20: 0.0633 | AO20: 0.0633 | AP20: 0.0633 | AQ20: 0.0634 | AR20: 0.0634 | AS20: 0.0634 | AT20: 0.0634 | AU20: 0.0635 | AV20: 0.0635 | AW20: 0.0635 | AX20: 0.0635 | AY20: 0.0636 | AZ20: 0.0636 | BA20: 0.0636 | BB20: 0.0636 | BC20: 0.0636 | BD20: 0.0636 | BE20: 0.0637 | BF20: 0.0637 | BG20: 0.0637 | BH20: 0.0637 | BI20: 0.0637 | BJ20: 0.0637 | BK20: 0.0637 | BL20: 0.0637 | BM20: 0.0638 | BN20: 0.0638 | BO20: 0.0638 | BP20: 0.0638 | BQ20: 0.0638 | BR20: 0.0638 | BS20: 0.0638 | BT20: 0.0638 | BU20: 0.0638 | BV20: 0.0638 | BW20: 0.0638 | BX20: 0.0638 | BY20: 0.0638 | BZ20: 0.0638 | CA20: 0.0638 | CB20: 0.0638 | CC20: 0.0638 | CD20: 0.0638 | CE20: 0.0638 | CF20: 0.0638 | CG20: 0.0639 | CH20: 34
C21: 35 | D21: 0.0618 | E21: 0.0618 | F21: 0.0619 | G21: 0.0619 | H21: 0.062 | I21: 0.062 | J21: 0.0621 | K21: 0.0621 | L21: 0.0622 | M21: 0.0622 | N21: 0.0623 | O21: 0.0623 | P21: 0.0624 | Q21: 0.0624 | R21: 0.0625 | S21: 0.0626 | T21: 0.0626 | U21: 0.0627 | V21: 0.0627 | W21: 0.0628 | X21: 0.0628 | Y21: 0.0629 | Z21: 0.0629 | AA21: 0.063 | AB21: 0.063 | AC21: 0.0631 | AD21: 0.0631 | AE21: 0.0632 | AF21: 0.0632 | AG21: 0.0633 | AH21: 0.0633 | AI21: 0.0633 | AJ21: 0.0634 | AK21: 0.0634 | AL21: 0.0635 | AM21: 0.0635 | AN21: 0.0635 | AO21: 0.0636 | AP21: 0.0636 | AQ21: 0.0636 | AR21: 0.0637 | AS21: 0.0637 | AT21: 0.0637 | AU21: 0.0637 | AV21: 0.0638 | AW21: 0.0638 | AX21: 0.0638 | AY21: 0.0638 | AZ21: 0.0639 | BA21: 0.0639 | BB21: 0.0639 | BC21: 0.0639 | BD21: 0.0639 | BE21: 0.0639 | BF21: 0.064 | BG21: 0.064 | BH21: 0.064 | BI21: 0.064 | BJ21: 0.064 | BK21: 0.064 | BL21: 0.064 | BM21: 0.0641 | BN21: 0.0641 | BO21: 0.0641 | BP21: 0.0641 | BQ21: 0.0641 | BR21: 0.0641 | BS21: 0.0641 | BT21: 0.0641 | BU21: 0.0641 | BV21: 0.0641 | BW21: 0.0641 | BX21: 0.0641 | BY21: 0.0641 | BZ21: 0.0641 | CA21: 0.0641 | CB21: 0.0641 | CC21: 0.0641 | CD21: 0.0642 | CE21: 0.0642 | CF21: 0.0642 | CG21: 0.0642 | CH21: 35
C22: 36 | D22: 0.0619 | E22: 0.062 | F22: 0.062 | G22: 0.0621 | H22: 0.0621 | I22: 0.0622 | J22: 0.0622 | K22: 0.0623 | L22: 0.0623 | M22: 0.0624 | N22: 0.0625 | O22: 0.0625 | P22: 0.0626 | Q22: 0.0626 | R22: 0.0627 | S22: 0.0628 | T22: 0.0628 | U22: 0.0629 | V22: 0.0629 | W22: 0.063 | X22: 0.063 | Y22: 0.0631 | Z22: 0.0631 | AA22: 0.0632 | AB22: 0.0633 | AC22: 0.0633 | AD22: 0.0634 | AE22: 0.0634 | AF22: 0.0635 | AG22: 0.0635 | AH22: 0.0635 | AI22: 0.0636 | AJ22: 0.0636 | AK22: 0.0637 | AL22: 0.0637 | AM22: 0.0638 | AN22: 0.0638 | AO22: 0.0638 | AP22: 0.0639 | AQ22: 0.0639 | AR22: 0.0639 | AS22: 0.064 | AT22: 0.064 | AU22: 0.064 | AV22: 0.064 | AW22: 0.0641 | AX22: 0.0641 | AY22: 0.0641 | AZ22: 0.0641 | BA22: 0.0642 | BB22: 0.0642 | BC22: 0.0642 | BD22: 0.0642 | BE22: 0.0643 | BF22: 0.0643 | BG22: 0.0643 | BH22: 0.0643 | BI22: 0.0643 | BJ22: 0.0643 | BK22: 0.0643 | BL22: 0.0644 | BM22: 0.0644 | BN22: 0.0644 | BO22: 0.0644 | BP22: 0.0644 | BQ22: 0.0644 | BR22: 0.0644 | BS22: 0.0644 | BT22: 0.0644 | BU22: 0.0644 | BV22: 0.0644 | BW22: 0.0644 | BX22: 0.0645 | BY22: 0.0645 | BZ22: 0.0645 | CA22: 0.0645 | CB22: 0.0645 | CC22: 0.0645 | CD22: 0.0645 | CE22: 0.0645 | CF22: 0.0645 | CG22: 0.0645 | CH22: 36
C23: 37 | D23: 0.0621 | E23: 0.0621 | F23: 0.0622 | G23: 0.0623 | H23: 0.0623 | I23: 0.0624 | J23: 0.0624 | K23: 0.0625 | L23: 0.0625 | M23: 0.0626 | N23: 0.0627 | O23: 0.0627 | P23: 0.0628 | Q23: 0.0628 | R23: 0.0629 | S23: 0.063 | T23: 0.063 | U23: 0.0631 | V23: 0.0631 | W23: 0.0632 | X23: 0.0633 | Y23: 0.0633 | Z23: 0.0634 | AA23: 0.0634 | AB23: 0.0635 | AC23: 0.0635 | AD23: 0.0636 | AE23: 0.0637 | AF23: 0.0637 | AG23: 0.0638 | AH23: 0.0638 | AI23: 0.0639 | AJ23: 0.0639 | AK23: 0.0639 | AL23: 0.064 | AM23: 0.064 | AN23: 0.0641 | AO23: 0.0641 | AP23: 0.0641 | AQ23: 0.0642 | AR23: 0.0642 | AS23: 0.0643 | AT23: 0.0643 | AU23: 0.0643 | AV23: 0.0643 | AW23: 0.0644 | AX23: 0.0644 | AY23: 0.0644 | AZ23: 0.0645 | BA23: 0.0645 | BB23: 0.0645 | BC23: 0.0645 | BD23: 0.0646 | BE23: 0.0646 | BF23: 0.0646 | BG23: 0.0646 | BH23: 0.0646 | BI23: 0.0646 | BJ23: 0.0647 | BK23: 0.0647 | BL23: 0.0647 | BM23: 0.0647 | BN23: 0.0647 | BO23: 0.0647 | BP23: 0.0647 | BQ23: 0.0647 | BR23: 0.0648 | BS23: 0.0648 | BT23: 0.0648 | BU23: 0.0648 | BV23: 0.0648 | BW23: 0.0648 | BX23: 0.0648 | BY23: 0.0648 | BZ23: 0.0648 | CA23: 0.0648 | CB23: 0.0648 | CC23: 0.0648 | CD23: 0.0648 | CE23: 0.0648 | CF23: 0.0648 | CG23: 0.0648 | CH23: 37
C24: 38 | D24: 0.0623 | E24: 0.0623 | F24: 0.0624 | G24: 0.0624 | H24: 0.0625 | I24: 0.0625 | J24: 0.0626 | K24: 0.0627 | L24: 0.0627 | M24: 0.0628 | N24: 0.0629 | O24: 0.0629 | P24: 0.063 | Q24: 0.063 | R24: 0.0631 | S24: 0.0632 | T24: 0.0632 | U24: 0.0633 | V24: 0.0634 | W24: 0.0634 | X24: 0.0635 | Y24: 0.0636 | Z24: 0.0636 | AA24: 0.0637 | AB24: 0.0637 | AC24: 0.0638 | AD24: 0.0638 | AE24: 0.0639 | AF24: 0.064 | AG24: 0.064 | AH24: 0.0641 | AI24: 0.0641 | AJ24: 0.0642 | AK24: 0.0642 | AL24: 0.0643 | AM24: 0.0643 | AN24: 0.0644 | AO24: 0.0644 | AP24: 0.0644 | AQ24: 0.0645 | AR24: 0.0645 | AS24: 0.0646 | AT24: 0.0646 | AU24: 0.0646 | AV24: 0.0647 | AW24: 0.0647 | AX24: 0.0647 | AY24: 0.0648 | AZ24: 0.0648 | BA24: 0.0648 | BB24: 0.0648 | BC24: 0.0649 | BD24: 0.0649 | BE24: 0.0649 | BF24: 0.0649 | BG24: 0.0649 | BH24: 0.065 | BI24: 0.065 | BJ24: 0.065 | BK24: 0.065 | BL24: 0.065 | BM24: 0.065 | BN24: 0.0651 | BO24: 0.0651 | BP24: 0.0651 | BQ24: 0.0651 | BR24: 0.0651 | BS24: 0.0651 | BT24: 0.0651 | BU24: 0.0651 | BV24: 0.0651 | BW24: 0.0651 | BX24: 0.0651 | BY24: 0.0652 | BZ24: 0.0652 | CA24: 0.0652 | CB24: 0.0652 | CC24: 0.0652 | CD24: 0.0652 | CE24: 0.0652 | CF24: 0.0652 | CG24: 0.0652 | CH24: 38
C25: 39 | D25: 0.0625 | E25: 0.0625 | F25: 0.0626 | G25: 0.0626 | H25: 0.0627 | I25: 0.0627 | J25: 0.0628 | K25: 0.0629 | L25: 0.0629 | M25: 0.063 | N25: 0.0631 | O25: 0.0631 | P25: 0.0632 | Q25: 0.0633 | R25: 0.0633 | S25: 0.0634 | T25: 0.0635 | U25: 0.0635 | V25: 0.0636 | W25: 0.0637 | X25: 0.0637 | Y25: 0.0638 | Z25: 0.0639 | AA25: 0.0639 | AB25: 0.064 | AC25: 0.064 | AD25: 0.0641 | AE25: 0.0642 | AF25: 0.0642 | AG25: 0.0643 | AH25: 0.0643 | AI25: 0.0644 | AJ25: 0.0645 | AK25: 0.0645 | AL25: 0.0646 | AM25: 0.0646 | AN25: 0.0647 | AO25: 0.0647 | AP25: 0.0647 | AQ25: 0.0648 | AR25: 0.0648 | AS25: 0.0649 | AT25: 0.0649 | AU25: 0.0649 | AV25: 0.065 | AW25: 0.065 | AX25: 0.0651 | AY25: 0.0651 | AZ25: 0.0651 | BA25: 0.0651 | BB25: 0.0652 | BC25: 0.0652 | BD25: 0.0652 | BE25: 0.0653 | BF25: 0.0653 | BG25: 0.0653 | BH25: 0.0653 | BI25: 0.0653 | BJ25: 0.0654 | BK25: 0.0654 | BL25: 0.0654 | BM25: 0.0654 | BN25: 0.0654 | BO25: 0.0654 | BP25: 0.0654 | BQ25: 0.0655 | BR25: 0.0655 | BS25: 0.0655 | BT25: 0.0655 | BU25: 0.0655 | BV25: 0.0655 | BW25: 0.0655 | BX25: 0.0655 | BY25: 0.0655 | BZ25: 0.0655 | CA25: 0.0655 | CB25: 0.0655 | CC25: 0.0655 | CD25: 0.0656 | CE25: 0.0656 | CF25: 0.0656 | CG25: 0.0656 | CH25: 39
C26: 40 | D26: 0.0627 | E26: 0.0627 | F26: 0.0628 | G26: 0.0628 | H26: 0.0629 | I26: 0.0629 | J26: 0.063 | K26: 0.0631 | L26: 0.0631 | M26: 0.0632 | N26: 0.0633 | O26: 0.0633 | P26: 0.0634 | Q26: 0.0635 | R26: 0.0635 | S26: 0.0636 | T26: 0.0637 | U26: 0.0638 | V26: 0.0638 | W26: 0.0639 | X26: 0.064 | Y26: 0.064 | Z26: 0.0641 | AA26: 0.0642 | AB26: 0.0642 | AC26: 0.0643 | AD26: 0.0644 | AE26: 0.0644 | AF26: 0.0645 | AG26: 0.0646 | AH26: 0.0646 | AI26: 0.0647 | AJ26: 0.0647 | AK26: 0.0648 | AL26: 0.0649 | AM26: 0.0649 | AN26: 0.065 | AO26: 0.065 | AP26: 0.0651 | AQ26: 0.0651 | AR26: 0.0652 | AS26: 0.0652 | AT26: 0.0652 | AU26: 0.0653 | AV26: 0.0653 | AW26: 0.0654 | AX26: 0.0654 | AY26: 0.0654 | AZ26: 0.0655 | BA26: 0.0655 | BB26: 0.0655 | BC26: 0.0656 | BD26: 0.0656 | BE26: 0.0656 | BF26: 0.0656 | BG26: 0.0657 | BH26: 0.0657 | BI26: 0.0657 | BJ26: 0.0657 | BK26: 0.0658 | BL26: 0.0658 | BM26: 0.0658 | BN26: 0.0658 | BO26: 0.0658 | BP26: 0.0658 | BQ26: 0.0658 | BR26: 0.0659 | BS26: 0.0659 | BT26: 0.0659 | BU26: 0.0659 | BV26: 0.0659 | BW26: 0.0659 | BX26: 0.0659 | BY26: 0.0659 | BZ26: 0.0659 | CA26: 0.0659 | CB26: 0.0659 | CC26: 0.0659 | CD26: 0.0659 | CE26: 0.066 | CF26: 0.066 | CG26: 0.066 | CH26: 40
C27: 41 | D27: 0.0629 | E27: 0.0629 | F27: 0.063 | G27: 0.063 | H27: 0.0631 | I27: 0.0631 | J27: 0.0632 | K27: 0.0633 | L27: 0.0633 | M27: 0.0634 | N27: 0.0635 | O27: 0.0636 | P27: 0.0636 | Q27: 0.0637 | R27: 0.0638 | S27: 0.0638 | T27: 0.0639 | U27: 0.064 | V27: 0.0641 | W27: 0.0641 | X27: 0.0642 | Y27: 0.0643 | Z27: 0.0644 | AA27: 0.0644 | AB27: 0.0645 | AC27: 0.0646 | AD27: 0.0647 | AE27: 0.0647 | AF27: 0.0648 | AG27: 0.0649 | AH27: 0.0649 | AI27: 0.065 | AJ27: 0.065 | AK27: 0.0651 | AL27: 0.0652 | AM27: 0.0652 | AN27: 0.0653 | AO27: 0.0653 | AP27: 0.0654 | AQ27: 0.0654 | AR27: 0.0655 | AS27: 0.0655 | AT27: 0.0656 | AU27: 0.0656 | AV27: 0.0657 | AW27: 0.0657 | AX27: 0.0658 | AY27: 0.0658 | AZ27: 0.0658 | BA27: 0.0659 | BB27: 0.0659 | BC27: 0.0659 | BD27: 0.066 | BE27: 0.066 | BF27: 0.066 | BG27: 0.0661 | BH27: 0.0661 | BI27: 0.0661 | BJ27: 0.0661 | BK27: 0.0662 | BL27: 0.0662 | BM27: 0.0662 | BN27: 0.0662 | BO27: 0.0662 | BP27: 0.0662 | BQ27: 0.0663 | BR27: 0.0663 | BS27: 0.0663 | BT27: 0.0663 | BU27: 0.0663 | BV27: 0.0663 | BW27: 0.0663 | BX27: 0.0663 | BY27: 0.0663 | BZ27: 0.0663 | CA27: 0.0663 | CB27: 0.0664 | CC27: 0.0664 | CD27: 0.0664 | CE27: 0.0664 | CF27: 0.0664 | CG27: 0.0664 | CH27: 41
C28: 42 | D28: 0.0631 | E28: 0.0631 | F28: 0.0632 | G28: 0.0632 | H28: 0.0633 | I28: 0.0634 | J28: 0.0634 | K28: 0.0635 | L28: 0.0636 | M28: 0.0636 | N28: 0.0637 | O28: 0.0638 | P28: 0.0639 | Q28: 0.0639 | R28: 0.064 | S28: 0.0641 | T28: 0.0642 | U28: 0.0642 | V28: 0.0643 | W28: 0.0644 | X28: 0.0645 | Y28: 0.0646 | Z28: 0.0646 | AA28: 0.0647 | AB28: 0.0648 | AC28: 0.0649 | AD28: 0.0649 | AE28: 0.065 | AF28: 0.0651 | AG28: 0.0652 | AH28: 0.0652 | AI28: 0.0653 | AJ28: 0.0654 | AK28: 0.0654 | AL28: 0.0655 | AM28: 0.0656 | AN28: 0.0656 | AO28: 0.0657 | AP28: 0.0657 | AQ28: 0.0658 | AR28: 0.0658 | AS28: 0.0659 | AT28: 0.0659 | AU28: 0.066 | AV28: 0.066 | AW28: 0.0661 | AX28: 0.0661 | AY28: 0.0662 | AZ28: 0.0662 | BA28: 0.0663 | BB28: 0.0663 | BC28: 0.0663 | BD28: 0.0664 | BE28: 0.0664 | BF28: 0.0664 | BG28: 0.0665 | BH28: 0.0665 | BI28: 0.0665 | BJ28: 0.0665 | BK28: 0.0666 | BL28: 0.0666 | BM28: 0.0666 | BN28: 0.0666 | BO28: 0.0666 | BP28: 0.0667 | BQ28: 0.0667 | BR28: 0.0667 | BS28: 0.0667 | BT28: 0.0667 | BU28: 0.0667 | BV28: 0.0667 | BW28: 0.0667 | BX28: 0.0668 | BY28: 0.0668 | BZ28: 0.0668 | CA28: 0.0668 | CB28: 0.0668 | CC28: 0.0668 | CD28: 0.0668 | CE28: 0.0668 | CF28: 0.0668 | CG28: 0.0668 | CH28: 42
C29: 43 | D29: 0.0633 | E29: 0.0633 | F29: 0.0634 | G29: 0.0635 | H29: 0.0635 | I29: 0.0636 | J29: 0.0637 | K29: 0.0637 | L29: 0.0638 | M29: 0.0639 | N29: 0.0639 | O29: 0.064 | P29: 0.0641 | Q29: 0.0642 | R29: 0.0643 | S29: 0.0643 | T29: 0.0644 | U29: 0.0645 | V29: 0.0646 | W29: 0.0647 | X29: 0.0647 | Y29: 0.0648 | Z29: 0.0649 | AA29: 0.065 | AB29: 0.0651 | AC29: 0.0652 | AD29: 0.0652 | AE29: 0.0653 | AF29: 0.0654 | AG29: 0.0655 | AH29: 0.0655 | AI29: 0.0656 | AJ29: 0.0657 | AK29: 0.0658 | AL29: 0.0658 | AM29: 0.0659 | AN29: 0.066 | AO29: 0.066 | AP29: 0.0661 | AQ29: 0.0661 | AR29: 0.0662 | AS29: 0.0663 | AT29: 0.0663 | AU29: 0.0664 | AV29: 0.0664 | AW29: 0.0665 | AX29: 0.0665 | AY29: 0.0666 | AZ29: 0.0666 | BA29: 0.0667 | BB29: 0.0667 | BC29: 0.0667 | BD29: 0.0668 | BE29: 0.0668 | BF29: 0.0669 | BG29: 0.0669 | BH29: 0.0669 | BI29: 0.0669 | BJ29: 0.067 | BK29: 0.067 | BL29: 0.067 | BM29: 0.067 | BN29: 0.0671 | BO29: 0.0671 | BP29: 0.0671 | BQ29: 0.0671 | BR29: 0.0671 | BS29: 0.0672 | BT29: 0.0672 | BU29: 0.0672 | BV29: 0.0672 | BW29: 0.0672 | BX29: 0.0672 | BY29: 0.0672 | BZ29: 0.0672 | CA29: 0.0672 | CB29: 0.0672 | CC29: 0.0673 | CD29: 0.0673 | CE29: 0.0673 | CF29: 0.0673 | CG29: 0.0673 | CH29: 43
C30: 44 | D30: 0.0635 | E30: 0.0636 | F30: 0.0636 | G30: 0.0637 | H30: 0.0637 | I30: 0.0638 | J30: 0.0639 | K30: 0.064 | L30: 0.064 | M30: 0.0641 | N30: 0.0642 | O30: 0.0643 | P30: 0.0643 | Q30: 0.0644 | R30: 0.0645 | S30: 0.0646 | T30: 0.0647 | U30: 0.0648 | V30: 0.0649 | W30: 0.0649 | X30: 0.065 | Y30: 0.0651 | Z30: 0.0652 | AA30: 0.0653 | AB30: 0.0654 | AC30: 0.0655 | AD30: 0.0655 | AE30: 0.0656 | AF30: 0.0657 | AG30: 0.0658 | AH30: 0.0659 | AI30: 0.0659 | AJ30: 0.066 | AK30: 0.0661 | AL30: 0.0662 | AM30: 0.0662 | AN30: 0.0663 | AO30: 0.0664 | AP30: 0.0665 | AQ30: 0.0665 | AR30: 0.0666 | AS30: 0.0666 | AT30: 0.0667 | AU30: 0.0668 | AV30: 0.0668 | AW30: 0.0669 | AX30: 0.0669 | AY30: 0.067 | AZ30: 0.067 | BA30: 0.0671 | BB30: 0.0671 | BC30: 0.0672 | BD30: 0.0672 | BE30: 0.0673 | BF30: 0.0673 | BG30: 0.0673 | BH30: 0.0674 | BI30: 0.0674 | BJ30: 0.0674 | BK30: 0.0675 | BL30: 0.0675 | BM30: 0.0675 | BN30: 0.0675 | BO30: 0.0676 | BP30: 0.0676 | BQ30: 0.0676 | BR30: 0.0676 | BS30: 0.0676 | BT30: 0.0676 | BU30: 0.0677 | BV30: 0.0677 | BW30: 0.0677 | BX30: 0.0677 | BY30: 0.0677 | BZ30: 0.0677 | CA30: 0.0677 | CB30: 0.0677 | CC30: 0.0677 | CD30: 0.0677 | CE30: 0.0678 | CF30: 0.0678 | CG30: 0.0678 | CH30: 44
C31: 45 | D31: 0.0637 | E31: 0.0638 | F31: 0.0639 | G31: 0.0639 | H31: 0.064 | I31: 0.0641 | J31: 0.0641 | K31: 0.0642 | L31: 0.0643 | M31: 0.0644 | N31: 0.0644 | O31: 0.0645 | P31: 0.0646 | Q31: 0.0647 | R31: 0.0648 | S31: 0.0649 | T31: 0.065 | U31: 0.065 | V31: 0.0651 | W31: 0.0652 | X31: 0.0653 | Y31: 0.0654 | Z31: 0.0655 | AA31: 0.0656 | AB31: 0.0657 | AC31: 0.0658 | AD31: 0.0659 | AE31: 0.0659 | AF31: 0.066 | AG31: 0.0661 | AH31: 0.0662 | AI31: 0.0663 | AJ31: 0.0664 | AK31: 0.0665 | AL31: 0.0665 | AM31: 0.0666 | AN31: 0.0667 | AO31: 0.0668 | AP31: 0.0668 | AQ31: 0.0669 | AR31: 0.067 | AS31: 0.067 | AT31: 0.0671 | AU31: 0.0672 | AV31: 0.0672 | AW31: 0.0673 | AX31: 0.0674 | AY31: 0.0674 | AZ31: 0.0675 | BA31: 0.0675 | BB31: 0.0676 | BC31: 0.0676 | BD31: 0.0677 | BE31: 0.0677 | BF31: 0.0678 | BG31: 0.0678 | BH31: 0.0678 | BI31: 0.0679 | BJ31: 0.0679 | BK31: 0.0679 | BL31: 0.068 | BM31: 0.068 | BN31: 0.068 | BO31: 0.068 | BP31: 0.0681 | BQ31: 0.0681 | BR31: 0.0681 | BS31: 0.0681 | BT31: 0.0681 | BU31: 0.0681 | BV31: 0.0682 | BW31: 0.0682 | BX31: 0.0682 | BY31: 0.0682 | BZ31: 0.0682 | CA31: 0.0682 | CB31: 0.0682 | CC31: 0.0682 | CD31: 0.0683 | CE31: 0.0683 | CF31: 0.0683 | CG31: 0.0683 | CH31: 45
C32: 46 | D32: 0.064 | E32: 0.064 | F32: 0.0641 | G32: 0.0642 | H32: 0.0642 | I32: 0.0643 | J32: 0.0644 | K32: 0.0645 | L32: 0.0645 | M32: 0.0646 | N32: 0.0647 | O32: 0.0648 | P32: 0.0649 | Q32: 0.065 | R32: 0.0651 | S32: 0.0651 | T32: 0.0652 | U32: 0.0653 | V32: 0.0654 | W32: 0.0655 | X32: 0.0656 | Y32: 0.0657 | Z32: 0.0658 | AA32: 0.0659 | AB32: 0.066 | AC32: 0.0661 | AD32: 0.0662 | AE32: 0.0663 | AF32: 0.0664 | AG32: 0.0665 | AH32: 0.0666 | AI32: 0.0666 | AJ32: 0.0667 | AK32: 0.0668 | AL32: 0.0669 | AM32: 0.067 | AN32: 0.0671 | AO32: 0.0672 | AP32: 0.0672 | AQ32: 0.0673 | AR32: 0.0674 | AS32: 0.0675 | AT32: 0.0675 | AU32: 0.0676 | AV32: 0.0677 | AW32: 0.0677 | AX32: 0.0678 | AY32: 0.0679 | AZ32: 0.0679 | BA32: 0.068 | BB32: 0.068 | BC32: 0.0681 | BD32: 0.0681 | BE32: 0.0682 | BF32: 0.0682 | BG32: 0.0683 | BH32: 0.0683 | BI32: 0.0684 | BJ32: 0.0684 | BK32: 0.0684 | BL32: 0.0685 | BM32: 0.0685 | BN32: 0.0685 | BO32: 0.0685 | BP32: 0.0686 | BQ32: 0.0686 | BR32: 0.0686 | BS32: 0.0686 | BT32: 0.0687 | BU32: 0.0687 | BV32: 0.0687 | BW32: 0.0687 | BX32: 0.0687 | BY32: 0.0687 | BZ32: 0.0687 | CA32: 0.0688 | CB32: 0.0688 | CC32: 0.0688 | CD32: 0.0688 | CE32: 0.0688 | CF32: 0.0688 | CG32: 0.0688 | CH32: 46
C33: 47 | D33: 0.0642 | E33: 0.0643 | F33: 0.0644 | G33: 0.0644 | H33: 0.0645 | I33: 0.0646 | J33: 0.0646 | K33: 0.0647 | L33: 0.0648 | M33: 0.0649 | N33: 0.065 | O33: 0.0651 | P33: 0.0652 | Q33: 0.0652 | R33: 0.0653 | S33: 0.0654 | T33: 0.0655 | U33: 0.0656 | V33: 0.0657 | W33: 0.0658 | X33: 0.0659 | Y33: 0.066 | Z33: 0.0661 | AA33: 0.0662 | AB33: 0.0663 | AC33: 0.0664 | AD33: 0.0665 | AE33: 0.0666 | AF33: 0.0667 | AG33: 0.0668 | AH33: 0.0669 | AI33: 0.067 | AJ33: 0.0671 | AK33: 0.0672 | AL33: 0.0673 | AM33: 0.0674 | AN33: 0.0675 | AO33: 0.0676 | AP33: 0.0676 | AQ33: 0.0677 | AR33: 0.0678 | AS33: 0.0679 | AT33: 0.068 | AU33: 0.068 | AV33: 0.0681 | AW33: 0.0682 | AX33: 0.0683 | AY33: 0.0683 | AZ33: 0.0684 | BA33: 0.0685 | BB33: 0.0685 | BC33: 0.0686 | BD33: 0.0686 | BE33: 0.0687 | BF33: 0.0687 | BG33: 0.0688 | BH33: 0.0688 | BI33: 0.0689 | BJ33: 0.0689 | BK33: 0.069 | BL33: 0.069 | BM33: 0.069 | BN33: 0.0691 | BO33: 0.0691 | BP33: 0.0691 | BQ33: 0.0691 | BR33: 0.0692 | BS33: 0.0692 | BT33: 0.0692 | BU33: 0.0692 | BV33: 0.0692 | BW33: 0.0693 | BX33: 0.0693 | BY33: 0.0693 | BZ33: 0.0693 | CA33: 0.0693 | CB33: 0.0693 | CC33: 0.0693 | CD33: 0.0693 | CE33: 0.0694 | CF33: 0.0694 | CG33: 0.0694 | CH33: 47
C34: 48 | D34: 0.0645 | E34: 0.0646 | F34: 0.0646 | G34: 0.0647 | H34: 0.0648 | I34: 0.0648 | J34: 0.0649 | K34: 0.065 | L34: 0.0651 | M34: 0.0652 | N34: 0.0653 | O34: 0.0654 | P34: 0.0654 | Q34: 0.0655 | R34: 0.0656 | S34: 0.0657 | T34: 0.0658 | U34: 0.0659 | V34: 0.066 | W34: 0.0661 | X34: 0.0662 | Y34: 0.0663 | Z34: 0.0665 | AA34: 0.0666 | AB34: 0.0667 | AC34: 0.0668 | AD34: 0.0669 | AE34: 0.067 | AF34: 0.0671 | AG34: 0.0672 | AH34: 0.0673 | AI34: 0.0674 | AJ34: 0.0675 | AK34: 0.0676 | AL34: 0.0677 | AM34: 0.0678 | AN34: 0.0679 | AO34: 0.068 | AP34: 0.0681 | AQ34: 0.0682 | AR34: 0.0683 | AS34: 0.0683 | AT34: 0.0684 | AU34: 0.0685 | AV34: 0.0686 | AW34: 0.0687 | AX34: 0.0687 | AY34: 0.0688 | AZ34: 0.0689 | BA34: 0.069 | BB34: 0.069 | BC34: 0.0691 | BD34: 0.0692 | BE34: 0.0692 | BF34: 0.0693 | BG34: 0.0693 | BH34: 0.0694 | BI34: 0.0694 | BJ34: 0.0695 | BK34: 0.0695 | BL34: 0.0695 | BM34: 0.0696 | BN34: 0.0696 | BO34: 0.0696 | BP34: 0.0697 | BQ34: 0.0697 | BR34: 0.0697 | BS34: 0.0698 | BT34: 0.0698 | BU34: 0.0698 | BV34: 0.0698 | BW34: 0.0698 | BX34: 0.0699 | BY34: 0.0699 | BZ34: 0.0699 | CA34: 0.0699 | CB34: 0.0699 | CC34: 0.0699 | CD34: 0.0699 | CE34: 0.07 | CF34: 0.07 | CG34: 0.07 | CH34: 48
C35: 49 | D35: 0.0648 | E35: 0.0648 | F35: 0.0649 | G35: 0.065 | H35: 0.0651 | I35: 0.0651 | J35: 0.0652 | K35: 0.0653 | L35: 0.0654 | M35: 0.0655 | N35: 0.0656 | O35: 0.0657 | P35: 0.0657 | Q35: 0.0658 | R35: 0.0659 | S35: 0.066 | T35: 0.0661 | U35: 0.0663 | V35: 0.0664 | W35: 0.0665 | X35: 0.0666 | Y35: 0.0667 | Z35: 0.0668 | AA35: 0.0669 | AB35: 0.067 | AC35: 0.0671 | AD35: 0.0672 | AE35: 0.0673 | AF35: 0.0675 | AG35: 0.0676 | AH35: 0.0677 | AI35: 0.0678 | AJ35: 0.0679 | AK35: 0.068 | AL35: 0.0681 | AM35: 0.0682 | AN35: 0.0683 | AO35: 0.0684 | AP35: 0.0685 | AQ35: 0.0686 | AR35: 0.0687 | AS35: 0.0688 | AT35: 0.0689 | AU35: 0.069 | AV35: 0.0691 | AW35: 0.0692 | AX35: 0.0692 | AY35: 0.0693 | AZ35: 0.0694 | BA35: 0.0695 | BB35: 0.0696 | BC35: 0.0696 | BD35: 0.0697 | BE35: 0.0698 | BF35: 0.0698 | BG35: 0.0699 | BH35: 0.0699 | BI35: 0.07 | BJ35: 0.07 | BK35: 0.0701 | BL35: 0.0701 | BM35: 0.0702 | BN35: 0.0702 | BO35: 0.0702 | BP35: 0.0703 | BQ35: 0.0703 | BR35: 0.0703 | BS35: 0.0704 | BT35: 0.0704 | BU35: 0.0704 | BV35: 0.0704 | BW35: 0.0705 | BX35: 0.0705 | BY35: 0.0705 | BZ35: 0.0705 | CA35: 0.0705 | CB35: 0.0705 | CC35: 0.0706 | CD35: 0.0706 | CE35: 0.0706 | CF35: 0.0706 | CG35: 0.0706 | CH35: 49
C36: 50 | D36: 0.0651 | E36: 0.0651 | F36: 0.0652 | G36: 0.0653 | H36: 0.0653 | I36: 0.0654 | J36: 0.0655 | K36: 0.0656 | L36: 0.0657 | M36: 0.0658 | N36: 0.0659 | O36: 0.066 | P36: 0.0661 | Q36: 0.0662 | R36: 0.0663 | S36: 0.0664 | T36: 0.0665 | U36: 0.0666 | V36: 0.0667 | W36: 0.0668 | X36: 0.0669 | Y36: 0.067 | Z36: 0.0671 | AA36: 0.0673 | AB36: 0.0674 | AC36: 0.0675 | AD36: 0.0676 | AE36: 0.0677 | AF36: 0.0678 | AG36: 0.068 | AH36: 0.0681 | AI36: 0.0682 | AJ36: 0.0683 | AK36: 0.0684 | AL36: 0.0685 | AM36: 0.0687 | AN36: 0.0688 | AO36: 0.0689 | AP36: 0.069 | AQ36: 0.0691 | AR36: 0.0692 | AS36: 0.0693 | AT36: 0.0694 | AU36: 0.0695 | AV36: 0.0696 | AW36: 0.0697 | AX36: 0.0698 | AY36: 0.0699 | AZ36: 0.0699 | BA36: 0.07 | BB36: 0.0701 | BC36: 0.0702 | BD36: 0.0703 | BE36: 0.0703 | BF36: 0.0704 | BG36: 0.0705 | BH36: 0.0705 | BI36: 0.0706 | BJ36: 0.0706 | BK36: 0.0707 | BL36: 0.0707 | BM36: 0.0708 | BN36: 0.0708 | BO36: 0.0709 | BP36: 0.0709 | BQ36: 0.0709 | BR36: 0.071 | BS36: 0.071 | BT36: 0.071 | BU36: 0.071 | BV36: 0.0711 | BW36: 0.0711 | BX36: 0.0711 | BY36: 0.0711 | BZ36: 0.0712 | CA36: 0.0712 | CB36: 0.0712 | CC36: 0.0712 | CD36: 0.0712 | CE36: 0.0712 | CF36: 0.0712 | CG36: 0.0713 | CH36: 50
C37: 51 | D37: 0.0653 | E37: 0.0654 | F37: 0.0655 | G37: 0.0656 | H37: 0.0656 | I37: 0.0657 | J37: 0.0658 | K37: 0.0659 | L37: 0.066 | M37: 0.0661 | N37: 0.0662 | O37: 0.0663 | P37: 0.0664 | Q37: 0.0665 | R37: 0.0666 | S37: 0.0667 | T37: 0.0668 | U37: 0.0669 | V37: 0.067 | W37: 0.0672 | X37: 0.0673 | Y37: 0.0674 | Z37: 0.0675 | AA37: 0.0676 | AB37: 0.0678 | AC37: 0.0679 | AD37: 0.068 | AE37: 0.0681 | AF37: 0.0682 | AG37: 0.0684 | AH37: 0.0685 | AI37: 0.0686 | AJ37: 0.0687 | AK37: 0.0689 | AL37: 0.069 | AM37: 0.0691 | AN37: 0.0692 | AO37: 0.0693 | AP37: 0.0695 | AQ37: 0.0696 | AR37: 0.0697 | AS37: 0.0698 | AT37: 0.0699 | AU37: 0.07 | AV37: 0.0701 | AW37: 0.0702 | AX37: 0.0703 | AY37: 0.0704 | AZ37: 0.0705 | BA37: 0.0706 | BB37: 0.0707 | BC37: 0.0708 | BD37: 0.0708 | BE37: 0.0709 | BF37: 0.071 | BG37: 0.0711 | BH37: 0.0711 | BI37: 0.0712 | BJ37: 0.0713 | BK37: 0.0713 | BL37: 0.0714 | BM37: 0.0714 | BN37: 0.0715 | BO37: 0.0715 | BP37: 0.0715 | BQ37: 0.0716 | BR37: 0.0716 | BS37: 0.0717 | BT37: 0.0717 | BU37: 0.0717 | BV37: 0.0717 | BW37: 0.0718 | BX37: 0.0718 | BY37: 0.0718 | BZ37: 0.0718 | CA37: 0.0719 | CB37: 0.0719 | CC37: 0.0719 | CD37: 0.0719 | CE37: 0.0719 | CF37: 0.0719 | CG37: 0.072 | CH37: 51
C38: 52 | D38: 0.0657 | E38: 0.0657 | F38: 0.0658 | G38: 0.0659 | H38: 0.066 | I38: 0.066 | J38: 0.0661 | K38: 0.0662 | L38: 0.0663 | M38: 0.0664 | N38: 0.0665 | O38: 0.0666 | P38: 0.0667 | Q38: 0.0668 | R38: 0.0669 | S38: 0.067 | T38: 0.0672 | U38: 0.0673 | V38: 0.0674 | W38: 0.0675 | X38: 0.0676 | Y38: 0.0678 | Z38: 0.0679 | AA38: 0.068 | AB38: 0.0681 | AC38: 0.0683 | AD38: 0.0684 | AE38: 0.0685 | AF38: 0.0687 | AG38: 0.0688 | AH38: 0.0689 | AI38: 0.0691 | AJ38: 0.0692 | AK38: 0.0693 | AL38: 0.0694 | AM38: 0.0696 | AN38: 0.0697 | AO38: 0.0698 | AP38: 0.0699 | AQ38: 0.0701 | AR38: 0.0702 | AS38: 0.0703 | AT38: 0.0704 | AU38: 0.0705 | AV38: 0.0706 | AW38: 0.0708 | AX38: 0.0709 | AY38: 0.071 | AZ38: 0.0711 | BA38: 0.0712 | BB38: 0.0713 | BC38: 0.0714 | BD38: 0.0715 | BE38: 0.0715 | BF38: 0.0716 | BG38: 0.0717 | BH38: 0.0718 | BI38: 0.0718 | BJ38: 0.0719 | BK38: 0.072 | BL38: 0.072 | BM38: 0.0721 | BN38: 0.0721 | BO38: 0.0722 | BP38: 0.0722 | BQ38: 0.0723 | BR38: 0.0723 | BS38: 0.0724 | BT38: 0.0724 | BU38: 0.0724 | BV38: 0.0724 | BW38: 0.0725 | BX38: 0.0725 | BY38: 0.0725 | BZ38: 0.0726 | CA38: 0.0726 | CB38: 0.0726 | CC38: 0.0726 | CD38: 0.0726 | CE38: 0.0726 | CF38: 0.0727 | CG38: 0.0727 | CH38: 52
C39: 53 | D39: 0.066 | E39: 0.066 | F39: 0.0661 | G39: 0.0662 | H39: 0.0663 | I39: 0.0664 | J39: 0.0665 | K39: 0.0666 | L39: 0.0666 | M39: 0.0667 | N39: 0.0668 | O39: 0.0669 | P39: 0.0671 | Q39: 0.0672 | R39: 0.0673 | S39: 0.0674 | T39: 0.0675 | U39: 0.0676 | V39: 0.0678 | W39: 0.0679 | X39: 0.068 | Y39: 0.0681 | Z39: 0.0683 | AA39: 0.0684 | AB39: 0.0685 | AC39: 0.0687 | AD39: 0.0688 | AE39: 0.0689 | AF39: 0.0691 | AG39: 0.0692 | AH39: 0.0694 | AI39: 0.0695 | AJ39: 0.0696 | AK39: 0.0698 | AL39: 0.0699 | AM39: 0.07 | AN39: 0.0702 | AO39: 0.0703 | AP39: 0.0704 | AQ39: 0.0706 | AR39: 0.0707 | AS39: 0.0708 | AT39: 0.071 | AU39: 0.0711 | AV39: 0.0712 | AW39: 0.0713 | AX39: 0.0714 | AY39: 0.0716 | AZ39: 0.0717 | BA39: 0.0718 | BB39: 0.0719 | BC39: 0.072 | BD39: 0.0721 | BE39: 0.0722 | BF39: 0.0723 | BG39: 0.0724 | BH39: 0.0724 | BI39: 0.0725 | BJ39: 0.0726 | BK39: 0.0727 | BL39: 0.0727 | BM39: 0.0728 | BN39: 0.0728 | BO39: 0.0729 | BP39: 0.0729 | BQ39: 0.073 | BR39: 0.073 | BS39: 0.0731 | BT39: 0.0731 | BU39: 0.0731 | BV39: 0.0732 | BW39: 0.0732 | BX39: 0.0732 | BY39: 0.0733 | BZ39: 0.0733 | CA39: 0.0733 | CB39: 0.0733 | CC39: 0.0734 | CD39: 0.0734 | CE39: 0.0734 | CF39: 0.0734 | CG39: 0.0734 | CH39: 53
C40: 54 | D40: 0.0663 | E40: 0.0664 | F40: 0.0665 | G40: 0.0665 | H40: 0.0666 | I40: 0.0667 | J40: 0.0668 | K40: 0.0669 | L40: 0.067 | M40: 0.0671 | N40: 0.0672 | O40: 0.0673 | P40: 0.0674 | Q40: 0.0675 | R40: 0.0676 | S40: 0.0678 | T40: 0.0679 | U40: 0.068 | V40: 0.0681 | W40: 0.0683 | X40: 0.0684 | Y40: 0.0685 | Z40: 0.0687 | AA40: 0.0688 | AB40: 0.0689 | AC40: 0.0691 | AD40: 0.0692 | AE40: 0.0694 | AF40: 0.0695 | AG40: 0.0697 | AH40: 0.0698 | AI40: 0.07 | AJ40: 0.0701 | AK40: 0.0702 | AL40: 0.0704 | AM40: 0.0705 | AN40: 0.0707 | AO40: 0.0708 | AP40: 0.071 | AQ40: 0.0711 | AR40: 0.0712 | AS40: 0.0714 | AT40: 0.0715 | AU40: 0.0716 | AV40: 0.0718 | AW40: 0.0719 | AX40: 0.072 | AY40: 0.0722 | AZ40: 0.0723 | BA40: 0.0724 | BB40: 0.0725 | BC40: 0.0726 | BD40: 0.0727 | BE40: 0.0728 | BF40: 0.0729 | BG40: 0.073 | BH40: 0.0731 | BI40: 0.0732 | BJ40: 0.0733 | BK40: 0.0734 | BL40: 0.0734 | BM40: 0.0735 | BN40: 0.0736 | BO40: 0.0736 | BP40: 0.0737 | BQ40: 0.0737 | BR40: 0.0738 | BS40: 0.0738 | BT40: 0.0739 | BU40: 0.0739 | BV40: 0.0739 | BW40: 0.074 | BX40: 0.074 | BY40: 0.074 | BZ40: 0.0741 | CA40: 0.0741 | CB40: 0.0741 | CC40: 0.0741 | CD40: 0.0742 | CE40: 0.0742 | CF40: 0.0742 | CG40: 0.0742 | CH40: 54
C41: 55 | D41: 0.0666 | E41: 0.0667 | F41: 0.0668 | G41: 0.0669 | H41: 0.067 | I41: 0.0671 | J41: 0.0671 | K41: 0.0672 | L41: 0.0673 | M41: 0.0674 | N41: 0.0675 | O41: 0.0677 | P41: 0.0678 | Q41: 0.0679 | R41: 0.068 | S41: 0.0681 | T41: 0.0683 | U41: 0.0684 | V41: 0.0685 | W41: 0.0687 | X41: 0.0688 | Y41: 0.0689 | Z41: 0.0691 | AA41: 0.0692 | AB41: 0.0694 | AC41: 0.0695 | AD41: 0.0697 | AE41: 0.0698 | AF41: 0.07 | AG41: 0.0701 | AH41: 0.0703 | AI41: 0.0704 | AJ41: 0.0706 | AK41: 0.0707 | AL41: 0.0709 | AM41: 0.071 | AN41: 0.0712 | AO41: 0.0713 | AP41: 0.0715 | AQ41: 0.0716 | AR41: 0.0718 | AS41: 0.0719 | AT41: 0.0721 | AU41: 0.0722 | AV41: 0.0724 | AW41: 0.0725 | AX41: 0.0727 | AY41: 0.0728 | AZ41: 0.0729 | BA41: 0.0731 | BB41: 0.0732 | BC41: 0.0733 | BD41: 0.0734 | BE41: 0.0735 | BF41: 0.0736 | BG41: 0.0737 | BH41: 0.0738 | BI41: 0.0739 | BJ41: 0.074 | BK41: 0.0741 | BL41: 0.0742 | BM41: 0.0743 | BN41: 0.0743 | BO41: 0.0744 | BP41: 0.0745 | BQ41: 0.0745 | BR41: 0.0746 | BS41: 0.0746 | BT41: 0.0747 | BU41: 0.0747 | BV41: 0.0747 | BW41: 0.0748 | BX41: 0.0748 | BY41: 0.0749 | BZ41: 0.0749 | CA41: 0.0749 | CB41: 0.0749 | CC41: 0.075 | CD41: 0.075 | CE41: 0.075 | CF41: 0.075 | CG41: 0.075 | CH41: 55
C42: 56 | D42: 0.067 | E42: 0.0671 | F42: 0.0671 | G42: 0.0672 | H42: 0.0673 | I42: 0.0674 | J42: 0.0675 | K42: 0.0676 | L42: 0.0677 | M42: 0.0678 | N42: 0.0679 | O42: 0.068 | P42: 0.0681 | Q42: 0.0683 | R42: 0.0684 | S42: 0.0685 | T42: 0.0686 | U42: 0.0688 | V42: 0.0689 | W42: 0.0691 | X42: 0.0692 | Y42: 0.0693 | Z42: 0.0695 | AA42: 0.0696 | AB42: 0.0698 | AC42: 0.0699 | AD42: 0.0701 | AE42: 0.0703 | AF42: 0.0704 | AG42: 0.0706 | AH42: 0.0707 | AI42: 0.0709 | AJ42: 0.0711 | AK42: 0.0712 | AL42: 0.0714 | AM42: 0.0716 | AN42: 0.0717 | AO42: 0.0719 | AP42: 0.0721 | AQ42: 0.0722 | AR42: 0.0724 | AS42: 0.0725 | AT42: 0.0727 | AU42: 0.0728 | AV42: 0.073 | AW42: 0.0731 | AX42: 0.0733 | AY42: 0.0734 | AZ42: 0.0736 | BA42: 0.0737 | BB42: 0.0739 | BC42: 0.074 | BD42: 0.0741 | BE42: 0.0743 | BF42: 0.0744 | BG42: 0.0745 | BH42: 0.0746 | BI42: 0.0747 | BJ42: 0.0748 | BK42: 0.0749 | BL42: 0.075 | BM42: 0.075 | BN42: 0.0751 | BO42: 0.0752 | BP42: 0.0753 | BQ42: 0.0753 | BR42: 0.0754 | BS42: 0.0754 | BT42: 0.0755 | BU42: 0.0755 | BV42: 0.0756 | BW42: 0.0756 | BX42: 0.0757 | BY42: 0.0757 | BZ42: 0.0757 | CA42: 0.0758 | CB42: 0.0758 | CC42: 0.0758 | CD42: 0.0758 | CE42: 0.0759 | CF42: 0.0759 | CG42: 0.0759 | CH42: 56
C43: 57 | D43: 0.0674 | E43: 0.0674 | F43: 0.0675 | G43: 0.0676 | H43: 0.0677 | I43: 0.0678 | J43: 0.0679 | K43: 0.068 | L43: 0.0681 | M43: 0.0682 | N43: 0.0683 | O43: 0.0684 | P43: 0.0685 | Q43: 0.0687 | R43: 0.0688 | S43: 0.0689 | T43: 0.0691 | U43: 0.0692 | V43: 0.0693 | W43: 0.0695 | X43: 0.0696 | Y43: 0.0698 | Z43: 0.0699 | AA43: 0.0701 | AB43: 0.0702 | AC43: 0.0704 | AD43: 0.0706 | AE43: 0.0707 | AF43: 0.0709 | AG43: 0.0711 | AH43: 0.0712 | AI43: 0.0714 | AJ43: 0.0716 | AK43: 0.0718 | AL43: 0.0719 | AM43: 0.0721 | AN43: 0.0723 | AO43: 0.0724 | AP43: 0.0726 | AQ43: 0.0728 | AR43: 0.073 | AS43: 0.0731 | AT43: 0.0733 | AU43: 0.0735 | AV43: 0.0736 | AW43: 0.0738 | AX43: 0.074 | AY43: 0.0741 | AZ43: 0.0743 | BA43: 0.0744 | BB43: 0.0746 | BC43: 0.0747 | BD43: 0.0749 | BE43: 0.075 | BF43: 0.0751 | BG43: 0.0753 | BH43: 0.0754 | BI43: 0.0755 | BJ43: 0.0756 | BK43: 0.0757 | BL43: 0.0758 | BM43: 0.0759 | BN43: 0.076 | BO43: 0.076 | BP43: 0.0761 | BQ43: 0.0762 | BR43: 0.0762 | BS43: 0.0763 | BT43: 0.0764 | BU43: 0.0764 | BV43: 0.0765 | BW43: 0.0765 | BX43: 0.0766 | BY43: 0.0766 | BZ43: 0.0766 | CA43: 0.0767 | CB43: 0.0767 | CC43: 0.0767 | CD43: 0.0768 | CE43: 0.0768 | CF43: 0.0768 | CG43: 0.0768 | CH43: 57
C44: 58 | D44: 0.0677 | E44: 0.0678 | F44: 0.0679 | G44: 0.068 | H44: 0.0681 | I44: 0.0682 | J44: 0.0683 | K44: 0.0684 | L44: 0.0685 | M44: 0.0686 | N44: 0.0687 | O44: 0.0688 | P44: 0.0689 | Q44: 0.0691 | R44: 0.0692 | S44: 0.0693 | T44: 0.0695 | U44: 0.0696 | V44: 0.0698 | W44: 0.0699 | X44: 0.0701 | Y44: 0.0702 | Z44: 0.0704 | AA44: 0.0705 | AB44: 0.0707 | AC44: 0.0709 | AD44: 0.071 | AE44: 0.0712 | AF44: 0.0714 | AG44: 0.0716 | AH44: 0.0717 | AI44: 0.0719 | AJ44: 0.0721 | AK44: 0.0723 | AL44: 0.0725 | AM44: 0.0727 | AN44: 0.0728 | AO44: 0.073 | AP44: 0.0732 | AQ44: 0.0734 | AR44: 0.0736 | AS44: 0.0738 | AT44: 0.0739 | AU44: 0.0741 | AV44: 0.0743 | AW44: 0.0745 | AX44: 0.0746 | AY44: 0.0748 | AZ44: 0.075 | BA44: 0.0752 | BB44: 0.0753 | BC44: 0.0755 | BD44: 0.0756 | BE44: 0.0758 | BF44: 0.0759 | BG44: 0.0761 | BH44: 0.0762 | BI44: 0.0763 | BJ44: 0.0764 | BK44: 0.0765 | BL44: 0.0766 | BM44: 0.0767 | BN44: 0.0768 | BO44: 0.0769 | BP44: 0.077 | BQ44: 0.0771 | BR44: 0.0772 | BS44: 0.0772 | BT44: 0.0773 | BU44: 0.0773 | BV44: 0.0774 | BW44: 0.0774 | BX44: 0.0775 | BY44: 0.0775 | BZ44: 0.0776 | CA44: 0.0776 | CB44: 0.0777 | CC44: 0.0777 | CD44: 0.0777 | CE44: 0.0777 | CF44: 0.0778 | CG44: 0.0778 | CH44: 58
C45: 59 | D45: 0.0681 | E45: 0.0682 | F45: 0.0683 | G45: 0.0684 | H45: 0.0685 | I45: 0.0686 | J45: 0.0687 | K45: 0.0688 | L45: 0.0689 | M45: 0.069 | N45: 0.0691 | O45: 0.0692 | P45: 0.0694 | Q45: 0.0695 | R45: 0.0696 | S45: 0.0698 | T45: 0.0699 | U45: 0.0701 | V45: 0.0702 | W45: 0.0704 | X45: 0.0705 | Y45: 0.0707 | Z45: 0.0708 | AA45: 0.071 | AB45: 0.0712 | AC45: 0.0714 | AD45: 0.0715 | AE45: 0.0717 | AF45: 0.0719 | AG45: 0.0721 | AH45: 0.0723 | AI45: 0.0725 | AJ45: 0.0727 | AK45: 0.0728 | AL45: 0.073 | AM45: 0.0732 | AN45: 0.0734 | AO45: 0.0736 | AP45: 0.0738 | AQ45: 0.074 | AR45: 0.0742 | AS45: 0.0744 | AT45: 0.0746 | AU45: 0.0748 | AV45: 0.075 | AW45: 0.0752 | AX45: 0.0754 | AY45: 0.0756 | AZ45: 0.0757 | BA45: 0.0759 | BB45: 0.0761 | BC45: 0.0763 | BD45: 0.0764 | BE45: 0.0766 | BF45: 0.0768 | BG45: 0.0769 | BH45: 0.0771 | BI45: 0.0772 | BJ45: 0.0773 | BK45: 0.0774 | BL45: 0.0775 | BM45: 0.0777 | BN45: 0.0778 | BO45: 0.0779 | BP45: 0.0779 | BQ45: 0.078 | BR45: 0.0781 | BS45: 0.0782 | BT45: 0.0783 | BU45: 0.0783 | BV45: 0.0784 | BW45: 0.0784 | BX45: 0.0785 | BY45: 0.0785 | BZ45: 0.0786 | CA45: 0.0786 | CB45: 0.0787 | CC45: 0.0787 | CD45: 0.0787 | CE45: 0.0788 | CF45: 0.0788 | CG45: 0.0788 | CH45: 59
C46: 60 | D46: 0.0685 | E46: 0.0686 | F46: 0.0687 | G46: 0.0688 | H46: 0.0689 | I46: 0.069 | J46: 0.0691 | K46: 0.0692 | L46: 0.0693 | M46: 0.0694 | N46: 0.0696 | O46: 0.0697 | P46: 0.0698 | Q46: 0.0699 | R46: 0.0701 | S46: 0.0702 | T46: 0.0704 | U46: 0.0705 | V46: 0.0707 | W46: 0.0708 | X46: 0.071 | Y46: 0.0712 | Z46: 0.0713 | AA46: 0.0715 | AB46: 0.0717 | AC46: 0.0719 | AD46: 0.0721 | AE46: 0.0722 | AF46: 0.0724 | AG46: 0.0726 | AH46: 0.0728 | AI46: 0.073 | AJ46: 0.0732 | AK46: 0.0734 | AL46: 0.0736 | AM46: 0.0738 | AN46: 0.074 | AO46: 0.0743 | AP46: 0.0745 | AQ46: 0.0747 | AR46: 0.0749 | AS46: 0.0751 | AT46: 0.0753 | AU46: 0.0755 | AV46: 0.0757 | AW46: 0.0759 | AX46: 0.0761 | AY46: 0.0763 | AZ46: 0.0765 | BA46: 0.0767 | BB46: 0.0769 | BC46: 0.0771 | BD46: 0.0773 | BE46: 0.0775 | BF46: 0.0776 | BG46: 0.0778 | BH46: 0.078 | BI46: 0.0781 | BJ46: 0.0782 | BK46: 0.0784 | BL46: 0.0785 | BM46: 0.0786 | BN46: 0.0787 | BO46: 0.0788 | BP46: 0.0789 | BQ46: 0.079 | BR46: 0.0791 | BS46: 0.0792 | BT46: 0.0793 | BU46: 0.0794 | BV46: 0.0794 | BW46: 0.0795 | BX46: 0.0795 | BY46: 0.0796 | BZ46: 0.0796 | CA46: 0.0797 | CB46: 0.0797 | CC46: 0.0798 | CD46: 0.0798 | CE46: 0.0799 | CF46: 0.0799 | CG46: 0.0799 | CH46: 60
C47: 61 | D47: 0.069 | E47: 0.0691 | F47: 0.0692 | G47: 0.0692 | H47: 0.0693 | I47: 0.0694 | J47: 0.0695 | K47: 0.0697 | L47: 0.0698 | M47: 0.0699 | N47: 0.07 | O47: 0.0701 | P47: 0.0703 | Q47: 0.0704 | R47: 0.0705 | S47: 0.0707 | T47: 0.0708 | U47: 0.071 | V47: 0.0712 | W47: 0.0713 | X47: 0.0715 | Y47: 0.0717 | Z47: 0.0718 | AA47: 0.072 | AB47: 0.0722 | AC47: 0.0724 | AD47: 0.0726 | AE47: 0.0728 | AF47: 0.073 | AG47: 0.0732 | AH47: 0.0734 | AI47: 0.0736 | AJ47: 0.0738 | AK47: 0.074 | AL47: 0.0742 | AM47: 0.0745 | AN47: 0.0747 | AO47: 0.0749 | AP47: 0.0751 | AQ47: 0.0753 | AR47: 0.0756 | AS47: 0.0758 | AT47: 0.076 | AU47: 0.0762 | AV47: 0.0765 | AW47: 0.0767 | AX47: 0.0769 | AY47: 0.0771 | AZ47: 0.0773 | BA47: 0.0776 | BB47: 0.0778 | BC47: 0.078 | BD47: 0.0782 | BE47: 0.0784 | BF47: 0.0786 | BG47: 0.0787 | BH47: 0.0789 | BI47: 0.0791 | BJ47: 0.0792 | BK47: 0.0794 | BL47: 0.0795 | BM47: 0.0796 | BN47: 0.0798 | BO47: 0.0799 | BP47: 0.08 | BQ47: 0.0801 | BR47: 0.0802 | BS47: 0.0803 | BT47: 0.0804 | BU47: 0.0804 | BV47: 0.0805 | BW47: 0.0806 | BX47: 0.0807 | BY47: 0.0807 | BZ47: 0.0808 | CA47: 0.0808 | CB47: 0.0809 | CC47: 0.0809 | CD47: 0.081 | CE47: 0.081 | CF47: 0.081 | CG47: 0.0811 | CH47: 61
C48: 62 | D48: 0.0694 | E48: 0.0695 | F48: 0.0696 | G48: 0.0697 | H48: 0.0698 | I48: 0.0699 | J48: 0.07 | K48: 0.0701 | L48: 0.0702 | M48: 0.0704 | N48: 0.0705 | O48: 0.0706 | P48: 0.0708 | Q48: 0.0709 | R48: 0.071 | S48: 0.0712 | T48: 0.0713 | U48: 0.0715 | V48: 0.0717 | W48: 0.0718 | X48: 0.072 | Y48: 0.0722 | Z48: 0.0724 | AA48: 0.0726 | AB48: 0.0728 | AC48: 0.0729 | AD48: 0.0731 | AE48: 0.0734 | AF48: 0.0736 | AG48: 0.0738 | AH48: 0.074 | AI48: 0.0742 | AJ48: 0.0744 | AK48: 0.0747 | AL48: 0.0749 | AM48: 0.0751 | AN48: 0.0753 | AO48: 0.0756 | AP48: 0.0758 | AQ48: 0.0761 | AR48: 0.0763 | AS48: 0.0765 | AT48: 0.0768 | AU48: 0.077 | AV48: 0.0772 | AW48: 0.0775 | AX48: 0.0777 | AY48: 0.078 | AZ48: 0.0782 | BA48: 0.0784 | BB48: 0.0787 | BC48: 0.0789 | BD48: 0.0791 | BE48: 0.0793 | BF48: 0.0795 | BG48: 0.0797 | BH48: 0.0799 | BI48: 0.0801 | BJ48: 0.0803 | BK48: 0.0804 | BL48: 0.0806 | BM48: 0.0807 | BN48: 0.0809 | BO48: 0.081 | BP48: 0.0811 | BQ48: 0.0812 | BR48: 0.0813 | BS48: 0.0814 | BT48: 0.0815 | BU48: 0.0816 | BV48: 0.0817 | BW48: 0.0818 | BX48: 0.0818 | BY48: 0.0819 | BZ48: 0.082 | CA48: 0.082 | CB48: 0.0821 | CC48: 0.0821 | CD48: 0.0822 | CE48: 0.0822 | CF48: 0.0823 | CG48: 0.0823 | CH48: 62
C49: 63 | D49: 0.0699 | E49: 0.07 | F49: 0.0701 | G49: 0.0702 | H49: 0.0703 | I49: 0.0704 | J49: 0.0705 | K49: 0.0706 | L49: 0.0708 | M49: 0.0709 | N49: 0.071 | O49: 0.0711 | P49: 0.0713 | Q49: 0.0714 | R49: 0.0716 | S49: 0.0717 | T49: 0.0719 | U49: 0.072 | V49: 0.0722 | W49: 0.0724 | X49: 0.0726 | Y49: 0.0728 | Z49: 0.0729 | AA49: 0.0731 | AB49: 0.0733 | AC49: 0.0735 | AD49: 0.0738 | AE49: 0.074 | AF49: 0.0742 | AG49: 0.0744 | AH49: 0.0746 | AI49: 0.0749 | AJ49: 0.0751 | AK49: 0.0753 | AL49: 0.0756 | AM49: 0.0758 | AN49: 0.0761 | AO49: 0.0763 | AP49: 0.0766 | AQ49: 0.0768 | AR49: 0.0771 | AS49: 0.0773 | AT49: 0.0776 | AU49: 0.0778 | AV49: 0.0781 | AW49: 0.0783 | AX49: 0.0786 | AY49: 0.0789 | AZ49: 0.0791 | BA49: 0.0794 | BB49: 0.0796 | BC49: 0.0799 | BD49: 0.0801 | BE49: 0.0803 | BF49: 0.0806 | BG49: 0.0808 | BH49: 0.081 | BI49: 0.0812 | BJ49: 0.0814 | BK49: 0.0815 | BL49: 0.0817 | BM49: 0.0819 | BN49: 0.082 | BO49: 0.0822 | BP49: 0.0823 | BQ49: 0.0824 | BR49: 0.0826 | BS49: 0.0827 | BT49: 0.0828 | BU49: 0.0829 | BV49: 0.083 | BW49: 0.0831 | BX49: 0.0831 | BY49: 0.0832 | BZ49: 0.0833 | CA49: 0.0834 | CB49: 0.0834 | CC49: 0.0835 | CD49: 0.0835 | CE49: 0.0836 | CF49: 0.0836 | CG49: 0.0837 | CH49: 63
C50: 64 | D50: 0.0705 | E50: 0.0706 | F50: 0.0707 | G50: 0.0707 | H50: 0.0709 | I50: 0.071 | J50: 0.0711 | K50: 0.0712 | L50: 0.0713 | M50: 0.0714 | N50: 0.0716 | O50: 0.0717 | P50: 0.0718 | Q50: 0.072 | R50: 0.0721 | S50: 0.0723 | T50: 0.0725 | U50: 0.0726 | V50: 0.0728 | W50: 0.073 | X50: 0.0732 | Y50: 0.0734 | Z50: 0.0736 | AA50: 0.0738 | AB50: 0.074 | AC50: 0.0742 | AD50: 0.0744 | AE50: 0.0746 | AF50: 0.0749 | AG50: 0.0751 | AH50: 0.0753 | AI50: 0.0756 | AJ50: 0.0758 | AK50: 0.0761 | AL50: 0.0763 | AM50: 0.0766 | AN50: 0.0768 | AO50: 0.0771 | AP50: 0.0773 | AQ50: 0.0776 | AR50: 0.0779 | AS50: 0.0782 | AT50: 0.0784 | AU50: 0.0787 | AV50: 0.079 | AW50: 0.0793 | AX50: 0.0795 | AY50: 0.0798 | AZ50: 0.0801 | BA50: 0.0804 | BB50: 0.0806 | BC50: 0.0809 | BD50: 0.0812 | BE50: 0.0814 | BF50: 0.0817 | BG50: 0.0819 | BH50: 0.0821 | BI50: 0.0824 | BJ50: 0.0826 | BK50: 0.0828 | BL50: 0.083 | BM50: 0.0831 | BN50: 0.0833 | BO50: 0.0835 | BP50: 0.0836 | BQ50: 0.0838 | BR50: 0.0839 | BS50: 0.084 | BT50: 0.0842 | BU50: 0.0843 | BV50: 0.0844 | BW50: 0.0845 | BX50: 0.0846 | BY50: 0.0846 | BZ50: 0.0847 | CA50: 0.0848 | CB50: 0.0849 | CC50: 0.0849 | CD50: 0.085 | CE50: 0.0851 | CF50: 0.0851 | CG50: 0.0852 | CH50: 64
C51: 65 | D51: 0.071 | E51: 0.0711 | F51: 0.0712 | G51: 0.0713 | H51: 0.0714 | I51: 0.0715 | J51: 0.0717 | K51: 0.0718 | L51: 0.0719 | M51: 0.072 | N51: 0.0722 | O51: 0.0723 | P51: 0.0724 | Q51: 0.0726 | R51: 0.0728 | S51: 0.0729 | T51: 0.0731 | U51: 0.0733 | V51: 0.0734 | W51: 0.0736 | X51: 0.0738 | Y51: 0.074 | Z51: 0.0742 | AA51: 0.0744 | AB51: 0.0746 | AC51: 0.0749 | AD51: 0.0751 | AE51: 0.0753 | AF51: 0.0756 | AG51: 0.0758 | AH51: 0.076 | AI51: 0.0763 | AJ51: 0.0766 | AK51: 0.0768 | AL51: 0.0771 | AM51: 0.0774 | AN51: 0.0776 | AO51: 0.0779 | AP51: 0.0782 | AQ51: 0.0785 | AR51: 0.0788 | AS51: 0.079 | AT51: 0.0793 | AU51: 0.0796 | AV51: 0.0799 | AW51: 0.0802 | AX51: 0.0805 | AY51: 0.0808 | AZ51: 0.0811 | BA51: 0.0814 | BB51: 0.0817 | BC51: 0.082 | BD51: 0.0823 | BE51: 0.0826 | BF51: 0.0829 | BG51: 0.0831 | BH51: 0.0834 | BI51: 0.0836 | BJ51: 0.0839 | BK51: 0.0841 | BL51: 0.0843 | BM51: 0.0845 | BN51: 0.0847 | BO51: 0.0849 | BP51: 0.085 | BQ51: 0.0852 | BR51: 0.0853 | BS51: 0.0855 | BT51: 0.0856 | BU51: 0.0857 | BV51: 0.0859 | BW51: 0.086 | BX51: 0.0861 | BY51: 0.0862 | BZ51: 0.0863 | CA51: 0.0864 | CB51: 0.0864 | CC51: 0.0865 | CD51: 0.0866 | CE51: 0.0866 | CF51: 0.0867 | CG51: 0.0868 | CH51: 65
C52: 66 | D52: 0.0716 | E52: 0.0717 | F52: 0.0718 | G52: 0.0719 | H52: 0.072 | I52: 0.0722 | J52: 0.0723 | K52: 0.0724 | L52: 0.0725 | M52: 0.0726 | N52: 0.0728 | O52: 0.0729 | P52: 0.0731 | Q52: 0.0732 | R52: 0.0734 | S52: 0.0736 | T52: 0.0737 | U52: 0.0739 | V52: 0.0741 | W52: 0.0743 | X52: 0.0745 | Y52: 0.0747 | Z52: 0.0749 | AA52: 0.0751 | AB52: 0.0753 | AC52: 0.0756 | AD52: 0.0758 | AE52: 0.0761 | AF52: 0.0763 | AG52: 0.0766 | AH52: 0.0768 | AI52: 0.0771 | AJ52: 0.0773 | AK52: 0.0776 | AL52: 0.0779 | AM52: 0.0782 | AN52: 0.0785 | AO52: 0.0788 | AP52: 0.0791 | AQ52: 0.0794 | AR52: 0.0797 | AS52: 0.08 | AT52: 0.0803 | AU52: 0.0806 | AV52: 0.0809 | AW52: 0.0812 | AX52: 0.0816 | AY52: 0.0819 | AZ52: 0.0822 | BA52: 0.0826 | BB52: 0.0829 | BC52: 0.0832 | BD52: 0.0835 | BE52: 0.0838 | BF52: 0.0841 | BG52: 0.0844 | BH52: 0.0847 | BI52: 0.085 | BJ52: 0.0852 | BK52: 0.0855 | BL52: 0.0857 | BM52: 0.0859 | BN52: 0.0861 | BO52: 0.0863 | BP52: 0.0865 | BQ52: 0.0867 | BR52: 0.0869 | BS52: 0.087 | BT52: 0.0872 | BU52: 0.0873 | BV52: 0.0875 | BW52: 0.0876 | BX52: 0.0877 | BY52: 0.0878 | BZ52: 0.0879 | CA52: 0.088 | CB52: 0.0881 | CC52: 0.0882 | CD52: 0.0883 | CE52: 0.0884 | CF52: 0.0884 | CG52: 0.0885 | CH52: 66
C53: 67 | D53: 0.0723 | E53: 0.0724 | F53: 0.0725 | G53: 0.0726 | H53: 0.0727 | I53: 0.0728 | J53: 0.0729 | K53: 0.073 | L53: 0.0732 | M53: 0.0733 | N53: 0.0734 | O53: 0.0736 | P53: 0.0737 | Q53: 0.0739 | R53: 0.0741 | S53: 0.0742 | T53: 0.0744 | U53: 0.0746 | V53: 0.0748 | W53: 0.075 | X53: 0.0752 | Y53: 0.0754 | Z53: 0.0756 | AA53: 0.0759 | AB53: 0.0761 | AC53: 0.0763 | AD53: 0.0766 | AE53: 0.0768 | AF53: 0.0771 | AG53: 0.0773 | AH53: 0.0776 | AI53: 0.0779 | AJ53: 0.0782 | AK53: 0.0785 | AL53: 0.0788 | AM53: 0.0791 | AN53: 0.0794 | AO53: 0.0797 | AP53: 0.08 | AQ53: 0.0803 | AR53: 0.0806 | AS53: 0.081 | AT53: 0.0813 | AU53: 0.0816 | AV53: 0.082 | AW53: 0.0823 | AX53: 0.0827 | AY53: 0.083 | AZ53: 0.0834 | BA53: 0.0837 | BB53: 0.0841 | BC53: 0.0844 | BD53: 0.0848 | BE53: 0.0851 | BF53: 0.0854 | BG53: 0.0858 | BH53: 0.0861 | BI53: 0.0864 | BJ53: 0.0867 | BK53: 0.0869 | BL53: 0.0872 | BM53: 0.0874 | BN53: 0.0877 | BO53: 0.0879 | BP53: 0.0881 | BQ53: 0.0883 | BR53: 0.0885 | BS53: 0.0887 | BT53: 0.0889 | BU53: 0.089 | BV53: 0.0892 | BW53: 0.0893 | BX53: 0.0895 | BY53: 0.0896 | BZ53: 0.0897 | CA53: 0.0898 | CB53: 0.0899 | CC53: 0.09 | CD53: 0.0901 | CE53: 0.0902 | CF53: 0.0903 | CG53: 0.0903 | CH53: 67
C54: 68 | D54: 0.0729 | E54: 0.073 | F54: 0.0731 | G54: 0.0732 | H54: 0.0734 | I54: 0.0735 | J54: 0.0736 | K54: 0.0737 | L54: 0.0739 | M54: 0.074 | N54: 0.0741 | O54: 0.0743 | P54: 0.0744 | Q54: 0.0746 | R54: 0.0748 | S54: 0.075 | T54: 0.0751 | U54: 0.0753 | V54: 0.0755 | W54: 0.0757 | X54: 0.0759 | Y54: 0.0762 | Z54: 0.0764 | AA54: 0.0766 | AB54: 0.0769 | AC54: 0.0771 | AD54: 0.0774 | AE54: 0.0776 | AF54: 0.0779 | AG54: 0.0782 | AH54: 0.0784 | AI54: 0.0787 | AJ54: 0.079 | AK54: 0.0793 | AL54: 0.0797 | AM54: 0.08 | AN54: 0.0803 | AO54: 0.0806 | AP54: 0.0809 | AQ54: 0.0813 | AR54: 0.0816 | AS54: 0.082 | AT54: 0.0823 | AU54: 0.0827 | AV54: 0.0831 | AW54: 0.0834 | AX54: 0.0838 | AY54: 0.0842 | AZ54: 0.0846 | BA54: 0.085 | BB54: 0.0854 | BC54: 0.0857 | BD54: 0.0861 | BE54: 0.0865 | BF54: 0.0868 | BG54: 0.0872 | BH54: 0.0875 | BI54: 0.0878 | BJ54: 0.0882 | BK54: 0.0885 | BL54: 0.0888 | BM54: 0.089 | BN54: 0.0893 | BO54: 0.0896 | BP54: 0.0898 | BQ54: 0.09 | BR54: 0.0902 | BS54: 0.0904 | BT54: 0.0906 | BU54: 0.0908 | BV54: 0.091 | BW54: 0.0911 | BX54: 0.0913 | BY54: 0.0914 | BZ54: 0.0916 | CA54: 0.0917 | CB54: 0.0918 | CC54: 0.0919 | CD54: 0.092 | CE54: 0.0921 | CF54: 0.0922 | CG54: 0.0923 | CH54: 68
C55: 69 | D55: 0.0736 | E55: 0.0737 | F55: 0.0738 | G55: 0.0739 | H55: 0.074 | I55: 0.0742 | J55: 0.0743 | K55: 0.0744 | L55: 0.0746 | M55: 0.0747 | N55: 0.0749 | O55: 0.075 | P55: 0.0752 | Q55: 0.0753 | R55: 0.0755 | S55: 0.0757 | T55: 0.0759 | U55: 0.0761 | V55: 0.0763 | W55: 0.0765 | X55: 0.0767 | Y55: 0.0769 | Z55: 0.0772 | AA55: 0.0774 | AB55: 0.0777 | AC55: 0.0779 | AD55: 0.0782 | AE55: 0.0785 | AF55: 0.0787 | AG55: 0.079 | AH55: 0.0793 | AI55: 0.0796 | AJ55: 0.0799 | AK55: 0.0802 | AL55: 0.0806 | AM55: 0.0809 | AN55: 0.0812 | AO55: 0.0816 | AP55: 0.0819 | AQ55: 0.0823 | AR55: 0.0827 | AS55: 0.083 | AT55: 0.0834 | AU55: 0.0838 | AV55: 0.0842 | AW55: 0.0846 | AX55: 0.085 | AY55: 0.0854 | AZ55: 0.0858 | BA55: 0.0862 | BB55: 0.0867 | BC55: 0.0871 | BD55: 0.0875 | BE55: 0.0879 | BF55: 0.0883 | BG55: 0.0887 | BH55: 0.089 | BI55: 0.0894 | BJ55: 0.0897 | BK55: 0.0901 | BL55: 0.0904 | BM55: 0.0907 | BN55: 0.091 | BO55: 0.0913 | BP55: 0.0916 | BQ55: 0.0918 | BR55: 0.0921 | BS55: 0.0923 | BT55: 0.0925 | BU55: 0.0927 | BV55: 0.0929 | BW55: 0.0931 | BX55: 0.0933 | BY55: 0.0934 | BZ55: 0.0936 | CA55: 0.0937 | CB55: 0.0938 | CC55: 0.094 | CD55: 0.0941 | CE55: 0.0942 | CF55: 0.0943 | CG55: 0.0944 | CH55: 69
C56: 70 | D56: 0.0743 | E56: 0.0744 | F56: 0.0745 | G56: 0.0747 | H56: 0.0748 | I56: 0.0749 | J56: 0.075 | K56: 0.0752 | L56: 0.0753 | M56: 0.0754 | N56: 0.0756 | O56: 0.0758 | P56: 0.0759 | Q56: 0.0761 | R56: 0.0763 | S56: 0.0765 | T56: 0.0767 | U56: 0.0769 | V56: 0.0771 | W56: 0.0773 | X56: 0.0775 | Y56: 0.0777 | Z56: 0.078 | AA56: 0.0782 | AB56: 0.0785 | AC56: 0.0788 | AD56: 0.079 | AE56: 0.0793 | AF56: 0.0796 | AG56: 0.0799 | AH56: 0.0802 | AI56: 0.0805 | AJ56: 0.0809 | AK56: 0.0812 | AL56: 0.0815 | AM56: 0.0819 | AN56: 0.0822 | AO56: 0.0826 | AP56: 0.083 | AQ56: 0.0833 | AR56: 0.0837 | AS56: 0.0841 | AT56: 0.0845 | AU56: 0.0849 | AV56: 0.0854 | AW56: 0.0858 | AX56: 0.0862 | AY56: 0.0867 | AZ56: 0.0871 | BA56: 0.0876 | BB56: 0.088 | BC56: 0.0885 | BD56: 0.0889 | BE56: 0.0893 | BF56: 0.0898 | BG56: 0.0902 | BH56: 0.0906 | BI56: 0.091 | BJ56: 0.0914 | BK56: 0.0918 | BL56: 0.0921 | BM56: 0.0925 | BN56: 0.0928 | BO56: 0.0931 | BP56: 0.0934 | BQ56: 0.0937 | BR56: 0.094 | BS56: 0.0942 | BT56: 0.0945 | BU56: 0.0947 | BV56: 0.0949 | BW56: 0.0951 | BX56: 0.0953 | BY56: 0.0955 | BZ56: 0.0957 | CA56: 0.0958 | CB56: 0.096 | CC56: 0.0961 | CD56: 0.0963 | CE56: 0.0964 | CF56: 0.0965 | CG56: 0.0966 | CH56: 70
C57: 71 | D57: 0.0751 | E57: 0.0752 | F57: 0.0753 | G57: 0.0754 | H57: 0.0755 | I57: 0.0756 | J57: 0.0758 | K57: 0.0759 | L57: 0.0761 | M57: 0.0762 | N57: 0.0764 | O57: 0.0765 | P57: 0.0767 | Q57: 0.0769 | R57: 0.0771 | S57: 0.0772 | T57: 0.0774 | U57: 0.0777 | V57: 0.0779 | W57: 0.0781 | X57: 0.0783 | Y57: 0.0786 | Z57: 0.0788 | AA57: 0.0791 | AB57: 0.0793 | AC57: 0.0796 | AD57: 0.0799 | AE57: 0.0802 | AF57: 0.0805 | AG57: 0.0808 | AH57: 0.0811 | AI57: 0.0815 | AJ57: 0.0818 | AK57: 0.0822 | AL57: 0.0825 | AM57: 0.0829 | AN57: 0.0832 | AO57: 0.0836 | AP57: 0.084 | AQ57: 0.0844 | AR57: 0.0848 | AS57: 0.0852 | AT57: 0.0857 | AU57: 0.0861 | AV57: 0.0866 | AW57: 0.087 | AX57: 0.0875 | AY57: 0.088 | AZ57: 0.0884 | BA57: 0.0889 | BB57: 0.0894 | BC57: 0.0899 | BD57: 0.0904 | BE57: 0.0909 | BF57: 0.0913 | BG57: 0.0918 | BH57: 0.0922 | BI57: 0.0927 | BJ57: 0.0931 | BK57: 0.0935 | BL57: 0.0939 | BM57: 0.0943 | BN57: 0.0946 | BO57: 0.095 | BP57: 0.0953 | BQ57: 0.0956 | BR57: 0.0959 | BS57: 0.0962 | BT57: 0.0965 | BU57: 0.0968 | BV57: 0.097 | BW57: 0.0972 | BX57: 0.0975 | BY57: 0.0977 | BZ57: 0.0979 | CA57: 0.0981 | CB57: 0.0982 | CC57: 0.0984 | CD57: 0.0985 | CE57: 0.0987 | CF57: 0.0988 | CG57: 0.099 | CH57: 71
C58: 72 | D58: 0.0758 | E58: 0.0759 | F58: 0.076 | G58: 0.0762 | H58: 0.0763 | I58: 0.0764 | J58: 0.0765 | K58: 0.0767 | L58: 0.0768 | M58: 0.077 | N58: 0.0771 | O58: 0.0773 | P58: 0.0775 | Q58: 0.0777 | R58: 0.0779 | S58: 0.0781 | T58: 0.0783 | U58: 0.0785 | V58: 0.0787 | W58: 0.0789 | X58: 0.0792 | Y58: 0.0794 | Z58: 0.0797 | AA58: 0.0799 | AB58: 0.0802 | AC58: 0.0805 | AD58: 0.0808 | AE58: 0.0811 | AF58: 0.0814 | AG58: 0.0817 | AH58: 0.0821 | AI58: 0.0824 | AJ58: 0.0828 | AK58: 0.0831 | AL58: 0.0835 | AM58: 0.0839 | AN58: 0.0843 | AO58: 0.0847 | AP58: 0.0851 | AQ58: 0.0855 | AR58: 0.086 | AS58: 0.0864 | AT58: 0.0868 | AU58: 0.0873 | AV58: 0.0878 | AW58: 0.0883 | AX58: 0.0888 | AY58: 0.0893 | AZ58: 0.0898 | BA58: 0.0903 | BB58: 0.0909 | BC58: 0.0914 | BD58: 0.0919 | BE58: 0.0924 | BF58: 0.0929 | BG58: 0.0934 | BH58: 0.0939 | BI58: 0.0944 | BJ58: 0.0949 | BK58: 0.0953 | BL58: 0.0957 | BM58: 0.0962 | BN58: 0.0966 | BO58: 0.097 | BP58: 0.0973 | BQ58: 0.0977 | BR58: 0.098 | BS58: 0.0983 | BT58: 0.0986 | BU58: 0.0989 | BV58: 0.0992 | BW58: 0.0995 | BX58: 0.0997 | BY58: 0.1 | BZ58: 0.1002 | CA58: 0.1004 | CB58: 0.1006 | CC58: 0.1008 | CD58: 0.101 | CE58: 0.1011 | CF58: 0.1013 | CG58: 0.1014 | CH58: 72
C59: 73 | D59: 0.0766 | E59: 0.0767 | F59: 0.0768 | G59: 0.0769 | H59: 0.0771 | I59: 0.0772 | J59: 0.0773 | K59: 0.0775 | L59: 0.0776 | M59: 0.0778 | N59: 0.0779 | O59: 0.0781 | P59: 0.0783 | Q59: 0.0785 | R59: 0.0787 | S59: 0.0789 | T59: 0.0791 | U59: 0.0793 | V59: 0.0795 | W59: 0.0798 | X59: 0.08 | Y59: 0.0803 | Z59: 0.0806 | AA59: 0.0808 | AB59: 0.0811 | AC59: 0.0814 | AD59: 0.0817 | AE59: 0.082 | AF59: 0.0824 | AG59: 0.0827 | AH59: 0.083 | AI59: 0.0834 | AJ59: 0.0838 | AK59: 0.0842 | AL59: 0.0845 | AM59: 0.0849 | AN59: 0.0854 | AO59: 0.0858 | AP59: 0.0862 | AQ59: 0.0867 | AR59: 0.0871 | AS59: 0.0876 | AT59: 0.0881 | AU59: 0.0885 | AV59: 0.089 | AW59: 0.0896 | AX59: 0.0901 | AY59: 0.0906 | AZ59: 0.0912 | BA59: 0.0918 | BB59: 0.0923 | BC59: 0.0929 | BD59: 0.0935 | BE59: 0.094 | BF59: 0.0946 | BG59: 0.0951 | BH59: 0.0957 | BI59: 0.0962 | BJ59: 0.0967 | BK59: 0.0972 | BL59: 0.0977 | BM59: 0.0981 | BN59: 0.0986 | BO59: 0.099 | BP59: 0.0994 | BQ59: 0.0998 | BR59: 0.1002 | BS59: 0.1005 | BT59: 0.1009 | BU59: 0.1012 | BV59: 0.1015 | BW59: 0.1018 | BX59: 0.1021 | BY59: 0.1023 | BZ59: 0.1026 | CA59: 0.1028 | CB59: 0.1031 | CC59: 0.1033 | CD59: 0.1035 | CE59: 0.1037 | CF59: 0.1038 | CG59: 0.104 | CH59: 73
C60: 74 | D60: 0.0774 | E60: 0.0775 | F60: 0.0776 | G60: 0.0777 | H60: 0.0779 | I60: 0.078 | J60: 0.0781 | K60: 0.0783 | L60: 0.0784 | M60: 0.0786 | N60: 0.0788 | O60: 0.0789 | P60: 0.0791 | Q60: 0.0793 | R60: 0.0795 | S60: 0.0797 | T60: 0.0799 | U60: 0.0802 | V60: 0.0804 | W60: 0.0807 | X60: 0.0809 | Y60: 0.0812 | Z60: 0.0815 | AA60: 0.0817 | AB60: 0.082 | AC60: 0.0823 | AD60: 0.0827 | AE60: 0.083 | AF60: 0.0833 | AG60: 0.0837 | AH60: 0.084 | AI60: 0.0844 | AJ60: 0.0848 | AK60: 0.0852 | AL60: 0.0856 | AM60: 0.086 | AN60: 0.0864 | AO60: 0.0869 | AP60: 0.0873 | AQ60: 0.0878 | AR60: 0.0883 | AS60: 0.0888 | AT60: 0.0893 | AU60: 0.0898 | AV60: 0.0903 | AW60: 0.0909 | AX60: 0.0915 | AY60: 0.092 | AZ60: 0.0926 | BA60: 0.0932 | BB60: 0.0938 | BC60: 0.0945 | BD60: 0.0951 | BE60: 0.0957 | BF60: 0.0963 | BG60: 0.0969 | BH60: 0.0974 | BI60: 0.098 | BJ60: 0.0986 | BK60: 0.0991 | BL60: 0.0996 | BM60: 0.1001 | BN60: 0.1006 | BO60: 0.1011 | BP60: 0.1016 | BQ60: 0.102 | BR60: 0.1024 | BS60: 0.1028 | BT60: 0.1032 | BU60: 0.1036 | BV60: 0.1039 | BW60: 0.1042 | BX60: 0.1045 | BY60: 0.1048 | BZ60: 0.1051 | CA60: 0.1054 | CB60: 0.1056 | CC60: 0.1059 | CD60: 0.1061 | CE60: 0.1063 | CF60: 0.1065 | CG60: 0.1067 | CH60: 74
C61: 75 | D61: 0.0782 | E61: 0.0783 | F61: 0.0784 | G61: 0.0785 | H61: 0.0787 | I61: 0.0788 | J61: 0.079 | K61: 0.0791 | L61: 0.0793 | M61: 0.0794 | N61: 0.0796 | O61: 0.0798 | P61: 0.08 | Q61: 0.0802 | R61: 0.0804 | S61: 0.0806 | T61: 0.0808 | U61: 0.081 | V61: 0.0813 | W61: 0.0815 | X61: 0.0818 | Y61: 0.0821 | Z61: 0.0824 | AA61: 0.0827 | AB61: 0.083 | AC61: 0.0833 | AD61: 0.0836 | AE61: 0.0839 | AF61: 0.0843 | AG61: 0.0847 | AH61: 0.085 | AI61: 0.0854 | AJ61: 0.0858 | AK61: 0.0862 | AL61: 0.0867 | AM61: 0.0871 | AN61: 0.0875 | AO61: 0.088 | AP61: 0.0885 | AQ61: 0.089 | AR61: 0.0895 | AS61: 0.09 | AT61: 0.0905 | AU61: 0.0911 | AV61: 0.0916 | AW61: 0.0922 | AX61: 0.0928 | AY61: 0.0935 | AZ61: 0.0941 | BA61: 0.0947 | BB61: 0.0954 | BC61: 0.096 | BD61: 0.0967 | BE61: 0.0974 | BF61: 0.098 | BG61: 0.0986 | BH61: 0.0993 | BI61: 0.0999 | BJ61: 0.1005 | BK61: 0.1011 | BL61: 0.1017 | BM61: 0.1022 | BN61: 0.1028 | BO61: 0.1033 | BP61: 0.1038 | BQ61: 0.1043 | BR61: 0.1047 | BS61: 0.1052 | BT61: 0.1056 | BU61: 0.106 | BV61: 0.1064 | BW61: 0.1067 | BX61: 0.1071 | BY61: 0.1074 | BZ61: 0.1077 | CA61: 0.108 | CB61: 0.1083 | CC61: 0.1086 | CD61: 0.1088 | CE61: 0.1091 | CF61: 0.1093 | CG61: 0.1095 | CH61: 75
C62: 76 | D62: 0.079 | E62: 0.0791 | F62: 0.0792 | G62: 0.0794 | H62: 0.0795 | I62: 0.0796 | J62: 0.0798 | K62: 0.0799 | L62: 0.0801 | M62: 0.0803 | N62: 0.0805 | O62: 0.0806 | P62: 0.0808 | Q62: 0.081 | R62: 0.0812 | S62: 0.0815 | T62: 0.0817 | U62: 0.0819 | V62: 0.0822 | W62: 0.0824 | X62: 0.0827 | Y62: 0.083 | Z62: 0.0833 | AA62: 0.0836 | AB62: 0.0839 | AC62: 0.0842 | AD62: 0.0846 | AE62: 0.0849 | AF62: 0.0853 | AG62: 0.0857 | AH62: 0.0861 | AI62: 0.0865 | AJ62: 0.0869 | AK62: 0.0873 | AL62: 0.0877 | AM62: 0.0882 | AN62: 0.0887 | AO62: 0.0892 | AP62: 0.0896 | AQ62: 0.0902 | AR62: 0.0907 | AS62: 0.0912 | AT62: 0.0918 | AU62: 0.0924 | AV62: 0.093 | AW62: 0.0936 | AX62: 0.0942 | AY62: 0.0949 | AZ62: 0.0956 | BA62: 0.0963 | BB62: 0.097 | BC62: 0.0977 | BD62: 0.0984 | BE62: 0.0991 | BF62: 0.0998 | BG62: 0.1005 | BH62: 0.1011 | BI62: 0.1018 | BJ62: 0.1025 | BK62: 0.1031 | BL62: 0.1037 | BM62: 0.1044 | BN62: 0.1049 | BO62: 0.1055 | BP62: 0.1061 | BQ62: 0.1066 | BR62: 0.1071 | BS62: 0.1076 | BT62: 0.1081 | BU62: 0.1085 | BV62: 0.1089 | BW62: 0.1093 | BX62: 0.1097 | BY62: 0.1101 | BZ62: 0.1105 | CA62: 0.1108 | CB62: 0.1111 | CC62: 0.1114 | CD62: 0.1117 | CE62: 0.112 | CF62: 0.1122 | CG62: 0.1125 | CH62: 76
... 75 more rows

Sheet JLRP_Revised Dec 2019 (hidden)
A1: Kotak Lifetime Income (Option 6) - Annuity Rates Applicaple for Purchase Price Less than Rs.2,50,000 and for Annual Mode
A3: Age | B3: 18 | C3: =B3+1 -> 19 | D3: 20 | E3: 21 | F3: 22 | G3: 23 | H3: 24 | I3: 25 | J3: 26 | K3: 27 | L3: 28 | M3: 29 | N3: 30 | O3: 31 | P3: 32 | Q3: 33 | R3: 34 | S3: 35 | T3: 36 | U3: 37 | V3: 38 | W3: 39 | X3: 40 | Y3: 41 | Z3: 42 | AA3: 43 | AB3: 44 | AC3: 45 | AD3: 46 | AE3: 47 | AF3: 48 | AG3: 49 | AH3: 50 | AI3: 51 | AJ3: 52 | AK3: 53 | AL3: 54 | AM3: 55 | AN3: =AM3+1 -> 56 | AO3: 57 | AP3: 58 | AQ3: 59 | AR3: 60 | AS3: 61 | AT3: 62 | AU3: 63 | AV3: 64 | AW3: 65 | AX3: 66 | AY3: 67 | AZ3: 68 | BA3: 69 | BB3: 70 | BC3: 71 | BD3: 72 | BE3: 73 | BF3: 74 | BG3: 75 | BH3: 76 | BI3: 77 | BJ3: 78 | BK3: 79 | BL3: 80 | BM3: 81 | BN3: 82 | BO3: =BN3+1 -> 83 | BP3: 84 | BQ3: 85 | BR3: 86 | BS3: 87 | BT3: 88 | BU3: 89 | BV3: 90 | BW3: 91 | BX3: 92 | BY3: 93 | BZ3: 94 | CA3: 95 | CB3: 96 | CC3: 97 | CD3: 98 | CE3: 99 | CF3: Age
A4: 18 | B4: 0.0579 | CF4: 18
A5: =A4+1 -> 19 | B5: 0.0579 | C5: 0.0579 | CF5: =CF4+1 -> 19
A6: 20 | B6: 0.0579 | C6: 0.0579 | D6: 0.0579 | CF6: 20
A7: 21 | B7: 0.0579 | C7: 0.0579 | D7: 0.0579 | E7: 0.0579 | CF7: 21
A8: 22 | B8: 0.0579 | C8: 0.0579 | D8: 0.0579 | E8: 0.0579 | F8: 0.0579 | CF8: 22
A9: 23 | B9: 0.0579 | C9: 0.0579 | D9: 0.0579 | E9: 0.0579 | F9: 0.0579 | G9: 0.058 | CF9: 23
A10: 24 | B10: 0.0579 | C10: 0.0579 | D10: 0.0579 | E10: 0.0579 | F10: 0.058 | G10: 0.058 | H10: 0.058 | CF10: 24
A11: 25 | B11: 0.0579 | C11: 0.0579 | D11: 0.0579 | E11: 0.058 | F11: 0.058 | G11: 0.058 | H11: 0.058 | I11: 0.058 | CF11: 25
A12: 26 | B12: 0.058 | C12: 0.058 | D12: 0.058 | E12: 0.058 | F12: 0.058 | G12: 0.058 | H12: 0.058 | I12: 0.058 | J12: 0.058 | CF12: 26
A13: 27 | B13: 0.058 | C13: 0.058 | D13: 0.058 | E13: 0.058 | F13: 0.058 | G13: 0.058 | H13: 0.058 | I13: 0.058 | J13: 0.058 | K13: 0.0581 | CF13: 27
A14: 28 | B14: 0.058 | C14: 0.058 | D14: 0.058 | E14: 0.058 | F14: 0.058 | G14: 0.058 | H14: 0.058 | I14: 0.058 | J14: 0.0581 | K14: 0.0581 | L14: 0.0581 | CF14: 28
A15: 29 | B15: 0.058 | C15: 0.058 | D15: 0.058 | E15: 0.058 | F15: 0.058 | G15: 0.058 | H15: 0.058 | I15: 0.0581 | J15: 0.0581 | K15: 0.0581 | L15: 0.0581 | M15: 0.0581 | CF15: 29
A16: 30 | B16: 0.058 | C16: 0.058 | D16: 0.058 | E16: 0.058 | F16: 0.058 | G16: 0.058 | H16: 0.0581 | I16: 0.0581 | J16: 0.0581 | K16: 0.0581 | L16: 0.0581 | M16: 0.0582 | N16: 0.0582 | CF16: 30
A17: 31 | B17: 0.058 | C17: 0.058 | D17: 0.058 | E17: 0.058 | F17: 0.058 | G17: 0.058 | H17: 0.0581 | I17: 0.0581 | J17: 0.0581 | K17: 0.0581 | L17: 0.0582 | M17: 0.0582 | N17: 0.0582 | O17: 0.0582 | CF17: 31
A18: 32 | B18: 0.058 | C18: 0.058 | D18: 0.058 | E18: 0.058 | F18: 0.058 | G18: 0.0581 | H18: 0.0581 | I18: 0.0581 | J18: 0.0581 | K18: 0.0582 | L18: 0.0582 | M18: 0.0582 | N18: 0.0582 | O18: 0.0583 | P18: 0.0583 | CF18: 32
A19: 33 | B19: 0.058 | C19: 0.058 | D19: 0.058 | E19: 0.058 | F19: 0.0581 | G19: 0.0581 | H19: 0.0581 | I19: 0.0581 | J19: 0.0581 | K19: 0.0582 | L19: 0.0582 | M19: 0.0582 | N19: 0.0583 | O19: 0.0583 | P19: 0.0583 | Q19: 0.0584 | CF19: 33
A20: 34 | B20: 0.058 | C20: 0.058 | D20: 0.058 | E20: 0.0581 | F20: 0.0581 | G20: 0.0581 | H20: 0.0581 | I20: 0.0581 | J20: 0.0582 | K20: 0.0582 | L20: 0.0582 | M20: 0.0583 | N20: 0.0583 | O20: 0.0583 | P20: 0.0583 | Q20: 0.0584 | R20: 0.0584 | CF20: 34
A21: 35 | B21: 0.058 | C21: 0.058 | D21: 0.0581 | E21: 0.0581 | F21: 0.0581 | G21: 0.0581 | H21: 0.0581 | I21: 0.0582 | J21: 0.0582 | K21: 0.0582 | L21: 0.0582 | M21: 0.0583 | N21: 0.0583 | O21: 0.0583 | P21: 0.0584 | Q21: 0.0584 | R21: 0.0584 | S21: 0.0585 | CF21: 35
A22: 36 | B22: 0.058 | C22: 0.0581 | D22: 0.0581 | E22: 0.0581 | F22: 0.0581 | G22: 0.0581 | H22: 0.0581 | I22: 0.0582 | J22: 0.0582 | K22: 0.0582 | L22: 0.0583 | M22: 0.0583 | N22: 0.0583 | O22: 0.0584 | P22: 0.0584 | Q22: 0.0584 | R22: 0.0585 | S22: 0.0585 | T22: 0.0585 | CF22: 36
A23: 37 | B23: 0.0581 | C23: 0.0581 | D23: 0.0581 | E23: 0.0581 | F23: 0.0581 | G23: 0.0581 | H23: 0.0582 | I23: 0.0582 | J23: 0.0582 | K23: 0.0583 | L23: 0.0583 | M23: 0.0583 | N23: 0.0584 | O23: 0.0584 | P23: 0.0584 | Q23: 0.0585 | R23: 0.0585 | S23: 0.0585 | T23: 0.0586 | U23: 0.0586 | CF23: 37
A24: 38 | B24: 0.0581 | C24: 0.0581 | D24: 0.0581 | E24: 0.0581 | F24: 0.0581 | G24: 0.0582 | H24: 0.0582 | I24: 0.0582 | J24: 0.0582 | K24: 0.0583 | L24: 0.0583 | M24: 0.0583 | N24: 0.0584 | O24: 0.0584 | P24: 0.0585 | Q24: 0.0585 | R24: 0.0585 | S24: 0.0586 | T24: 0.0586 | U24: 0.0587 | V24: 0.0587 | CF24: 38
A25: 39 | B25: 0.0581 | C25: 0.0581 | D25: 0.0581 | E25: 0.0581 | F25: 0.0581 | G25: 0.0582 | H25: 0.0582 | I25: 0.0582 | J25: 0.0583 | K25: 0.0583 | L25: 0.0583 | M25: 0.0584 | N25: 0.0584 | O25: 0.0585 | P25: 0.0585 | Q25: 0.0585 | R25: 0.0586 | S25: 0.0586 | T25: 0.0587 | U25: 0.0587 | V25: 0.0588 | W25: 0.0588 | CF25: 39
A26: 40 | B26: 0.0581 | C26: 0.0581 | D26: 0.0581 | E26: 0.0581 | F26: 0.0582 | G26: 0.0582 | H26: 0.0582 | I26: 0.0582 | J26: 0.0583 | K26: 0.0583 | L26: 0.0584 | M26: 0.0584 | N26: 0.0584 | O26: 0.0585 | P26: 0.0585 | Q26: 0.0586 | R26: 0.0586 | S26: 0.0587 | T26: 0.0587 | U26: 0.0587 | V26: 0.0588 | W26: 0.0588 | X26: 0.0589 | CF26: 40
A27: 41 | B27: 0.0581 | C27: 0.0581 | D27: 0.0581 | E27: 0.0582 | F27: 0.0582 | G27: 0.0582 | H27: 0.0582 | I27: 0.0583 | J27: 0.0583 | K27: 0.0583 | L27: 0.0584 | M27: 0.0584 | N27: 0.0585 | O27: 0.0585 | P27: 0.0586 | Q27: 0.0586 | R27: 0.0586 | S27: 0.0587 | T27: 0.0587 | U27: 0.0588 | V27: 0.0588 | W27: 0.0589 | X27: 0.0589 | Y27: 0.059 | CF27: 41
A28: 42 | B28: 0.0581 | C28: 0.0581 | D28: 0.0581 | E28: 0.0582 | F28: 0.0582 | G28: 0.0582 | H28: 0.0582 | I28: 0.0583 | J28: 0.0583 | K28: 0.0584 | L28: 0.0584 | M28: 0.0584 | N28: 0.0585 | O28: 0.0585 | P28: 0.0586 | Q28: 0.0586 | R28: 0.0587 | S28: 0.0587 | T28: 0.0588 | U28: 0.0588 | V28: 0.0589 | W28: 0.0589 | X28: 0.059 | Y28: 0.059 | Z28: 0.0591 | CF28: 42
A29: 43 | B29: 0.0581 | C29: 0.0581 | D29: 0.0582 | E29: 0.0582 | F29: 0.0582 | G29: 0.0582 | H29: 0.0583 | I29: 0.0583 | J29: 0.0583 | K29: 0.0584 | L29: 0.0584 | M29: 0.0585 | N29: 0.0585 | O29: 0.0586 | P29: 0.0586 | Q29: 0.0587 | R29: 0.0587 | S29: 0.0587 | T29: 0.0588 | U29: 0.0589 | V29: 0.0589 | W29: 0.059 | X29: 0.059 | Y29: 0.0591 | Z29: 0.0591 | AA29: 0.0592 | CF29: 43
A30: 44 | B30: 0.0581 | C30: 0.0581 | D30: 0.0582 | E30: 0.0582 | F30: 0.0582 | G30: 0.0582 | H30: 0.0583 | I30: 0.0583 | J30: 0.0584 | K30: 0.0584 | L30: 0.0584 | M30: 0.0585 | N30: 0.0585 | O30: 0.0586 | P30: 0.0586 | Q30: 0.0587 | R30: 0.0587 | S30: 0.0588 | T30: 0.0588 | U30: 0.0589 | V30: 0.059 | W30: 0.059 | X30: 0.0591 | Y30: 0.0591 | Z30: 0.0592 | AA30: 0.0592 | AB30: 0.0593 | CF30: 44
A31: 45 | B31: 0.0581 | C31: 0.0582 | D31: 0.0582 | E31: 0.0582 | F31: 0.0582 | G31: 0.0583 | H31: 0.0583 | I31: 0.0583 | J31: 0.0584 | K31: 0.0584 | L31: 0.0585 | M31: 0.0585 | N31: 0.0586 | O31: 0.0586 | P31: 0.0587 | Q31: 0.0587 | R31: 0.0588 | S31: 0.0588 | T31: 0.0589 | U31: 0.0589 | V31: 0.059 | W31: 0.059 | X31: 0.0591 | Y31: 0.0592 | Z31: 0.0592 | AA31: 0.0593 | AB31: 0.0593 | AC31: 0.0594 | CF31: 45
A32: 46 | B32: 0.0581 | C32: 0.0582 | D32: 0.0582 | E32: 0.0582 | F32: 0.0582 | G32: 0.0583 | H32: 0.0583 | I32: 0.0583 | J32: 0.0584 | K32: 0.0584 | L32: 0.0585 | M32: 0.0585 | N32: 0.0586 | O32: 0.0586 | P32: 0.0587 | Q32: 0.0587 | R32: 0.0588 | S32: 0.0588 | T32: 0.0589 | U32: 0.059 | V32: 0.059 | W32: 0.0591 | X32: 0.0591 | Y32: 0.0592 | Z32: 0.0593 | AA32: 0.0593 | AB32: 0.0594 | AC32: 0.0594 | AD32: 0.0595 | CF32: 46
A33: 47 | B33: 0.0582 | C33: 0.0582 | D33: 0.0582 | E33: 0.0582 | F33: 0.0582 | G33: 0.0583 | H33: 0.0583 | I33: 0.0584 | J33: 0.0584 | K33: 0.0584 | L33: 0.0585 | M33: 0.0585 | N33: 0.0586 | O33: 0.0586 | P33: 0.0587 | Q33: 0.0588 | R33: 0.0588 | S33: 0.0589 | T33: 0.0589 | U33: 0.059 | V33: 0.0591 | W33: 0.0591 | X33: 0.0592 | Y33: 0.0593 | Z33: 0.0593 | AA33: 0.0594 | AB33: 0.0594 | AC33: 0.0595 | AD33: 0.0596 | AE33: 0.0596 | CF33: 47
A34: 48 | B34: 0.0582 | C34: 0.0582 | D34: 0.0582 | E34: 0.0582 | F34: 0.0583 | G34: 0.0583 | H34: 0.0583 | I34: 0.0584 | J34: 0.0584 | K34: 0.0585 | L34: 0.0585 | M34: 0.0586 | N34: 0.0586 | O34: 0.0587 | P34: 0.0587 | Q34: 0.0588 | R34: 0.0588 | S34: 0.0589 | T34: 0.059 | U34: 0.059 | V34: 0.0591 | W34: 0.0592 | X34: 0.0592 | Y34: 0.0593 | Z34: 0.0594 | AA34: 0.0594 | AB34: 0.0595 | AC34: 0.0596 | AD34: 0.0596 | AE34: 0.0597 | AF34: 0.0597 | CF34: 48
A35: 49 | B35: 0.0582 | C35: 0.0582 | D35: 0.0582 | E35: 0.0582 | F35: 0.0583 | G35: 0.0583 | H35: 0.0583 | I35: 0.0584 | J35: 0.0584 | K35: 0.0585 | L35: 0.0585 | M35: 0.0586 | N35: 0.0586 | O35: 0.0587 | P35: 0.0587 | Q35: 0.0588 | R35: 0.0589 | S35: 0.0589 | T35: 0.059 | U35: 0.0591 | V35: 0.0591 | W35: 0.0592 | X35: 0.0593 | Y35: 0.0593 | Z35: 0.0594 | AA35: 0.0595 | AB35: 0.0595 | AC35: 0.0596 | AD35: 0.0597 | AE35: 0.0597 | AF35: 0.0598 | AG35: 0.0599 | CF35: 49
A36: 50 | B36: 0.0582 | C36: 0.0582 | D36: 0.0582 | E36: 0.0582 | F36: 0.0583 | G36: 0.0583 | H36: 0.0583 | I36: 0.0584 | J36: 0.0584 | K36: 0.0585 | L36: 0.0585 | M36: 0.0586 | N36: 0.0586 | O36: 0.0587 | P36: 0.0588 | Q36: 0.0588 | R36: 0.0589 | S36: 0.0589 | T36: 0.059 | U36: 0.0591 | V36: 0.0592 | W36: 0.0592 | X36: 0.0593 | Y36: 0.0594 | Z36: 0.0594 | AA36: 0.0595 | AB36: 0.0596 | AC36: 0.0596 | AD36: 0.0597 | AE36: 0.0598 | AF36: 0.0599 | AG36: 0.0599 | AH36: 0.06 | CF36: 50
A37: 51 | B37: 0.0582 | C37: 0.0582 | D37: 0.0582 | E37: 0.0582 | F37: 0.0583 | G37: 0.0583 | H37: 0.0584 | I37: 0.0584 | J37: 0.0584 | K37: 0.0585 | L37: 0.0585 | M37: 0.0586 | N37: 0.0587 | O37: 0.0587 | P37: 0.0588 | Q37: 0.0588 | R37: 0.0589 | S37: 0.059 | T37: 0.059 | U37: 0.0591 | V37: 0.0592 | W37: 0.0593 | X37: 0.0593 | Y37: 0.0594 | Z37: 0.0595 | AA37: 0.0595 | AB37: 0.0596 | AC37: 0.0597 | AD37: 0.0598 | AE37: 0.0598 | AF37: 0.0599 | AG37: 0.06 | AH37: 0.06 | AI37: 0.0601 | CF37: 51
A38: 52 | B38: 0.0582 | C38: 0.0582 | D38: 0.0582 | E38: 0.0583 | F38: 0.0583 | G38: 0.0583 | H38: 0.0584 | I38: 0.0584 | J38: 0.0585 | K38: 0.0585 | L38: 0.0586 | M38: 0.0586 | N38: 0.0587 | O38: 0.0587 | P38: 0.0588 | Q38: 0.0589 | R38: 0.0589 | S38: 0.059 | T38: 0.0591 | U38: 0.0591 | V38: 0.0592 | W38: 0.0593 | X38: 0.0594 | Y38: 0.0594 | Z38: 0.0595 | AA38: 0.0596 | AB38: 0.0597 | AC38: 0.0597 | AD38: 0.0598 | AE38: 0.0599 | AF38: 0.06 | AG38: 0.06 | AH38: 0.0601 | AI38: 0.0602 | AJ38: 0.0602 | CF38: 52
A39: 53 | B39: 0.0582 | C39: 0.0582 | D39: 0.0582 | E39: 0.0583 | F39: 0.0583 | G39: 0.0583 | H39: 0.0584 | I39: 0.0584 | J39: 0.0585 | K39: 0.0585 | L39: 0.0586 | M39: 0.0586 | N39: 0.0587 | O39: 0.0587 | P39: 0.0588 | Q39: 0.0589 | R39: 0.0589 | S39: 0.059 | T39: 0.0591 | U39: 0.0592 | V39: 0.0592 | W39: 0.0593 | X39: 0.0594 | Y39: 0.0595 | Z39: 0.0595 | AA39: 0.0596 | AB39: 0.0597 | AC39: 0.0598 | AD39: 0.0599 | AE39: 0.0599 | AF39: 0.06 | AG39: 0.0601 | AH39: 0.0602 | AI39: 0.0602 | AJ39: 0.0603 | AK39: 0.0604 | CF39: 53
A40: 54 | B40: 0.0582 | C40: 0.0582 | D40: 0.0582 | E40: 0.0583 | F40: 0.0583 | G40: 0.0583 | H40: 0.0584 | I40: 0.0584 | J40: 0.0585 | K40: 0.0585 | L40: 0.0586 | M40: 0.0586 | N40: 0.0587 | O40: 0.0588 | P40: 0.0588 | Q40: 0.0589 | R40: 0.059 | S40: 0.059 | T40: 0.0591 | U40: 0.0592 | V40: 0.0593 | W40: 0.0593 | X40: 0.0594 | Y40: 0.0595 | Z40: 0.0596 | AA40: 0.0597 | AB40: 0.0597 | AC40: 0.0598 | AD40: 0.0599 | AE40: 0.06 | AF40: 0.0601 | AG40: 0.0601 | AH40: 0.0602 | AI40: 0.0603 | AJ40: 0.0603 | AK40: 0.0604 | AL40: 0.0605 | CF40: 54
A41: 55 | B41: 0.0582 | C41: 0.0582 | D41: 0.0582 | E41: 0.0583 | F41: 0.0583 | G41: 0.0583 | H41: 0.0584 | I41: 0.0584 | J41: 0.0585 | K41: 0.0585 | L41: 0.0586 | M41: 0.0586 | N41: 0.0587 | O41: 0.0588 | P41: 0.0588 | Q41: 0.0589 | R41: 0.059 | S41: 0.059 | T41: 0.0591 | U41: 0.0592 | V41: 0.0593 | W41: 0.0594 | X41: 0.0594 | Y41: 0.0595 | Z41: 0.0596 | AA41: 0.0597 | AB41: 0.0598 | AC41: 0.0599 | AD41: 0.0599 | AE41: 0.06 | AF41: 0.0601 | AG41: 0.0602 | AH41: 0.0603 | AI41: 0.0603 | AJ41: 0.0604 | AK41: 0.0605 | AL41: 0.0605 | AM41: 0.0606 | CF41: 55
A42: 56 | B42: 0.0582 | C42: 0.0582 | D42: 0.0582 | E42: 0.0583 | F42: 0.0583 | G42: 0.0584 | H42: 0.0584 | I42: 0.0584 | J42: 0.0585 | K42: 0.0585 | L42: 0.0586 | M42: 0.0587 | N42: 0.0587 | O42: 0.0588 | P42: 0.0588 | Q42: 0.0589 | R42: 0.059 | S42: 0.0591 | T42: 0.0591 | U42: 0.0592 | V42: 0.0593 | W42: 0.0594 | X42: 0.0595 | Y42: 0.0595 | Z42: 0.0596 | AA42: 0.0597 | AB42: 0.0598 | AC42: 0.0599 | AD42: 0.06 | AE42: 0.0601 | AF42: 0.0601 | AG42: 0.0602 | AH42: 0.0603 | AI42: 0.0604 | AJ42: 0.0605 | AK42: 0.0605 | AL42: 0.0606 | AM42: 0.0607 | AN42: 0.0607 | CF42: 56
A43: 57 | B43: 0.0582 | C43: 0.0582 | D43: 0.0583 | E43: 0.0583 | F43: 0.0583 | G43: 0.0584 | H43: 0.0584 | I43: 0.0584 | J43: 0.0585 | K43: 0.0585 | L43: 0.0586 | M43: 0.0587 | N43: 0.0587 | O43: 0.0588 | P43: 0.0589 | Q43: 0.0589 | R43: 0.059 | S43: 0.0591 | T43: 0.0592 | U43: 0.0592 | V43: 0.0593 | W43: 0.0594 | X43: 0.0595 | Y43: 0.0596 | Z43: 0.0597 | AA43: 0.0597 | AB43: 0.0598 | AC43: 0.0599 | AD43: 0.06 | AE43: 0.0601 | AF43: 0.0602 | AG43: 0.0603 | AH43: 0.0603 | AI43: 0.0604 | AJ43: 0.0605 | AK43: 0.0606 | AL43: 0.0607 | AM43: 0.0607 | AN43: 0.0608 | AO43: 0.0609 | CF43: 57
A44: 58 | B44: 0.0582 | C44: 0.0582 | D44: 0.0583 | E44: 0.0583 | F44: 0.0583 | G44: 0.0584 | H44: 0.0584 | I44: 0.0584 | J44: 0.0585 | K44: 0.0586 | L44: 0.0586 | M44: 0.0587 | N44: 0.0587 | O44: 0.0588 | P44: 0.0589 | Q44: 0.0589 | R44: 0.059 | S44: 0.0591 | T44: 0.0592 | U44: 0.0592 | V44: 0.0593 | W44: 0.0594 | X44: 0.0595 | Y44: 0.0596 | Z44: 0.0597 | AA44: 0.0598 | AB44: 0.0599 | AC44: 0.06 | AD44: 0.06 | AE44: 0.0601 | AF44: 0.0602 | AG44: 0.0603 | AH44: 0.0604 | AI44: 0.0605 | AJ44: 0.0606 | AK44: 0.0606 | AL44: 0.0607 | AM44: 0.0608 | AN44: 0.0608 | AO44: 0.0609 | AP44: 0.061 | CF44: 58
A45: 59 | B45: 0.0582 | C45: 0.0582 | D45: 0.0583 | E45: 0.0583 | F45: 0.0583 | G45: 0.0584 | H45: 0.0584 | I45: 0.0585 | J45: 0.0585 | K45: 0.0586 | L45: 0.0586 | M45: 0.0587 | N45: 0.0587 | O45: 0.0588 | P45: 0.0589 | Q45: 0.059 | R45: 0.059 | S45: 0.0591 | T45: 0.0592 | U45: 0.0593 | V45: 0.0593 | W45: 0.0594 | X45: 0.0595 | Y45: 0.0596 | Z45: 0.0597 | AA45: 0.0598 | AB45: 0.0599 | AC45: 0.06 | AD45: 0.0601 | AE45: 0.0602 | AF45: 0.0603 | AG45: 0.0603 | AH45: 0.0604 | AI45: 0.0605 | AJ45: 0.0606 | AK45: 0.0607 | AL45: 0.0608 | AM45: 0.0608 | AN45: 0.0609 | AO45: 0.061 | AP45: 0.061 | AQ45: 0.0611 | CF45: 59
A46: 60 | B46: 0.0582 | C46: 0.0582 | D46: 0.0583 | E46: 0.0583 | F46: 0.0583 | G46: 0.0584 | H46: 0.0584 | I46: 0.0585 | J46: 0.0585 | K46: 0.0586 | L46: 0.0586 | M46: 0.0587 | N46: 0.0587 | O46: 0.0588 | P46: 0.0589 | Q46: 0.059 | R46: 0.059 | S46: 0.0591 | T46: 0.0592 | U46: 0.0593 | V46: 0.0594 | W46: 0.0595 | X46: 0.0595 | Y46: 0.0596 | Z46: 0.0597 | AA46: 0.0598 | AB46: 0.0599 | AC46: 0.06 | AD46: 0.0601 | AE46: 0.0602 | AF46: 0.0603 | AG46: 0.0604 | AH46: 0.0605 | AI46: 0.0606 | AJ46: 0.0606 | AK46: 0.0607 | AL46: 0.0608 | AM46: 0.0609 | AN46: 0.061 | AO46: 0.061 | AP46: 0.0611 | AQ46: 0.0611 | AR46: 0.0612 | CF46: 60
A47: 61 | B47: 0.0582 | C47: 0.0582 | D47: 0.0583 | E47: 0.0583 | F47: 0.0583 | G47: 0.0584 | H47: 0.0584 | I47: 0.0585 | J47: 0.0585 | K47: 0.0586 | L47: 0.0586 | M47: 0.0587 | N47: 0.0588 | O47: 0.0588 | P47: 0.0589 | Q47: 0.059 | R47: 0.059 | S47: 0.0591 | T47: 0.0592 | U47: 0.0593 | V47: 0.0594 | W47: 0.0595 | X47: 0.0596 | Y47: 0.0596 | Z47: 0.0597 | AA47: 0.0598 | AB47: 0.0599 | AC47: 0.06 | AD47: 0.0601 | AE47: 0.0602 | AF47: 0.0603 | AG47: 0.0604 | AH47: 0.0605 | AI47: 0.0606 | AJ47: 0.0607 | AK47: 0.0608 | AL47: 0.0608 | AM47: 0.0609 | AN47: 0.061 | AO47: 0.0611 | AP47: 0.0611 | AQ47: 0.0612 | AR47: 0.0613 | AS47: 0.0613 | CF47: 61
A48: 62 | B48: 0.0582 | C48: 0.0582 | D48: 0.0583 | E48: 0.0583 | F48: 0.0583 | G48: 0.0584 | H48: 0.0584 | I48: 0.0585 | J48: 0.0585 | K48: 0.0586 | L48: 0.0586 | M48: 0.0587 | N48: 0.0588 | O48: 0.0588 | P48: 0.0589 | Q48: 0.059 | R48: 0.0591 | S48: 0.0591 | T48: 0.0592 | U48: 0.0593 | V48: 0.0594 | W48: 0.0595 | X48: 0.0596 | Y48: 0.0597 | Z48: 0.0598 | AA48: 0.0599 | AB48: 0.0599 | AC48: 0.06 | AD48: 0.0601 | AE48: 0.0602 | AF48: 0.0603 | AG48: 0.0604 | AH48: 0.0605 | AI48: 0.0606 | AJ48: 0.0607 | AK48: 0.0608 | AL48: 0.0609 | AM48: 0.061 | AN48: 0.061 | AO48: 0.0611 | AP48: 0.0612 | AQ48: 0.0612 | AR48: 0.0613 | AS48: 0.0614 | AT48: 0.0614 | CF48: 62
A49: 63 | B49: 0.0582 | C49: 0.0582 | D49: 0.0583 | E49: 0.0583 | F49: 0.0583 | G49: 0.0584 | H49: 0.0584 | I49: 0.0585 | J49: 0.0585 | K49: 0.0586 | L49: 0.0586 | M49: 0.0587 | N49: 0.0588 | O49: 0.0588 | P49: 0.0589 | Q49: 0.059 | R49: 0.0591 | S49: 0.0591 | T49: 0.0592 | U49: 0.0593 | V49: 0.0594 | W49: 0.0595 | X49: 0.0596 | Y49: 0.0597 | Z49: 0.0598 | AA49: 0.0599 | AB49: 0.06 | AC49: 0.0601 | AD49: 0.0602 | AE49: 0.0603 | AF49: 0.0604 | AG49: 0.0605 | AH49: 0.0605 | AI49: 0.0606 | AJ49: 0.0607 | AK49: 0.0608 | AL49: 0.0609 | AM49: 0.061 | AN49: 0.0611 | AO49: 0.0611 | AP49: 0.0612 | AQ49: 0.0613 | AR49: 0.0613 | AS49: 0.0614 | AT49: 0.0615 | AU49: 0.0615 | CF49: 63
A50: 64 | B50: 0.0582 | C50: 0.0582 | D50: 0.0583 | E50: 0.0583 | F50: 0.0583 | G50: 0.0584 | H50: 0.0584 | I50: 0.0585 | J50: 0.0585 | K50: 0.0586 | L50: 0.0586 | M50: 0.0587 | N50: 0.0588 | O50: 0.0588 | P50: 0.0589 | Q50: 0.059 | R50: 0.0591 | S50: 0.0591 | T50: 0.0592 | U50: 0.0593 | V50: 0.0594 | W50: 0.0595 | X50: 0.0596 | Y50: 0.0597 | Z50: 0.0598 | AA50: 0.0599 | AB50: 0.06 | AC50: 0.0601 | AD50: 0.0602 | AE50: 0.0603 | AF50: 0.0604 | AG50: 0.0605 | AH50: 0.0606 | AI50: 0.0607 | AJ50: 0.0608 | AK50: 0.0609 | AL50: 0.0609 | AM50: 0.061 | AN50: 0.0611 | AO50: 0.0612 | AP50: 0.0613 | AQ50: 0.0613 | AR50: 0.0614 | AS50: 0.0614 | AT50: 0.0615 | AU50: 0.0615 | AV50: 0.0616 | CF50: 64
A51: 65 | B51: 0.0582 | C51: 0.0582 | D51: 0.0583 | E51: 0.0583 | F51: 0.0583 | G51: 0.0584 | H51: 0.0584 | I51: 0.0585 | J51: 0.0585 | K51: 0.0586 | L51: 0.0586 | M51: 0.0587 | N51: 0.0588 | O51: 0.0588 | P51: 0.0589 | Q51: 0.059 | R51: 0.0591 | S51: 0.0591 | T51: 0.0592 | U51: 0.0593 | V51: 0.0594 | W51: 0.0595 | X51: 0.0596 | Y51: 0.0597 | Z51: 0.0598 | AA51: 0.0599 | AB51: 0.06 | AC51: 0.0601 | AD51: 0.0602 | AE51: 0.0603 | AF51: 0.0604 | AG51: 0.0605 | AH51: 0.0606 | AI51: 0.0607 | AJ51: 0.0608 | AK51: 0.0609 | AL51: 0.061 | AM51: 0.0611 | AN51: 0.0611 | AO51: 0.0612 | AP51: 0.0613 | AQ51: 0.0614 | AR51: 0.0614 | AS51: 0.0615 | AT51: 0.0615 | AU51: 0.0616 | AV51: 0.0616 | AW51: 0.0617 | CF51: 65
A52: 66 | B52: 0.0582 | C52: 0.0582 | D52: 0.0583 | E52: 0.0583 | F52: 0.0583 | G52: 0.0584 | H52: 0.0584 | I52: 0.0585 | J52: 0.0585 | K52: 0.0586 | L52: 0.0586 | M52: 0.0587 | N52: 0.0588 | O52: 0.0588 | P52: 0.0589 | Q52: 0.059 | R52: 0.0591 | S52: 0.0591 | T52: 0.0592 | U52: 0.0593 | V52: 0.0594 | W52: 0.0595 | X52: 0.0596 | Y52: 0.0597 | Z52: 0.0598 | AA52: 0.0599 | AB52: 0.06 | AC52: 0.0601 | AD52: 0.0602 | AE52: 0.0603 | AF52: 0.0604 | AG52: 0.0605 | AH52: 0.0606 | AI52: 0.0607 | AJ52: 0.0608 | AK52: 0.0609 | AL52: 0.061 | AM52: 0.0611 | AN52: 0.0612 | AO52: 0.0612 | AP52: 0.0613 | AQ52: 0.0614 | AR52: 0.0614 | AS52: 0.0615 | AT52: 0.0616 | AU52: 0.0616 | AV52: 0.0617 | AW52: 0.0617 | AX52: 0.0617 | CF52: 66
A53: 67 | B53: 0.0582 | C53: 0.0582 | D53: 0.0583 | E53: 0.0583 | F53: 0.0583 | G53: 0.0584 | H53: 0.0584 | I53: 0.0585 | J53: 0.0585 | K53: 0.0586 | L53: 0.0586 | M53: 0.0587 | N53: 0.0588 | O53: 0.0588 | P53: 0.0589 | Q53: 0.059 | R53: 0.0591 | S53: 0.0592 | T53: 0.0592 | U53: 0.0593 | V53: 0.0594 | W53: 0.0595 | X53: 0.0596 | Y53: 0.0597 | Z53: 0.0598 | AA53: 0.0599 | AB53: 0.06 | AC53: 0.0601 | AD53: 0.0602 | AE53: 0.0603 | AF53: 0.0604 | AG53: 0.0605 | AH53: 0.0606 | AI53: 0.0607 | AJ53: 0.0608 | AK53: 0.0609 | AL53: 0.061 | AM53: 0.0611 | AN53: 0.0612 | AO53: 0.0613 | AP53: 0.0613 | AQ53: 0.0614 | AR53: 0.0615 | AS53: 0.0615 | AT53: 0.0616 | AU53: 0.0616 | AV53: 0.0617 | AW53: 0.0617 | AX53: 0.0618 | AY53: 0.0618 | CF53: 67
A54: 68 | B54: 0.0582 | C54: 0.0582 | D54: 0.0583 | E54: 0.0583 | F54: 0.0583 | G54: 0.0584 | H54: 0.0584 | I54: 0.0585 | J54: 0.0585 | K54: 0.0586 | L54: 0.0586 | M54: 0.0587 | N54: 0.0588 | O54: 0.0588 | P54: 0.0589 | Q54: 0.059 | R54: 0.0591 | S54: 0.0592 | T54: 0.0592 | U54: 0.0593 | V54: 0.0594 | W54: 0.0595 | X54: 0.0596 | Y54: 0.0597 | Z54: 0.0598 | AA54: 0.0599 | AB54: 0.06 | AC54: 0.0601 | AD54: 0.0602 | AE54: 0.0603 | AF54: 0.0604 | AG54: 0.0605 | AH54: 0.0606 | AI54: 0.0607 | AJ54: 0.0608 | AK54: 0.0609 | AL54: 0.061 | AM54: 0.0611 | AN54: 0.0612 | AO54: 0.0613 | AP54: 0.0614 | AQ54: 0.0614 | AR54: 0.0615 | AS54: 0.0616 | AT54: 0.0616 | AU54: 0.0617 | AV54: 0.0617 | AW54: 0.0617 | AX54: 0.0618 | AY54: 0.0618 | AZ54: 0.0618 | CF54: 68
A55: 69 | B55: 0.0582 | C55: 0.0582 | D55: 0.0583 | E55: 0.0583 | F55: 0.0583 | G55: 0.0584 | H55: 0.0584 | I55: 0.0585 | J55: 0.0585 | K55: 0.0586 | L55: 0.0586 | M55: 0.0587 | N55: 0.0588 | O55: 0.0589 | P55: 0.0589 | Q55: 0.059 | R55: 0.0591 | S55: 0.0592 | T55: 0.0592 | U55: 0.0593 | V55: 0.0594 | W55: 0.0595 | X55: 0.0596 | Y55: 0.0597 | Z55: 0.0598 | AA55: 0.0599 | AB55: 0.06 | AC55: 0.0601 | AD55: 0.0602 | AE55: 0.0603 | AF55: 0.0604 | AG55: 0.0605 | AH55: 0.0606 | AI55: 0.0607 | AJ55: 0.0608 | AK55: 0.0609 | AL55: 0.061 | AM55: 0.0611 | AN55: 0.0612 | AO55: 0.0613 | AP55: 0.0614 | AQ55: 0.0614 | AR55: 0.0615 | AS55: 0.0616 | AT55: 0.0616 | AU55: 0.0617 | AV55: 0.0617 | AW55: 0.0618 | AX55: 0.0618 | AY55: 0.0618 | AZ55: 0.0618 | BA55: 0.0618 | CF55: 69
A56: 70 | B56: 0.0582 | C56: 0.0582 | D56: 0.0583 | E56: 0.0583 | F56: 0.0583 | G56: 0.0584 | H56: 0.0584 | I56: 0.0585 | J56: 0.0585 | K56: 0.0586 | L56: 0.0586 | M56: 0.0587 | N56: 0.0588 | O56: 0.0589 | P56: 0.0589 | Q56: 0.059 | R56: 0.0591 | S56: 0.0592 | T56: 0.0592 | U56: 0.0593 | V56: 0.0594 | W56: 0.0595 | X56: 0.0596 | Y56: 0.0597 | Z56: 0.0598 | AA56: 0.0599 | AB56: 0.06 | AC56: 0.0601 | AD56: 0.0602 | AE56: 0.0603 | AF56: 0.0604 | AG56: 0.0605 | AH56: 0.0607 | AI56: 0.0608 | AJ56: 0.0609 | AK56: 0.0609 | AL56: 0.061 | AM56: 0.0611 | AN56: 0.0612 | AO56: 0.0613 | AP56: 0.0614 | AQ56: 0.0615 | AR56: 0.0615 | AS56: 0.0616 | AT56: 0.0616 | AU56: 0.0617 | AV56: 0.0617 | AW56: 0.0618 | AX56: 0.0618 | AY56: 0.0618 | AZ56: 0.0618 | BA56: 0.0619 | BB56: 0.0619 | CF56: 70
A57: 71 | B57: 0.0582 | C57: 0.0582 | D57: 0.0583 | E57: 0.0583 | F57: 0.0583 | G57: 0.0584 | H57: 0.0584 | I57: 0.0585 | J57: 0.0585 | K57: 0.0586 | L57: 0.0586 | M57: 0.0587 | N57: 0.0588 | O57: 0.0589 | P57: 0.0589 | Q57: 0.059 | R57: 0.0591 | S57: 0.0592 | T57: 0.0592 | U57: 0.0593 | V57: 0.0594 | W57: 0.0595 | X57: 0.0596 | Y57: 0.0597 | Z57: 0.0598 | AA57: 0.0599 | AB57: 0.06 | AC57: 0.0601 | AD57: 0.0602 | AE57: 0.0603 | AF57: 0.0604 | AG57: 0.0606 | AH57: 0.0607 | AI57: 0.0608 | AJ57: 0.0609 | AK57: 0.061 | AL57: 0.0611 | AM57: 0.0611 | AN57: 0.0612 | AO57: 0.0613 | AP57: 0.0614 | AQ57: 0.0615 | AR57: 0.0615 | AS57: 0.0616 | AT57: 0.0617 | AU57: 0.0617 | AV57: 0.0617 | AW57: 0.0618 | AX57: 0.0618 | AY57: 0.0618 | AZ57: 0.0619 | BA57: 0.0619 | BB57: 0.0619 | BC57: 0.0619 | CF57: 71
A58: 72 | B58: 0.0582 | C58: 0.0582 | D58: 0.0583 | E58: 0.0583 | F58: 0.0583 | G58: 0.0584 | H58: 0.0584 | I58: 0.0585 | J58: 0.0585 | K58: 0.0586 | L58: 0.0586 | M58: 0.0587 | N58: 0.0588 | O58: 0.0589 | P58: 0.0589 | Q58: 0.059 | R58: 0.0591 | S58: 0.0592 | T58: 0.0592 | U58: 0.0593 | V58: 0.0594 | W58: 0.0595 | X58: 0.0596 | Y58: 0.0597 | Z58: 0.0598 | AA58: 0.0599 | AB58: 0.06 | AC58: 0.0601 | AD58: 0.0602 | AE58: 0.0603 | AF58: 0.0605 | AG58: 0.0606 | AH58: 0.0607 | AI58: 0.0608 | AJ58: 0.0609 | AK58: 0.061 | AL58: 0.0611 | AM58: 0.0611 | AN58: 0.0612 | AO58: 0.0613 | AP58: 0.0614 | AQ58: 0.0615 | AR58: 0.0615 | AS58: 0.0616 | AT58: 0.0617 | AU58: 0.0617 | AV58: 0.0617 | AW58: 0.0618 | AX58: 0.0618 | AY58: 0.0618 | AZ58: 0.0619 | BA58: 0.0619 | BB58: 0.0619 | BC58: 0.0619 | BD58: 0.0619 | CF58: 72
A59: 73 | B59: 0.0582 | C59: 0.0582 | D59: 0.0583 | E59: 0.0583 | F59: 0.0583 | G59: 0.0584 | H59: 0.0584 | I59: 0.0585 | J59: 0.0585 | K59: 0.0586 | L59: 0.0586 | M59: 0.0587 | N59: 0.0588 | O59: 0.0589 | P59: 0.0589 | Q59: 0.059 | R59: 0.0591 | S59: 0.0592 | T59: 0.0592 | U59: 0.0593 | V59: 0.0594 | W59: 0.0595 | X59: 0.0596 | Y59: 0.0597 | Z59: 0.0598 | AA59: 0.0599 | AB59: 0.06 | AC59: 0.0601 | AD59: 0.0602 | AE59: 0.0603 | AF59: 0.0605 | AG59: 0.0606 | AH59: 0.0607 | AI59: 0.0608 | AJ59: 0.0609 | AK59: 0.061 | AL59: 0.0611 | AM59: 0.0612 | AN59: 0.0612 | AO59: 0.0613 | AP59: 0.0614 | AQ59: 0.0615 | AR59: 0.0615 | AS59: 0.0616 | AT59: 0.0617 | AU59: 0.0617 | AV59: 0.0618 | AW59: 0.0618 | AX59: 0.0618 | AY59: 0.0618 | AZ59: 0.0618 | BA59: 0.0619 | BB59: 0.0619 | BC59: 0.0619 | BD59: 0.0618 | BE59: 0.0618 | CF59: 73
A60: 74 | B60: 0.0582 | C60: 0.0582 | D60: 0.0583 | E60: 0.0583 | F60: 0.0583 | G60: 0.0584 | H60: 0.0584 | I60: 0.0585 | J60: 0.0585 | K60: 0.0586 | L60: 0.0586 | M60: 0.0587 | N60: 0.0588 | O60: 0.0589 | P60: 0.0589 | Q60: 0.059 | R60: 0.0591 | S60: 0.0592 | T60: 0.0592 | U60: 0.0593 | V60: 0.0594 | W60: 0.0595 | X60: 0.0596 | Y60: 0.0597 | Z60: 0.0598 | AA60: 0.0599 | AB60: 0.06 | AC60: 0.0601 | AD60: 0.0602 | AE60: 0.0603 | AF60: 0.0605 | AG60: 0.0606 | AH60: 0.0607 | AI60: 0.0608 | AJ60: 0.0609 | AK60: 0.061 | AL60: 0.0611 | AM60: 0.0612 | AN60: 0.0612 | AO60: 0.0613 | AP60: 0.0614 | AQ60: 0.0615 | AR60: 0.0615 | AS60: 0.0616 | AT60: 0.0617 | AU60: 0.0617 | AV60: 0.0618 | AW60: 0.0618 | AX60: 0.0618 | AY60: 0.0618 | AZ60: 0.0618 | BA60: 0.0619 | BB60: 0.0619 | BC60: 0.0618 | BD60: 0.0618 | BE60: 0.0618 | BF60: 0.0618 | CF60: 74
A61: 75 | B61: 0.0582 | C61: 0.0582 | D61: 0.0583 | E61: 0.0583 | F61: 0.0583 | G61: 0.0584 | H61: 0.0584 | I61: 0.0585 | J61: 0.0585 | K61: 0.0586 | L61: 0.0586 | M61: 0.0587 | N61: 0.0588 | O61: 0.0589 | P61: 0.0589 | Q61: 0.059 | R61: 0.0591 | S61: 0.0592 | T61: 0.0592 | U61: 0.0593 | V61: 0.0594 | W61: 0.0595 | X61: 0.0596 | Y61: 0.0597 | Z61: 0.0598 | AA61: 0.0599 | AB61: 0.06 | AC61: 0.0601 | AD61: 0.0602 | AE61: 0.0603 | AF61: 0.0605 | AG61: 0.0606 | AH61: 0.0607 | AI61: 0.0608 | AJ61: 0.0609 | AK61: 0.061 | AL61: 0.0611 | AM61: 0.0612 | AN61: 0.0612 | AO61: 0.0613 | AP61: 0.0614 | AQ61: 0.0615 | AR61: 0.0615 | AS61: 0.0616 | AT61: 0.0617 | AU61: 0.0617 | AV61: 0.0617 | AW61: 0.0618 | AX61: 0.0618 | AY61: 0.0618 | AZ61: 0.0618 | BA61: 0.0618 | BB61: 0.0618 | BC61: 0.0618 | BD61: 0.0618 | BE61: 0.0618 | BF61: 0.0618 | BG61: 0.0618 | CF61: 75
A62: 76 | B62: 0.0582 | C62: 0.0582 | D62: 0.0583 | E62: 0.0583 | F62: 0.0583 | G62: 0.0584 | H62: 0.0584 | I62: 0.0585 | J62: 0.0585 | K62: 0.0586 | L62: 0.0586 | M62: 0.0587 | N62: 0.0588 | O62: 0.0589 | P62: 0.0589 | Q62: 0.059 | R62: 0.0591 | S62: 0.0592 | T62: 0.0592 | U62: 0.0593 | V62: 0.0594 | W62: 0.0595 | X62: 0.0596 | Y62: 0.0597 | Z62: 0.0598 | AA62: 0.0599 | AB62: 0.06 | AC62: 0.0601 | AD62: 0.0602 | AE62: 0.0603 | AF62: 0.0605 | AG62: 0.0606 | AH62: 0.0607 | AI62: 0.0608 | AJ62: 0.0609 | AK62: 0.061 | AL62: 0.0611 | AM62: 0.0612 | AN62: 0.0612 | AO62: 0.0613 | AP62: 0.0614 | AQ62: 0.0615 | AR62: 0.0615 | AS62: 0.0616 | AT62: 0.0617 | AU62: 0.0617 | AV62: 0.0617 | AW62: 0.0618 | AX62: 0.0618 | AY62: 0.0618 | AZ62: 0.0618 | BA62: 0.0618 | BB62: 0.0618 | BC62: 0.0618 | BD62: 0.0618 | BE62: 0.0618 | BF62: 0.0618 | BG62: 0.0617 | BH62: 0.0617 | CF62: 76
... 75 more rows

Sheet SL_filing (hidden)
A1: Kotak Lifetime Income - Annuity Rates Applicaple for Purchase Price Less than Rs.2,50,000 and for Annual Mode
A3: Age | B3: Option 1 | C3: Option 2 | D3: Option 3 ( GT 5) | E3: Option 3 ( GT 10) | F3: Option 3 ( GT 15) | G3: Option 3 ( GT 20)
A4: 0 | B4: 0.0543 | C4: 0.0542 | D4: 0.0542 | E4: 0.0542 | F4: 0.0541 | G4: 0.0541
A5: 1 | B5: 0.0543 | C5: 0.0542 | D5: 0.0543 | E5: 0.0542 | F5: 0.0542 | G5: 0.0541
A6: 2 | B6: 0.0544 | C6: 0.0542 | D6: 0.0543 | E6: 0.0543 | F6: 0.0542 | G6: 0.0542
A7: 3 | B7: 0.0544 | C7: 0.0542 | D7: 0.0544 | E7: 0.0543 | F7: 0.0543 | G7: 0.0542
A8: 4 | B8: 0.0545 | C8: 0.0542 | D8: 0.0545 | E8: 0.0544 | F8: 0.0544 | G8: 0.0543
A9: 5 | B9: 0.0545 | C9: 0.0542 | D9: 0.0545 | E9: 0.0545 | F9: 0.0544 | G9: 0.0544
A10: 6 | B10: 0.0546 | C10: 0.0542 | D10: 0.0546 | E10: 0.0545 | F10: 0.0545 | G10: 0.0544
A11: 7 | B11: 0.0547 | C11: 0.0542 | D11: 0.0547 | E11: 0.0546 | F11: 0.0546 | G11: 0.0545
A12: 8 | B12: 0.0548 | C12: 0.0541 | D12: 0.0547 | E12: 0.0547 | F12: 0.0546 | G12: 0.0546
A13: 9 | B13: 0.0549 | C13: 0.0541 | D13: 0.0548 | E13: 0.0548 | F13: 0.0547 | G13: 0.0547
A14: 10 | B14: 0.0549 | C14: 0.0541 | D14: 0.0549 | E14: 0.0549 | F14: 0.0548 | G14: 0.0548
A15: 11 | B15: 0.055 | C15: 0.0541 | D15: 0.055 | E15: 0.055 | F15: 0.0549 | G15: 0.0549
A16: 12 | B16: 0.0552 | C16: 0.0542 | D16: 0.0551 | E16: 0.0551 | F16: 0.055 | G16: 0.055
A17: 13 | B17: 0.0553 | C17: 0.0542 | D17: 0.0553 | E17: 0.0552 | F17: 0.0552 | G17: 0.0551
A18: 14 | B18: 0.0554 | C18: 0.0542 | D18: 0.0554 | E18: 0.0553 | F18: 0.0553 | G18: 0.0552
A19: 15 | B19: 0.0555 | C19: 0.0542 | D19: 0.0555 | E19: 0.0555 | F19: 0.0554 | G19: 0.0554
A20: 16 | B20: 0.0557 | C20: 0.0542 | D20: 0.0557 | E20: 0.0556 | F20: 0.0556 | G20: 0.0555
A21: 17 | B21: 0.0558 | C21: 0.0543 | D21: 0.0558 | E21: 0.0558 | F21: 0.0557 | G21: 0.0556
A22: 18 | B22: 0.056 | C22: 0.0543 | D22: 0.056 | E22: 0.0559 | F22: 0.0559 | G22: 0.0558
A23: 19 | B23: 0.0562 | C23: 0.0543 | D23: 0.0561 | E23: 0.0561 | F23: 0.056 | G23: 0.056
A24: 20 | B24: 0.0563 | C24: 0.0544 | D24: 0.0563 | E24: 0.0563 | F24: 0.0562 | G24: 0.0561
A25: 21 | B25: 0.0565 | C25: 0.0544 | D25: 0.0565 | E25: 0.0565 | F25: 0.0564 | G25: 0.0563
A26: 22 | B26: 0.0567 | C26: 0.0545 | D26: 0.0567 | E26: 0.0567 | F26: 0.0566 | G26: 0.0565
A27: 23 | B27: 0.0569 | C27: 0.0546 | D27: 0.0569 | E27: 0.0569 | F27: 0.0568 | G27: 0.0567
A28: 24 | B28: 0.0571 | C28: 0.0546 | D28: 0.0571 | E28: 0.0571 | F28: 0.057 | G28: 0.0569
A29: 25 | B29: 0.0574 | C29: 0.0547 | D29: 0.0574 | E29: 0.0573 | F29: 0.0572 | G29: 0.0571
A30: 26 | B30: 0.0576 | C30: 0.0548 | D30: 0.0576 | E30: 0.0575 | F30: 0.0575 | G30: 0.0574
A31: 27 | B31: 0.0579 | C31: 0.0549 | D31: 0.0578 | E31: 0.0578 | F31: 0.0577 | G31: 0.0576
A32: 28 | B32: 0.0581 | C32: 0.055 | D32: 0.0581 | E32: 0.058 | F32: 0.058 | G32: 0.0579
A33: 29 | B33: 0.0584 | C33: 0.0551 | D33: 0.0584 | E33: 0.0583 | F33: 0.0582 | G33: 0.0581
A34: 30 | B34: 0.0587 | C34: 0.0552 | D34: 0.0586 | E34: 0.0586 | F34: 0.0585 | G34: 0.0584
A35: 31 | B35: 0.059 | C35: 0.0553 | D35: 0.0589 | E35: 0.0589 | F35: 0.0588 | G35: 0.0587
A36: 32 | B36: 0.0593 | C36: 0.0554 | D36: 0.0593 | E36: 0.0592 | F36: 0.0591 | G36: 0.059
A37: 33 | B37: 0.0596 | C37: 0.0555 | D37: 0.0596 | E37: 0.0595 | F37: 0.0594 | G37: 0.0593
A38: 34 | B38: 0.06 | C38: 0.0556 | D38: 0.0599 | E38: 0.0599 | F38: 0.0597 | G38: 0.0596
A39: 35 | B39: 0.0603 | C39: 0.0557 | D39: 0.0603 | E39: 0.0602 | F39: 0.0601 | G39: 0.0599
A40: 36 | B40: 0.0607 | C40: 0.0559 | D40: 0.0607 | E40: 0.0606 | F40: 0.0605 | G40: 0.0603
A41: 37 | B41: 0.0611 | C41: 0.056 | D41: 0.0611 | E41: 0.061 | F41: 0.0608 | G41: 0.0606
A42: 38 | B42: 0.0615 | C42: 0.0561 | D42: 0.0615 | E42: 0.0614 | F42: 0.0612 | G42: 0.061
A43: 39 | B43: 0.062 | C43: 0.0563 | D43: 0.0619 | E43: 0.0618 | F43: 0.0616 | G43: 0.0614
A44: 40 | B44: 0.0624 | C44: 0.0564 | D44: 0.0624 | E44: 0.0623 | F44: 0.0621 | G44: 0.0618
A45: 41 | B45: 0.0629 | C45: 0.0566 | D45: 0.0629 | E45: 0.0627 | F45: 0.0625 | G45: 0.0622
A46: 42 | B46: 0.0634 | C46: 0.0567 | D46: 0.0634 | E46: 0.0632 | F46: 0.063 | G46: 0.0626
A47: 43 | B47: 0.064 | C47: 0.0569 | D47: 0.0639 | E47: 0.0637 | F47: 0.0634 | G47: 0.0631
A48: 44 | B48: 0.0645 | C48: 0.057 | D48: 0.0645 | E48: 0.0643 | F48: 0.0639 | G48: 0.0635
A49: 45 | B49: 0.0651 | C49: 0.0572 | D49: 0.065 | E49: 0.0648 | F49: 0.0644 | G49: 0.064
A50: 46 | B50: 0.0657 | C50: 0.0574 | D50: 0.0656 | E50: 0.0654 | F50: 0.065 | G50: 0.0645
A51: 47 | B51: 0.0664 | C51: 0.0575 | D51: 0.0663 | E51: 0.066 | F51: 0.0655 | G51: 0.065
A52: 48 | B52: 0.067 | C52: 0.0577 | D52: 0.0669 | E52: 0.0666 | F52: 0.0661 | G52: 0.0655
A53: 49 | B53: 0.0678 | C53: 0.0579 | D53: 0.0676 | E53: 0.0673 | F53: 0.0667 | G53: 0.066
A54: 50 | B54: 0.0685 | C54: 0.0581 | D54: 0.0684 | E54: 0.068 | F54: 0.0673 | G54: 0.0666
A55: 51 | B55: 0.0693 | C55: 0.0583 | D55: 0.0691 | E55: 0.0687 | F55: 0.068 | G55: 0.0672
A56: 52 | B56: 0.0701 | C56: 0.0585 | D56: 0.0699 | E56: 0.0694 | F56: 0.0687 | G56: 0.0678
A57: 53 | B57: 0.071 | C57: 0.0586 | D57: 0.0708 | E57: 0.0702 | F57: 0.0694 | G57: 0.0684
A58: 54 | B58: 0.0718 | C58: 0.0588 | D58: 0.0716 | E58: 0.071 | F58: 0.0701 | G58: 0.069
A59: 55 | B59: 0.0728 | C59: 0.059 | D59: 0.0725 | E59: 0.0718 | F59: 0.0708 | G59: 0.0697
A60: 56 | B60: 0.0737 | C60: 0.0592 | D60: 0.0735 | E60: 0.0727 | F60: 0.0716 | G60: 0.0703
A61: 57 | B61: 0.0747 | C61: 0.0594 | D61: 0.0744 | E61: 0.0736 | F61: 0.0724 | G61: 0.071
A62: 58 | B62: 0.0758 | C62: 0.0596 | D62: 0.0755 | E62: 0.0746 | F62: 0.0733 | G62: 0.0717
... 77 more rows

Sheet JL_Filing (hidden)
A1: Kotak Lifetime Income (Option 4) - Annuity Rates Applicaple for Purchase Price Less than Rs.2,50,000 and for Annual Mode
A3: Age | B3: 18 | C3: 19 | D3: 20 | E3: 21 | F3: 22 | G3: 23 | H3: 24 | I3: 25 | J3: 26 | K3: 27 | L3: 28 | M3: 29 | N3: 30 | O3: 31 | P3: 32 | Q3: 33 | R3: 34 | S3: 35 | T3: 36 | U3: 37 | V3: 38 | W3: 39 | X3: 40 | Y3: 41 | Z3: 42 | AA3: 43 | AB3: 44 | AC3: 45 | AD3: 46 | AE3: 47 | AF3: 48 | AG3: 49 | AH3: 50 | AI3: 51 | AJ3: 52 | AK3: 53 | AL3: 54 | AM3: 55 | AN3: 56 | AO3: 57 | AP3: 58 | AQ3: 59 | AR3: 60 | AS3: 61 | AT3: 62 | AU3: 63 | AV3: 64 | AW3: 65 | AX3: 66 | AY3: 67 | AZ3: 68 | BA3: 69 | BB3: 70 | BC3: 71 | BD3: 72 | BE3: 73 | BF3: 74 | BG3: 75 | BH3: 76 | BI3: 77 | BJ3: 78 | BK3: 79 | BL3: 80 | BM3: 81 | BN3: 82 | BO3: 83 | BP3: 84 | BQ3: 85 | BR3: 86 | BS3: 87 | BT3: 88 | BU3: 89 | BV3: 90 | BW3: 91 | BX3: 92 | BY3: 93 | BZ3: 94 | CA3: 95 | CB3: 96 | CC3: 97 | CD3: 98 | CE3: 99 | CF3: Age
A4: 18 | B4: 0.0542 | CF4: 18
A5: 19 | B5: 0.0542 | C5: 0.0543 | CF5: 19
A6: 20 | B6: 0.0543 | C6: 0.0543 | D6: 0.0544 | CF6: 20
A7: 21 | B7: 0.0543 | C7: 0.0544 | D7: 0.0545 | E7: 0.0545 | CF7: 21
A8: 22 | B8: 0.0544 | C8: 0.0545 | D8: 0.0545 | E8: 0.0546 | F8: 0.0546 | CF8: 22
A9: 23 | B9: 0.0544 | C9: 0.0545 | D9: 0.0546 | E9: 0.0546 | F9: 0.0547 | G9: 0.0548 | CF9: 23
A10: 24 | B10: 0.0545 | C10: 0.0546 | D10: 0.0546 | E10: 0.0547 | F10: 0.0548 | G10: 0.0548 | H10: 0.0549 | CF10: 24
A11: 25 | B11: 0.0545 | C11: 0.0546 | D11: 0.0547 | E11: 0.0548 | F11: 0.0548 | G11: 0.0549 | H11: 0.055 | I11: 0.0551 | CF11: 25
A12: 26 | B12: 0.0546 | C12: 0.0547 | D12: 0.0547 | E12: 0.0548 | F12: 0.0549 | G12: 0.055 | H12: 0.0551 | I12: 0.0551 | J12: 0.0552 | CF12: 26
A13: 27 | B13: 0.0546 | C13: 0.0547 | D13: 0.0548 | E13: 0.0549 | F13: 0.055 | G13: 0.0551 | H13: 0.0551 | I13: 0.0552 | J13: 0.0553 | K13: 0.0554 | CF13: 27
A14: 28 | B14: 0.0547 | C14: 0.0548 | D14: 0.0549 | E14: 0.0549 | F14: 0.055 | G14: 0.0551 | H14: 0.0552 | I14: 0.0553 | J14: 0.0554 | K14: 0.0555 | L14: 0.0556 | CF14: 28
A15: 29 | B15: 0.0547 | C15: 0.0548 | D15: 0.0549 | E15: 0.055 | F15: 0.0551 | G15: 0.0552 | H15: 0.0553 | I15: 0.0554 | J15: 0.0555 | K15: 0.0556 | L15: 0.0557 | M15: 0.0558 | CF15: 29
A16: 30 | B16: 0.0548 | C16: 0.0549 | D16: 0.055 | E16: 0.0551 | F16: 0.0552 | G16: 0.0553 | H16: 0.0554 | I16: 0.0555 | J16: 0.0556 | K16: 0.0557 | L16: 0.0558 | M16: 0.0558 | N16: 0.0559 | CF16: 30
A17: 31 | B17: 0.0548 | C17: 0.0549 | D17: 0.055 | E17: 0.0551 | F17: 0.0552 | G17: 0.0553 | H17: 0.0554 | I17: 0.0555 | J17: 0.0556 | K17: 0.0557 | L17: 0.0558 | M17: 0.0559 | N17: 0.056 | O17: 0.0562 | CF17: 31
A18: 32 | B18: 0.0549 | C18: 0.055 | D18: 0.0551 | E18: 0.0552 | F18: 0.0553 | G18: 0.0554 | H18: 0.0555 | I18: 0.0556 | J18: 0.0557 | K18: 0.0558 | L18: 0.0559 | M18: 0.056 | N18: 0.0561 | O18: 0.0563 | P18: 0.0564 | CF18: 32
A19: 33 | B19: 0.0549 | C19: 0.055 | D19: 0.0551 | E19: 0.0552 | F19: 0.0553 | G19: 0.0554 | H19: 0.0556 | I19: 0.0557 | J19: 0.0558 | K19: 0.0559 | L19: 0.056 | M19: 0.0561 | N19: 0.0562 | O19: 0.0564 | P19: 0.0565 | Q19: 0.0566 | CF19: 33
A20: 34 | B20: 0.055 | C20: 0.0551 | D20: 0.0552 | E20: 0.0553 | F20: 0.0554 | G20: 0.0555 | H20: 0.0556 | I20: 0.0557 | J20: 0.0559 | K20: 0.056 | L20: 0.0561 | M20: 0.0562 | N20: 0.0563 | O20: 0.0565 | P20: 0.0566 | Q20: 0.0567 | R20: 0.0568 | CF20: 34
A21: 35 | B21: 0.055 | C21: 0.0551 | D21: 0.0552 | E21: 0.0553 | F21: 0.0555 | G21: 0.0556 | H21: 0.0557 | I21: 0.0558 | J21: 0.0559 | K21: 0.0561 | L21: 0.0562 | M21: 0.0563 | N21: 0.0564 | O21: 0.0566 | P21: 0.0567 | Q21: 0.0568 | R21: 0.0569 | S21: 0.0571 | CF21: 35
A22: 36 | B22: 0.0551 | C22: 0.0552 | D22: 0.0553 | E22: 0.0554 | F22: 0.0555 | G22: 0.0556 | H22: 0.0557 | I22: 0.0559 | J22: 0.056 | K22: 0.0561 | L22: 0.0563 | M22: 0.0564 | N22: 0.0565 | O22: 0.0567 | P22: 0.0568 | Q22: 0.0569 | R22: 0.0571 | S22: 0.0572 | T22: 0.0573 | CF22: 36
A23: 37 | B23: 0.0551 | C23: 0.0552 | D23: 0.0553 | E23: 0.0554 | F23: 0.0556 | G23: 0.0557 | H23: 0.0558 | I23: 0.0559 | J23: 0.0561 | K23: 0.0562 | L23: 0.0563 | M23: 0.0565 | N23: 0.0566 | O23: 0.0568 | P23: 0.0569 | Q23: 0.057 | R23: 0.0572 | S23: 0.0573 | T23: 0.0574 | U23: 0.0576 | CF23: 37
A24: 38 | B24: 0.0551 | C24: 0.0552 | D24: 0.0554 | E24: 0.0555 | F24: 0.0556 | G24: 0.0557 | H24: 0.0559 | I24: 0.056 | J24: 0.0561 | K24: 0.0563 | L24: 0.0564 | M24: 0.0566 | N24: 0.0567 | O24: 0.0568 | P24: 0.057 | Q24: 0.0571 | R24: 0.0573 | S24: 0.0574 | T24: 0.0576 | U24: 0.0577 | V24: 0.0579 | CF24: 38
A25: 39 | B25: 0.0552 | C25: 0.0553 | D25: 0.0554 | E25: 0.0555 | F25: 0.0557 | G25: 0.0558 | H25: 0.0559 | I25: 0.0561 | J25: 0.0562 | K25: 0.0563 | L25: 0.0565 | M25: 0.0566 | N25: 0.0568 | O25: 0.0569 | P25: 0.0571 | Q25: 0.0572 | R25: 0.0574 | S25: 0.0575 | T25: 0.0577 | U25: 0.0578 | V25: 0.058 | W25: 0.0581 | CF25: 39
A26: 40 | B26: 0.0552 | C26: 0.0553 | D26: 0.0554 | E26: 0.0556 | F26: 0.0557 | G26: 0.0558 | H26: 0.056 | I26: 0.0561 | J26: 0.0563 | K26: 0.0564 | L26: 0.0566 | M26: 0.0567 | N26: 0.0569 | O26: 0.057 | P26: 0.0572 | Q26: 0.0573 | R26: 0.0575 | S26: 0.0577 | T26: 0.0578 | U26: 0.058 | V26: 0.0581 | W26: 0.0583 | X26: 0.0584 | CF26: 40
A27: 41 | B27: 0.0552 | C27: 0.0554 | D27: 0.0555 | E27: 0.0556 | F27: 0.0558 | G27: 0.0559 | H27: 0.056 | I27: 0.0562 | J27: 0.0563 | K27: 0.0565 | L27: 0.0566 | M27: 0.0568 | N27: 0.057 | O27: 0.0571 | P27: 0.0573 | Q27: 0.0574 | R27: 0.0576 | S27: 0.0578 | T27: 0.0579 | U27: 0.0581 | V27: 0.0583 | W27: 0.0584 | X27: 0.0586 | Y27: 0.0588 | CF27: 41
A28: 42 | B28: 0.0553 | C28: 0.0554 | D28: 0.0555 | E28: 0.0557 | F28: 0.0558 | G28: 0.0559 | H28: 0.0561 | I28: 0.0562 | J28: 0.0564 | K28: 0.0565 | L28: 0.0567 | M28: 0.0569 | N28: 0.057 | O28: 0.0572 | P28: 0.0574 | Q28: 0.0575 | R28: 0.0577 | S28: 0.0579 | T28: 0.0581 | U28: 0.0582 | V28: 0.0584 | W28: 0.0586 | X28: 0.0587 | Y28: 0.0589 | Z28: 0.0591 | CF28: 42
A29: 43 | B29: 0.0553 | C29: 0.0554 | D29: 0.0556 | E29: 0.0557 | F29: 0.0558 | G29: 0.056 | H29: 0.0561 | I29: 0.0563 | J29: 0.0564 | K29: 0.0566 | L29: 0.0568 | M29: 0.0569 | N29: 0.0571 | O29: 0.0573 | P29: 0.0575 | Q29: 0.0576 | R29: 0.0578 | S29: 0.058 | T29: 0.0582 | U29: 0.0584 | V29: 0.0585 | W29: 0.0587 | X29: 0.0589 | Y29: 0.0591 | Z29: 0.0593 | AA29: 0.0594 | CF29: 43
A30: 44 | B30: 0.0553 | C30: 0.0555 | D30: 0.0556 | E30: 0.0557 | F30: 0.0559 | G30: 0.056 | H30: 0.0562 | I30: 0.0563 | J30: 0.0565 | K30: 0.0567 | L30: 0.0568 | M30: 0.057 | N30: 0.0572 | O30: 0.0574 | P30: 0.0575 | Q30: 0.0577 | R30: 0.0579 | S30: 0.0581 | T30: 0.0583 | U30: 0.0585 | V30: 0.0587 | W30: 0.0589 | X30: 0.059 | Y30: 0.0592 | Z30: 0.0594 | AA30: 0.0596 | AB30: 0.0598 | CF30: 44
A31: 45 | B31: 0.0554 | C31: 0.0555 | D31: 0.0556 | E31: 0.0558 | F31: 0.0559 | G31: 0.0561 | H31: 0.0562 | I31: 0.0564 | J31: 0.0566 | K31: 0.0567 | L31: 0.0569 | M31: 0.0571 | N31: 0.0573 | O31: 0.0574 | P31: 0.0576 | Q31: 0.0578 | R31: 0.058 | S31: 0.0582 | T31: 0.0584 | U31: 0.0586 | V31: 0.0588 | W31: 0.059 | X31: 0.0592 | Y31: 0.0594 | Z31: 0.0596 | AA31: 0.0598 | AB31: 0.06 | AC31: 0.0602 | CF31: 45
A32: 46 | B32: 0.0554 | C32: 0.0555 | D32: 0.0557 | E32: 0.0558 | F32: 0.056 | G32: 0.0561 | H32: 0.0563 | I32: 0.0564 | J32: 0.0566 | K32: 0.0568 | L32: 0.057 | M32: 0.0571 | N32: 0.0573 | O32: 0.0575 | P32: 0.0577 | Q32: 0.0579 | R32: 0.0581 | S32: 0.0583 | T32: 0.0585 | U32: 0.0587 | V32: 0.0589 | W32: 0.0591 | X32: 0.0593 | Y32: 0.0595 | Z32: 0.0597 | AA32: 0.0599 | AB32: 0.0601 | AC32: 0.0603 | AD32: 0.0605 | CF32: 46
A33: 47 | B33: 0.0554 | C33: 0.0555 | D33: 0.0557 | E33: 0.0558 | F33: 0.056 | G33: 0.0561 | H33: 0.0563 | I33: 0.0565 | J33: 0.0567 | K33: 0.0568 | L33: 0.057 | M33: 0.0572 | N33: 0.0574 | O33: 0.0576 | P33: 0.0578 | Q33: 0.058 | R33: 0.0582 | S33: 0.0584 | T33: 0.0586 | U33: 0.0588 | V33: 0.059 | W33: 0.0592 | X33: 0.0595 | Y33: 0.0597 | Z33: 0.0599 | AA33: 0.0601 | AB33: 0.0603 | AC33: 0.0605 | AD33: 0.0607 | AE33: 0.061 | CF33: 47
A34: 48 | B34: 0.0554 | C34: 0.0556 | D34: 0.0557 | E34: 0.0559 | F34: 0.056 | G34: 0.0562 | H34: 0.0564 | I34: 0.0565 | J34: 0.0567 | K34: 0.0569 | L34: 0.0571 | M34: 0.0573 | N34: 0.0575 | O34: 0.0577 | P34: 0.0579 | Q34: 0.0581 | R34: 0.0583 | S34: 0.0585 | T34: 0.0587 | U34: 0.0589 | V34: 0.0591 | W34: 0.0594 | X34: 0.0596 | Y34: 0.0598 | Z34: 0.06 | AA34: 0.0603 | AB34: 0.0605 | AC34: 0.0607 | AD34: 0.0609 | AE34: 0.0612 | AF34: 0.0614 | CF34: 48
A35: 49 | B35: 0.0555 | C35: 0.0556 | D35: 0.0557 | E35: 0.0559 | F35: 0.0561 | G35: 0.0562 | H35: 0.0564 | I35: 0.0566 | J35: 0.0567 | K35: 0.0569 | L35: 0.0571 | M35: 0.0573 | N35: 0.0575 | O35: 0.0577 | P35: 0.0579 | Q35: 0.0581 | R35: 0.0584 | S35: 0.0586 | T35: 0.0588 | U35: 0.059 | V35: 0.0593 | W35: 0.0595 | X35: 0.0597 | Y35: 0.06 | Z35: 0.0602 | AA35: 0.0604 | AB35: 0.0607 | AC35: 0.0609 | AD35: 0.0611 | AE35: 0.0614 | AF35: 0.0616 | AG35: 0.0618 | CF35: 49
A36: 50 | B36: 0.0555 | C36: 0.0556 | D36: 0.0558 | E36: 0.0559 | F36: 0.0561 | G36: 0.0563 | H36: 0.0564 | I36: 0.0566 | J36: 0.0568 | K36: 0.057 | L36: 0.0572 | M36: 0.0574 | N36: 0.0576 | O36: 0.0578 | P36: 0.058 | Q36: 0.0582 | R36: 0.0584 | S36: 0.0587 | T36: 0.0589 | U36: 0.0591 | V36: 0.0594 | W36: 0.0596 | X36: 0.0599 | Y36: 0.0601 | Z36: 0.0603 | AA36: 0.0606 | AB36: 0.0608 | AC36: 0.0611 | AD36: 0.0613 | AE36: 0.0616 | AF36: 0.0618 | AG36: 0.0621 | AH36: 0.0623 | CF36: 50
A37: 51 | B37: 0.0555 | C37: 0.0556 | D37: 0.0558 | E37: 0.056 | F37: 0.0561 | G37: 0.0563 | H37: 0.0565 | I37: 0.0566 | J37: 0.0568 | K37: 0.057 | L37: 0.0572 | M37: 0.0574 | N37: 0.0576 | O37: 0.0578 | P37: 0.0581 | Q37: 0.0583 | R37: 0.0585 | S37: 0.0588 | T37: 0.059 | U37: 0.0592 | V37: 0.0595 | W37: 0.0597 | X37: 0.06 | Y37: 0.0602 | Z37: 0.0605 | AA37: 0.0607 | AB37: 0.061 | AC37: 0.0613 | AD37: 0.0615 | AE37: 0.0618 | AF37: 0.062 | AG37: 0.0623 | AH37: 0.0625 | AI37: 0.0628 | CF37: 51
A38: 52 | B38: 0.0555 | C38: 0.0557 | D38: 0.0558 | E38: 0.056 | F38: 0.0561 | G38: 0.0563 | H38: 0.0565 | I38: 0.0567 | J38: 0.0569 | K38: 0.0571 | L38: 0.0573 | M38: 0.0575 | N38: 0.0577 | O38: 0.0579 | P38: 0.0581 | Q38: 0.0584 | R38: 0.0586 | S38: 0.0588 | T38: 0.0591 | U38: 0.0593 | V38: 0.0596 | W38: 0.0598 | X38: 0.0601 | Y38: 0.0604 | Z38: 0.0606 | AA38: 0.0609 | AB38: 0.0612 | AC38: 0.0614 | AD38: 0.0617 | AE38: 0.062 | AF38: 0.0622 | AG38: 0.0625 | AH38: 0.0628 | AI38: 0.063 | AJ38: 0.0633 | CF38: 52
A39: 53 | B39: 0.0555 | C39: 0.0557 | D39: 0.0558 | E39: 0.056 | F39: 0.0562 | G39: 0.0563 | H39: 0.0565 | I39: 0.0567 | J39: 0.0569 | K39: 0.0571 | L39: 0.0573 | M39: 0.0575 | N39: 0.0577 | O39: 0.058 | P39: 0.0582 | Q39: 0.0584 | R39: 0.0587 | S39: 0.0589 | T39: 0.0592 | U39: 0.0594 | V39: 0.0597 | W39: 0.0599 | X39: 0.0602 | Y39: 0.0605 | Z39: 0.0608 | AA39: 0.061 | AB39: 0.0613 | AC39: 0.0616 | AD39: 0.0619 | AE39: 0.0622 | AF39: 0.0624 | AG39: 0.0627 | AH39: 0.063 | AI39: 0.0633 | AJ39: 0.0636 | AK39: 0.0639 | CF39: 53
A40: 54 | B40: 0.0556 | C40: 0.0557 | D40: 0.0559 | E40: 0.056 | F40: 0.0562 | G40: 0.0564 | H40: 0.0566 | I40: 0.0567 | J40: 0.0569 | K40: 0.0571 | L40: 0.0574 | M40: 0.0576 | N40: 0.0578 | O40: 0.058 | P40: 0.0583 | Q40: 0.0585 | R40: 0.0587 | S40: 0.059 | T40: 0.0592 | U40: 0.0595 | V40: 0.0598 | W40: 0.06 | X40: 0.0603 | Y40: 0.0606 | Z40: 0.0609 | AA40: 0.0612 | AB40: 0.0615 | AC40: 0.0618 | AD40: 0.0621 | AE40: 0.0623 | AF40: 0.0626 | AG40: 0.0629 | AH40: 0.0632 | AI40: 0.0635 | AJ40: 0.0638 | AK40: 0.0641 | AL40: 0.0644 | CF40: 54
A41: 55 | B41: 0.0556 | C41: 0.0557 | D41: 0.0559 | E41: 0.0561 | F41: 0.0562 | G41: 0.0564 | H41: 0.0566 | I41: 0.0568 | J41: 0.057 | K41: 0.0572 | L41: 0.0574 | M41: 0.0576 | N41: 0.0578 | O41: 0.0581 | P41: 0.0583 | Q41: 0.0586 | R41: 0.0588 | S41: 0.0591 | T41: 0.0593 | U41: 0.0596 | V41: 0.0599 | W41: 0.0601 | X41: 0.0604 | Y41: 0.0607 | Z41: 0.061 | AA41: 0.0613 | AB41: 0.0616 | AC41: 0.0619 | AD41: 0.0622 | AE41: 0.0625 | AF41: 0.0628 | AG41: 0.0632 | AH41: 0.0635 | AI41: 0.0638 | AJ41: 0.0641 | AK41: 0.0644 | AL41: 0.0647 | AM41: 0.065 | CF41: 55
A42: 56 | B42: 0.0556 | C42: 0.0558 | D42: 0.0559 | E42: 0.0561 | F42: 0.0562 | G42: 0.0564 | H42: 0.0566 | I42: 0.0568 | J42: 0.057 | K42: 0.0572 | L42: 0.0574 | M42: 0.0577 | N42: 0.0579 | O42: 0.0581 | P42: 0.0584 | Q42: 0.0586 | R42: 0.0589 | S42: 0.0591 | T42: 0.0594 | U42: 0.0597 | V42: 0.06 | W42: 0.0602 | X42: 0.0605 | Y42: 0.0608 | Z42: 0.0611 | AA42: 0.0614 | AB42: 0.0618 | AC42: 0.0621 | AD42: 0.0624 | AE42: 0.0627 | AF42: 0.063 | AG42: 0.0634 | AH42: 0.0637 | AI42: 0.064 | AJ42: 0.0643 | AK42: 0.0647 | AL42: 0.065 | AM42: 0.0653 | AN42: 0.0656 | CF42: 56
A43: 57 | B43: 0.0556 | C43: 0.0558 | D43: 0.0559 | E43: 0.0561 | F43: 0.0563 | G43: 0.0565 | H43: 0.0566 | I43: 0.0568 | J43: 0.057 | K43: 0.0573 | L43: 0.0575 | M43: 0.0577 | N43: 0.0579 | O43: 0.0582 | P43: 0.0584 | Q43: 0.0587 | R43: 0.0589 | S43: 0.0592 | T43: 0.0595 | U43: 0.0598 | V43: 0.06 | W43: 0.0603 | X43: 0.0606 | Y43: 0.0609 | Z43: 0.0613 | AA43: 0.0616 | AB43: 0.0619 | AC43: 0.0622 | AD43: 0.0626 | AE43: 0.0629 | AF43: 0.0632 | AG43: 0.0636 | AH43: 0.0639 | AI43: 0.0642 | AJ43: 0.0646 | AK43: 0.0649 | AL43: 0.0653 | AM43: 0.0656 | AN43: 0.066 | AO43: 0.0663 | CF43: 57
A44: 58 | B44: 0.0556 | C44: 0.0558 | D44: 0.0559 | E44: 0.0561 | F44: 0.0563 | G44: 0.0565 | H44: 0.0567 | I44: 0.0569 | J44: 0.0571 | K44: 0.0573 | L44: 0.0575 | M44: 0.0577 | N44: 0.058 | O44: 0.0582 | P44: 0.0585 | Q44: 0.0587 | R44: 0.059 | S44: 0.0593 | T44: 0.0595 | U44: 0.0598 | V44: 0.0601 | W44: 0.0604 | X44: 0.0607 | Y44: 0.0611 | Z44: 0.0614 | AA44: 0.0617 | AB44: 0.062 | AC44: 0.0624 | AD44: 0.0627 | AE44: 0.0631 | AF44: 0.0634 | AG44: 0.0638 | AH44: 0.0641 | AI44: 0.0645 | AJ44: 0.0648 | AK44: 0.0652 | AL44: 0.0656 | AM44: 0.0659 | AN44: 0.0663 | AO44: 0.0666 | AP44: 0.067 | CF44: 58
A45: 59 | B45: 0.0557 | C45: 0.0558 | D45: 0.056 | E45: 0.0561 | F45: 0.0563 | G45: 0.0565 | H45: 0.0567 | I45: 0.0569 | J45: 0.0571 | K45: 0.0573 | L45: 0.0575 | M45: 0.0578 | N45: 0.058 | O45: 0.0583 | P45: 0.0585 | Q45: 0.0588 | R45: 0.059 | S45: 0.0593 | T45: 0.0596 | U45: 0.0599 | V45: 0.0602 | W45: 0.0605 | X45: 0.0608 | Y45: 0.0612 | Z45: 0.0615 | AA45: 0.0618 | AB45: 0.0622 | AC45: 0.0625 | AD45: 0.0629 | AE45: 0.0632 | AF45: 0.0636 | AG45: 0.064 | AH45: 0.0643 | AI45: 0.0647 | AJ45: 0.0651 | AK45: 0.0655 | AL45: 0.0658 | AM45: 0.0662 | AN45: 0.0666 | AO45: 0.067 | AP45: 0.0674 | AQ45: 0.0677 | CF45: 59
A46: 60 | B46: 0.0557 | C46: 0.0558 | D46: 0.056 | E46: 0.0562 | F46: 0.0563 | G46: 0.0565 | H46: 0.0567 | I46: 0.0569 | J46: 0.0571 | K46: 0.0573 | L46: 0.0576 | M46: 0.0578 | N46: 0.058 | O46: 0.0583 | P46: 0.0586 | Q46: 0.0588 | R46: 0.0591 | S46: 0.0594 | T46: 0.0597 | U46: 0.06 | V46: 0.0603 | W46: 0.0606 | X46: 0.0609 | Y46: 0.0613 | Z46: 0.0616 | AA46: 0.0619 | AB46: 0.0623 | AC46: 0.0626 | AD46: 0.063 | AE46: 0.0634 | AF46: 0.0638 | AG46: 0.0641 | AH46: 0.0645 | AI46: 0.0649 | AJ46: 0.0653 | AK46: 0.0657 | AL46: 0.0661 | AM46: 0.0665 | AN46: 0.0669 | AO46: 0.0673 | AP46: 0.0677 | AQ46: 0.0681 | AR46: 0.0685 | CF46: 60
A47: 61 | B47: 0.0557 | C47: 0.0558 | D47: 0.056 | E47: 0.0562 | F47: 0.0564 | G47: 0.0565 | H47: 0.0567 | I47: 0.0569 | J47: 0.0572 | K47: 0.0574 | L47: 0.0576 | M47: 0.0578 | N47: 0.0581 | O47: 0.0583 | P47: 0.0586 | Q47: 0.0589 | R47: 0.0591 | S47: 0.0594 | T47: 0.0597 | U47: 0.06 | V47: 0.0604 | W47: 0.0607 | X47: 0.061 | Y47: 0.0613 | Z47: 0.0617 | AA47: 0.062 | AB47: 0.0624 | AC47: 0.0628 | AD47: 0.0632 | AE47: 0.0635 | AF47: 0.0639 | AG47: 0.0643 | AH47: 0.0647 | AI47: 0.0651 | AJ47: 0.0655 | AK47: 0.066 | AL47: 0.0664 | AM47: 0.0668 | AN47: 0.0672 | AO47: 0.0676 | AP47: 0.0681 | AQ47: 0.0685 | AR47: 0.0689 | AS47: 0.0693 | CF47: 61
A48: 62 | B48: 0.0557 | C48: 0.0559 | D48: 0.056 | E48: 0.0562 | F48: 0.0564 | G48: 0.0566 | H48: 0.0568 | I48: 0.057 | J48: 0.0572 | K48: 0.0574 | L48: 0.0576 | M48: 0.0579 | N48: 0.0581 | O48: 0.0584 | P48: 0.0586 | Q48: 0.0589 | R48: 0.0592 | S48: 0.0595 | T48: 0.0598 | U48: 0.0601 | V48: 0.0604 | W48: 0.0608 | X48: 0.0611 | Y48: 0.0614 | Z48: 0.0618 | AA48: 0.0622 | AB48: 0.0625 | AC48: 0.0629 | AD48: 0.0633 | AE48: 0.0637 | AF48: 0.0641 | AG48: 0.0645 | AH48: 0.0649 | AI48: 0.0653 | AJ48: 0.0658 | AK48: 0.0662 | AL48: 0.0666 | AM48: 0.0671 | AN48: 0.0675 | AO48: 0.068 | AP48: 0.0684 | AQ48: 0.0689 | AR48: 0.0693 | AS48: 0.0697 | AT48: 0.0702 | CF48: 62
A49: 63 | B49: 0.0557 | C49: 0.0559 | D49: 0.056 | E49: 0.0562 | F49: 0.0564 | G49: 0.0566 | H49: 0.0568 | I49: 0.057 | J49: 0.0572 | K49: 0.0574 | L49: 0.0577 | M49: 0.0579 | N49: 0.0581 | O49: 0.0584 | P49: 0.0587 | Q49: 0.059 | R49: 0.0592 | S49: 0.0595 | T49: 0.0598 | U49: 0.0602 | V49: 0.0605 | W49: 0.0608 | X49: 0.0612 | Y49: 0.0615 | Z49: 0.0619 | AA49: 0.0623 | AB49: 0.0626 | AC49: 0.063 | AD49: 0.0634 | AE49: 0.0638 | AF49: 0.0643 | AG49: 0.0647 | AH49: 0.0651 | AI49: 0.0655 | AJ49: 0.066 | AK49: 0.0664 | AL49: 0.0669 | AM49: 0.0674 | AN49: 0.0678 | AO49: 0.0683 | AP49: 0.0687 | AQ49: 0.0692 | AR49: 0.0697 | AS49: 0.0702 | AT49: 0.0706 | AU49: 0.0711 | CF49: 63
A50: 64 | B50: 0.0557 | C50: 0.0559 | D50: 0.056 | E50: 0.0562 | F50: 0.0564 | G50: 0.0566 | H50: 0.0568 | I50: 0.057 | J50: 0.0572 | K50: 0.0574 | L50: 0.0577 | M50: 0.0579 | N50: 0.0582 | O50: 0.0584 | P50: 0.0587 | Q50: 0.059 | R50: 0.0593 | S50: 0.0596 | T50: 0.0599 | U50: 0.0602 | V50: 0.0606 | W50: 0.0609 | X50: 0.0612 | Y50: 0.0616 | Z50: 0.062 | AA50: 0.0624 | AB50: 0.0628 | AC50: 0.0632 | AD50: 0.0636 | AE50: 0.064 | AF50: 0.0644 | AG50: 0.0649 | AH50: 0.0653 | AI50: 0.0658 | AJ50: 0.0662 | AK50: 0.0667 | AL50: 0.0672 | AM50: 0.0676 | AN50: 0.0681 | AO50: 0.0686 | AP50: 0.0691 | AQ50: 0.0696 | AR50: 0.0701 | AS50: 0.0706 | AT50: 0.0711 | AU50: 0.0716 | AV50: 0.0721 | CF50: 64
A51: 65 | B51: 0.0557 | C51: 0.0559 | D51: 0.0561 | E51: 0.0562 | F51: 0.0564 | G51: 0.0566 | H51: 0.0568 | I51: 0.057 | J51: 0.0572 | K51: 0.0575 | L51: 0.0577 | M51: 0.058 | N51: 0.0582 | O51: 0.0585 | P51: 0.0587 | Q51: 0.059 | R51: 0.0593 | S51: 0.0596 | T51: 0.0599 | U51: 0.0603 | V51: 0.0606 | W51: 0.061 | X51: 0.0613 | Y51: 0.0617 | Z51: 0.0621 | AA51: 0.0625 | AB51: 0.0629 | AC51: 0.0633 | AD51: 0.0637 | AE51: 0.0641 | AF51: 0.0646 | AG51: 0.065 | AH51: 0.0655 | AI51: 0.0659 | AJ51: 0.0664 | AK51: 0.0669 | AL51: 0.0674 | AM51: 0.0679 | AN51: 0.0684 | AO51: 0.0689 | AP51: 0.0694 | AQ51: 0.07 | AR51: 0.0705 | AS51: 0.071 | AT51: 0.0716 | AU51: 0.0721 | AV51: 0.0726 | AW51: 0.0732 | CF51: 65
A52: 66 | B52: 0.0557 | C52: 0.0559 | D52: 0.0561 | E52: 0.0563 | F52: 0.0564 | G52: 0.0566 | H52: 0.0568 | I52: 0.057 | J52: 0.0573 | K52: 0.0575 | L52: 0.0577 | M52: 0.058 | N52: 0.0582 | O52: 0.0585 | P52: 0.0588 | Q52: 0.0591 | R52: 0.0594 | S52: 0.0597 | T52: 0.06 | U52: 0.0603 | V52: 0.0607 | W52: 0.061 | X52: 0.0614 | Y52: 0.0618 | Z52: 0.0622 | AA52: 0.0626 | AB52: 0.063 | AC52: 0.0634 | AD52: 0.0638 | AE52: 0.0643 | AF52: 0.0647 | AG52: 0.0652 | AH52: 0.0657 | AI52: 0.0661 | AJ52: 0.0666 | AK52: 0.0671 | AL52: 0.0676 | AM52: 0.0682 | AN52: 0.0687 | AO52: 0.0692 | AP52: 0.0698 | AQ52: 0.0703 | AR52: 0.0709 | AS52: 0.0714 | AT52: 0.072 | AU52: 0.0726 | AV52: 0.0732 | AW52: 0.0737 | AX52: 0.0743 | CF52: 66
A53: 67 | B53: 0.0558 | C53: 0.0559 | D53: 0.0561 | E53: 0.0563 | F53: 0.0565 | G53: 0.0566 | H53: 0.0569 | I53: 0.0571 | J53: 0.0573 | K53: 0.0575 | L53: 0.0578 | M53: 0.058 | N53: 0.0583 | O53: 0.0585 | P53: 0.0588 | Q53: 0.0591 | R53: 0.0594 | S53: 0.0597 | T53: 0.06 | U53: 0.0604 | V53: 0.0607 | W53: 0.0611 | X53: 0.0615 | Y53: 0.0618 | Z53: 0.0622 | AA53: 0.0626 | AB53: 0.0631 | AC53: 0.0635 | AD53: 0.0639 | AE53: 0.0644 | AF53: 0.0649 | AG53: 0.0653 | AH53: 0.0658 | AI53: 0.0663 | AJ53: 0.0668 | AK53: 0.0674 | AL53: 0.0679 | AM53: 0.0684 | AN53: 0.069 | AO53: 0.0695 | AP53: 0.0701 | AQ53: 0.0707 | AR53: 0.0712 | AS53: 0.0718 | AT53: 0.0724 | AU53: 0.073 | AV53: 0.0737 | AW53: 0.0743 | AX53: 0.0749 | AY53: 0.0756 | CF53: 67
A54: 68 | B54: 0.0558 | C54: 0.0559 | D54: 0.0561 | E54: 0.0563 | F54: 0.0565 | G54: 0.0567 | H54: 0.0569 | I54: 0.0571 | J54: 0.0573 | K54: 0.0575 | L54: 0.0578 | M54: 0.058 | N54: 0.0583 | O54: 0.0586 | P54: 0.0588 | Q54: 0.0591 | R54: 0.0594 | S54: 0.0598 | T54: 0.0601 | U54: 0.0604 | V54: 0.0608 | W54: 0.0611 | X54: 0.0615 | Y54: 0.0619 | Z54: 0.0623 | AA54: 0.0627 | AB54: 0.0632 | AC54: 0.0636 | AD54: 0.064 | AE54: 0.0645 | AF54: 0.065 | AG54: 0.0655 | AH54: 0.066 | AI54: 0.0665 | AJ54: 0.067 | AK54: 0.0676 | AL54: 0.0681 | AM54: 0.0687 | AN54: 0.0692 | AO54: 0.0698 | AP54: 0.0704 | AQ54: 0.071 | AR54: 0.0716 | AS54: 0.0722 | AT54: 0.0729 | AU54: 0.0735 | AV54: 0.0742 | AW54: 0.0748 | AX54: 0.0755 | AY54: 0.0762 | AZ54: 0.0769 | CF54: 68
A55: 69 | B55: 0.0558 | C55: 0.0559 | D55: 0.0561 | E55: 0.0563 | F55: 0.0565 | G55: 0.0567 | H55: 0.0569 | I55: 0.0571 | J55: 0.0573 | K55: 0.0576 | L55: 0.0578 | M55: 0.0581 | N55: 0.0583 | O55: 0.0586 | P55: 0.0589 | Q55: 0.0592 | R55: 0.0595 | S55: 0.0598 | T55: 0.0601 | U55: 0.0605 | V55: 0.0608 | W55: 0.0612 | X55: 0.0616 | Y55: 0.062 | Z55: 0.0624 | AA55: 0.0628 | AB55: 0.0632 | AC55: 0.0637 | AD55: 0.0642 | AE55: 0.0646 | AF55: 0.0651 | AG55: 0.0656 | AH55: 0.0661 | AI55: 0.0667 | AJ55: 0.0672 | AK55: 0.0678 | AL55: 0.0683 | AM55: 0.0689 | AN55: 0.0695 | AO55: 0.0701 | AP55: 0.0707 | AQ55: 0.0713 | AR55: 0.072 | AS55: 0.0726 | AT55: 0.0733 | AU55: 0.074 | AV55: 0.0747 | AW55: 0.0754 | AX55: 0.0761 | AY55: 0.0768 | AZ55: 0.0775 | BA55: 0.0782 | CF55: 69
A56: 70 | B56: 0.0558 | C56: 0.056 | D56: 0.0561 | E56: 0.0563 | F56: 0.0565 | G56: 0.0567 | H56: 0.0569 | I56: 0.0571 | J56: 0.0573 | K56: 0.0576 | L56: 0.0578 | M56: 0.0581 | N56: 0.0583 | O56: 0.0586 | P56: 0.0589 | Q56: 0.0592 | R56: 0.0595 | S56: 0.0598 | T56: 0.0602 | U56: 0.0605 | V56: 0.0609 | W56: 0.0613 | X56: 0.0616 | Y56: 0.062 | Z56: 0.0625 | AA56: 0.0629 | AB56: 0.0633 | AC56: 0.0638 | AD56: 0.0643 | AE56: 0.0647 | AF56: 0.0652 | AG56: 0.0658 | AH56: 0.0663 | AI56: 0.0668 | AJ56: 0.0674 | AK56: 0.068 | AL56: 0.0685 | AM56: 0.0691 | AN56: 0.0697 | AO56: 0.0704 | AP56: 0.071 | AQ56: 0.0717 | AR56: 0.0723 | AS56: 0.073 | AT56: 0.0737 | AU56: 0.0744 | AV56: 0.0751 | AW56: 0.0759 | AX56: 0.0767 | AY56: 0.0774 | AZ56: 0.0782 | BA56: 0.0789 | BB56: 0.0797 | CF56: 70
A57: 71 | B57: 0.0558 | C57: 0.056 | D57: 0.0561 | E57: 0.0563 | F57: 0.0565 | G57: 0.0567 | H57: 0.0569 | I57: 0.0571 | J57: 0.0574 | K57: 0.0576 | L57: 0.0578 | M57: 0.0581 | N57: 0.0584 | O57: 0.0586 | P57: 0.0589 | Q57: 0.0592 | R57: 0.0595 | S57: 0.0599 | T57: 0.0602 | U57: 0.0606 | V57: 0.0609 | W57: 0.0613 | X57: 0.0617 | Y57: 0.0621 | Z57: 0.0625 | AA57: 0.063 | AB57: 0.0634 | AC57: 0.0639 | AD57: 0.0643 | AE57: 0.0648 | AF57: 0.0654 | AG57: 0.0659 | AH57: 0.0664 | AI57: 0.067 | AJ57: 0.0676 | AK57: 0.0681 | AL57: 0.0687 | AM57: 0.0694 | AN57: 0.07 | AO57: 0.0706 | AP57: 0.0713 | AQ57: 0.072 | AR57: 0.0727 | AS57: 0.0734 | AT57: 0.0741 | AU57: 0.0748 | AV57: 0.0756 | AW57: 0.0764 | AX57: 0.0772 | AY57: 0.078 | AZ57: 0.0788 | BA57: 0.0796 | BB57: 0.0805 | BC57: 0.0813 | CF57: 71
A58: 72 | B58: 0.0558 | C58: 0.056 | D58: 0.0562 | E58: 0.0563 | F58: 0.0565 | G58: 0.0567 | H58: 0.0569 | I58: 0.0571 | J58: 0.0574 | K58: 0.0576 | L58: 0.0579 | M58: 0.0581 | N58: 0.0584 | O58: 0.0587 | P58: 0.0589 | Q58: 0.0593 | R58: 0.0596 | S58: 0.0599 | T58: 0.0602 | U58: 0.0606 | V58: 0.061 | W58: 0.0614 | X58: 0.0617 | Y58: 0.0622 | Z58: 0.0626 | AA58: 0.063 | AB58: 0.0635 | AC58: 0.064 | AD58: 0.0644 | AE58: 0.0649 | AF58: 0.0655 | AG58: 0.066 | AH58: 0.0666 | AI58: 0.0671 | AJ58: 0.0677 | AK58: 0.0683 | AL58: 0.0689 | AM58: 0.0696 | AN58: 0.0702 | AO58: 0.0709 | AP58: 0.0716 | AQ58: 0.0723 | AR58: 0.073 | AS58: 0.0737 | AT58: 0.0745 | AU58: 0.0753 | AV58: 0.0761 | AW58: 0.0769 | AX58: 0.0777 | AY58: 0.0786 | AZ58: 0.0795 | BA58: 0.0803 | BB58: 0.0812 | BC58: 0.0821 | BD58: 0.0829 | CF58: 72
A59: 73 | B59: 0.0558 | C59: 0.056 | D59: 0.0562 | E59: 0.0563 | F59: 0.0565 | G59: 0.0567 | H59: 0.0569 | I59: 0.0572 | J59: 0.0574 | K59: 0.0576 | L59: 0.0579 | M59: 0.0581 | N59: 0.0584 | O59: 0.0587 | P59: 0.059 | Q59: 0.0593 | R59: 0.0596 | S59: 0.0599 | T59: 0.0603 | U59: 0.0606 | V59: 0.061 | W59: 0.0614 | X59: 0.0618 | Y59: 0.0622 | Z59: 0.0626 | AA59: 0.0631 | AB59: 0.0636 | AC59: 0.064 | AD59: 0.0645 | AE59: 0.065 | AF59: 0.0656 | AG59: 0.0661 | AH59: 0.0667 | AI59: 0.0673 | AJ59: 0.0679 | AK59: 0.0685 | AL59: 0.0691 | AM59: 0.0698 | AN59: 0.0704 | AO59: 0.0711 | AP59: 0.0718 | AQ59: 0.0725 | AR59: 0.0733 | AS59: 0.0741 | AT59: 0.0749 | AU59: 0.0757 | AV59: 0.0765 | AW59: 0.0774 | AX59: 0.0783 | AY59: 0.0792 | AZ59: 0.0801 | BA59: 0.081 | BB59: 0.0819 | BC59: 0.0828 | BD59: 0.0838 | BE59: 0.0847 | CF59: 73
A60: 74 | B60: 0.0558 | C60: 0.056 | D60: 0.0562 | E60: 0.0564 | F60: 0.0565 | G60: 0.0567 | H60: 0.057 | I60: 0.0572 | J60: 0.0574 | K60: 0.0576 | L60: 0.0579 | M60: 0.0581 | N60: 0.0584 | O60: 0.0587 | P60: 0.059 | Q60: 0.0593 | R60: 0.0596 | S60: 0.06 | T60: 0.0603 | U60: 0.0607 | V60: 0.061 | W60: 0.0614 | X60: 0.0618 | Y60: 0.0623 | Z60: 0.0627 | AA60: 0.0631 | AB60: 0.0636 | AC60: 0.0641 | AD60: 0.0646 | AE60: 0.0651 | AF60: 0.0657 | AG60: 0.0662 | AH60: 0.0668 | AI60: 0.0674 | AJ60: 0.068 | AK60: 0.0686 | AL60: 0.0693 | AM60: 0.07 | AN60: 0.0706 | AO60: 0.0713 | AP60: 0.0721 | AQ60: 0.0728 | AR60: 0.0736 | AS60: 0.0744 | AT60: 0.0752 | AU60: 0.0761 | AV60: 0.0769 | AW60: 0.0779 | AX60: 0.0788 | AY60: 0.0797 | AZ60: 0.0807 | BA60: 0.0817 | BB60: 0.0826 | BC60: 0.0836 | BD60: 0.0846 | BE60: 0.0855 | BF60: 0.0865 | CF60: 74
A61: 75 | B61: 0.0558 | C61: 0.056 | D61: 0.0562 | E61: 0.0564 | F61: 0.0566 | G61: 0.0568 | H61: 0.057 | I61: 0.0572 | J61: 0.0574 | K61: 0.0577 | L61: 0.0579 | M61: 0.0582 | N61: 0.0584 | O61: 0.0587 | P61: 0.059 | Q61: 0.0593 | R61: 0.0596 | S61: 0.06 | T61: 0.0603 | U61: 0.0607 | V61: 0.0611 | W61: 0.0615 | X61: 0.0619 | Y61: 0.0623 | Z61: 0.0627 | AA61: 0.0632 | AB61: 0.0637 | AC61: 0.0642 | AD61: 0.0647 | AE61: 0.0652 | AF61: 0.0658 | AG61: 0.0663 | AH61: 0.0669 | AI61: 0.0675 | AJ61: 0.0681 | AK61: 0.0688 | AL61: 0.0695 | AM61: 0.0701 | AN61: 0.0708 | AO61: 0.0716 | AP61: 0.0723 | AQ61: 0.0731 | AR61: 0.0739 | AS61: 0.0747 | AT61: 0.0755 | AU61: 0.0764 | AV61: 0.0774 | AW61: 0.0783 | AX61: 0.0793 | AY61: 0.0803 | AZ61: 0.0813 | BA61: 0.0823 | BB61: 0.0833 | BC61: 0.0844 | BD61: 0.0854 | BE61: 0.0864 | BF61: 0.0874 | BG61: 0.0885 | CF61: 75
A62: 76 | B62: 0.0559 | C62: 0.056 | D62: 0.0562 | E62: 0.0564 | F62: 0.0566 | G62: 0.0568 | H62: 0.057 | I62: 0.0572 | J62: 0.0574 | K62: 0.0577 | L62: 0.0579 | M62: 0.0582 | N62: 0.0584 | O62: 0.0587 | P62: 0.059 | Q62: 0.0593 | R62: 0.0597 | S62: 0.06 | T62: 0.0604 | U62: 0.0607 | V62: 0.0611 | W62: 0.0615 | X62: 0.0619 | Y62: 0.0623 | Z62: 0.0628 | AA62: 0.0633 | AB62: 0.0637 | AC62: 0.0642 | AD62: 0.0648 | AE62: 0.0653 | AF62: 0.0658 | AG62: 0.0664 | AH62: 0.067 | AI62: 0.0676 | AJ62: 0.0683 | AK62: 0.0689 | AL62: 0.0696 | AM62: 0.0703 | AN62: 0.071 | AO62: 0.0718 | AP62: 0.0725 | AQ62: 0.0733 | AR62: 0.0741 | AS62: 0.075 | AT62: 0.0759 | AU62: 0.0768 | AV62: 0.0777 | AW62: 0.0787 | AX62: 0.0797 | AY62: 0.0808 | AZ62: 0.0818 | BA62: 0.0829 | BB62: 0.084 | BC62: 0.0851 | BD62: 0.0862 | BE62: 0.0873 | BF62: 0.0884 | BG62: 0.0894 | BH62: 0.0905 | CF62: 76
... 77 more rows

Sheet JL_50%_ filing (hidden)
C1: Kotak Lifetime Income (Option 5)- Annuity Rates Applicaple for Purchase Price Less than Rs.2,50,000 and for Annual Mode
C2: Age of Secondary Annuitant
C3: Age | D3: 18 | E3: =D3+1 -> 19 | F3: 20 | G3: 21 | H3: 22 | I3: 23 | J3: 24 | K3: 25 | L3: 26 | M3: 27 | N3: 28 | O3: 29 | P3: 30 | Q3: 31 | R3: 32 | S3: 33 | T3: 34 | U3: 35 | V3: 36 | W3: 37 | X3: 38 | Y3: 39 | Z3: 40 | AA3: 41 | AB3: 42 | AC3: 43 | AD3: 44 | AE3: 45 | AF3: 46 | AG3: 47 | AH3: 48 | AI3: 49 | AJ3: 50 | AK3: 51 | AL3: 52 | AM3: 53 | AN3: 54 | AO3: 55 | AP3: =AO3+1 -> 56 | AQ3: 57 | AR3: 58 | AS3: 59 | AT3: 60 | AU3: 61 | AV3: 62 | AW3: 63 | AX3: 64 | AY3: 65 | AZ3: 66 | BA3: 67 | BB3: 68 | BC3: 69 | BD3: 70 | BE3: 71 | BF3: 72 | BG3: 73 | BH3: 74 | BI3: 75 | BJ3: 76 | BK3: 77 | BL3: 78 | BM3: 79 | BN3: 80 | BO3: 81 | BP3: 82 | BQ3: =BP3+1 -> 83 | BR3: 84 | BS3: 85 | BT3: 86 | BU3: 87 | BV3: 88 | BW3: 89 | BX3: 90 | BY3: 91 | BZ3: 92 | CA3: 93 | CB3: 94 | CC3: 95 | CD3: 96 | CE3: 97 | CF3: 98 | CG3: 99 | CH3: Age
C4: 18 | D4: 0.0549 | E4: 0.055 | F4: 0.055 | G4: 0.055 | H4: 0.0551 | I4: 0.0551 | J4: 0.0551 | K4: 0.0552 | L4: 0.0552 | M4: 0.0552 | N4: 0.0552 | O4: 0.0553 | P4: 0.0553 | Q4: 0.0553 | R4: 0.0554 | S4: 0.0554 | T4: 0.0554 | U4: 0.0554 | V4: 0.0555 | W4: 0.0555 | X4: 0.0555 | Y4: 0.0555 | Z4: 0.0556 | AA4: 0.0556 | AB4: 0.0556 | AC4: 0.0556 | AD4: 0.0556 | AE4: 0.0556 | AF4: 0.0557 | AG4: 0.0557 | AH4: 0.0557 | AI4: 0.0557 | AJ4: 0.0557 | AK4: 0.0557 | AL4: 0.0557 | AM4: 0.0557 | AN4: 0.0558 | AO4: 0.0558 | AP4: 0.0558 | AQ4: 0.0558 | AR4: 0.0558 | AS4: 0.0558 | AT4: 0.0558 | AU4: 0.0558 | AV4: 0.0558 | AW4: 0.0558 | AX4: 0.0558 | AY4: 0.0559 | AZ4: 0.0559 | BA4: 0.0559 | BB4: 0.0559 | BC4: 0.0559 | BD4: 0.0559 | BE4: 0.0559 | BF4: 0.0559 | BG4: 0.0559 | BH4: 0.0559 | BI4: 0.0559 | BJ4: 0.0559 | BK4: 0.0559 | BL4: 0.0559 | BM4: 0.0559 | BN4: 0.0559 | BO4: 0.0559 | BP4: 0.0559 | BQ4: 0.0559 | BR4: 0.0559 | BS4: 0.0559 | BT4: 0.056 | BU4: 0.056 | BV4: 0.056 | BW4: 0.056 | BX4: 0.056 | BY4: 0.056 | BZ4: 0.056 | CA4: 0.056 | CB4: 0.056 | CC4: 0.056 | CD4: 0.056 | CE4: 0.056 | CF4: 0.056 | CG4: 0.056 | CH4: 18
C5: =C4+1 -> 19 | D5: 0.055 | E5: 0.0551 | F5: 0.0551 | G5: 0.0551 | H5: 0.0552 | I5: 0.0552 | J5: 0.0552 | K5: 0.0553 | L5: 0.0553 | M5: 0.0553 | N5: 0.0554 | O5: 0.0554 | P5: 0.0554 | Q5: 0.0555 | R5: 0.0555 | S5: 0.0555 | T5: 0.0555 | U5: 0.0556 | V5: 0.0556 | W5: 0.0556 | X5: 0.0556 | Y5: 0.0557 | Z5: 0.0557 | AA5: 0.0557 | AB5: 0.0557 | AC5: 0.0558 | AD5: 0.0558 | AE5: 0.0558 | AF5: 0.0558 | AG5: 0.0558 | AH5: 0.0558 | AI5: 0.0559 | AJ5: 0.0559 | AK5: 0.0559 | AL5: 0.0559 | AM5: 0.0559 | AN5: 0.0559 | AO5: 0.0559 | AP5: 0.0559 | AQ5: 0.0559 | AR5: 0.056 | AS5: 0.056 | AT5: 0.056 | AU5: 0.056 | AV5: 0.056 | AW5: 0.056 | AX5: 0.056 | AY5: 0.056 | AZ5: 0.056 | BA5: 0.056 | BB5: 0.056 | BC5: 0.056 | BD5: 0.0561 | BE5: 0.0561 | BF5: 0.0561 | BG5: 0.0561 | BH5: 0.0561 | BI5: 0.0561 | BJ5: 0.0561 | BK5: 0.0561 | BL5: 0.0561 | BM5: 0.0561 | BN5: 0.0561 | BO5: 0.0561 | BP5: 0.0561 | BQ5: 0.0561 | BR5: 0.0561 | BS5: 0.0561 | BT5: 0.0561 | BU5: 0.0561 | BV5: 0.0561 | BW5: 0.0561 | BX5: 0.0561 | BY5: 0.0561 | BZ5: 0.0561 | CA5: 0.0561 | CB5: 0.0561 | CC5: 0.0561 | CD5: 0.0561 | CE5: 0.0561 | CF5: 0.0561 | CG5: 0.0561 | CH5: =CH4+1 -> 19
C6: 20 | D6: 0.0551 | E6: 0.0552 | F6: 0.0552 | G6: 0.0553 | H6: 0.0553 | I6: 0.0553 | J6: 0.0554 | K6: 0.0554 | L6: 0.0554 | M6: 0.0555 | N6: 0.0555 | O6: 0.0555 | P6: 0.0556 | Q6: 0.0556 | R6: 0.0556 | S6: 0.0557 | T6: 0.0557 | U6: 0.0557 | V6: 0.0557 | W6: 0.0558 | X6: 0.0558 | Y6: 0.0558 | Z6: 0.0558 | AA6: 0.0559 | AB6: 0.0559 | AC6: 0.0559 | AD6: 0.0559 | AE6: 0.0559 | AF6: 0.056 | AG6: 0.056 | AH6: 0.056 | AI6: 0.056 | AJ6: 0.056 | AK6: 0.056 | AL6: 0.0561 | AM6: 0.0561 | AN6: 0.0561 | AO6: 0.0561 | AP6: 0.0561 | AQ6: 0.0561 | AR6: 0.0561 | AS6: 0.0561 | AT6: 0.0561 | AU6: 0.0562 | AV6: 0.0562 | AW6: 0.0562 | AX6: 0.0562 | AY6: 0.0562 | AZ6: 0.0562 | BA6: 0.0562 | BB6: 0.0562 | BC6: 0.0562 | BD6: 0.0562 | BE6: 0.0562 | BF6: 0.0562 | BG6: 0.0562 | BH6: 0.0562 | BI6: 0.0563 | BJ6: 0.0563 | BK6: 0.0563 | BL6: 0.0563 | BM6: 0.0563 | BN6: 0.0563 | BO6: 0.0563 | BP6: 0.0563 | BQ6: 0.0563 | BR6: 0.0563 | BS6: 0.0563 | BT6: 0.0563 | BU6: 0.0563 | BV6: 0.0563 | BW6: 0.0563 | BX6: 0.0563 | BY6: 0.0563 | BZ6: 0.0563 | CA6: 0.0563 | CB6: 0.0563 | CC6: 0.0563 | CD6: 0.0563 | CE6: 0.0563 | CF6: 0.0563 | CG6: 0.0563 | CH6: 20
B7: Age of Primary Annuitant | C7: 21 | D7: 0.0553 | E7: 0.0553 | F7: 0.0553 | G7: 0.0554 | H7: 0.0554 | I7: 0.0554 | J7: 0.0555 | K7: 0.0555 | L7: 0.0556 | M7: 0.0556 | N7: 0.0556 | O7: 0.0557 | P7: 0.0557 | Q7: 0.0557 | R7: 0.0558 | S7: 0.0558 | T7: 0.0558 | U7: 0.0559 | V7: 0.0559 | W7: 0.0559 | X7: 0.0559 | Y7: 0.056 | Z7: 0.056 | AA7: 0.056 | AB7: 0.056 | AC7: 0.0561 | AD7: 0.0561 | AE7: 0.0561 | AF7: 0.0561 | AG7: 0.0561 | AH7: 0.0562 | AI7: 0.0562 | AJ7: 0.0562 | AK7: 0.0562 | AL7: 0.0562 | AM7: 0.0562 | AN7: 0.0563 | AO7: 0.0563 | AP7: 0.0563 | AQ7: 0.0563 | AR7: 0.0563 | AS7: 0.0563 | AT7: 0.0563 | AU7: 0.0563 | AV7: 0.0563 | AW7: 0.0564 | AX7: 0.0564 | AY7: 0.0564 | AZ7: 0.0564 | BA7: 0.0564 | BB7: 0.0564 | BC7: 0.0564 | BD7: 0.0564 | BE7: 0.0564 | BF7: 0.0564 | BG7: 0.0564 | BH7: 0.0564 | BI7: 0.0564 | BJ7: 0.0564 | BK7: 0.0565 | BL7: 0.0565 | BM7: 0.0565 | BN7: 0.0565 | BO7: 0.0565 | BP7: 0.0565 | BQ7: 0.0565 | BR7: 0.0565 | BS7: 0.0565 | BT7: 0.0565 | BU7: 0.0565 | BV7: 0.0565 | BW7: 0.0565 | BX7: 0.0565 | BY7: 0.0565 | BZ7: 0.0565 | CA7: 0.0565 | CB7: 0.0565 | CC7: 0.0565 | CD7: 0.0565 | CE7: 0.0565 | CF7: 0.0565 | CG7: 0.0565 | CH7: 21
C8: 22 | D8: 0.0554 | E8: 0.0554 | F8: 0.0554 | G8: 0.0555 | H8: 0.0555 | I8: 0.0556 | J8: 0.0556 | K8: 0.0556 | L8: 0.0557 | M8: 0.0557 | N8: 0.0558 | O8: 0.0558 | P8: 0.0558 | Q8: 0.0559 | R8: 0.0559 | S8: 0.0559 | T8: 0.056 | U8: 0.056 | V8: 0.056 | W8: 0.0561 | X8: 0.0561 | Y8: 0.0561 | Z8: 0.0562 | AA8: 0.0562 | AB8: 0.0562 | AC8: 0.0562 | AD8: 0.0563 | AE8: 0.0563 | AF8: 0.0563 | AG8: 0.0563 | AH8: 0.0563 | AI8: 0.0564 | AJ8: 0.0564 | AK8: 0.0564 | AL8: 0.0564 | AM8: 0.0564 | AN8: 0.0564 | AO8: 0.0565 | AP8: 0.0565 | AQ8: 0.0565 | AR8: 0.0565 | AS8: 0.0565 | AT8: 0.0565 | AU8: 0.0565 | AV8: 0.0565 | AW8: 0.0565 | AX8: 0.0566 | AY8: 0.0566 | AZ8: 0.0566 | BA8: 0.0566 | BB8: 0.0566 | BC8: 0.0566 | BD8: 0.0566 | BE8: 0.0566 | BF8: 0.0566 | BG8: 0.0566 | BH8: 0.0566 | BI8: 0.0566 | BJ8: 0.0566 | BK8: 0.0566 | BL8: 0.0566 | BM8: 0.0567 | BN8: 0.0567 | BO8: 0.0567 | BP8: 0.0567 | BQ8: 0.0567 | BR8: 0.0567 | BS8: 0.0567 | BT8: 0.0567 | BU8: 0.0567 | BV8: 0.0567 | BW8: 0.0567 | BX8: 0.0567 | BY8: 0.0567 | BZ8: 0.0567 | CA8: 0.0567 | CB8: 0.0567 | CC8: 0.0567 | CD8: 0.0567 | CE8: 0.0567 | CF8: 0.0567 | CG8: 0.0567 | CH8: 22
C9: 23 | D9: 0.0555 | E9: 0.0555 | F9: 0.0556 | G9: 0.0556 | H9: 0.0556 | I9: 0.0557 | J9: 0.0557 | K9: 0.0558 | L9: 0.0558 | M9: 0.0559 | N9: 0.0559 | O9: 0.0559 | P9: 0.056 | Q9: 0.056 | R9: 0.0561 | S9: 0.0561 | T9: 0.0561 | U9: 0.0562 | V9: 0.0562 | W9: 0.0562 | X9: 0.0563 | Y9: 0.0563 | Z9: 0.0563 | AA9: 0.0564 | AB9: 0.0564 | AC9: 0.0564 | AD9: 0.0564 | AE9: 0.0565 | AF9: 0.0565 | AG9: 0.0565 | AH9: 0.0565 | AI9: 0.0565 | AJ9: 0.0566 | AK9: 0.0566 | AL9: 0.0566 | AM9: 0.0566 | AN9: 0.0566 | AO9: 0.0566 | AP9: 0.0567 | AQ9: 0.0567 | AR9: 0.0567 | AS9: 0.0567 | AT9: 0.0567 | AU9: 0.0567 | AV9: 0.0567 | AW9: 0.0567 | AX9: 0.0567 | AY9: 0.0568 | AZ9: 0.0568 | BA9: 0.0568 | BB9: 0.0568 | BC9: 0.0568 | BD9: 0.0568 | BE9: 0.0568 | BF9: 0.0568 | BG9: 0.0568 | BH9: 0.0568 | BI9: 0.0568 | BJ9: 0.0568 | BK9: 0.0568 | BL9: 0.0569 | BM9: 0.0569 | BN9: 0.0569 | BO9: 0.0569 | BP9: 0.0569 | BQ9: 0.0569 | BR9: 0.0569 | BS9: 0.0569 | BT9: 0.0569 | BU9: 0.0569 | BV9: 0.0569 | BW9: 0.0569 | BX9: 0.0569 | BY9: 0.0569 | BZ9: 0.0569 | CA9: 0.0569 | CB9: 0.0569 | CC9: 0.0569 | CD9: 0.0569 | CE9: 0.0569 | CF9: 0.0569 | CG9: 0.0569 | CH9: 23
C10: 24 | D10: 0.0556 | E10: 0.0556 | F10: 0.0557 | G10: 0.0557 | H10: 0.0558 | I10: 0.0558 | J10: 0.0559 | K10: 0.0559 | L10: 0.056 | M10: 0.056 | N10: 0.056 | O10: 0.0561 | P10: 0.0561 | Q10: 0.0562 | R10: 0.0562 | S10: 0.0562 | T10: 0.0563 | U10: 0.0563 | V10: 0.0564 | W10: 0.0564 | X10: 0.0564 | Y10: 0.0565 | Z10: 0.0565 | AA10: 0.0565 | AB10: 0.0566 | AC10: 0.0566 | AD10: 0.0566 | AE10: 0.0566 | AF10: 0.0567 | AG10: 0.0567 | AH10: 0.0567 | AI10: 0.0567 | AJ10: 0.0568 | AK10: 0.0568 | AL10: 0.0568 | AM10: 0.0568 | AN10: 0.0568 | AO10: 0.0568 | AP10: 0.0569 | AQ10: 0.0569 | AR10: 0.0569 | AS10: 0.0569 | AT10: 0.0569 | AU10: 0.0569 | AV10: 0.0569 | AW10: 0.0569 | AX10: 0.057 | AY10: 0.057 | AZ10: 0.057 | BA10: 0.057 | BB10: 0.057 | BC10: 0.057 | BD10: 0.057 | BE10: 0.057 | BF10: 0.057 | BG10: 0.057 | BH10: 0.057 | BI10: 0.057 | BJ10: 0.0571 | BK10: 0.0571 | BL10: 0.0571 | BM10: 0.0571 | BN10: 0.0571 | BO10: 0.0571 | BP10: 0.0571 | BQ10: 0.0571 | BR10: 0.0571 | BS10: 0.0571 | BT10: 0.0571 | BU10: 0.0571 | BV10: 0.0571 | BW10: 0.0571 | BX10: 0.0571 | BY10: 0.0571 | BZ10: 0.0571 | CA10: 0.0571 | CB10: 0.0571 | CC10: 0.0571 | CD10: 0.0571 | CE10: 0.0571 | CF10: 0.0571 | CG10: 0.0571 | CH10: 24
C11: 25 | D11: 0.0557 | E11: 0.0558 | F11: 0.0558 | G11: 0.0559 | H11: 0.0559 | I11: 0.056 | J11: 0.056 | K11: 0.056 | L11: 0.0561 | M11: 0.0561 | N11: 0.0562 | O11: 0.0562 | P11: 0.0563 | Q11: 0.0563 | R11: 0.0564 | S11: 0.0564 | T11: 0.0564 | U11: 0.0565 | V11: 0.0565 | W11: 0.0566 | X11: 0.0566 | Y11: 0.0566 | Z11: 0.0567 | AA11: 0.0567 | AB11: 0.0567 | AC11: 0.0568 | AD11: 0.0568 | AE11: 0.0568 | AF11: 0.0569 | AG11: 0.0569 | AH11: 0.0569 | AI11: 0.0569 | AJ11: 0.057 | AK11: 0.057 | AL11: 0.057 | AM11: 0.057 | AN11: 0.057 | AO11: 0.057 | AP11: 0.0571 | AQ11: 0.0571 | AR11: 0.0571 | AS11: 0.0571 | AT11: 0.0571 | AU11: 0.0571 | AV11: 0.0571 | AW11: 0.0572 | AX11: 0.0572 | AY11: 0.0572 | AZ11: 0.0572 | BA11: 0.0572 | BB11: 0.0572 | BC11: 0.0572 | BD11: 0.0572 | BE11: 0.0572 | BF11: 0.0573 | BG11: 0.0573 | BH11: 0.0573 | BI11: 0.0573 | BJ11: 0.0573 | BK11: 0.0573 | BL11: 0.0573 | BM11: 0.0573 | BN11: 0.0573 | BO11: 0.0573 | BP11: 0.0573 | BQ11: 0.0573 | BR11: 0.0573 | BS11: 0.0573 | BT11: 0.0573 | BU11: 0.0573 | BV11: 0.0573 | BW11: 0.0573 | BX11: 0.0573 | BY11: 0.0573 | BZ11: 0.0573 | CA11: 0.0573 | CB11: 0.0573 | CC11: 0.0573 | CD11: 0.0573 | CE11: 0.0573 | CF11: 0.0573 | CG11: 0.0574 | CH11: 25
C12: 26 | D12: 0.0558 | E12: 0.0559 | F12: 0.0559 | G12: 0.056 | H12: 0.056 | I12: 0.0561 | J12: 0.0561 | K12: 0.0562 | L12: 0.0562 | M12: 0.0563 | N12: 0.0563 | O12: 0.0564 | P12: 0.0564 | Q12: 0.0565 | R12: 0.0565 | S12: 0.0566 | T12: 0.0566 | U12: 0.0567 | V12: 0.0567 | W12: 0.0567 | X12: 0.0568 | Y12: 0.0568 | Z12: 0.0569 | AA12: 0.0569 | AB12: 0.0569 | AC12: 0.057 | AD12: 0.057 | AE12: 0.057 | AF12: 0.0571 | AG12: 0.0571 | AH12: 0.0571 | AI12: 0.0571 | AJ12: 0.0572 | AK12: 0.0572 | AL12: 0.0572 | AM12: 0.0572 | AN12: 0.0572 | AO12: 0.0573 | AP12: 0.0573 | AQ12: 0.0573 | AR12: 0.0573 | AS12: 0.0573 | AT12: 0.0573 | AU12: 0.0574 | AV12: 0.0574 | AW12: 0.0574 | AX12: 0.0574 | AY12: 0.0574 | AZ12: 0.0574 | BA12: 0.0574 | BB12: 0.0574 | BC12: 0.0575 | BD12: 0.0575 | BE12: 0.0575 | BF12: 0.0575 | BG12: 0.0575 | BH12: 0.0575 | BI12: 0.0575 | BJ12: 0.0575 | BK12: 0.0575 | BL12: 0.0575 | BM12: 0.0575 | BN12: 0.0575 | BO12: 0.0575 | BP12: 0.0575 | BQ12: 0.0575 | BR12: 0.0575 | BS12: 0.0576 | BT12: 0.0576 | BU12: 0.0576 | BV12: 0.0576 | BW12: 0.0576 | BX12: 0.0576 | BY12: 0.0576 | BZ12: 0.0576 | CA12: 0.0576 | CB12: 0.0576 | CC12: 0.0576 | CD12: 0.0576 | CE12: 0.0576 | CF12: 0.0576 | CG12: 0.0576 | CH12: 26
C13: 27 | D13: 0.056 | E13: 0.056 | F13: 0.0561 | G13: 0.0561 | H13: 0.0562 | I13: 0.0562 | J13: 0.0563 | K13: 0.0563 | L13: 0.0564 | M13: 0.0564 | N13: 0.0565 | O13: 0.0565 | P13: 0.0566 | Q13: 0.0566 | R13: 0.0567 | S13: 0.0567 | T13: 0.0568 | U13: 0.0568 | V13: 0.0569 | W13: 0.0569 | X13: 0.057 | Y13: 0.057 | Z13: 0.0571 | AA13: 0.0571 | AB13: 0.0571 | AC13: 0.0572 | AD13: 0.0572 | AE13: 0.0572 | AF13: 0.0573 | AG13: 0.0573 | AH13: 0.0573 | AI13: 0.0573 | AJ13: 0.0574 | AK13: 0.0574 | AL13: 0.0574 | AM13: 0.0574 | AN13: 0.0575 | AO13: 0.0575 | AP13: 0.0575 | AQ13: 0.0575 | AR13: 0.0575 | AS13: 0.0576 | AT13: 0.0576 | AU13: 0.0576 | AV13: 0.0576 | AW13: 0.0576 | AX13: 0.0576 | AY13: 0.0576 | AZ13: 0.0577 | BA13: 0.0577 | BB13: 0.0577 | BC13: 0.0577 | BD13: 0.0577 | BE13: 0.0577 | BF13: 0.0577 | BG13: 0.0577 | BH13: 0.0577 | BI13: 0.0577 | BJ13: 0.0578 | BK13: 0.0578 | BL13: 0.0578 | BM13: 0.0578 | BN13: 0.0578 | BO13: 0.0578 | BP13: 0.0578 | BQ13: 0.0578 | BR13: 0.0578 | BS13: 0.0578 | BT13: 0.0578 | BU13: 0.0578 | BV13: 0.0578 | BW13: 0.0578 | BX13: 0.0578 | BY13: 0.0578 | BZ13: 0.0578 | CA13: 0.0578 | CB13: 0.0578 | CC13: 0.0578 | CD13: 0.0578 | CE13: 0.0578 | CF13: 0.0578 | CG13: 0.0578 | CH13: 27
C14: 28 | D14: 0.0561 | E14: 0.0562 | F14: 0.0562 | G14: 0.0563 | H14: 0.0563 | I14: 0.0564 | J14: 0.0564 | K14: 0.0565 | L14: 0.0565 | M14: 0.0566 | N14: 0.0567 | O14: 0.0567 | P14: 0.0568 | Q14: 0.0568 | R14: 0.0569 | S14: 0.0569 | T14: 0.057 | U14: 0.057 | V14: 0.0571 | W14: 0.0571 | X14: 0.0572 | Y14: 0.0572 | Z14: 0.0572 | AA14: 0.0573 | AB14: 0.0573 | AC14: 0.0574 | AD14: 0.0574 | AE14: 0.0574 | AF14: 0.0575 | AG14: 0.0575 | AH14: 0.0575 | AI14: 0.0576 | AJ14: 0.0576 | AK14: 0.0576 | AL14: 0.0576 | AM14: 0.0577 | AN14: 0.0577 | AO14: 0.0577 | AP14: 0.0577 | AQ14: 0.0578 | AR14: 0.0578 | AS14: 0.0578 | AT14: 0.0578 | AU14: 0.0578 | AV14: 0.0578 | AW14: 0.0579 | AX14: 0.0579 | AY14: 0.0579 | AZ14: 0.0579 | BA14: 0.0579 | BB14: 0.0579 | BC14: 0.0579 | BD14: 0.058 | BE14: 0.058 | BF14: 0.058 | BG14: 0.058 | BH14: 0.058 | BI14: 0.058 | BJ14: 0.058 | BK14: 0.058 | BL14: 0.058 | BM14: 0.058 | BN14: 0.058 | BO14: 0.058 | BP14: 0.058 | BQ14: 0.058 | BR14: 0.0581 | BS14: 0.0581 | BT14: 0.0581 | BU14: 0.0581 | BV14: 0.0581 | BW14: 0.0581 | BX14: 0.0581 | BY14: 0.0581 | BZ14: 0.0581 | CA14: 0.0581 | CB14: 0.0581 | CC14: 0.0581 | CD14: 0.0581 | CE14: 0.0581 | CF14: 0.0581 | CG14: 0.0581 | CH14: 28
C15: 29 | D15: 0.0563 | E15: 0.0563 | F15: 0.0564 | G15: 0.0564 | H15: 0.0565 | I15: 0.0565 | J15: 0.0566 | K15: 0.0566 | L15: 0.0567 | M15: 0.0568 | N15: 0.0568 | O15: 0.0569 | P15: 0.0569 | Q15: 0.057 | R15: 0.057 | S15: 0.0571 | T15: 0.0572 | U15: 0.0572 | V15: 0.0573 | W15: 0.0573 | X15: 0.0574 | Y15: 0.0574 | Z15: 0.0575 | AA15: 0.0575 | AB15: 0.0575 | AC15: 0.0576 | AD15: 0.0576 | AE15: 0.0577 | AF15: 0.0577 | AG15: 0.0577 | AH15: 0.0578 | AI15: 0.0578 | AJ15: 0.0578 | AK15: 0.0579 | AL15: 0.0579 | AM15: 0.0579 | AN15: 0.0579 | AO15: 0.058 | AP15: 0.058 | AQ15: 0.058 | AR15: 0.058 | AS15: 0.058 | AT15: 0.0581 | AU15: 0.0581 | AV15: 0.0581 | AW15: 0.0581 | AX15: 0.0581 | AY15: 0.0582 | AZ15: 0.0582 | BA15: 0.0582 | BB15: 0.0582 | BC15: 0.0582 | BD15: 0.0582 | BE15: 0.0582 | BF15: 0.0582 | BG15: 0.0582 | BH15: 0.0583 | BI15: 0.0583 | BJ15: 0.0583 | BK15: 0.0583 | BL15: 0.0583 | BM15: 0.0583 | BN15: 0.0583 | BO15: 0.0583 | BP15: 0.0583 | BQ15: 0.0583 | BR15: 0.0583 | BS15: 0.0583 | BT15: 0.0583 | BU15: 0.0583 | BV15: 0.0583 | BW15: 0.0583 | BX15: 0.0583 | BY15: 0.0583 | BZ15: 0.0583 | CA15: 0.0584 | CB15: 0.0584 | CC15: 0.0584 | CD15: 0.0584 | CE15: 0.0584 | CF15: 0.0584 | CG15: 0.0584 | CH15: 29
C16: 30 | D16: 0.0564 | E16: 0.0565 | F16: 0.0565 | G16: 0.0566 | H16: 0.0566 | I16: 0.0567 | J16: 0.0567 | K16: 0.0568 | L16: 0.0569 | M16: 0.0569 | N16: 0.057 | O16: 0.0571 | P16: 0.0571 | Q16: 0.0572 | R16: 0.0572 | S16: 0.0573 | T16: 0.0573 | U16: 0.0574 | V16: 0.0575 | W16: 0.0575 | X16: 0.0576 | Y16: 0.0576 | Z16: 0.0577 | AA16: 0.0577 | AB16: 0.0578 | AC16: 0.0578 | AD16: 0.0578 | AE16: 0.0579 | AF16: 0.0579 | AG16: 0.058 | AH16: 0.058 | AI16: 0.058 | AJ16: 0.0581 | AK16: 0.0581 | AL16: 0.0581 | AM16: 0.0582 | AN16: 0.0582 | AO16: 0.0582 | AP16: 0.0582 | AQ16: 0.0583 | AR16: 0.0583 | AS16: 0.0583 | AT16: 0.0583 | AU16: 0.0583 | AV16: 0.0584 | AW16: 0.0584 | AX16: 0.0584 | AY16: 0.0584 | AZ16: 0.0584 | BA16: 0.0584 | BB16: 0.0585 | BC16: 0.0585 | BD16: 0.0585 | BE16: 0.0585 | BF16: 0.0585 | BG16: 0.0585 | BH16: 0.0585 | BI16: 0.0585 | BJ16: 0.0586 | BK16: 0.0586 | BL16: 0.0586 | BM16: 0.0586 | BN16: 0.0586 | BO16: 0.0586 | BP16: 0.0586 | BQ16: 0.0586 | BR16: 0.0586 | BS16: 0.0586 | BT16: 0.0586 | BU16: 0.0586 | BV16: 0.0586 | BW16: 0.0586 | BX16: 0.0586 | BY16: 0.0586 | BZ16: 0.0586 | CA16: 0.0586 | CB16: 0.0586 | CC16: 0.0586 | CD16: 0.0586 | CE16: 0.0586 | CF16: 0.0586 | CG16: 0.0586 | CH16: 30
C17: 31 | D17: 0.0565 | E17: 0.0566 | F17: 0.0567 | G17: 0.0567 | H17: 0.0568 | I17: 0.0569 | J17: 0.0569 | K17: 0.057 | L17: 0.057 | M17: 0.0571 | N17: 0.0572 | O17: 0.0572 | P17: 0.0573 | Q17: 0.0574 | R17: 0.0574 | S17: 0.0575 | T17: 0.0575 | U17: 0.0576 | V17: 0.0577 | W17: 0.0577 | X17: 0.0578 | Y17: 0.0578 | Z17: 0.0579 | AA17: 0.0579 | AB17: 0.058 | AC17: 0.058 | AD17: 0.0581 | AE17: 0.0581 | AF17: 0.0582 | AG17: 0.0582 | AH17: 0.0582 | AI17: 0.0583 | AJ17: 0.0583 | AK17: 0.0583 | AL17: 0.0584 | AM17: 0.0584 | AN17: 0.0584 | AO17: 0.0585 | AP17: 0.0585 | AQ17: 0.0585 | AR17: 0.0586 | AS17: 0.0586 | AT17: 0.0586 | AU17: 0.0586 | AV17: 0.0586 | AW17: 0.0587 | AX17: 0.0587 | AY17: 0.0587 | AZ17: 0.0587 | BA17: 0.0587 | BB17: 0.0587 | BC17: 0.0588 | BD17: 0.0588 | BE17: 0.0588 | BF17: 0.0588 | BG17: 0.0588 | BH17: 0.0588 | BI17: 0.0588 | BJ17: 0.0588 | BK17: 0.0589 | BL17: 0.0589 | BM17: 0.0589 | BN17: 0.0589 | BO17: 0.0589 | BP17: 0.0589 | BQ17: 0.0589 | BR17: 0.0589 | BS17: 0.0589 | BT17: 0.0589 | BU17: 0.0589 | BV17: 0.0589 | BW17: 0.0589 | BX17: 0.0589 | BY17: 0.0589 | BZ17: 0.0589 | CA17: 0.0589 | CB17: 0.0589 | CC17: 0.0589 | CD17: 0.0589 | CE17: 0.0589 | CF17: 0.0589 | CG17: 0.0589 | CH17: 31
C18: 32 | D18: 0.0567 | E18: 0.0568 | F18: 0.0568 | G18: 0.0569 | H18: 0.057 | I18: 0.057 | J18: 0.0571 | K18: 0.0572 | L18: 0.0572 | M18: 0.0573 | N18: 0.0574 | O18: 0.0574 | P18: 0.0575 | Q18: 0.0576 | R18: 0.0576 | S18: 0.0577 | T18: 0.0577 | U18: 0.0578 | V18: 0.0579 | W18: 0.0579 | X18: 0.058 | Y18: 0.058 | Z18: 0.0581 | AA18: 0.0582 | AB18: 0.0582 | AC18: 0.0583 | AD18: 0.0583 | AE18: 0.0584 | AF18: 0.0584 | AG18: 0.0585 | AH18: 0.0585 | AI18: 0.0585 | AJ18: 0.0586 | AK18: 0.0586 | AL18: 0.0586 | AM18: 0.0587 | AN18: 0.0587 | AO18: 0.0587 | AP18: 0.0588 | AQ18: 0.0588 | AR18: 0.0588 | AS18: 0.0589 | AT18: 0.0589 | AU18: 0.0589 | AV18: 0.0589 | AW18: 0.059 | AX18: 0.059 | AY18: 0.059 | AZ18: 0.059 | BA18: 0.059 | BB18: 0.059 | BC18: 0.0591 | BD18: 0.0591 | BE18: 0.0591 | BF18: 0.0591 | BG18: 0.0591 | BH18: 0.0591 | BI18: 0.0591 | BJ18: 0.0591 | BK18: 0.0592 | BL18: 0.0592 | BM18: 0.0592 | BN18: 0.0592 | BO18: 0.0592 | BP18: 0.0592 | BQ18: 0.0592 | BR18: 0.0592 | BS18: 0.0592 | BT18: 0.0592 | BU18: 0.0592 | BV18: 0.0592 | BW18: 0.0592 | BX18: 0.0592 | BY18: 0.0592 | BZ18: 0.0592 | CA18: 0.0592 | CB18: 0.0592 | CC18: 0.0592 | CD18: 0.0593 | CE18: 0.0593 | CF18: 0.0593 | CG18: 0.0593 | CH18: 32
C19: 33 | D19: 0.0569 | E19: 0.0569 | F19: 0.057 | G19: 0.0571 | H19: 0.0571 | I19: 0.0572 | J19: 0.0573 | K19: 0.0573 | L19: 0.0574 | M19: 0.0575 | N19: 0.0575 | O19: 0.0576 | P19: 0.0577 | Q19: 0.0577 | R19: 0.0578 | S19: 0.0579 | T19: 0.058 | U19: 0.058 | V19: 0.0581 | W19: 0.0582 | X19: 0.0582 | Y19: 0.0583 | Z19: 0.0583 | AA19: 0.0584 | AB19: 0.0585 | AC19: 0.0585 | AD19: 0.0586 | AE19: 0.0586 | AF19: 0.0587 | AG19: 0.0587 | AH19: 0.0588 | AI19: 0.0588 | AJ19: 0.0588 | AK19: 0.0589 | AL19: 0.0589 | AM19: 0.059 | AN19: 0.059 | AO19: 0.059 | AP19: 0.0591 | AQ19: 0.0591 | AR19: 0.0591 | AS19: 0.0592 | AT19: 0.0592 | AU19: 0.0592 | AV19: 0.0592 | AW19: 0.0593 | AX19: 0.0593 | AY19: 0.0593 | AZ19: 0.0593 | BA19: 0.0593 | BB19: 0.0594 | BC19: 0.0594 | BD19: 0.0594 | BE19: 0.0594 | BF19: 0.0594 | BG19: 0.0594 | BH19: 0.0594 | BI19: 0.0595 | BJ19: 0.0595 | BK19: 0.0595 | BL19: 0.0595 | BM19: 0.0595 | BN19: 0.0595 | BO19: 0.0595 | BP19: 0.0595 | BQ19: 0.0595 | BR19: 0.0595 | BS19: 0.0595 | BT19: 0.0595 | BU19: 0.0595 | BV19: 0.0596 | BW19: 0.0596 | BX19: 0.0596 | BY19: 0.0596 | BZ19: 0.0596 | CA19: 0.0596 | CB19: 0.0596 | CC19: 0.0596 | CD19: 0.0596 | CE19: 0.0596 | CF19: 0.0596 | CG19: 0.0596 | CH19: 33
C20: 34 | D20: 0.057 | E20: 0.0571 | F20: 0.0572 | G20: 0.0572 | H20: 0.0573 | I20: 0.0574 | J20: 0.0574 | K20: 0.0575 | L20: 0.0576 | M20: 0.0577 | N20: 0.0577 | O20: 0.0578 | P20: 0.0579 | Q20: 0.058 | R20: 0.058 | S20: 0.0581 | T20: 0.0582 | U20: 0.0582 | V20: 0.0583 | W20: 0.0584 | X20: 0.0584 | Y20: 0.0585 | Z20: 0.0586 | AA20: 0.0586 | AB20: 0.0587 | AC20: 0.0588 | AD20: 0.0588 | AE20: 0.0589 | AF20: 0.0589 | AG20: 0.059 | AH20: 0.059 | AI20: 0.0591 | AJ20: 0.0591 | AK20: 0.0592 | AL20: 0.0592 | AM20: 0.0592 | AN20: 0.0593 | AO20: 0.0593 | AP20: 0.0594 | AQ20: 0.0594 | AR20: 0.0594 | AS20: 0.0595 | AT20: 0.0595 | AU20: 0.0595 | AV20: 0.0595 | AW20: 0.0596 | AX20: 0.0596 | AY20: 0.0596 | AZ20: 0.0596 | BA20: 0.0597 | BB20: 0.0597 | BC20: 0.0597 | BD20: 0.0597 | BE20: 0.0597 | BF20: 0.0597 | BG20: 0.0598 | BH20: 0.0598 | BI20: 0.0598 | BJ20: 0.0598 | BK20: 0.0598 | BL20: 0.0598 | BM20: 0.0598 | BN20: 0.0598 | BO20: 0.0599 | BP20: 0.0599 | BQ20: 0.0599 | BR20: 0.0599 | BS20: 0.0599 | BT20: 0.0599 | BU20: 0.0599 | BV20: 0.0599 | BW20: 0.0599 | BX20: 0.0599 | BY20: 0.0599 | BZ20: 0.0599 | CA20: 0.0599 | CB20: 0.0599 | CC20: 0.0599 | CD20: 0.0599 | CE20: 0.0599 | CF20: 0.0599 | CG20: 0.0599 | CH20: 34
C21: 35 | D21: 0.0572 | E21: 0.0573 | F21: 0.0573 | G21: 0.0574 | H21: 0.0575 | I21: 0.0576 | J21: 0.0576 | K21: 0.0577 | L21: 0.0578 | M21: 0.0579 | N21: 0.0579 | O21: 0.058 | P21: 0.0581 | Q21: 0.0582 | R21: 0.0582 | S21: 0.0583 | T21: 0.0584 | U21: 0.0585 | V21: 0.0585 | W21: 0.0586 | X21: 0.0587 | Y21: 0.0588 | Z21: 0.0588 | AA21: 0.0589 | AB21: 0.059 | AC21: 0.059 | AD21: 0.0591 | AE21: 0.0591 | AF21: 0.0592 | AG21: 0.0593 | AH21: 0.0593 | AI21: 0.0594 | AJ21: 0.0594 | AK21: 0.0595 | AL21: 0.0595 | AM21: 0.0595 | AN21: 0.0596 | AO21: 0.0596 | AP21: 0.0597 | AQ21: 0.0597 | AR21: 0.0597 | AS21: 0.0598 | AT21: 0.0598 | AU21: 0.0598 | AV21: 0.0599 | AW21: 0.0599 | AX21: 0.0599 | AY21: 0.0599 | AZ21: 0.06 | BA21: 0.06 | BB21: 0.06 | BC21: 0.06 | BD21: 0.0601 | BE21: 0.0601 | BF21: 0.0601 | BG21: 0.0601 | BH21: 0.0601 | BI21: 0.0601 | BJ21: 0.0602 | BK21: 0.0602 | BL21: 0.0602 | BM21: 0.0602 | BN21: 0.0602 | BO21: 0.0602 | BP21: 0.0602 | BQ21: 0.0602 | BR21: 0.0602 | BS21: 0.0602 | BT21: 0.0602 | BU21: 0.0603 | BV21: 0.0603 | BW21: 0.0603 | BX21: 0.0603 | BY21: 0.0603 | BZ21: 0.0603 | CA21: 0.0603 | CB21: 0.0603 | CC21: 0.0603 | CD21: 0.0603 | CE21: 0.0603 | CF21: 0.0603 | CG21: 0.0603 | CH21: 35
C22: 36 | D22: 0.0574 | E22: 0.0575 | F22: 0.0575 | G22: 0.0576 | H22: 0.0577 | I22: 0.0577 | J22: 0.0578 | K22: 0.0579 | L22: 0.058 | M22: 0.0581 | N22: 0.0581 | O22: 0.0582 | P22: 0.0583 | Q22: 0.0584 | R22: 0.0585 | S22: 0.0585 | T22: 0.0586 | U22: 0.0587 | V22: 0.0588 | W22: 0.0589 | X22: 0.0589 | Y22: 0.059 | Z22: 0.0591 | AA22: 0.0592 | AB22: 0.0592 | AC22: 0.0593 | AD22: 0.0594 | AE22: 0.0594 | AF22: 0.0595 | AG22: 0.0595 | AH22: 0.0596 | AI22: 0.0597 | AJ22: 0.0597 | AK22: 0.0598 | AL22: 0.0598 | AM22: 0.0599 | AN22: 0.0599 | AO22: 0.0599 | AP22: 0.06 | AQ22: 0.06 | AR22: 0.0601 | AS22: 0.0601 | AT22: 0.0601 | AU22: 0.0602 | AV22: 0.0602 | AW22: 0.0602 | AX22: 0.0603 | AY22: 0.0603 | AZ22: 0.0603 | BA22: 0.0603 | BB22: 0.0604 | BC22: 0.0604 | BD22: 0.0604 | BE22: 0.0604 | BF22: 0.0605 | BG22: 0.0605 | BH22: 0.0605 | BI22: 0.0605 | BJ22: 0.0605 | BK22: 0.0605 | BL22: 0.0605 | BM22: 0.0606 | BN22: 0.0606 | BO22: 0.0606 | BP22: 0.0606 | BQ22: 0.0606 | BR22: 0.0606 | BS22: 0.0606 | BT22: 0.0606 | BU22: 0.0606 | BV22: 0.0606 | BW22: 0.0606 | BX22: 0.0606 | BY22: 0.0606 | BZ22: 0.0607 | CA22: 0.0607 | CB22: 0.0607 | CC22: 0.0607 | CD22: 0.0607 | CE22: 0.0607 | CF22: 0.0607 | CG22: 0.0607 | CH22: 36
C23: 37 | D23: 0.0576 | E23: 0.0576 | F23: 0.0577 | G23: 0.0578 | H23: 0.0579 | I23: 0.0579 | J23: 0.058 | K23: 0.0581 | L23: 0.0582 | M23: 0.0583 | N23: 0.0584 | O23: 0.0584 | P23: 0.0585 | Q23: 0.0586 | R23: 0.0587 | S23: 0.0588 | T23: 0.0589 | U23: 0.0589 | V23: 0.059 | W23: 0.0591 | X23: 0.0592 | Y23: 0.0593 | Z23: 0.0593 | AA23: 0.0594 | AB23: 0.0595 | AC23: 0.0596 | AD23: 0.0596 | AE23: 0.0597 | AF23: 0.0598 | AG23: 0.0598 | AH23: 0.0599 | AI23: 0.06 | AJ23: 0.06 | AK23: 0.0601 | AL23: 0.0601 | AM23: 0.0602 | AN23: 0.0602 | AO23: 0.0603 | AP23: 0.0603 | AQ23: 0.0604 | AR23: 0.0604 | AS23: 0.0604 | AT23: 0.0605 | AU23: 0.0605 | AV23: 0.0606 | AW23: 0.0606 | AX23: 0.0606 | AY23: 0.0607 | AZ23: 0.0607 | BA23: 0.0607 | BB23: 0.0607 | BC23: 0.0608 | BD23: 0.0608 | BE23: 0.0608 | BF23: 0.0608 | BG23: 0.0609 | BH23: 0.0609 | BI23: 0.0609 | BJ23: 0.0609 | BK23: 0.0609 | BL23: 0.0609 | BM23: 0.0609 | BN23: 0.061 | BO23: 0.061 | BP23: 0.061 | BQ23: 0.061 | BR23: 0.061 | BS23: 0.061 | BT23: 0.061 | BU23: 0.061 | BV23: 0.061 | BW23: 0.061 | BX23: 0.061 | BY23: 0.061 | BZ23: 0.0611 | CA23: 0.0611 | CB23: 0.0611 | CC23: 0.0611 | CD23: 0.0611 | CE23: 0.0611 | CF23: 0.0611 | CG23: 0.0611 | CH23: 37
C24: 38 | D24: 0.0578 | E24: 0.0578 | F24: 0.0579 | G24: 0.058 | H24: 0.0581 | I24: 0.0582 | J24: 0.0582 | K24: 0.0583 | L24: 0.0584 | M24: 0.0585 | N24: 0.0586 | O24: 0.0587 | P24: 0.0588 | Q24: 0.0588 | R24: 0.0589 | S24: 0.059 | T24: 0.0591 | U24: 0.0592 | V24: 0.0593 | W24: 0.0594 | X24: 0.0595 | Y24: 0.0595 | Z24: 0.0596 | AA24: 0.0597 | AB24: 0.0598 | AC24: 0.0599 | AD24: 0.0599 | AE24: 0.06 | AF24: 0.0601 | AG24: 0.0601 | AH24: 0.0602 | AI24: 0.0603 | AJ24: 0.0603 | AK24: 0.0604 | AL24: 0.0605 | AM24: 0.0605 | AN24: 0.0606 | AO24: 0.0606 | AP24: 0.0607 | AQ24: 0.0607 | AR24: 0.0608 | AS24: 0.0608 | AT24: 0.0608 | AU24: 0.0609 | AV24: 0.0609 | AW24: 0.061 | AX24: 0.061 | AY24: 0.061 | AZ24: 0.0611 | BA24: 0.0611 | BB24: 0.0611 | BC24: 0.0612 | BD24: 0.0612 | BE24: 0.0612 | BF24: 0.0612 | BG24: 0.0613 | BH24: 0.0613 | BI24: 0.0613 | BJ24: 0.0613 | BK24: 0.0613 | BL24: 0.0613 | BM24: 0.0614 | BN24: 0.0614 | BO24: 0.0614 | BP24: 0.0614 | BQ24: 0.0614 | BR24: 0.0614 | BS24: 0.0614 | BT24: 0.0614 | BU24: 0.0614 | BV24: 0.0614 | BW24: 0.0615 | BX24: 0.0615 | BY24: 0.0615 | BZ24: 0.0615 | CA24: 0.0615 | CB24: 0.0615 | CC24: 0.0615 | CD24: 0.0615 | CE24: 0.0615 | CF24: 0.0615 | CG24: 0.0615 | CH24: 38
C25: 39 | D25: 0.058 | E25: 0.058 | F25: 0.0581 | G25: 0.0582 | H25: 0.0583 | I25: 0.0584 | J25: 0.0584 | K25: 0.0585 | L25: 0.0586 | M25: 0.0587 | N25: 0.0588 | O25: 0.0589 | P25: 0.059 | Q25: 0.0591 | R25: 0.0592 | S25: 0.0593 | T25: 0.0594 | U25: 0.0594 | V25: 0.0595 | W25: 0.0596 | X25: 0.0597 | Y25: 0.0598 | Z25: 0.0599 | AA25: 0.06 | AB25: 0.0601 | AC25: 0.0601 | AD25: 0.0602 | AE25: 0.0603 | AF25: 0.0604 | AG25: 0.0605 | AH25: 0.0605 | AI25: 0.0606 | AJ25: 0.0607 | AK25: 0.0607 | AL25: 0.0608 | AM25: 0.0609 | AN25: 0.0609 | AO25: 0.061 | AP25: 0.061 | AQ25: 0.0611 | AR25: 0.0611 | AS25: 0.0612 | AT25: 0.0612 | AU25: 0.0613 | AV25: 0.0613 | AW25: 0.0613 | AX25: 0.0614 | AY25: 0.0614 | AZ25: 0.0615 | BA25: 0.0615 | BB25: 0.0615 | BC25: 0.0616 | BD25: 0.0616 | BE25: 0.0616 | BF25: 0.0616 | BG25: 0.0617 | BH25: 0.0617 | BI25: 0.0617 | BJ25: 0.0617 | BK25: 0.0617 | BL25: 0.0618 | BM25: 0.0618 | BN25: 0.0618 | BO25: 0.0618 | BP25: 0.0618 | BQ25: 0.0618 | BR25: 0.0618 | BS25: 0.0618 | BT25: 0.0619 | BU25: 0.0619 | BV25: 0.0619 | BW25: 0.0619 | BX25: 0.0619 | BY25: 0.0619 | BZ25: 0.0619 | CA25: 0.0619 | CB25: 0.0619 | CC25: 0.0619 | CD25: 0.0619 | CE25: 0.0619 | CF25: 0.0619 | CG25: 0.0619 | CH25: 39
C26: 40 | D26: 0.0582 | E26: 0.0582 | F26: 0.0583 | G26: 0.0584 | H26: 0.0585 | I26: 0.0586 | J26: 0.0587 | K26: 0.0588 | L26: 0.0589 | M26: 0.0589 | N26: 0.059 | O26: 0.0591 | P26: 0.0592 | Q26: 0.0593 | R26: 0.0594 | S26: 0.0595 | T26: 0.0596 | U26: 0.0597 | V26: 0.0598 | W26: 0.0599 | X26: 0.06 | Y26: 0.0601 | Z26: 0.0602 | AA26: 0.0603 | AB26: 0.0604 | AC26: 0.0604 | AD26: 0.0605 | AE26: 0.0606 | AF26: 0.0607 | AG26: 0.0608 | AH26: 0.0609 | AI26: 0.0609 | AJ26: 0.061 | AK26: 0.0611 | AL26: 0.0611 | AM26: 0.0612 | AN26: 0.0613 | AO26: 0.0613 | AP26: 0.0614 | AQ26: 0.0614 | AR26: 0.0615 | AS26: 0.0616 | AT26: 0.0616 | AU26: 0.0617 | AV26: 0.0617 | AW26: 0.0617 | AX26: 0.0618 | AY26: 0.0618 | AZ26: 0.0619 | BA26: 0.0619 | BB26: 0.0619 | BC26: 0.062 | BD26: 0.062 | BE26: 0.062 | BF26: 0.0621 | BG26: 0.0621 | BH26: 0.0621 | BI26: 0.0621 | BJ26: 0.0622 | BK26: 0.0622 | BL26: 0.0622 | BM26: 0.0622 | BN26: 0.0622 | BO26: 0.0622 | BP26: 0.0623 | BQ26: 0.0623 | BR26: 0.0623 | BS26: 0.0623 | BT26: 0.0623 | BU26: 0.0623 | BV26: 0.0623 | BW26: 0.0623 | BX26: 0.0623 | BY26: 0.0623 | BZ26: 0.0624 | CA26: 0.0624 | CB26: 0.0624 | CC26: 0.0624 | CD26: 0.0624 | CE26: 0.0624 | CF26: 0.0624 | CG26: 0.0624 | CH26: 40
C27: 41 | D27: 0.0584 | E27: 0.0585 | F27: 0.0585 | G27: 0.0586 | H27: 0.0587 | I27: 0.0588 | J27: 0.0589 | K27: 0.059 | L27: 0.0591 | M27: 0.0592 | N27: 0.0593 | O27: 0.0594 | P27: 0.0595 | Q27: 0.0596 | R27: 0.0597 | S27: 0.0598 | T27: 0.0599 | U27: 0.06 | V27: 0.0601 | W27: 0.0602 | X27: 0.0603 | Y27: 0.0604 | Z27: 0.0605 | AA27: 0.0606 | AB27: 0.0607 | AC27: 0.0608 | AD27: 0.0608 | AE27: 0.0609 | AF27: 0.061 | AG27: 0.0611 | AH27: 0.0612 | AI27: 0.0613 | AJ27: 0.0614 | AK27: 0.0614 | AL27: 0.0615 | AM27: 0.0616 | AN27: 0.0616 | AO27: 0.0617 | AP27: 0.0618 | AQ27: 0.0618 | AR27: 0.0619 | AS27: 0.062 | AT27: 0.062 | AU27: 0.0621 | AV27: 0.0621 | AW27: 0.0622 | AX27: 0.0622 | AY27: 0.0623 | AZ27: 0.0623 | BA27: 0.0623 | BB27: 0.0624 | BC27: 0.0624 | BD27: 0.0624 | BE27: 0.0625 | BF27: 0.0625 | BG27: 0.0625 | BH27: 0.0626 | BI27: 0.0626 | BJ27: 0.0626 | BK27: 0.0626 | BL27: 0.0627 | BM27: 0.0627 | BN27: 0.0627 | BO27: 0.0627 | BP27: 0.0627 | BQ27: 0.0627 | BR27: 0.0628 | BS27: 0.0628 | BT27: 0.0628 | BU27: 0.0628 | BV27: 0.0628 | BW27: 0.0628 | BX27: 0.0628 | BY27: 0.0628 | BZ27: 0.0628 | CA27: 0.0628 | CB27: 0.0628 | CC27: 0.0629 | CD27: 0.0629 | CE27: 0.0629 | CF27: 0.0629 | CG27: 0.0629 | CH27: 41
C28: 42 | D28: 0.0586 | E28: 0.0587 | F28: 0.0588 | G28: 0.0589 | H28: 0.0589 | I28: 0.059 | J28: 0.0591 | K28: 0.0592 | L28: 0.0593 | M28: 0.0594 | N28: 0.0595 | O28: 0.0596 | P28: 0.0597 | Q28: 0.0598 | R28: 0.0599 | S28: 0.06 | T28: 0.0601 | U28: 0.0603 | V28: 0.0604 | W28: 0.0605 | X28: 0.0606 | Y28: 0.0607 | Z28: 0.0608 | AA28: 0.0609 | AB28: 0.061 | AC28: 0.0611 | AD28: 0.0612 | AE28: 0.0613 | AF28: 0.0614 | AG28: 0.0615 | AH28: 0.0615 | AI28: 0.0616 | AJ28: 0.0617 | AK28: 0.0618 | AL28: 0.0619 | AM28: 0.062 | AN28: 0.062 | AO28: 0.0621 | AP28: 0.0622 | AQ28: 0.0622 | AR28: 0.0623 | AS28: 0.0624 | AT28: 0.0624 | AU28: 0.0625 | AV28: 0.0625 | AW28: 0.0626 | AX28: 0.0626 | AY28: 0.0627 | AZ28: 0.0627 | BA28: 0.0628 | BB28: 0.0628 | BC28: 0.0629 | BD28: 0.0629 | BE28: 0.0629 | BF28: 0.063 | BG28: 0.063 | BH28: 0.063 | BI28: 0.0631 | BJ28: 0.0631 | BK28: 0.0631 | BL28: 0.0631 | BM28: 0.0632 | BN28: 0.0632 | BO28: 0.0632 | BP28: 0.0632 | BQ28: 0.0632 | BR28: 0.0632 | BS28: 0.0633 | BT28: 0.0633 | BU28: 0.0633 | BV28: 0.0633 | BW28: 0.0633 | BX28: 0.0633 | BY28: 0.0633 | BZ28: 0.0633 | CA28: 0.0633 | CB28: 0.0633 | CC28: 0.0633 | CD28: 0.0634 | CE28: 0.0634 | CF28: 0.0634 | CG28: 0.0634 | CH28: 42
C29: 43 | D29: 0.0588 | E29: 0.0589 | F29: 0.059 | G29: 0.0591 | H29: 0.0592 | I29: 0.0593 | J29: 0.0594 | K29: 0.0595 | L29: 0.0596 | M29: 0.0597 | N29: 0.0598 | O29: 0.0599 | P29: 0.06 | Q29: 0.0601 | R29: 0.0602 | S29: 0.0603 | T29: 0.0604 | U29: 0.0605 | V29: 0.0606 | W29: 0.0608 | X29: 0.0609 | Y29: 0.061 | Z29: 0.0611 | AA29: 0.0612 | AB29: 0.0613 | AC29: 0.0614 | AD29: 0.0615 | AE29: 0.0616 | AF29: 0.0617 | AG29: 0.0618 | AH29: 0.0619 | AI29: 0.062 | AJ29: 0.0621 | AK29: 0.0622 | AL29: 0.0623 | AM29: 0.0623 | AN29: 0.0624 | AO29: 0.0625 | AP29: 0.0626 | AQ29: 0.0626 | AR29: 0.0627 | AS29: 0.0628 | AT29: 0.0629 | AU29: 0.0629 | AV29: 0.063 | AW29: 0.063 | AX29: 0.0631 | AY29: 0.0631 | AZ29: 0.0632 | BA29: 0.0632 | BB29: 0.0633 | BC29: 0.0633 | BD29: 0.0634 | BE29: 0.0634 | BF29: 0.0635 | BG29: 0.0635 | BH29: 0.0635 | BI29: 0.0636 | BJ29: 0.0636 | BK29: 0.0636 | BL29: 0.0636 | BM29: 0.0637 | BN29: 0.0637 | BO29: 0.0637 | BP29: 0.0637 | BQ29: 0.0637 | BR29: 0.0638 | BS29: 0.0638 | BT29: 0.0638 | BU29: 0.0638 | BV29: 0.0638 | BW29: 0.0638 | BX29: 0.0638 | BY29: 0.0638 | BZ29: 0.0639 | CA29: 0.0639 | CB29: 0.0639 | CC29: 0.0639 | CD29: 0.0639 | CE29: 0.0639 | CF29: 0.0639 | CG29: 0.0639 | CH29: 43
C30: 44 | D30: 0.0591 | E30: 0.0592 | F30: 0.0592 | G30: 0.0593 | H30: 0.0594 | I30: 0.0595 | J30: 0.0596 | K30: 0.0597 | L30: 0.0598 | M30: 0.0599 | N30: 0.06 | O30: 0.0602 | P30: 0.0603 | Q30: 0.0604 | R30: 0.0605 | S30: 0.0606 | T30: 0.0607 | U30: 0.0608 | V30: 0.0609 | W30: 0.0611 | X30: 0.0612 | Y30: 0.0613 | Z30: 0.0614 | AA30: 0.0615 | AB30: 0.0616 | AC30: 0.0617 | AD30: 0.0618 | AE30: 0.062 | AF30: 0.0621 | AG30: 0.0622 | AH30: 0.0623 | AI30: 0.0624 | AJ30: 0.0625 | AK30: 0.0626 | AL30: 0.0627 | AM30: 0.0627 | AN30: 0.0628 | AO30: 0.0629 | AP30: 0.063 | AQ30: 0.0631 | AR30: 0.0631 | AS30: 0.0632 | AT30: 0.0633 | AU30: 0.0634 | AV30: 0.0634 | AW30: 0.0635 | AX30: 0.0636 | AY30: 0.0636 | AZ30: 0.0637 | BA30: 0.0637 | BB30: 0.0638 | BC30: 0.0638 | BD30: 0.0639 | BE30: 0.0639 | BF30: 0.064 | BG30: 0.064 | BH30: 0.064 | BI30: 0.0641 | BJ30: 0.0641 | BK30: 0.0641 | BL30: 0.0642 | BM30: 0.0642 | BN30: 0.0642 | BO30: 0.0642 | BP30: 0.0643 | BQ30: 0.0643 | BR30: 0.0643 | BS30: 0.0643 | BT30: 0.0643 | BU30: 0.0643 | BV30: 0.0643 | BW30: 0.0644 | BX30: 0.0644 | BY30: 0.0644 | BZ30: 0.0644 | CA30: 0.0644 | CB30: 0.0644 | CC30: 0.0644 | CD30: 0.0644 | CE30: 0.0644 | CF30: 0.0644 | CG30: 0.0644 | CH30: 44
C31: 45 | D31: 0.0593 | E31: 0.0594 | F31: 0.0595 | G31: 0.0596 | H31: 0.0597 | I31: 0.0598 | J31: 0.0599 | K31: 0.06 | L31: 0.0601 | M31: 0.0602 | N31: 0.0603 | O31: 0.0604 | P31: 0.0605 | Q31: 0.0607 | R31: 0.0608 | S31: 0.0609 | T31: 0.061 | U31: 0.0611 | V31: 0.0613 | W31: 0.0614 | X31: 0.0615 | Y31: 0.0616 | Z31: 0.0617 | AA31: 0.0619 | AB31: 0.062 | AC31: 0.0621 | AD31: 0.0622 | AE31: 0.0623 | AF31: 0.0624 | AG31: 0.0625 | AH31: 0.0626 | AI31: 0.0628 | AJ31: 0.0629 | AK31: 0.063 | AL31: 0.0631 | AM31: 0.0632 | AN31: 0.0632 | AO31: 0.0633 | AP31: 0.0634 | AQ31: 0.0635 | AR31: 0.0636 | AS31: 0.0637 | AT31: 0.0638 | AU31: 0.0638 | AV31: 0.0639 | AW31: 0.064 | AX31: 0.064 | AY31: 0.0641 | AZ31: 0.0642 | BA31: 0.0642 | BB31: 0.0643 | BC31: 0.0643 | BD31: 0.0644 | BE31: 0.0644 | BF31: 0.0645 | BG31: 0.0645 | BH31: 0.0646 | BI31: 0.0646 | BJ31: 0.0646 | BK31: 0.0647 | BL31: 0.0647 | BM31: 0.0647 | BN31: 0.0648 | BO31: 0.0648 | BP31: 0.0648 | BQ31: 0.0648 | BR31: 0.0648 | BS31: 0.0649 | BT31: 0.0649 | BU31: 0.0649 | BV31: 0.0649 | BW31: 0.0649 | BX31: 0.0649 | BY31: 0.065 | BZ31: 0.065 | CA31: 0.065 | CB31: 0.065 | CC31: 0.065 | CD31: 0.065 | CE31: 0.065 | CF31: 0.065 | CG31: 0.065 | CH31: 45
C32: 46 | D32: 0.0596 | E32: 0.0597 | F32: 0.0597 | G32: 0.0598 | H32: 0.0599 | I32: 0.06 | J32: 0.0601 | K32: 0.0603 | L32: 0.0604 | M32: 0.0605 | N32: 0.0606 | O32: 0.0607 | P32: 0.0608 | Q32: 0.0609 | R32: 0.0611 | S32: 0.0612 | T32: 0.0613 | U32: 0.0614 | V32: 0.0616 | W32: 0.0617 | X32: 0.0618 | Y32: 0.0619 | Z32: 0.0621 | AA32: 0.0622 | AB32: 0.0623 | AC32: 0.0624 | AD32: 0.0626 | AE32: 0.0627 | AF32: 0.0628 | AG32: 0.0629 | AH32: 0.063 | AI32: 0.0632 | AJ32: 0.0633 | AK32: 0.0634 | AL32: 0.0635 | AM32: 0.0636 | AN32: 0.0637 | AO32: 0.0638 | AP32: 0.0639 | AQ32: 0.064 | AR32: 0.0641 | AS32: 0.0641 | AT32: 0.0642 | AU32: 0.0643 | AV32: 0.0644 | AW32: 0.0645 | AX32: 0.0645 | AY32: 0.0646 | AZ32: 0.0647 | BA32: 0.0647 | BB32: 0.0648 | BC32: 0.0649 | BD32: 0.0649 | BE32: 0.065 | BF32: 0.065 | BG32: 0.0651 | BH32: 0.0651 | BI32: 0.0652 | BJ32: 0.0652 | BK32: 0.0652 | BL32: 0.0653 | BM32: 0.0653 | BN32: 0.0653 | BO32: 0.0654 | BP32: 0.0654 | BQ32: 0.0654 | BR32: 0.0654 | BS32: 0.0655 | BT32: 0.0655 | BU32: 0.0655 | BV32: 0.0655 | BW32: 0.0655 | BX32: 0.0655 | BY32: 0.0656 | BZ32: 0.0656 | CA32: 0.0656 | CB32: 0.0656 | CC32: 0.0656 | CD32: 0.0656 | CE32: 0.0656 | CF32: 0.0656 | CG32: 0.0656 | CH32: 46
C33: 47 | D33: 0.0598 | E33: 0.0599 | F33: 0.06 | G33: 0.0601 | H33: 0.0602 | I33: 0.0603 | J33: 0.0604 | K33: 0.0605 | L33: 0.0606 | M33: 0.0608 | N33: 0.0609 | O33: 0.061 | P33: 0.0611 | Q33: 0.0612 | R33: 0.0614 | S33: 0.0615 | T33: 0.0616 | U33: 0.0618 | V33: 0.0619 | W33: 0.062 | X33: 0.0622 | Y33: 0.0623 | Z33: 0.0624 | AA33: 0.0625 | AB33: 0.0627 | AC33: 0.0628 | AD33: 0.0629 | AE33: 0.0631 | AF33: 0.0632 | AG33: 0.0633 | AH33: 0.0634 | AI33: 0.0636 | AJ33: 0.0637 | AK33: 0.0638 | AL33: 0.0639 | AM33: 0.064 | AN33: 0.0641 | AO33: 0.0642 | AP33: 0.0643 | AQ33: 0.0644 | AR33: 0.0645 | AS33: 0.0646 | AT33: 0.0647 | AU33: 0.0648 | AV33: 0.0649 | AW33: 0.065 | AX33: 0.0651 | AY33: 0.0651 | AZ33: 0.0652 | BA33: 0.0653 | BB33: 0.0654 | BC33: 0.0654 | BD33: 0.0655 | BE33: 0.0655 | BF33: 0.0656 | BG33: 0.0657 | BH33: 0.0657 | BI33: 0.0657 | BJ33: 0.0658 | BK33: 0.0658 | BL33: 0.0659 | BM33: 0.0659 | BN33: 0.0659 | BO33: 0.066 | BP33: 0.066 | BQ33: 0.066 | BR33: 0.066 | BS33: 0.0661 | BT33: 0.0661 | BU33: 0.0661 | BV33: 0.0661 | BW33: 0.0661 | BX33: 0.0662 | BY33: 0.0662 | BZ33: 0.0662 | CA33: 0.0662 | CB33: 0.0662 | CC33: 0.0662 | CD33: 0.0662 | CE33: 0.0662 | CF33: 0.0663 | CG33: 0.0663 | CH33: 47
C34: 48 | D34: 0.0601 | E34: 0.0602 | F34: 0.0603 | G34: 0.0604 | H34: 0.0605 | I34: 0.0606 | J34: 0.0607 | K34: 0.0608 | L34: 0.0609 | M34: 0.0611 | N34: 0.0612 | O34: 0.0613 | P34: 0.0614 | Q34: 0.0616 | R34: 0.0617 | S34: 0.0618 | T34: 0.062 | U34: 0.0621 | V34: 0.0622 | W34: 0.0624 | X34: 0.0625 | Y34: 0.0626 | Z34: 0.0628 | AA34: 0.0629 | AB34: 0.0631 | AC34: 0.0632 | AD34: 0.0633 | AE34: 0.0635 | AF34: 0.0636 | AG34: 0.0637 | AH34: 0.0639 | AI34: 0.064 | AJ34: 0.0641 | AK34: 0.0642 | AL34: 0.0644 | AM34: 0.0645 | AN34: 0.0646 | AO34: 0.0647 | AP34: 0.0648 | AQ34: 0.0649 | AR34: 0.065 | AS34: 0.0651 | AT34: 0.0652 | AU34: 0.0653 | AV34: 0.0654 | AW34: 0.0655 | AX34: 0.0656 | AY34: 0.0657 | AZ34: 0.0658 | BA34: 0.0659 | BB34: 0.0659 | BC34: 0.066 | BD34: 0.0661 | BE34: 0.0661 | BF34: 0.0662 | BG34: 0.0663 | BH34: 0.0663 | BI34: 0.0664 | BJ34: 0.0664 | BK34: 0.0664 | BL34: 0.0665 | BM34: 0.0665 | BN34: 0.0666 | BO34: 0.0666 | BP34: 0.0666 | BQ34: 0.0667 | BR34: 0.0667 | BS34: 0.0667 | BT34: 0.0667 | BU34: 0.0668 | BV34: 0.0668 | BW34: 0.0668 | BX34: 0.0668 | BY34: 0.0668 | BZ34: 0.0668 | CA34: 0.0669 | CB34: 0.0669 | CC34: 0.0669 | CD34: 0.0669 | CE34: 0.0669 | CF34: 0.0669 | CG34: 0.0669 | CH34: 48
C35: 49 | D35: 0.0604 | E35: 0.0605 | F35: 0.0606 | G35: 0.0607 | H35: 0.0608 | I35: 0.0609 | J35: 0.061 | K35: 0.0611 | L35: 0.0612 | M35: 0.0614 | N35: 0.0615 | O35: 0.0616 | P35: 0.0617 | Q35: 0.0619 | R35: 0.062 | S35: 0.0621 | T35: 0.0623 | U35: 0.0624 | V35: 0.0626 | W35: 0.0627 | X35: 0.0629 | Y35: 0.063 | Z35: 0.0631 | AA35: 0.0633 | AB35: 0.0634 | AC35: 0.0636 | AD35: 0.0637 | AE35: 0.0639 | AF35: 0.064 | AG35: 0.0641 | AH35: 0.0643 | AI35: 0.0644 | AJ35: 0.0646 | AK35: 0.0647 | AL35: 0.0648 | AM35: 0.0649 | AN35: 0.0651 | AO35: 0.0652 | AP35: 0.0653 | AQ35: 0.0654 | AR35: 0.0655 | AS35: 0.0657 | AT35: 0.0658 | AU35: 0.0659 | AV35: 0.066 | AW35: 0.0661 | AX35: 0.0662 | AY35: 0.0663 | AZ35: 0.0663 | BA35: 0.0664 | BB35: 0.0665 | BC35: 0.0666 | BD35: 0.0667 | BE35: 0.0667 | BF35: 0.0668 | BG35: 0.0669 | BH35: 0.0669 | BI35: 0.067 | BJ35: 0.067 | BK35: 0.0671 | BL35: 0.0671 | BM35: 0.0672 | BN35: 0.0672 | BO35: 0.0673 | BP35: 0.0673 | BQ35: 0.0673 | BR35: 0.0674 | BS35: 0.0674 | BT35: 0.0674 | BU35: 0.0674 | BV35: 0.0675 | BW35: 0.0675 | BX35: 0.0675 | BY35: 0.0675 | BZ35: 0.0675 | CA35: 0.0676 | CB35: 0.0676 | CC35: 0.0676 | CD35: 0.0676 | CE35: 0.0676 | CF35: 0.0676 | CG35: 0.0676 | CH35: 49
C36: 50 | D36: 0.0607 | E36: 0.0608 | F36: 0.0609 | G36: 0.061 | H36: 0.0611 | I36: 0.0612 | J36: 0.0613 | K36: 0.0614 | L36: 0.0616 | M36: 0.0617 | N36: 0.0618 | O36: 0.0619 | P36: 0.0621 | Q36: 0.0622 | R36: 0.0623 | S36: 0.0625 | T36: 0.0626 | U36: 0.0628 | V36: 0.0629 | W36: 0.0631 | X36: 0.0632 | Y36: 0.0634 | Z36: 0.0635 | AA36: 0.0637 | AB36: 0.0638 | AC36: 0.064 | AD36: 0.0641 | AE36: 0.0643 | AF36: 0.0644 | AG36: 0.0646 | AH36: 0.0647 | AI36: 0.0649 | AJ36: 0.065 | AK36: 0.0652 | AL36: 0.0653 | AM36: 0.0654 | AN36: 0.0656 | AO36: 0.0657 | AP36: 0.0658 | AQ36: 0.0659 | AR36: 0.0661 | AS36: 0.0662 | AT36: 0.0663 | AU36: 0.0664 | AV36: 0.0665 | AW36: 0.0666 | AX36: 0.0667 | AY36: 0.0668 | AZ36: 0.0669 | BA36: 0.067 | BB36: 0.0671 | BC36: 0.0672 | BD36: 0.0673 | BE36: 0.0674 | BF36: 0.0675 | BG36: 0.0675 | BH36: 0.0676 | BI36: 0.0677 | BJ36: 0.0677 | BK36: 0.0678 | BL36: 0.0678 | BM36: 0.0679 | BN36: 0.0679 | BO36: 0.0679 | BP36: 0.068 | BQ36: 0.068 | BR36: 0.0681 | BS36: 0.0681 | BT36: 0.0681 | BU36: 0.0681 | BV36: 0.0682 | BW36: 0.0682 | BX36: 0.0682 | BY36: 0.0682 | BZ36: 0.0683 | CA36: 0.0683 | CB36: 0.0683 | CC36: 0.0683 | CD36: 0.0683 | CE36: 0.0683 | CF36: 0.0683 | CG36: 0.0684 | CH36: 50
C37: 51 | D37: 0.061 | E37: 0.0611 | F37: 0.0612 | G37: 0.0613 | H37: 0.0614 | I37: 0.0615 | J37: 0.0616 | K37: 0.0617 | L37: 0.0619 | M37: 0.062 | N37: 0.0621 | O37: 0.0623 | P37: 0.0624 | Q37: 0.0625 | R37: 0.0627 | S37: 0.0628 | T37: 0.063 | U37: 0.0631 | V37: 0.0633 | W37: 0.0634 | X37: 0.0636 | Y37: 0.0638 | Z37: 0.0639 | AA37: 0.0641 | AB37: 0.0642 | AC37: 0.0644 | AD37: 0.0645 | AE37: 0.0647 | AF37: 0.0649 | AG37: 0.065 | AH37: 0.0652 | AI37: 0.0653 | AJ37: 0.0655 | AK37: 0.0656 | AL37: 0.0658 | AM37: 0.0659 | AN37: 0.0661 | AO37: 0.0662 | AP37: 0.0663 | AQ37: 0.0665 | AR37: 0.0666 | AS37: 0.0667 | AT37: 0.0669 | AU37: 0.067 | AV37: 0.0671 | AW37: 0.0672 | AX37: 0.0673 | AY37: 0.0675 | AZ37: 0.0676 | BA37: 0.0677 | BB37: 0.0678 | BC37: 0.0679 | BD37: 0.068 | BE37: 0.068 | BF37: 0.0681 | BG37: 0.0682 | BH37: 0.0683 | BI37: 0.0683 | BJ37: 0.0684 | BK37: 0.0685 | BL37: 0.0685 | BM37: 0.0686 | BN37: 0.0686 | BO37: 0.0687 | BP37: 0.0687 | BQ37: 0.0687 | BR37: 0.0688 | BS37: 0.0688 | BT37: 0.0689 | BU37: 0.0689 | BV37: 0.0689 | BW37: 0.0689 | BX37: 0.069 | BY37: 0.069 | BZ37: 0.069 | CA37: 0.069 | CB37: 0.069 | CC37: 0.0691 | CD37: 0.0691 | CE37: 0.0691 | CF37: 0.0691 | CG37: 0.0691 | CH37: 51
C38: 52 | D38: 0.0613 | E38: 0.0614 | F38: 0.0615 | G38: 0.0616 | H38: 0.0617 | I38: 0.0618 | J38: 0.0619 | K38: 0.0621 | L38: 0.0622 | M38: 0.0623 | N38: 0.0625 | O38: 0.0626 | P38: 0.0627 | Q38: 0.0629 | R38: 0.063 | S38: 0.0632 | T38: 0.0633 | U38: 0.0635 | V38: 0.0637 | W38: 0.0638 | X38: 0.064 | Y38: 0.0641 | Z38: 0.0643 | AA38: 0.0645 | AB38: 0.0646 | AC38: 0.0648 | AD38: 0.065 | AE38: 0.0651 | AF38: 0.0653 | AG38: 0.0655 | AH38: 0.0656 | AI38: 0.0658 | AJ38: 0.066 | AK38: 0.0661 | AL38: 0.0663 | AM38: 0.0664 | AN38: 0.0666 | AO38: 0.0667 | AP38: 0.0669 | AQ38: 0.067 | AR38: 0.0672 | AS38: 0.0673 | AT38: 0.0674 | AU38: 0.0676 | AV38: 0.0677 | AW38: 0.0678 | AX38: 0.068 | AY38: 0.0681 | AZ38: 0.0682 | BA38: 0.0683 | BB38: 0.0684 | BC38: 0.0685 | BD38: 0.0686 | BE38: 0.0687 | BF38: 0.0688 | BG38: 0.0689 | BH38: 0.069 | BI38: 0.0691 | BJ38: 0.0691 | BK38: 0.0692 | BL38: 0.0693 | BM38: 0.0693 | BN38: 0.0694 | BO38: 0.0694 | BP38: 0.0695 | BQ38: 0.0695 | BR38: 0.0695 | BS38: 0.0696 | BT38: 0.0696 | BU38: 0.0697 | BV38: 0.0697 | BW38: 0.0697 | BX38: 0.0697 | BY38: 0.0698 | BZ38: 0.0698 | CA38: 0.0698 | CB38: 0.0698 | CC38: 0.0699 | CD38: 0.0699 | CE38: 0.0699 | CF38: 0.0699 | CG38: 0.0699 | CH38: 52
C39: 53 | D39: 0.0616 | E39: 0.0617 | F39: 0.0618 | G39: 0.0619 | H39: 0.062 | I39: 0.0622 | J39: 0.0623 | K39: 0.0624 | L39: 0.0625 | M39: 0.0627 | N39: 0.0628 | O39: 0.063 | P39: 0.0631 | Q39: 0.0632 | R39: 0.0634 | S39: 0.0636 | T39: 0.0637 | U39: 0.0639 | V39: 0.064 | W39: 0.0642 | X39: 0.0644 | Y39: 0.0645 | Z39: 0.0647 | AA39: 0.0649 | AB39: 0.0651 | AC39: 0.0652 | AD39: 0.0654 | AE39: 0.0656 | AF39: 0.0657 | AG39: 0.0659 | AH39: 0.0661 | AI39: 0.0663 | AJ39: 0.0664 | AK39: 0.0666 | AL39: 0.0668 | AM39: 0.0669 | AN39: 0.0671 | AO39: 0.0673 | AP39: 0.0674 | AQ39: 0.0676 | AR39: 0.0677 | AS39: 0.0679 | AT39: 0.068 | AU39: 0.0682 | AV39: 0.0683 | AW39: 0.0685 | AX39: 0.0686 | AY39: 0.0687 | AZ39: 0.0689 | BA39: 0.069 | BB39: 0.0691 | BC39: 0.0692 | BD39: 0.0693 | BE39: 0.0694 | BF39: 0.0695 | BG39: 0.0696 | BH39: 0.0697 | BI39: 0.0698 | BJ39: 0.0699 | BK39: 0.0699 | BL39: 0.07 | BM39: 0.0701 | BN39: 0.0701 | BO39: 0.0702 | BP39: 0.0702 | BQ39: 0.0703 | BR39: 0.0703 | BS39: 0.0704 | BT39: 0.0704 | BU39: 0.0705 | BV39: 0.0705 | BW39: 0.0705 | BX39: 0.0706 | BY39: 0.0706 | BZ39: 0.0706 | CA39: 0.0706 | CB39: 0.0707 | CC39: 0.0707 | CD39: 0.0707 | CE39: 0.0707 | CF39: 0.0707 | CG39: 0.0707 | CH39: 53
C40: 54 | D40: 0.0619 | E40: 0.062 | F40: 0.0621 | G40: 0.0623 | H40: 0.0624 | I40: 0.0625 | J40: 0.0626 | K40: 0.0627 | L40: 0.0629 | M40: 0.063 | N40: 0.0632 | O40: 0.0633 | P40: 0.0635 | Q40: 0.0636 | R40: 0.0638 | S40: 0.0639 | T40: 0.0641 | U40: 0.0643 | V40: 0.0644 | W40: 0.0646 | X40: 0.0648 | Y40: 0.0649 | Z40: 0.0651 | AA40: 0.0653 | AB40: 0.0655 | AC40: 0.0657 | AD40: 0.0658 | AE40: 0.066 | AF40: 0.0662 | AG40: 0.0664 | AH40: 0.0666 | AI40: 0.0668 | AJ40: 0.0669 | AK40: 0.0671 | AL40: 0.0673 | AM40: 0.0675 | AN40: 0.0677 | AO40: 0.0678 | AP40: 0.068 | AQ40: 0.0682 | AR40: 0.0683 | AS40: 0.0685 | AT40: 0.0686 | AU40: 0.0688 | AV40: 0.069 | AW40: 0.0691 | AX40: 0.0693 | AY40: 0.0694 | AZ40: 0.0695 | BA40: 0.0697 | BB40: 0.0698 | BC40: 0.0699 | BD40: 0.07 | BE40: 0.0702 | BF40: 0.0703 | BG40: 0.0704 | BH40: 0.0705 | BI40: 0.0706 | BJ40: 0.0706 | BK40: 0.0707 | BL40: 0.0708 | BM40: 0.0709 | BN40: 0.0709 | BO40: 0.071 | BP40: 0.0711 | BQ40: 0.0711 | BR40: 0.0712 | BS40: 0.0712 | BT40: 0.0712 | BU40: 0.0713 | BV40: 0.0713 | BW40: 0.0714 | BX40: 0.0714 | BY40: 0.0714 | BZ40: 0.0715 | CA40: 0.0715 | CB40: 0.0715 | CC40: 0.0715 | CD40: 0.0715 | CE40: 0.0716 | CF40: 0.0716 | CG40: 0.0716 | CH40: 54
C41: 55 | D41: 0.0623 | E41: 0.0624 | F41: 0.0625 | G41: 0.0626 | H41: 0.0627 | I41: 0.0628 | J41: 0.063 | K41: 0.0631 | L41: 0.0632 | M41: 0.0634 | N41: 0.0635 | O41: 0.0637 | P41: 0.0638 | Q41: 0.064 | R41: 0.0641 | S41: 0.0643 | T41: 0.0645 | U41: 0.0646 | V41: 0.0648 | W41: 0.065 | X41: 0.0652 | Y41: 0.0654 | Z41: 0.0655 | AA41: 0.0657 | AB41: 0.0659 | AC41: 0.0661 | AD41: 0.0663 | AE41: 0.0665 | AF41: 0.0667 | AG41: 0.0669 | AH41: 0.0671 | AI41: 0.0673 | AJ41: 0.0674 | AK41: 0.0676 | AL41: 0.0678 | AM41: 0.068 | AN41: 0.0682 | AO41: 0.0684 | AP41: 0.0686 | AQ41: 0.0688 | AR41: 0.0689 | AS41: 0.0691 | AT41: 0.0693 | AU41: 0.0694 | AV41: 0.0696 | AW41: 0.0698 | AX41: 0.0699 | AY41: 0.0701 | AZ41: 0.0702 | BA41: 0.0704 | BB41: 0.0705 | BC41: 0.0707 | BD41: 0.0708 | BE41: 0.0709 | BF41: 0.071 | BG41: 0.0711 | BH41: 0.0712 | BI41: 0.0713 | BJ41: 0.0714 | BK41: 0.0715 | BL41: 0.0716 | BM41: 0.0717 | BN41: 0.0718 | BO41: 0.0718 | BP41: 0.0719 | BQ41: 0.072 | BR41: 0.072 | BS41: 0.0721 | BT41: 0.0721 | BU41: 0.0722 | BV41: 0.0722 | BW41: 0.0722 | BX41: 0.0723 | BY41: 0.0723 | BZ41: 0.0723 | CA41: 0.0724 | CB41: 0.0724 | CC41: 0.0724 | CD41: 0.0724 | CE41: 0.0725 | CF41: 0.0725 | CG41: 0.0725 | CH41: 55
C42: 56 | D42: 0.0626 | E42: 0.0627 | F42: 0.0628 | G42: 0.0629 | H42: 0.0631 | I42: 0.0632 | J42: 0.0633 | K42: 0.0635 | L42: 0.0636 | M42: 0.0637 | N42: 0.0639 | O42: 0.064 | P42: 0.0642 | Q42: 0.0644 | R42: 0.0645 | S42: 0.0647 | T42: 0.0649 | U42: 0.065 | V42: 0.0652 | W42: 0.0654 | X42: 0.0656 | Y42: 0.0658 | Z42: 0.066 | AA42: 0.0662 | AB42: 0.0664 | AC42: 0.0666 | AD42: 0.0668 | AE42: 0.067 | AF42: 0.0672 | AG42: 0.0674 | AH42: 0.0676 | AI42: 0.0678 | AJ42: 0.068 | AK42: 0.0682 | AL42: 0.0684 | AM42: 0.0686 | AN42: 0.0688 | AO42: 0.069 | AP42: 0.0692 | AQ42: 0.0694 | AR42: 0.0695 | AS42: 0.0697 | AT42: 0.0699 | AU42: 0.0701 | AV42: 0.0703 | AW42: 0.0704 | AX42: 0.0706 | AY42: 0.0708 | AZ42: 0.071 | BA42: 0.0711 | BB42: 0.0713 | BC42: 0.0714 | BD42: 0.0716 | BE42: 0.0717 | BF42: 0.0718 | BG42: 0.0719 | BH42: 0.0721 | BI42: 0.0722 | BJ42: 0.0723 | BK42: 0.0724 | BL42: 0.0725 | BM42: 0.0725 | BN42: 0.0726 | BO42: 0.0727 | BP42: 0.0728 | BQ42: 0.0728 | BR42: 0.0729 | BS42: 0.073 | BT42: 0.073 | BU42: 0.0731 | BV42: 0.0731 | BW42: 0.0731 | BX42: 0.0732 | BY42: 0.0732 | BZ42: 0.0733 | CA42: 0.0733 | CB42: 0.0733 | CC42: 0.0733 | CD42: 0.0734 | CE42: 0.0734 | CF42: 0.0734 | CG42: 0.0734 | CH42: 56
C43: 57 | D43: 0.063 | E43: 0.0631 | F43: 0.0632 | G43: 0.0633 | H43: 0.0634 | I43: 0.0636 | J43: 0.0637 | K43: 0.0638 | L43: 0.064 | M43: 0.0641 | N43: 0.0643 | O43: 0.0644 | P43: 0.0646 | Q43: 0.0648 | R43: 0.0649 | S43: 0.0651 | T43: 0.0653 | U43: 0.0655 | V43: 0.0656 | W43: 0.0658 | X43: 0.066 | Y43: 0.0662 | Z43: 0.0664 | AA43: 0.0666 | AB43: 0.0668 | AC43: 0.067 | AD43: 0.0672 | AE43: 0.0674 | AF43: 0.0677 | AG43: 0.0679 | AH43: 0.0681 | AI43: 0.0683 | AJ43: 0.0685 | AK43: 0.0687 | AL43: 0.0689 | AM43: 0.0691 | AN43: 0.0694 | AO43: 0.0696 | AP43: 0.0698 | AQ43: 0.07 | AR43: 0.0702 | AS43: 0.0704 | AT43: 0.0706 | AU43: 0.0708 | AV43: 0.071 | AW43: 0.0711 | AX43: 0.0713 | AY43: 0.0715 | AZ43: 0.0717 | BA43: 0.0719 | BB43: 0.072 | BC43: 0.0722 | BD43: 0.0724 | BE43: 0.0725 | BF43: 0.0726 | BG43: 0.0728 | BH43: 0.0729 | BI43: 0.073 | BJ43: 0.0731 | BK43: 0.0732 | BL43: 0.0733 | BM43: 0.0734 | BN43: 0.0735 | BO43: 0.0736 | BP43: 0.0737 | BQ43: 0.0738 | BR43: 0.0738 | BS43: 0.0739 | BT43: 0.0739 | BU43: 0.074 | BV43: 0.0741 | BW43: 0.0741 | BX43: 0.0741 | BY43: 0.0742 | BZ43: 0.0742 | CA43: 0.0743 | CB43: 0.0743 | CC43: 0.0743 | CD43: 0.0744 | CE43: 0.0744 | CF43: 0.0744 | CG43: 0.0744 | CH43: 57
C44: 58 | D44: 0.0633 | E44: 0.0634 | F44: 0.0636 | G44: 0.0637 | H44: 0.0638 | I44: 0.0639 | J44: 0.0641 | K44: 0.0642 | L44: 0.0644 | M44: 0.0645 | N44: 0.0647 | O44: 0.0648 | P44: 0.065 | Q44: 0.0652 | R44: 0.0653 | S44: 0.0655 | T44: 0.0657 | U44: 0.0659 | V44: 0.0661 | W44: 0.0663 | X44: 0.0665 | Y44: 0.0667 | Z44: 0.0669 | AA44: 0.0671 | AB44: 0.0673 | AC44: 0.0675 | AD44: 0.0677 | AE44: 0.0679 | AF44: 0.0682 | AG44: 0.0684 | AH44: 0.0686 | AI44: 0.0688 | AJ44: 0.0691 | AK44: 0.0693 | AL44: 0.0695 | AM44: 0.0697 | AN44: 0.07 | AO44: 0.0702 | AP44: 0.0704 | AQ44: 0.0706 | AR44: 0.0708 | AS44: 0.071 | AT44: 0.0713 | AU44: 0.0715 | AV44: 0.0717 | AW44: 0.0719 | AX44: 0.0721 | AY44: 0.0723 | AZ44: 0.0725 | BA44: 0.0727 | BB44: 0.0728 | BC44: 0.073 | BD44: 0.0732 | BE44: 0.0733 | BF44: 0.0735 | BG44: 0.0736 | BH44: 0.0738 | BI44: 0.0739 | BJ44: 0.074 | BK44: 0.0742 | BL44: 0.0743 | BM44: 0.0744 | BN44: 0.0745 | BO44: 0.0746 | BP44: 0.0746 | BQ44: 0.0747 | BR44: 0.0748 | BS44: 0.0749 | BT44: 0.0749 | BU44: 0.075 | BV44: 0.0751 | BW44: 0.0751 | BX44: 0.0752 | BY44: 0.0752 | BZ44: 0.0752 | CA44: 0.0753 | CB44: 0.0753 | CC44: 0.0754 | CD44: 0.0754 | CE44: 0.0754 | CF44: 0.0754 | CG44: 0.0755 | CH44: 58
C45: 59 | D45: 0.0637 | E45: 0.0638 | F45: 0.064 | G45: 0.0641 | H45: 0.0642 | I45: 0.0643 | J45: 0.0645 | K45: 0.0646 | L45: 0.0648 | M45: 0.0649 | N45: 0.0651 | O45: 0.0652 | P45: 0.0654 | Q45: 0.0656 | R45: 0.0658 | S45: 0.0659 | T45: 0.0661 | U45: 0.0663 | V45: 0.0665 | W45: 0.0667 | X45: 0.0669 | Y45: 0.0671 | Z45: 0.0674 | AA45: 0.0676 | AB45: 0.0678 | AC45: 0.068 | AD45: 0.0682 | AE45: 0.0685 | AF45: 0.0687 | AG45: 0.0689 | AH45: 0.0692 | AI45: 0.0694 | AJ45: 0.0696 | AK45: 0.0699 | AL45: 0.0701 | AM45: 0.0703 | AN45: 0.0706 | AO45: 0.0708 | AP45: 0.071 | AQ45: 0.0713 | AR45: 0.0715 | AS45: 0.0717 | AT45: 0.072 | AU45: 0.0722 | AV45: 0.0724 | AW45: 0.0726 | AX45: 0.0728 | AY45: 0.0731 | AZ45: 0.0733 | BA45: 0.0735 | BB45: 0.0737 | BC45: 0.0739 | BD45: 0.074 | BE45: 0.0742 | BF45: 0.0744 | BG45: 0.0746 | BH45: 0.0747 | BI45: 0.0748 | BJ45: 0.075 | BK45: 0.0751 | BL45: 0.0752 | BM45: 0.0754 | BN45: 0.0755 | BO45: 0.0756 | BP45: 0.0757 | BQ45: 0.0757 | BR45: 0.0758 | BS45: 0.0759 | BT45: 0.076 | BU45: 0.076 | BV45: 0.0761 | BW45: 0.0762 | BX45: 0.0762 | BY45: 0.0763 | BZ45: 0.0763 | CA45: 0.0764 | CB45: 0.0764 | CC45: 0.0764 | CD45: 0.0765 | CE45: 0.0765 | CF45: 0.0765 | CG45: 0.0766 | CH45: 59
C46: 60 | D46: 0.0641 | E46: 0.0642 | F46: 0.0644 | G46: 0.0645 | H46: 0.0646 | I46: 0.0648 | J46: 0.0649 | K46: 0.065 | L46: 0.0652 | M46: 0.0653 | N46: 0.0655 | O46: 0.0657 | P46: 0.0658 | Q46: 0.066 | R46: 0.0662 | S46: 0.0664 | T46: 0.0666 | U46: 0.0668 | V46: 0.067 | W46: 0.0672 | X46: 0.0674 | Y46: 0.0676 | Z46: 0.0678 | AA46: 0.0681 | AB46: 0.0683 | AC46: 0.0685 | AD46: 0.0688 | AE46: 0.069 | AF46: 0.0692 | AG46: 0.0695 | AH46: 0.0697 | AI46: 0.07 | AJ46: 0.0702 | AK46: 0.0705 | AL46: 0.0707 | AM46: 0.071 | AN46: 0.0712 | AO46: 0.0715 | AP46: 0.0717 | AQ46: 0.072 | AR46: 0.0722 | AS46: 0.0724 | AT46: 0.0727 | AU46: 0.0729 | AV46: 0.0732 | AW46: 0.0734 | AX46: 0.0736 | AY46: 0.0739 | AZ46: 0.0741 | BA46: 0.0743 | BB46: 0.0745 | BC46: 0.0747 | BD46: 0.0749 | BE46: 0.0751 | BF46: 0.0753 | BG46: 0.0755 | BH46: 0.0757 | BI46: 0.0758 | BJ46: 0.076 | BK46: 0.0761 | BL46: 0.0763 | BM46: 0.0764 | BN46: 0.0765 | BO46: 0.0766 | BP46: 0.0767 | BQ46: 0.0768 | BR46: 0.0769 | BS46: 0.077 | BT46: 0.0771 | BU46: 0.0771 | BV46: 0.0772 | BW46: 0.0773 | BX46: 0.0773 | BY46: 0.0774 | BZ46: 0.0774 | CA46: 0.0775 | CB46: 0.0775 | CC46: 0.0776 | CD46: 0.0776 | CE46: 0.0777 | CF46: 0.0777 | CG46: 0.0777 | CH46: 60
C47: 61 | D47: 0.0645 | E47: 0.0647 | F47: 0.0648 | G47: 0.0649 | H47: 0.065 | I47: 0.0652 | J47: 0.0653 | K47: 0.0655 | L47: 0.0656 | M47: 0.0658 | N47: 0.066 | O47: 0.0661 | P47: 0.0663 | Q47: 0.0665 | R47: 0.0667 | S47: 0.0669 | T47: 0.0671 | U47: 0.0673 | V47: 0.0675 | W47: 0.0677 | X47: 0.0679 | Y47: 0.0681 | Z47: 0.0684 | AA47: 0.0686 | AB47: 0.0688 | AC47: 0.0691 | AD47: 0.0693 | AE47: 0.0695 | AF47: 0.0698 | AG47: 0.07 | AH47: 0.0703 | AI47: 0.0706 | AJ47: 0.0708 | AK47: 0.0711 | AL47: 0.0713 | AM47: 0.0716 | AN47: 0.0719 | AO47: 0.0721 | AP47: 0.0724 | AQ47: 0.0727 | AR47: 0.0729 | AS47: 0.0732 | AT47: 0.0734 | AU47: 0.0737 | AV47: 0.074 | AW47: 0.0742 | AX47: 0.0745 | AY47: 0.0747 | AZ47: 0.075 | BA47: 0.0752 | BB47: 0.0754 | BC47: 0.0757 | BD47: 0.0759 | BE47: 0.0761 | BF47: 0.0763 | BG47: 0.0765 | BH47: 0.0767 | BI47: 0.0768 | BJ47: 0.077 | BK47: 0.0772 | BL47: 0.0773 | BM47: 0.0775 | BN47: 0.0776 | BO47: 0.0777 | BP47: 0.0778 | BQ47: 0.0779 | BR47: 0.078 | BS47: 0.0781 | BT47: 0.0782 | BU47: 0.0783 | BV47: 0.0784 | BW47: 0.0785 | BX47: 0.0785 | BY47: 0.0786 | BZ47: 0.0786 | CA47: 0.0787 | CB47: 0.0787 | CC47: 0.0788 | CD47: 0.0788 | CE47: 0.0789 | CF47: 0.0789 | CG47: 0.079 | CH47: 61
C48: 62 | D48: 0.065 | E48: 0.0651 | F48: 0.0652 | G48: 0.0653 | H48: 0.0655 | I48: 0.0656 | J48: 0.0658 | K48: 0.0659 | L48: 0.0661 | M48: 0.0662 | N48: 0.0664 | O48: 0.0666 | P48: 0.0668 | Q48: 0.067 | R48: 0.0672 | S48: 0.0673 | T48: 0.0675 | U48: 0.0678 | V48: 0.068 | W48: 0.0682 | X48: 0.0684 | Y48: 0.0686 | Z48: 0.0689 | AA48: 0.0691 | AB48: 0.0694 | AC48: 0.0696 | AD48: 0.0699 | AE48: 0.0701 | AF48: 0.0704 | AG48: 0.0706 | AH48: 0.0709 | AI48: 0.0712 | AJ48: 0.0715 | AK48: 0.0717 | AL48: 0.072 | AM48: 0.0723 | AN48: 0.0726 | AO48: 0.0728 | AP48: 0.0731 | AQ48: 0.0734 | AR48: 0.0737 | AS48: 0.0739 | AT48: 0.0742 | AU48: 0.0745 | AV48: 0.0748 | AW48: 0.075 | AX48: 0.0753 | AY48: 0.0756 | AZ48: 0.0759 | BA48: 0.0761 | BB48: 0.0764 | BC48: 0.0766 | BD48: 0.0769 | BE48: 0.0771 | BF48: 0.0773 | BG48: 0.0775 | BH48: 0.0777 | BI48: 0.0779 | BJ48: 0.0781 | BK48: 0.0783 | BL48: 0.0784 | BM48: 0.0786 | BN48: 0.0787 | BO48: 0.0789 | BP48: 0.079 | BQ48: 0.0791 | BR48: 0.0792 | BS48: 0.0793 | BT48: 0.0794 | BU48: 0.0795 | BV48: 0.0796 | BW48: 0.0797 | BX48: 0.0798 | BY48: 0.0798 | BZ48: 0.0799 | CA48: 0.08 | CB48: 0.08 | CC48: 0.0801 | CD48: 0.0801 | CE48: 0.0802 | CF48: 0.0802 | CG48: 0.0803 | CH48: 62
C49: 63 | D49: 0.0654 | E49: 0.0656 | F49: 0.0657 | G49: 0.0658 | H49: 0.066 | I49: 0.0661 | J49: 0.0663 | K49: 0.0664 | L49: 0.0666 | M49: 0.0667 | N49: 0.0669 | O49: 0.0671 | P49: 0.0673 | Q49: 0.0675 | R49: 0.0677 | S49: 0.0679 | T49: 0.0681 | U49: 0.0683 | V49: 0.0685 | W49: 0.0687 | X49: 0.069 | Y49: 0.0692 | Z49: 0.0694 | AA49: 0.0697 | AB49: 0.0699 | AC49: 0.0702 | AD49: 0.0705 | AE49: 0.0707 | AF49: 0.071 | AG49: 0.0713 | AH49: 0.0716 | AI49: 0.0718 | AJ49: 0.0721 | AK49: 0.0724 | AL49: 0.0727 | AM49: 0.073 | AN49: 0.0733 | AO49: 0.0736 | AP49: 0.0739 | AQ49: 0.0742 | AR49: 0.0745 | AS49: 0.0748 | AT49: 0.0751 | AU49: 0.0754 | AV49: 0.0756 | AW49: 0.0759 | AX49: 0.0762 | AY49: 0.0765 | AZ49: 0.0768 | BA49: 0.0771 | BB49: 0.0774 | BC49: 0.0776 | BD49: 0.0779 | BE49: 0.0782 | BF49: 0.0784 | BG49: 0.0786 | BH49: 0.0789 | BI49: 0.0791 | BJ49: 0.0793 | BK49: 0.0795 | BL49: 0.0796 | BM49: 0.0798 | BN49: 0.08 | BO49: 0.0801 | BP49: 0.0803 | BQ49: 0.0804 | BR49: 0.0805 | BS49: 0.0807 | BT49: 0.0808 | BU49: 0.0809 | BV49: 0.081 | BW49: 0.0811 | BX49: 0.0811 | BY49: 0.0812 | BZ49: 0.0813 | CA49: 0.0814 | CB49: 0.0814 | CC49: 0.0815 | CD49: 0.0815 | CE49: 0.0816 | CF49: 0.0816 | CG49: 0.0817 | CH49: 63
C50: 64 | D50: 0.0659 | E50: 0.0661 | F50: 0.0662 | G50: 0.0663 | H50: 0.0665 | I50: 0.0666 | J50: 0.0668 | K50: 0.0669 | L50: 0.0671 | M50: 0.0673 | N50: 0.0675 | O50: 0.0676 | P50: 0.0678 | Q50: 0.068 | R50: 0.0682 | S50: 0.0684 | T50: 0.0686 | U50: 0.0689 | V50: 0.0691 | W50: 0.0693 | X50: 0.0696 | Y50: 0.0698 | Z50: 0.0701 | AA50: 0.0703 | AB50: 0.0706 | AC50: 0.0708 | AD50: 0.0711 | AE50: 0.0714 | AF50: 0.0717 | AG50: 0.0719 | AH50: 0.0722 | AI50: 0.0725 | AJ50: 0.0728 | AK50: 0.0731 | AL50: 0.0734 | AM50: 0.0738 | AN50: 0.0741 | AO50: 0.0744 | AP50: 0.0747 | AQ50: 0.075 | AR50: 0.0753 | AS50: 0.0756 | AT50: 0.0759 | AU50: 0.0763 | AV50: 0.0766 | AW50: 0.0769 | AX50: 0.0772 | AY50: 0.0775 | AZ50: 0.0778 | BA50: 0.0781 | BB50: 0.0784 | BC50: 0.0787 | BD50: 0.079 | BE50: 0.0793 | BF50: 0.0796 | BG50: 0.0798 | BH50: 0.0801 | BI50: 0.0803 | BJ50: 0.0805 | BK50: 0.0807 | BL50: 0.0809 | BM50: 0.0811 | BN50: 0.0813 | BO50: 0.0815 | BP50: 0.0816 | BQ50: 0.0818 | BR50: 0.0819 | BS50: 0.0821 | BT50: 0.0822 | BU50: 0.0823 | BV50: 0.0824 | BW50: 0.0825 | BX50: 0.0826 | BY50: 0.0827 | BZ50: 0.0828 | CA50: 0.0829 | CB50: 0.0829 | CC50: 0.083 | CD50: 0.0831 | CE50: 0.0831 | CF50: 0.0832 | CG50: 0.0832 | CH50: 64
C51: 65 | D51: 0.0665 | E51: 0.0666 | F51: 0.0667 | G51: 0.0669 | H51: 0.067 | I51: 0.0672 | J51: 0.0673 | K51: 0.0675 | L51: 0.0677 | M51: 0.0678 | N51: 0.068 | O51: 0.0682 | P51: 0.0684 | Q51: 0.0686 | R51: 0.0688 | S51: 0.069 | T51: 0.0692 | U51: 0.0695 | V51: 0.0697 | W51: 0.0699 | X51: 0.0702 | Y51: 0.0704 | Z51: 0.0707 | AA51: 0.071 | AB51: 0.0712 | AC51: 0.0715 | AD51: 0.0718 | AE51: 0.0721 | AF51: 0.0724 | AG51: 0.0727 | AH51: 0.073 | AI51: 0.0733 | AJ51: 0.0736 | AK51: 0.0739 | AL51: 0.0742 | AM51: 0.0745 | AN51: 0.0749 | AO51: 0.0752 | AP51: 0.0755 | AQ51: 0.0759 | AR51: 0.0762 | AS51: 0.0765 | AT51: 0.0769 | AU51: 0.0772 | AV51: 0.0775 | AW51: 0.0779 | AX51: 0.0782 | AY51: 0.0786 | AZ51: 0.0789 | BA51: 0.0792 | BB51: 0.0796 | BC51: 0.0799 | BD51: 0.0802 | BE51: 0.0805 | BF51: 0.0808 | BG51: 0.0811 | BH51: 0.0814 | BI51: 0.0816 | BJ51: 0.0819 | BK51: 0.0821 | BL51: 0.0823 | BM51: 0.0825 | BN51: 0.0827 | BO51: 0.0829 | BP51: 0.0831 | BQ51: 0.0833 | BR51: 0.0834 | BS51: 0.0836 | BT51: 0.0837 | BU51: 0.0838 | BV51: 0.084 | BW51: 0.0841 | BX51: 0.0842 | BY51: 0.0843 | BZ51: 0.0844 | CA51: 0.0845 | CB51: 0.0846 | CC51: 0.0846 | CD51: 0.0847 | CE51: 0.0848 | CF51: 0.0848 | CG51: 0.0849 | CH51: 65
C52: 66 | D52: 0.067 | E52: 0.0672 | F52: 0.0673 | G52: 0.0675 | H52: 0.0676 | I52: 0.0678 | J52: 0.0679 | K52: 0.0681 | L52: 0.0682 | M52: 0.0684 | N52: 0.0686 | O52: 0.0688 | P52: 0.069 | Q52: 0.0692 | R52: 0.0694 | S52: 0.0696 | T52: 0.0699 | U52: 0.0701 | V52: 0.0703 | W52: 0.0706 | X52: 0.0708 | Y52: 0.0711 | Z52: 0.0714 | AA52: 0.0716 | AB52: 0.0719 | AC52: 0.0722 | AD52: 0.0725 | AE52: 0.0728 | AF52: 0.0731 | AG52: 0.0734 | AH52: 0.0737 | AI52: 0.074 | AJ52: 0.0744 | AK52: 0.0747 | AL52: 0.075 | AM52: 0.0754 | AN52: 0.0757 | AO52: 0.0761 | AP52: 0.0764 | AQ52: 0.0768 | AR52: 0.0771 | AS52: 0.0775 | AT52: 0.0778 | AU52: 0.0782 | AV52: 0.0786 | AW52: 0.0789 | AX52: 0.0793 | AY52: 0.0797 | AZ52: 0.08 | BA52: 0.0804 | BB52: 0.0808 | BC52: 0.0811 | BD52: 0.0814 | BE52: 0.0818 | BF52: 0.0821 | BG52: 0.0824 | BH52: 0.0827 | BI52: 0.083 | BJ52: 0.0833 | BK52: 0.0835 | BL52: 0.0838 | BM52: 0.084 | BN52: 0.0842 | BO52: 0.0845 | BP52: 0.0847 | BQ52: 0.0848 | BR52: 0.085 | BS52: 0.0852 | BT52: 0.0853 | BU52: 0.0855 | BV52: 0.0856 | BW52: 0.0858 | BX52: 0.0859 | BY52: 0.086 | BZ52: 0.0861 | CA52: 0.0862 | CB52: 0.0863 | CC52: 0.0864 | CD52: 0.0865 | CE52: 0.0865 | CF52: 0.0866 | CG52: 0.0867 | CH52: 66
C53: 67 | D53: 0.0676 | E53: 0.0678 | F53: 0.0679 | G53: 0.0681 | H53: 0.0682 | I53: 0.0684 | J53: 0.0685 | K53: 0.0687 | L53: 0.0689 | M53: 0.069 | N53: 0.0692 | O53: 0.0694 | P53: 0.0696 | Q53: 0.0698 | R53: 0.0701 | S53: 0.0703 | T53: 0.0705 | U53: 0.0708 | V53: 0.071 | W53: 0.0713 | X53: 0.0715 | Y53: 0.0718 | Z53: 0.0721 | AA53: 0.0723 | AB53: 0.0726 | AC53: 0.0729 | AD53: 0.0732 | AE53: 0.0735 | AF53: 0.0739 | AG53: 0.0742 | AH53: 0.0745 | AI53: 0.0748 | AJ53: 0.0752 | AK53: 0.0755 | AL53: 0.0759 | AM53: 0.0762 | AN53: 0.0766 | AO53: 0.077 | AP53: 0.0773 | AQ53: 0.0777 | AR53: 0.0781 | AS53: 0.0785 | AT53: 0.0789 | AU53: 0.0792 | AV53: 0.0796 | AW53: 0.08 | AX53: 0.0804 | AY53: 0.0808 | AZ53: 0.0812 | BA53: 0.0816 | BB53: 0.082 | BC53: 0.0824 | BD53: 0.0827 | BE53: 0.0831 | BF53: 0.0835 | BG53: 0.0838 | BH53: 0.0841 | BI53: 0.0844 | BJ53: 0.0847 | BK53: 0.085 | BL53: 0.0853 | BM53: 0.0856 | BN53: 0.0858 | BO53: 0.0861 | BP53: 0.0863 | BQ53: 0.0865 | BR53: 0.0867 | BS53: 0.0869 | BT53: 0.0871 | BU53: 0.0872 | BV53: 0.0874 | BW53: 0.0875 | BX53: 0.0877 | BY53: 0.0878 | BZ53: 0.0879 | CA53: 0.088 | CB53: 0.0881 | CC53: 0.0882 | CD53: 0.0883 | CE53: 0.0884 | CF53: 0.0885 | CG53: 0.0886 | CH53: 67
C54: 68 | D54: 0.0683 | E54: 0.0684 | F54: 0.0685 | G54: 0.0687 | H54: 0.0688 | I54: 0.069 | J54: 0.0692 | K54: 0.0693 | L54: 0.0695 | M54: 0.0697 | N54: 0.0699 | O54: 0.0701 | P54: 0.0703 | Q54: 0.0705 | R54: 0.0707 | S54: 0.071 | T54: 0.0712 | U54: 0.0714 | V54: 0.0717 | W54: 0.072 | X54: 0.0722 | Y54: 0.0725 | Z54: 0.0728 | AA54: 0.0731 | AB54: 0.0734 | AC54: 0.0737 | AD54: 0.074 | AE54: 0.0743 | AF54: 0.0746 | AG54: 0.075 | AH54: 0.0753 | AI54: 0.0757 | AJ54: 0.076 | AK54: 0.0764 | AL54: 0.0768 | AM54: 0.0771 | AN54: 0.0775 | AO54: 0.0779 | AP54: 0.0783 | AQ54: 0.0787 | AR54: 0.0791 | AS54: 0.0795 | AT54: 0.0799 | AU54: 0.0803 | AV54: 0.0807 | AW54: 0.0811 | AX54: 0.0816 | AY54: 0.082 | AZ54: 0.0824 | BA54: 0.0829 | BB54: 0.0833 | BC54: 0.0837 | BD54: 0.0841 | BE54: 0.0845 | BF54: 0.0849 | BG54: 0.0852 | BH54: 0.0856 | BI54: 0.086 | BJ54: 0.0863 | BK54: 0.0866 | BL54: 0.0869 | BM54: 0.0872 | BN54: 0.0875 | BO54: 0.0878 | BP54: 0.088 | BQ54: 0.0882 | BR54: 0.0885 | BS54: 0.0887 | BT54: 0.0889 | BU54: 0.0891 | BV54: 0.0893 | BW54: 0.0894 | BX54: 0.0896 | BY54: 0.0897 | BZ54: 0.0899 | CA54: 0.09 | CB54: 0.0901 | CC54: 0.0902 | CD54: 0.0903 | CE54: 0.0904 | CF54: 0.0905 | CG54: 0.0906 | CH54: 68
C55: 69 | D55: 0.0689 | E55: 0.069 | F55: 0.0692 | G55: 0.0693 | H55: 0.0695 | I55: 0.0696 | J55: 0.0698 | K55: 0.07 | L55: 0.0702 | M55: 0.0704 | N55: 0.0706 | O55: 0.0708 | P55: 0.071 | Q55: 0.0712 | R55: 0.0714 | S55: 0.0717 | T55: 0.0719 | U55: 0.0722 | V55: 0.0724 | W55: 0.0727 | X55: 0.073 | Y55: 0.0732 | Z55: 0.0735 | AA55: 0.0738 | AB55: 0.0742 | AC55: 0.0745 | AD55: 0.0748 | AE55: 0.0751 | AF55: 0.0755 | AG55: 0.0758 | AH55: 0.0762 | AI55: 0.0765 | AJ55: 0.0769 | AK55: 0.0773 | AL55: 0.0777 | AM55: 0.0781 | AN55: 0.0785 | AO55: 0.0789 | AP55: 0.0793 | AQ55: 0.0797 | AR55: 0.0801 | AS55: 0.0806 | AT55: 0.081 | AU55: 0.0814 | AV55: 0.0819 | AW55: 0.0823 | AX55: 0.0828 | AY55: 0.0832 | AZ55: 0.0837 | BA55: 0.0841 | BB55: 0.0846 | BC55: 0.0851 | BD55: 0.0855 | BE55: 0.0859 | BF55: 0.0863 | BG55: 0.0868 | BH55: 0.0872 | BI55: 0.0875 | BJ55: 0.0879 | BK55: 0.0883 | BL55: 0.0886 | BM55: 0.0889 | BN55: 0.0892 | BO55: 0.0895 | BP55: 0.0898 | BQ55: 0.0901 | BR55: 0.0903 | BS55: 0.0906 | BT55: 0.0908 | BU55: 0.091 | BV55: 0.0912 | BW55: 0.0914 | BX55: 0.0916 | BY55: 0.0917 | BZ55: 0.0919 | CA55: 0.092 | CB55: 0.0922 | CC55: 0.0923 | CD55: 0.0924 | CE55: 0.0926 | CF55: 0.0927 | CG55: 0.0928 | CH55: 69
C56: 70 | D56: 0.0696 | E56: 0.0697 | F56: 0.0698 | G56: 0.07 | H56: 0.0702 | I56: 0.0703 | J56: 0.0705 | K56: 0.0707 | L56: 0.0709 | M56: 0.0711 | N56: 0.0713 | O56: 0.0715 | P56: 0.0717 | Q56: 0.0719 | R56: 0.0721 | S56: 0.0724 | T56: 0.0726 | U56: 0.0729 | V56: 0.0732 | W56: 0.0734 | X56: 0.0737 | Y56: 0.074 | Z56: 0.0743 | AA56: 0.0746 | AB56: 0.0749 | AC56: 0.0753 | AD56: 0.0756 | AE56: 0.076 | AF56: 0.0763 | AG56: 0.0767 | AH56: 0.0771 | AI56: 0.0774 | AJ56: 0.0778 | AK56: 0.0782 | AL56: 0.0786 | AM56: 0.079 | AN56: 0.0795 | AO56: 0.0799 | AP56: 0.0803 | AQ56: 0.0807 | AR56: 0.0812 | AS56: 0.0816 | AT56: 0.0821 | AU56: 0.0826 | AV56: 0.083 | AW56: 0.0835 | AX56: 0.084 | AY56: 0.0845 | AZ56: 0.085 | BA56: 0.0855 | BB56: 0.086 | BC56: 0.0865 | BD56: 0.0869 | BE56: 0.0874 | BF56: 0.0879 | BG56: 0.0883 | BH56: 0.0888 | BI56: 0.0892 | BJ56: 0.0896 | BK56: 0.09 | BL56: 0.0904 | BM56: 0.0907 | BN56: 0.0911 | BO56: 0.0914 | BP56: 0.0917 | BQ56: 0.092 | BR56: 0.0923 | BS56: 0.0925 | BT56: 0.0928 | BU56: 0.093 | BV56: 0.0933 | BW56: 0.0935 | BX56: 0.0937 | BY56: 0.0939 | BZ56: 0.094 | CA56: 0.0942 | CB56: 0.0944 | CC56: 0.0945 | CD56: 0.0947 | CE56: 0.0948 | CF56: 0.0949 | CG56: 0.095 | CH56: 70
C57: 71 | D57: 0.0702 | E57: 0.0704 | F57: 0.0705 | G57: 0.0707 | H57: 0.0708 | I57: 0.071 | J57: 0.0712 | K57: 0.0714 | L57: 0.0716 | M57: 0.0718 | N57: 0.072 | O57: 0.0722 | P57: 0.0724 | Q57: 0.0726 | R57: 0.0729 | S57: 0.0731 | T57: 0.0734 | U57: 0.0736 | V57: 0.0739 | W57: 0.0742 | X57: 0.0745 | Y57: 0.0748 | Z57: 0.0751 | AA57: 0.0754 | AB57: 0.0758 | AC57: 0.0761 | AD57: 0.0765 | AE57: 0.0768 | AF57: 0.0772 | AG57: 0.0776 | AH57: 0.0779 | AI57: 0.0783 | AJ57: 0.0788 | AK57: 0.0792 | AL57: 0.0796 | AM57: 0.08 | AN57: 0.0805 | AO57: 0.0809 | AP57: 0.0814 | AQ57: 0.0818 | AR57: 0.0823 | AS57: 0.0828 | AT57: 0.0832 | AU57: 0.0837 | AV57: 0.0842 | AW57: 0.0847 | AX57: 0.0853 | AY57: 0.0858 | AZ57: 0.0863 | BA57: 0.0869 | BB57: 0.0874 | BC57: 0.0879 | BD57: 0.0884 | BE57: 0.0889 | BF57: 0.0894 | BG57: 0.0899 | BH57: 0.0904 | BI57: 0.0909 | BJ57: 0.0913 | BK57: 0.0918 | BL57: 0.0922 | BM57: 0.0926 | BN57: 0.0929 | BO57: 0.0933 | BP57: 0.0937 | BQ57: 0.094 | BR57: 0.0943 | BS57: 0.0946 | BT57: 0.0949 | BU57: 0.0952 | BV57: 0.0954 | BW57: 0.0957 | BX57: 0.0959 | BY57: 0.0961 | BZ57: 0.0963 | CA57: 0.0965 | CB57: 0.0967 | CC57: 0.0968 | CD57: 0.097 | CE57: 0.0971 | CF57: 0.0973 | CG57: 0.0974 | CH57: 71
C58: 72 | D58: 0.0709 | E58: 0.0711 | F58: 0.0712 | G58: 0.0714 | H58: 0.0716 | I58: 0.0717 | J58: 0.0719 | K58: 0.0721 | L58: 0.0723 | M58: 0.0725 | N58: 0.0727 | O58: 0.0729 | P58: 0.0731 | Q58: 0.0734 | R58: 0.0736 | S58: 0.0739 | T58: 0.0741 | U58: 0.0744 | V58: 0.0747 | W58: 0.075 | X58: 0.0753 | Y58: 0.0756 | Z58: 0.0759 | AA58: 0.0763 | AB58: 0.0766 | AC58: 0.077 | AD58: 0.0773 | AE58: 0.0777 | AF58: 0.0781 | AG58: 0.0785 | AH58: 0.0789 | AI58: 0.0793 | AJ58: 0.0797 | AK58: 0.0801 | AL58: 0.0806 | AM58: 0.081 | AN58: 0.0815 | AO58: 0.0819 | AP58: 0.0824 | AQ58: 0.0829 | AR58: 0.0834 | AS58: 0.0839 | AT58: 0.0844 | AU58: 0.0849 | AV58: 0.0855 | AW58: 0.086 | AX58: 0.0866 | AY58: 0.0871 | AZ58: 0.0877 | BA58: 0.0883 | BB58: 0.0888 | BC58: 0.0894 | BD58: 0.09 | BE58: 0.0905 | BF58: 0.0911 | BG58: 0.0916 | BH58: 0.0921 | BI58: 0.0926 | BJ58: 0.0931 | BK58: 0.0936 | BL58: 0.094 | BM58: 0.0945 | BN58: 0.0949 | BO58: 0.0953 | BP58: 0.0957 | BQ58: 0.0961 | BR58: 0.0964 | BS58: 0.0968 | BT58: 0.0971 | BU58: 0.0974 | BV58: 0.0977 | BW58: 0.0979 | BX58: 0.0982 | BY58: 0.0984 | BZ58: 0.0986 | CA58: 0.0989 | CB58: 0.0991 | CC58: 0.0993 | CD58: 0.0994 | CE58: 0.0996 | CF58: 0.0998 | CG58: 0.0999 | CH58: 72
C59: 73 | D59: 0.0716 | E59: 0.0718 | F59: 0.0719 | G59: 0.0721 | H59: 0.0723 | I59: 0.0725 | J59: 0.0726 | K59: 0.0728 | L59: 0.073 | M59: 0.0732 | N59: 0.0735 | O59: 0.0737 | P59: 0.0739 | Q59: 0.0742 | R59: 0.0744 | S59: 0.0747 | T59: 0.0749 | U59: 0.0752 | V59: 0.0755 | W59: 0.0758 | X59: 0.0761 | Y59: 0.0764 | Z59: 0.0768 | AA59: 0.0771 | AB59: 0.0775 | AC59: 0.0778 | AD59: 0.0782 | AE59: 0.0786 | AF59: 0.079 | AG59: 0.0794 | AH59: 0.0798 | AI59: 0.0802 | AJ59: 0.0807 | AK59: 0.0811 | AL59: 0.0816 | AM59: 0.082 | AN59: 0.0825 | AO59: 0.083 | AP59: 0.0835 | AQ59: 0.084 | AR59: 0.0845 | AS59: 0.0851 | AT59: 0.0856 | AU59: 0.0862 | AV59: 0.0867 | AW59: 0.0873 | AX59: 0.0879 | AY59: 0.0885 | AZ59: 0.0891 | BA59: 0.0897 | BB59: 0.0903 | BC59: 0.0909 | BD59: 0.0915 | BE59: 0.0921 | BF59: 0.0927 | BG59: 0.0933 | BH59: 0.0939 | BI59: 0.0944 | BJ59: 0.095 | BK59: 0.0955 | BL59: 0.096 | BM59: 0.0965 | BN59: 0.0969 | BO59: 0.0974 | BP59: 0.0978 | BQ59: 0.0982 | BR59: 0.0986 | BS59: 0.099 | BT59: 0.0993 | BU59: 0.0997 | BV59: 0.1 | BW59: 0.1003 | BX59: 0.1006 | BY59: 0.1008 | BZ59: 0.1011 | CA59: 0.1013 | CB59: 0.1016 | CC59: 0.1018 | CD59: 0.102 | CE59: 0.1022 | CF59: 0.1024 | CG59: 0.1026 | CH59: 73
C60: 74 | D60: 0.0724 | E60: 0.0725 | F60: 0.0727 | G60: 0.0728 | H60: 0.073 | I60: 0.0732 | J60: 0.0734 | K60: 0.0736 | L60: 0.0738 | M60: 0.074 | N60: 0.0742 | O60: 0.0744 | P60: 0.0747 | Q60: 0.0749 | R60: 0.0752 | S60: 0.0755 | T60: 0.0757 | U60: 0.076 | V60: 0.0763 | W60: 0.0766 | X60: 0.0769 | Y60: 0.0773 | Z60: 0.0776 | AA60: 0.078 | AB60: 0.0783 | AC60: 0.0787 | AD60: 0.0791 | AE60: 0.0795 | AF60: 0.0799 | AG60: 0.0803 | AH60: 0.0808 | AI60: 0.0812 | AJ60: 0.0817 | AK60: 0.0821 | AL60: 0.0826 | AM60: 0.0831 | AN60: 0.0836 | AO60: 0.0841 | AP60: 0.0846 | AQ60: 0.0852 | AR60: 0.0857 | AS60: 0.0863 | AT60: 0.0868 | AU60: 0.0874 | AV60: 0.088 | AW60: 0.0886 | AX60: 0.0892 | AY60: 0.0899 | AZ60: 0.0905 | BA60: 0.0912 | BB60: 0.0918 | BC60: 0.0925 | BD60: 0.0932 | BE60: 0.0938 | BF60: 0.0944 | BG60: 0.0951 | BH60: 0.0957 | BI60: 0.0963 | BJ60: 0.0969 | BK60: 0.0974 | BL60: 0.098 | BM60: 0.0985 | BN60: 0.099 | BO60: 0.0995 | BP60: 0.1 | BQ60: 0.1004 | BR60: 0.1009 | BS60: 0.1013 | BT60: 0.1017 | BU60: 0.1021 | BV60: 0.1024 | BW60: 0.1027 | BX60: 0.1031 | BY60: 0.1034 | BZ60: 0.1037 | CA60: 0.1039 | CB60: 0.1042 | CC60: 0.1044 | CD60: 0.1047 | CE60: 0.1049 | CF60: 0.1051 | CG60: 0.1053 | CH60: 74
C61: 75 | D61: 0.0731 | E61: 0.0733 | F61: 0.0734 | G61: 0.0736 | H61: 0.0738 | I61: 0.0739 | J61: 0.0741 | K61: 0.0743 | L61: 0.0745 | M61: 0.0748 | N61: 0.075 | O61: 0.0752 | P61: 0.0755 | Q61: 0.0757 | R61: 0.076 | S61: 0.0763 | T61: 0.0765 | U61: 0.0768 | V61: 0.0771 | W61: 0.0775 | X61: 0.0778 | Y61: 0.0781 | Z61: 0.0785 | AA61: 0.0788 | AB61: 0.0792 | AC61: 0.0796 | AD61: 0.08 | AE61: 0.0804 | AF61: 0.0808 | AG61: 0.0813 | AH61: 0.0817 | AI61: 0.0822 | AJ61: 0.0827 | AK61: 0.0831 | AL61: 0.0836 | AM61: 0.0841 | AN61: 0.0847 | AO61: 0.0852 | AP61: 0.0857 | AQ61: 0.0863 | AR61: 0.0869 | AS61: 0.0875 | AT61: 0.0881 | AU61: 0.0887 | AV61: 0.0893 | AW61: 0.0899 | AX61: 0.0906 | AY61: 0.0913 | AZ61: 0.092 | BA61: 0.0927 | BB61: 0.0934 | BC61: 0.0941 | BD61: 0.0948 | BE61: 0.0955 | BF61: 0.0962 | BG61: 0.0969 | BH61: 0.0975 | BI61: 0.0982 | BJ61: 0.0988 | BK61: 0.0994 | BL61: 0.1 | BM61: 0.1006 | BN61: 0.1012 | BO61: 0.1017 | BP61: 0.1022 | BQ61: 0.1027 | BR61: 0.1032 | BS61: 0.1037 | BT61: 0.1041 | BU61: 0.1045 | BV61: 0.1049 | BW61: 0.1053 | BX61: 0.1057 | BY61: 0.106 | BZ61: 0.1063 | CA61: 0.1066 | CB61: 0.1069 | CC61: 0.1072 | CD61: 0.1074 | CE61: 0.1077 | CF61: 0.1079 | CG61: 0.1082 | CH61: 75
C62: 76 | D62: 0.0739 | E62: 0.074 | F62: 0.0742 | G62: 0.0743 | H62: 0.0745 | I62: 0.0747 | J62: 0.0749 | K62: 0.0751 | L62: 0.0753 | M62: 0.0755 | N62: 0.0758 | O62: 0.076 | P62: 0.0763 | Q62: 0.0765 | R62: 0.0768 | S62: 0.0771 | T62: 0.0774 | U62: 0.0777 | V62: 0.078 | W62: 0.0783 | X62: 0.0786 | Y62: 0.079 | Z62: 0.0794 | AA62: 0.0797 | AB62: 0.0801 | AC62: 0.0805 | AD62: 0.0809 | AE62: 0.0813 | AF62: 0.0818 | AG62: 0.0822 | AH62: 0.0827 | AI62: 0.0832 | AJ62: 0.0837 | AK62: 0.0842 | AL62: 0.0847 | AM62: 0.0852 | AN62: 0.0858 | AO62: 0.0863 | AP62: 0.0869 | AQ62: 0.0875 | AR62: 0.0881 | AS62: 0.0887 | AT62: 0.0893 | AU62: 0.0899 | AV62: 0.0906 | AW62: 0.0913 | AX62: 0.092 | AY62: 0.0927 | AZ62: 0.0935 | BA62: 0.0942 | BB62: 0.095 | BC62: 0.0957 | BD62: 0.0965 | BE62: 0.0972 | BF62: 0.098 | BG62: 0.0987 | BH62: 0.0994 | BI62: 0.1001 | BJ62: 0.1008 | BK62: 0.1015 | BL62: 0.1021 | BM62: 0.1028 | BN62: 0.1034 | BO62: 0.104 | BP62: 0.1045 | BQ62: 0.1051 | BR62: 0.1056 | BS62: 0.1061 | BT62: 0.1066 | BU62: 0.1071 | BV62: 0.1075 | BW62: 0.1079 | BX62: 0.1083 | BY62: 0.1087 | BZ62: 0.1091 | CA62: 0.1094 | CB62: 0.1097 | CC62: 0.11 | CD62: 0.1103 | CE62: 0.1106 | CF62: 0.1109 | CG62: 0.1111 | CH62: 76
... 77 more rows

Sheet JLRP_filing (hidden)
A1: Kotak Lifetime Income (Option 6) - Annuity Rates Applicaple for Purchase Price Less than Rs.2,50,000 and for Annual Mode
A3: Age | B3: 18 | C3: =B3+1 -> 19 | D3: 20 | E3: 21 | F3: 22 | G3: 23 | H3: 24 | I3: 25 | J3: 26 | K3: 27 | L3: 28 | M3: 29 | N3: 30 | O3: 31 | P3: 32 | Q3: 33 | R3: 34 | S3: 35 | T3: 36 | U3: 37 | V3: 38 | W3: 39 | X3: 40 | Y3: 41 | Z3: 42 | AA3: 43 | AB3: 44 | AC3: 45 | AD3: 46 | AE3: 47 | AF3: 48 | AG3: 49 | AH3: 50 | AI3: 51 | AJ3: 52 | AK3: 53 | AL3: 54 | AM3: 55 | AN3: =AM3+1 -> 56 | AO3: 57 | AP3: 58 | AQ3: 59 | AR3: 60 | AS3: 61 | AT3: 62 | AU3: 63 | AV3: 64 | AW3: 65 | AX3: 66 | AY3: 67 | AZ3: 68 | BA3: 69 | BB3: 70 | BC3: 71 | BD3: 72 | BE3: 73 | BF3: 74 | BG3: 75 | BH3: 76 | BI3: 77 | BJ3: 78 | BK3: 79 | BL3: 80 | BM3: 81 | BN3: 82 | BO3: =BN3+1 -> 83 | BP3: 84 | BQ3: 85 | BR3: 86 | BS3: 87 | BT3: 88 | BU3: 89 | BV3: 90 | BW3: 91 | BX3: 92 | BY3: 93 | BZ3: 94 | CA3: 95 | CB3: 96 | CC3: 97 | CD3: 98 | CE3: 99 | CF3: Age
A4: 18 | B4: 0.0539 | CF4: 18
A5: =A4+1 -> 19 | B5: 0.0539 | C5: 0.0539 | CF5: =CF4+1 -> 19
A6: 20 | B6: 0.0539 | C6: 0.0539 | D6: 0.0539 | CF6: 20
A7: 21 | B7: 0.0539 | C7: 0.0539 | D7: 0.0539 | E7: 0.0539 | CF7: 21
A8: 22 | B8: 0.0539 | C8: 0.0539 | D8: 0.0539 | E8: 0.0539 | F8: 0.0539 | CF8: 22
A9: 23 | B9: 0.0539 | C9: 0.0539 | D9: 0.0539 | E9: 0.0539 | F9: 0.0539 | G9: 0.0539 | CF9: 23
A10: 24 | B10: 0.0539 | C10: 0.0539 | D10: 0.0539 | E10: 0.0539 | F10: 0.0539 | G10: 0.0539 | H10: 0.054 | CF10: 24
A11: 25 | B11: 0.0539 | C11: 0.0539 | D11: 0.0539 | E11: 0.0539 | F11: 0.0539 | G11: 0.054 | H11: 0.054 | I11: 0.054 | CF11: 25
A12: 26 | B12: 0.0539 | C12: 0.0539 | D12: 0.0539 | E12: 0.0539 | F12: 0.054 | G12: 0.054 | H12: 0.054 | I12: 0.054 | J12: 0.054 | CF12: 26
A13: 27 | B13: 0.0539 | C13: 0.0539 | D13: 0.0539 | E13: 0.054 | F13: 0.054 | G13: 0.054 | H13: 0.054 | I13: 0.054 | J13: 0.0541 | K13: 0.0541 | CF13: 27
A14: 28 | B14: 0.0539 | C14: 0.0539 | D14: 0.054 | E14: 0.054 | F14: 0.054 | G14: 0.054 | H14: 0.054 | I14: 0.0541 | J14: 0.0541 | K14: 0.0541 | L14: 0.0541 | CF14: 28
A15: 29 | B15: 0.0539 | C15: 0.054 | D15: 0.054 | E15: 0.054 | F15: 0.054 | G15: 0.054 | H15: 0.0541 | I15: 0.0541 | J15: 0.0541 | K15: 0.0541 | L15: 0.0542 | M15: 0.0542 | CF15: 29
A16: 30 | B16: 0.054 | C16: 0.054 | D16: 0.054 | E16: 0.054 | F16: 0.054 | G16: 0.0541 | H16: 0.0541 | I16: 0.0541 | J16: 0.0541 | K16: 0.0542 | L16: 0.0542 | M16: 0.0542 | N16: 0.0543 | CF16: 30
A17: 31 | B17: 0.054 | C17: 0.054 | D17: 0.054 | E17: 0.054 | F17: 0.0541 | G17: 0.0541 | H17: 0.0541 | I17: 0.0541 | J17: 0.0542 | K17: 0.0542 | L17: 0.0542 | M17: 0.0543 | N17: 0.0543 | O17: 0.0544 | CF17: 31
A18: 32 | B18: 0.054 | C18: 0.054 | D18: 0.054 | E18: 0.054 | F18: 0.0541 | G18: 0.0541 | H18: 0.0541 | I18: 0.0542 | J18: 0.0542 | K18: 0.0542 | L18: 0.0543 | M18: 0.0543 | N18: 0.0544 | O18: 0.0544 | P18: 0.0544 | CF18: 32
A19: 33 | B19: 0.054 | C19: 0.054 | D19: 0.054 | E19: 0.0541 | F19: 0.0541 | G19: 0.0541 | H19: 0.0542 | I19: 0.0542 | J19: 0.0542 | K19: 0.0543 | L19: 0.0543 | M19: 0.0544 | N19: 0.0544 | O19: 0.0544 | P19: 0.0545 | Q19: 0.0545 | CF19: 33
A20: 34 | B20: 0.054 | C20: 0.054 | D20: 0.0541 | E20: 0.0541 | F20: 0.0541 | G20: 0.0541 | H20: 0.0542 | I20: 0.0542 | J20: 0.0543 | K20: 0.0543 | L20: 0.0543 | M20: 0.0544 | N20: 0.0544 | O20: 0.0545 | P20: 0.0545 | Q20: 0.0546 | R20: 0.0546 | CF20: 34
A21: 35 | B21: 0.054 | C21: 0.054 | D21: 0.0541 | E21: 0.0541 | F21: 0.0541 | G21: 0.0542 | H21: 0.0542 | I21: 0.0542 | J21: 0.0543 | K21: 0.0543 | L21: 0.0544 | M21: 0.0544 | N21: 0.0545 | O21: 0.0545 | P21: 0.0546 | Q21: 0.0546 | R21: 0.0547 | S21: 0.0547 | CF21: 35
A22: 36 | B22: 0.054 | C22: 0.0541 | D22: 0.0541 | E22: 0.0541 | F22: 0.0542 | G22: 0.0542 | H22: 0.0542 | I22: 0.0543 | J22: 0.0543 | K22: 0.0544 | L22: 0.0544 | M22: 0.0545 | N22: 0.0545 | O22: 0.0546 | P22: 0.0546 | Q22: 0.0547 | R22: 0.0547 | S22: 0.0548 | T22: 0.0548 | CF22: 36
A23: 37 | B23: 0.0541 | C23: 0.0541 | D23: 0.0541 | E23: 0.0541 | F23: 0.0542 | G23: 0.0542 | H23: 0.0543 | I23: 0.0543 | J23: 0.0543 | K23: 0.0544 | L23: 0.0544 | M23: 0.0545 | N23: 0.0545 | O23: 0.0546 | P23: 0.0547 | Q23: 0.0547 | R23: 0.0548 | S23: 0.0548 | T23: 0.0549 | U23: 0.0549 | CF23: 37
A24: 38 | B24: 0.0541 | C24: 0.0541 | D24: 0.0541 | E24: 0.0542 | F24: 0.0542 | G24: 0.0542 | H24: 0.0543 | I24: 0.0543 | J24: 0.0544 | K24: 0.0544 | L24: 0.0545 | M24: 0.0545 | N24: 0.0546 | O24: 0.0546 | P24: 0.0547 | Q24: 0.0548 | R24: 0.0548 | S24: 0.0549 | T24: 0.0549 | U24: 0.055 | V24: 0.055 | CF24: 38
A25: 39 | B25: 0.0541 | C25: 0.0541 | D25: 0.0541 | E25: 0.0542 | F25: 0.0542 | G25: 0.0543 | H25: 0.0543 | I25: 0.0543 | J25: 0.0544 | K25: 0.0544 | L25: 0.0545 | M25: 0.0546 | N25: 0.0546 | O25: 0.0547 | P25: 0.0547 | Q25: 0.0548 | R25: 0.0549 | S25: 0.0549 | T25: 0.055 | U25: 0.055 | V25: 0.0551 | W25: 0.0552 | CF25: 39
A26: 40 | B26: 0.0541 | C26: 0.0541 | D26: 0.0542 | E26: 0.0542 | F26: 0.0542 | G26: 0.0543 | H26: 0.0543 | I26: 0.0544 | J26: 0.0544 | K26: 0.0545 | L26: 0.0545 | M26: 0.0546 | N26: 0.0547 | O26: 0.0547 | P26: 0.0548 | Q26: 0.0548 | R26: 0.0549 | S26: 0.055 | T26: 0.055 | U26: 0.0551 | V26: 0.0552 | W26: 0.0552 | X26: 0.0553 | CF26: 40
A27: 41 | B27: 0.0541 | C27: 0.0542 | D27: 0.0542 | E27: 0.0542 | F27: 0.0543 | G27: 0.0543 | H27: 0.0543 | I27: 0.0544 | J27: 0.0544 | K27: 0.0545 | L27: 0.0546 | M27: 0.0546 | N27: 0.0547 | O27: 0.0547 | P27: 0.0548 | Q27: 0.0549 | R27: 0.0549 | S27: 0.055 | T27: 0.0551 | U27: 0.0551 | V27: 0.0552 | W27: 0.0553 | X27: 0.0554 | Y27: 0.0554 | CF27: 41
A28: 42 | B28: 0.0541 | C28: 0.0542 | D28: 0.0542 | E28: 0.0542 | F28: 0.0543 | G28: 0.0543 | H28: 0.0544 | I28: 0.0544 | J28: 0.0545 | K28: 0.0545 | L28: 0.0546 | M28: 0.0547 | N28: 0.0547 | O28: 0.0548 | P28: 0.0549 | Q28: 0.0549 | R28: 0.055 | S28: 0.0551 | T28: 0.0551 | U28: 0.0552 | V28: 0.0553 | W28: 0.0553 | X28: 0.0554 | Y28: 0.0555 | Z28: 0.0556 | CF28: 42
A29: 43 | B29: 0.0542 | C29: 0.0542 | D29: 0.0542 | E29: 0.0543 | F29: 0.0543 | G29: 0.0543 | H29: 0.0544 | I29: 0.0544 | J29: 0.0545 | K29: 0.0546 | L29: 0.0546 | M29: 0.0547 | N29: 0.0548 | O29: 0.0548 | P29: 0.0549 | Q29: 0.055 | R29: 0.055 | S29: 0.0551 | T29: 0.0552 | U29: 0.0553 | V29: 0.0553 | W29: 0.0554 | X29: 0.0555 | Y29: 0.0556 | Z29: 0.0556 | AA29: 0.0557 | CF29: 43
A30: 44 | B30: 0.0542 | C30: 0.0542 | D30: 0.0542 | E30: 0.0543 | F30: 0.0543 | G30: 0.0544 | H30: 0.0544 | I30: 0.0545 | J30: 0.0545 | K30: 0.0546 | L30: 0.0546 | M30: 0.0547 | N30: 0.0548 | O30: 0.0549 | P30: 0.0549 | Q30: 0.055 | R30: 0.0551 | S30: 0.0551 | T30: 0.0552 | U30: 0.0553 | V30: 0.0554 | W30: 0.0555 | X30: 0.0555 | Y30: 0.0556 | Z30: 0.0557 | AA30: 0.0558 | AB30: 0.0559 | CF30: 44
A31: 45 | B31: 0.0542 | C31: 0.0542 | D31: 0.0542 | E31: 0.0543 | F31: 0.0543 | G31: 0.0544 | H31: 0.0544 | I31: 0.0545 | J31: 0.0545 | K31: 0.0546 | L31: 0.0547 | M31: 0.0547 | N31: 0.0548 | O31: 0.0549 | P31: 0.055 | Q31: 0.055 | R31: 0.0551 | S31: 0.0552 | T31: 0.0553 | U31: 0.0554 | V31: 0.0554 | W31: 0.0555 | X31: 0.0556 | Y31: 0.0557 | Z31: 0.0558 | AA31: 0.0558 | AB31: 0.0559 | AC31: 0.056 | CF31: 45
A32: 46 | B32: 0.0542 | C32: 0.0542 | D32: 0.0543 | E32: 0.0543 | F32: 0.0543 | G32: 0.0544 | H32: 0.0544 | I32: 0.0545 | J32: 0.0546 | K32: 0.0546 | L32: 0.0547 | M32: 0.0548 | N32: 0.0548 | O32: 0.0549 | P32: 0.055 | Q32: 0.0551 | R32: 0.0552 | S32: 0.0552 | T32: 0.0553 | U32: 0.0554 | V32: 0.0555 | W32: 0.0556 | X32: 0.0557 | Y32: 0.0557 | Z32: 0.0558 | AA32: 0.0559 | AB32: 0.056 | AC32: 0.0561 | AD32: 0.0562 | CF32: 46
A33: 47 | B33: 0.0542 | C33: 0.0542 | D33: 0.0543 | E33: 0.0543 | F33: 0.0544 | G33: 0.0544 | H33: 0.0545 | I33: 0.0545 | J33: 0.0546 | K33: 0.0546 | L33: 0.0547 | M33: 0.0548 | N33: 0.0549 | O33: 0.0549 | P33: 0.055 | Q33: 0.0551 | R33: 0.0552 | S33: 0.0553 | T33: 0.0554 | U33: 0.0554 | V33: 0.0555 | W33: 0.0556 | X33: 0.0557 | Y33: 0.0558 | Z33: 0.0559 | AA33: 0.056 | AB33: 0.0561 | AC33: 0.0562 | AD33: 0.0562 | AE33: 0.0563 | CF33: 47
A34: 48 | B34: 0.0542 | C34: 0.0542 | D34: 0.0543 | E34: 0.0543 | F34: 0.0544 | G34: 0.0544 | H34: 0.0545 | I34: 0.0545 | J34: 0.0546 | K34: 0.0547 | L34: 0.0547 | M34: 0.0548 | N34: 0.0549 | O34: 0.055 | P34: 0.0551 | Q34: 0.0551 | R34: 0.0552 | S34: 0.0553 | T34: 0.0554 | U34: 0.0555 | V34: 0.0556 | W34: 0.0557 | X34: 0.0558 | Y34: 0.0559 | Z34: 0.056 | AA34: 0.056 | AB34: 0.0561 | AC34: 0.0562 | AD34: 0.0563 | AE34: 0.0564 | AF34: 0.0565 | CF34: 48
A35: 49 | B35: 0.0542 | C35: 0.0543 | D35: 0.0543 | E35: 0.0543 | F35: 0.0544 | G35: 0.0544 | H35: 0.0545 | I35: 0.0546 | J35: 0.0546 | K35: 0.0547 | L35: 0.0548 | M35: 0.0548 | N35: 0.0549 | O35: 0.055 | P35: 0.0551 | Q35: 0.0552 | R35: 0.0553 | S35: 0.0553 | T35: 0.0554 | U35: 0.0555 | V35: 0.0556 | W35: 0.0557 | X35: 0.0558 | Y35: 0.0559 | Z35: 0.056 | AA35: 0.0561 | AB35: 0.0562 | AC35: 0.0563 | AD35: 0.0564 | AE35: 0.0565 | AF35: 0.0566 | AG35: 0.0567 | CF35: 49
A36: 50 | B36: 0.0542 | C36: 0.0543 | D36: 0.0543 | E36: 0.0543 | F36: 0.0544 | G36: 0.0544 | H36: 0.0545 | I36: 0.0546 | J36: 0.0546 | K36: 0.0547 | L36: 0.0548 | M36: 0.0549 | N36: 0.0549 | O36: 0.055 | P36: 0.0551 | Q36: 0.0552 | R36: 0.0553 | S36: 0.0554 | T36: 0.0555 | U36: 0.0556 | V36: 0.0557 | W36: 0.0558 | X36: 0.0559 | Y36: 0.056 | Z36: 0.0561 | AA36: 0.0562 | AB36: 0.0563 | AC36: 0.0564 | AD36: 0.0565 | AE36: 0.0566 | AF36: 0.0567 | AG36: 0.0568 | AH36: 0.0569 | CF36: 50
A37: 51 | B37: 0.0542 | C37: 0.0543 | D37: 0.0543 | E37: 0.0544 | F37: 0.0544 | G37: 0.0545 | H37: 0.0545 | I37: 0.0546 | J37: 0.0547 | K37: 0.0547 | L37: 0.0548 | M37: 0.0549 | N37: 0.055 | O37: 0.055 | P37: 0.0551 | Q37: 0.0552 | R37: 0.0553 | S37: 0.0554 | T37: 0.0555 | U37: 0.0556 | V37: 0.0557 | W37: 0.0558 | X37: 0.0559 | Y37: 0.056 | Z37: 0.0561 | AA37: 0.0562 | AB37: 0.0563 | AC37: 0.0564 | AD37: 0.0566 | AE37: 0.0567 | AF37: 0.0568 | AG37: 0.0569 | AH37: 0.057 | AI37: 0.0571 | CF37: 51
A38: 52 | B38: 0.0542 | C38: 0.0543 | D38: 0.0543 | E38: 0.0544 | F38: 0.0544 | G38: 0.0545 | H38: 0.0545 | I38: 0.0546 | J38: 0.0547 | K38: 0.0547 | L38: 0.0548 | M38: 0.0549 | N38: 0.055 | O38: 0.0551 | P38: 0.0552 | Q38: 0.0553 | R38: 0.0554 | S38: 0.0554 | T38: 0.0555 | U38: 0.0556 | V38: 0.0558 | W38: 0.0559 | X38: 0.056 | Y38: 0.0561 | Z38: 0.0562 | AA38: 0.0563 | AB38: 0.0564 | AC38: 0.0565 | AD38: 0.0566 | AE38: 0.0567 | AF38: 0.0568 | AG38: 0.057 | AH38: 0.0571 | AI38: 0.0572 | AJ38: 0.0573 | CF38: 52
A39: 53 | B39: 0.0543 | C39: 0.0543 | D39: 0.0543 | E39: 0.0544 | F39: 0.0544 | G39: 0.0545 | H39: 0.0545 | I39: 0.0546 | J39: 0.0547 | K39: 0.0548 | L39: 0.0548 | M39: 0.0549 | N39: 0.055 | O39: 0.0551 | P39: 0.0552 | Q39: 0.0553 | R39: 0.0554 | S39: 0.0555 | T39: 0.0556 | U39: 0.0557 | V39: 0.0558 | W39: 0.0559 | X39: 0.056 | Y39: 0.0561 | Z39: 0.0562 | AA39: 0.0564 | AB39: 0.0565 | AC39: 0.0566 | AD39: 0.0567 | AE39: 0.0568 | AF39: 0.0569 | AG39: 0.057 | AH39: 0.0571 | AI39: 0.0573 | AJ39: 0.0574 | AK39: 0.0575 | CF39: 53
A40: 54 | B40: 0.0543 | C40: 0.0543 | D40: 0.0543 | E40: 0.0544 | F40: 0.0544 | G40: 0.0545 | H40: 0.0546 | I40: 0.0546 | J40: 0.0547 | K40: 0.0548 | L40: 0.0549 | M40: 0.0549 | N40: 0.055 | O40: 0.0551 | P40: 0.0552 | Q40: 0.0553 | R40: 0.0554 | S40: 0.0555 | T40: 0.0556 | U40: 0.0557 | V40: 0.0558 | W40: 0.0559 | X40: 0.0561 | Y40: 0.0562 | Z40: 0.0563 | AA40: 0.0564 | AB40: 0.0565 | AC40: 0.0566 | AD40: 0.0568 | AE40: 0.0569 | AF40: 0.057 | AG40: 0.0571 | AH40: 0.0572 | AI40: 0.0573 | AJ40: 0.0575 | AK40: 0.0576 | AL40: 0.0577 | CF40: 54
A41: 55 | B41: 0.0543 | C41: 0.0543 | D41: 0.0543 | E41: 0.0544 | F41: 0.0544 | G41: 0.0545 | H41: 0.0546 | I41: 0.0546 | J41: 0.0547 | K41: 0.0548 | L41: 0.0549 | M41: 0.055 | N41: 0.055 | O41: 0.0551 | P41: 0.0552 | Q41: 0.0553 | R41: 0.0554 | S41: 0.0555 | T41: 0.0556 | U41: 0.0557 | V41: 0.0559 | W41: 0.056 | X41: 0.0561 | Y41: 0.0562 | Z41: 0.0563 | AA41: 0.0565 | AB41: 0.0566 | AC41: 0.0567 | AD41: 0.0568 | AE41: 0.0569 | AF41: 0.0571 | AG41: 0.0572 | AH41: 0.0573 | AI41: 0.0574 | AJ41: 0.0576 | AK41: 0.0577 | AL41: 0.0578 | AM41: 0.0579 | CF41: 55
A42: 56 | B42: 0.0543 | C42: 0.0543 | D42: 0.0544 | E42: 0.0544 | F42: 0.0545 | G42: 0.0545 | H42: 0.0546 | I42: 0.0546 | J42: 0.0547 | K42: 0.0548 | L42: 0.0549 | M42: 0.055 | N42: 0.0551 | O42: 0.0552 | P42: 0.0552 | Q42: 0.0554 | R42: 0.0555 | S42: 0.0556 | T42: 0.0557 | U42: 0.0558 | V42: 0.0559 | W42: 0.056 | X42: 0.0561 | Y42: 0.0563 | Z42: 0.0564 | AA42: 0.0565 | AB42: 0.0566 | AC42: 0.0568 | AD42: 0.0569 | AE42: 0.057 | AF42: 0.0571 | AG42: 0.0573 | AH42: 0.0574 | AI42: 0.0575 | AJ42: 0.0576 | AK42: 0.0578 | AL42: 0.0579 | AM42: 0.058 | AN42: 0.0581 | CF42: 56
A43: 57 | B43: 0.0543 | C43: 0.0543 | D43: 0.0544 | E43: 0.0544 | F43: 0.0545 | G43: 0.0545 | H43: 0.0546 | I43: 0.0547 | J43: 0.0547 | K43: 0.0548 | L43: 0.0549 | M43: 0.055 | N43: 0.0551 | O43: 0.0552 | P43: 0.0553 | Q43: 0.0554 | R43: 0.0555 | S43: 0.0556 | T43: 0.0557 | U43: 0.0558 | V43: 0.0559 | W43: 0.056 | X43: 0.0562 | Y43: 0.0563 | Z43: 0.0564 | AA43: 0.0565 | AB43: 0.0567 | AC43: 0.0568 | AD43: 0.0569 | AE43: 0.0571 | AF43: 0.0572 | AG43: 0.0573 | AH43: 0.0575 | AI43: 0.0576 | AJ43: 0.0577 | AK43: 0.0579 | AL43: 0.058 | AM43: 0.0581 | AN43: 0.0582 | AO43: 0.0584 | CF43: 57
A44: 58 | B44: 0.0543 | C44: 0.0543 | D44: 0.0544 | E44: 0.0544 | F44: 0.0545 | G44: 0.0545 | H44: 0.0546 | I44: 0.0547 | J44: 0.0547 | K44: 0.0548 | L44: 0.0549 | M44: 0.055 | N44: 0.0551 | O44: 0.0552 | P44: 0.0553 | Q44: 0.0554 | R44: 0.0555 | S44: 0.0556 | T44: 0.0557 | U44: 0.0558 | V44: 0.056 | W44: 0.0561 | X44: 0.0562 | Y44: 0.0563 | Z44: 0.0565 | AA44: 0.0566 | AB44: 0.0567 | AC44: 0.0569 | AD44: 0.057 | AE44: 0.0571 | AF44: 0.0573 | AG44: 0.0574 | AH44: 0.0575 | AI44: 0.0577 | AJ44: 0.0578 | AK44: 0.058 | AL44: 0.0581 | AM44: 0.0582 | AN44: 0.0583 | AO44: 0.0585 | AP44: 0.0586 | CF44: 58
A45: 59 | B45: 0.0543 | C45: 0.0543 | D45: 0.0544 | E45: 0.0544 | F45: 0.0545 | G45: 0.0545 | H45: 0.0546 | I45: 0.0547 | J45: 0.0547 | K45: 0.0548 | L45: 0.0549 | M45: 0.055 | N45: 0.0551 | O45: 0.0552 | P45: 0.0553 | Q45: 0.0554 | R45: 0.0555 | S45: 0.0556 | T45: 0.0557 | U45: 0.0559 | V45: 0.056 | W45: 0.0561 | X45: 0.0562 | Y45: 0.0564 | Z45: 0.0565 | AA45: 0.0566 | AB45: 0.0568 | AC45: 0.0569 | AD45: 0.057 | AE45: 0.0572 | AF45: 0.0573 | AG45: 0.0575 | AH45: 0.0576 | AI45: 0.0578 | AJ45: 0.0579 | AK45: 0.058 | AL45: 0.0582 | AM45: 0.0583 | AN45: 0.0584 | AO45: 0.0586 | AP45: 0.0587 | AQ45: 0.0588 | CF45: 59
A46: 60 | B46: 0.0543 | C46: 0.0543 | D46: 0.0544 | E46: 0.0544 | F46: 0.0545 | G46: 0.0545 | H46: 0.0546 | I46: 0.0547 | J46: 0.0548 | K46: 0.0548 | L46: 0.0549 | M46: 0.055 | N46: 0.0551 | O46: 0.0552 | P46: 0.0553 | Q46: 0.0554 | R46: 0.0555 | S46: 0.0556 | T46: 0.0558 | U46: 0.0559 | V46: 0.056 | W46: 0.0561 | X46: 0.0563 | Y46: 0.0564 | Z46: 0.0565 | AA46: 0.0567 | AB46: 0.0568 | AC46: 0.0569 | AD46: 0.0571 | AE46: 0.0572 | AF46: 0.0574 | AG46: 0.0575 | AH46: 0.0577 | AI46: 0.0578 | AJ46: 0.058 | AK46: 0.0581 | AL46: 0.0583 | AM46: 0.0584 | AN46: 0.0585 | AO46: 0.0587 | AP46: 0.0588 | AQ46: 0.0589 | AR46: 0.059 | CF46: 60
A47: 61 | B47: 0.0543 | C47: 0.0543 | D47: 0.0544 | E47: 0.0544 | F47: 0.0545 | G47: 0.0545 | H47: 0.0546 | I47: 0.0547 | J47: 0.0548 | K47: 0.0548 | L47: 0.0549 | M47: 0.055 | N47: 0.0551 | O47: 0.0552 | P47: 0.0553 | Q47: 0.0554 | R47: 0.0555 | S47: 0.0557 | T47: 0.0558 | U47: 0.0559 | V47: 0.056 | W47: 0.0562 | X47: 0.0563 | Y47: 0.0564 | Z47: 0.0566 | AA47: 0.0567 | AB47: 0.0568 | AC47: 0.057 | AD47: 0.0571 | AE47: 0.0573 | AF47: 0.0574 | AG47: 0.0576 | AH47: 0.0577 | AI47: 0.0579 | AJ47: 0.058 | AK47: 0.0582 | AL47: 0.0583 | AM47: 0.0585 | AN47: 0.0586 | AO47: 0.0588 | AP47: 0.0589 | AQ47: 0.059 | AR47: 0.0592 | AS47: 0.0593 | CF47: 61
A48: 62 | B48: 0.0543 | C48: 0.0543 | D48: 0.0544 | E48: 0.0544 | F48: 0.0545 | G48: 0.0546 | H48: 0.0546 | I48: 0.0547 | J48: 0.0548 | K48: 0.0549 | L48: 0.0549 | M48: 0.055 | N48: 0.0551 | O48: 0.0552 | P48: 0.0553 | Q48: 0.0554 | R48: 0.0556 | S48: 0.0557 | T48: 0.0558 | U48: 0.0559 | V48: 0.056 | W48: 0.0562 | X48: 0.0563 | Y48: 0.0564 | Z48: 0.0566 | AA48: 0.0567 | AB48: 0.0569 | AC48: 0.057 | AD48: 0.0572 | AE48: 0.0573 | AF48: 0.0575 | AG48: 0.0576 | AH48: 0.0578 | AI48: 0.058 | AJ48: 0.0581 | AK48: 0.0583 | AL48: 0.0584 | AM48: 0.0586 | AN48: 0.0587 | AO48: 0.0589 | AP48: 0.059 | AQ48: 0.0591 | AR48: 0.0593 | AS48: 0.0594 | AT48: 0.0595 | CF48: 62
